Workbook

Sheet Notes
A1: VPCI_and_TTI.xlsm; Traders Tip spreadsheet created for the August 2024 Issue
A2: Coded beginning 2024-June-11 by Ronald McAllister (rpmac_xltt@sprynet.com)
A4: This Workbook demonstrates an EXCEL version of the ideas presented
A5: by Buff Pelz Dormeier, CMT in an article titled "Volume Confirmation For A Trend System",
A6: which originally appeared in the August 2024 issue of
A7: "Technical Analysis of Stocks and Commodities" magazine.
A9: Mr. Dormeier's article reviews the development of his Volume Price Confirmation Indicator (VPCI) and
A10: the development of his Trend Thrust Indicator (TTI) along with a description of the back testing
A11: he used to validate each.
A12: So this spreadsheet demonstrates each of these indicators.
A16: 2024June12 - This, the August 2024 T-Tip spreadsheet, is the first T-Tip that has been "adjusted" to correct the April 15, 2024 data retrieval failure caused by Yahoo Finance changes
A17: to their Stock Summary web page. These changes took effect on, or slightly before, April 15, 2024.
A19: It took a while to sus out what changed and how to reliably locate the information I use in these T-Tips.
A21: The result is a complete re-write of my data retrieval code as it applies to the information I need from the Stock Summary web page.
A22: No simple description of the necessary VBA code changes would be sufficient for those of you might wish to restore older T-Tips to service.
A24: So I have included in this T-Tip spreadsheet the capability to "FIX" older T-Tips spreadsheets by replacing the appropriate section of their VBA code
A25: using the the fully functional code contained in this August 2024 T-Tip spreadsheet as my Template.
A26: See tab "April 15 Repairs" for step by step instructions.
A28: Things discovered along the way
A29: It turns out that there is a plethora of interesting information burried in the Summary Sheet HTML but not shown on the web page you and I see.
A30: I pulled out and incorporated a couple of them by way of this April 15 fix:
A31: InputPriceData tab
A32: First Trade Date - the first date and time the current symbol was traded
A33: Market State - Will show correct Time Zone time and Time Zone code for the market where the current symbol is traded.
A34: Example: Retrieving symbol "^HIS" at 10:am EDT will display "HANG SENG INDEX (^HSI) -HKSE (Daily) At Close: 4:08 PM HKT"
A35: CalculationAndCharts tab
A36: Cell "A2" and the price chart title will now include market state, market time, and TimeZone Code.
A37: Follow tab
A38: Entries on the Follow Tab will also show Times and time zones for the marke where traded
A40: 2024Feb04 - Added "TallChart" Check Box and supporting functionality that allows the user to expand the charting area to use all of the vertical area that is "visible" on the worksheet.
A41: I found this to be a usefull toggle when the numer of user selected indicator subcharts scrunches them so tightly into the normal vertical space that much of the visual detail is lost.
A42: Note: "Visible" vertical space is sensitive to the level of "zoom" you choose for the worksheet (Slider at the bottom right of the sheet display)
A44: Just a note:
A45: November 2023 was the first T-Tip built using EXCEL 365. Specifically:
A46: Microsoft® Excel® for Microsoft 365 MSO (Version 2308 Build 16.0.16731.20052) 64-bit (plus any more recent updates to MSO as they happen)
A47: All previous T-Tip spreadsheets were built using EXCEL 2010.

Sheet InputPriceData
A1: NVIDIA Corporation (NVDA) -NasdaqGS (Daily)
B2: First trade was: | C2: 1999-01-22T10:30:00 | M2: To retrieve data for symbols traded on non US Exchanges, | IJ2: 241.79
A3: Request Online Yahoo History for: | F3: Market State == > | G3: As Of: | H3: 11:02:00 | I3: EDT | M3: you will need to append the dot-suffix for the exchange to the symbol.
A4: Symbol | B4: NVDA | D4: Valid | I4: =OFFSET(I4,-2,0,1,1) -> 0 | M4: The following links provide a description of how to use the exchange suffix
A5: From | B5: =EDATE(HistReqEndDate,-360) -> 1994-06-18 | D5: Data | M5: along with a list of suffixes for the major world exchanges. | AD5: Trailing 12 Div return (Cur Close)
A6: To | B6: =NOW() -> 2024-06-18T16:08:07.550 | D6: Types | E6: =VLOOKUP(B7,D7:E10,2,FALSE) -> d | M6: https://help.yahoo.com/kb/finance/SLN2310.html
A7: Data Type | B7: Daily | D7: Daily | E7: d | M7: And
A8: Crumb | D8: Weekly | E8: w | M8: https://www.stockmarketeye.com/users-guide/ticker-symbols-and-data-providers/data-providers.html
A9: Available Data | D9: Monthly | E9: m
A10: Bar Count: | B10: 6393 | M10: You may search on “exchange suffixes” for additional discussions | AD10: =OFFSET(AC15,1,0,1,1)/OFFSET(N15,1,0,1,1) -> 0.0001648186994
A11: From: | B11: =IF(B10<=0,"",OFFSET(B15,B10,IF(HistReqDataType="v",1,0),1,1)) -> 1999-01-22 | W11: Trailing 12 Month Dividend Returns
A12: To: | B12: =IF(B10<=0,"",IF(HistReqDataType="v",OFFSET(B15,2,1,1,1),OFFSET(B15,1,0,1,1))) -> 2024-06-18 | E12: 153 | F12: Holiday (market closed) dates have been filtered out. | W12: Raw Close price on Dividend date | X12: Div Year and Month | Y12: Looking for year ago Div Year and Month | Z12: Year ago Div Date we found | AA12: row offset to year ago div Date | AB12: Same month flag | AC12: Trailing 12 Div Total | AD12: Trailing 12 Div return
Q13: Split History | S13: 6 | T13: Running | U13: Dividend History
B14: Raw Data Values | H14: Adjusted | I14: Price Adjust | J14: Vol Adjust | K14: Adjusted Values | P14: Last | Q14: Effective | R14: Shares | T14: Vol Adjust | V14: 47
A15: RelRow | B15: Date | C15: Open | D15: High | E15: Low | F15: Close | G15: Volume | H15: Close | I15: Factor | J15: Factor | K15: Open | L15: High | M15: Low | N15: Close | O15: Volume | P15: Trade | Q15: 45462 | R15: New | S15: Old | T15: 1 | U15: Date | V15: $ / Share
A16: 1 | B16: 2024-06-18 | C16: 131.177002 | D16: 133.719894 | E16: 130.699997 | F16: 133.479996 | G16: 95388821 | H16: 133.479996 | I16: =IF(F16=0,1,H16/F16) -> 1 | J16: =INDEX(OFFSET($T$15,0,0,$S$13+1,1),MATCH(B16,OFFSET($Q$15,0,0,$S$13+1,1),-1)) -> 1 | K16: =ROUND($I16*C16,2) -> 131.18 | L16: =ROUND($I16*D16,2) -> 133.72 | M16: 130.7 | N16: 133.48 | O16: =G16*J16 -> 95388821 | Q16: 2024-06-10 | R16: 10 | S16: 1 | T16: 10 | U16: 2024-06-11 | V16: 0.01 | W16: =(INDEX(OFFSET($F$15,1,0,$B$10,1),MATCH(U16,OFFSET($B$15,1,0,$B$10,1),-1))) -> 120.910004 | X16: =YEAR(U16)&RIGHT("0"&MONTH(U16),2) -> 202406 | Y16: =YEAR(U16)-1&RIGHT("0"&MONTH(U16),2) -> 202306 | Z16: =OFFSET(U15,AA16,0,1,1) -> 2023-06-07 | AA16: =MATCH(Y16,OFFSET($X$15,A16,0,$V$14+1-A16,1),-1) -> 5 | AB16: =IF(OR(AND(YEAR(U16)=YEAR(Z16),MONTH(U16)=MONTH(Z16)),MONTH(U16)=MONTH(Z16)),1,0) -> 1 | AC16: =(V16+IF(AA16-AB16=0,0,IFERROR(SUM(OFFSET(V16,1,0,AA16-AB16-1,1)),0))) -> 0.022 | AD16: =AC16/(INDEX(OFFSET($F$15,1,0,$B$10,1),MATCH(U16,OFFSET($B$15,1,0,$B$10,1),-1))) -> 0.0001819535131
A17: 2 | B17: 2024-06-17 | C17: 132.990005 | D17: 133.729996 | E17: 129.580002 | F17: 130.979996 | G17: 287528700 | H17: 130.979996 | I17: =IF(F17=0,1,H17/F17) -> 1 | J17: =INDEX(OFFSET($T$15,0,0,$S$13+1,1),MATCH(B17,OFFSET($Q$15,0,0,$S$13+1,1),-1)) -> 1 | K17: =ROUND($I17*C17,2) -> 132.99 | L17: =ROUND($I17*D17,2) -> 133.73 | M17: =ROUND($I17*E17,2) -> 129.58 | N17: =ROUND($I17*F17,2) -> 130.98 | O17: =G17*J17 -> 287528700 | Q17: 2021-07-20 | R17: 4 | S17: 1 | T17: 40 | U17: 2024-03-05 | V17: 0.004 | W17: =(INDEX(OFFSET($F$15,1,0,$B$10,1),MATCH(U17,OFFSET($B$15,1,0,$B$10,1),-1))) -> 85.963997 | X17: =YEAR(U17)&RIGHT("0"&MONTH(U17),2) -> 202403 | Y17: =YEAR(U17)-1&RIGHT("0"&MONTH(U17),2) -> 202303 | Z17: =OFFSET(U16,AA17,0,1,1) -> 2023-03-07 | AA17: =MATCH(Y17,OFFSET($X$15,A17,0,$V$14+1-A17,1),-1) -> 5 | AB17: =IF(OR(AND(YEAR(U17)=YEAR(Z17),MONTH(U17)=MONTH(Z17)),MONTH(U17)=MONTH(Z17)),1,0) -> 1 | AC17: =(V17+IF(AA17-AB17=0,0,IFERROR(SUM(OFFSET(V17,1,0,AA17-AB17-1,1)),0))) -> 0.016 | AD17: =AC17/(INDEX(OFFSET($F$15,1,0,$B$10,1),MATCH(U17,OFFSET($B$15,1,0,$B$10,1),-1))) -> 0.0001861244307
A18: 3 | B18: 2024-06-14 | C18: 129.960007 | D18: 132.839996 | E18: 128.320007 | F18: 131.880005 | G18: 309320400 | H18: 131.880005 | I18: 1 | J18: 1 | K18: 129.96 | L18: 132.84 | M18: 128.32 | N18: 131.88 | O18: 309320400 | Q18: 2007-09-11 | R18: 3 | S18: 2 | T18: 60 | U18: 2023-12-05 | V18: 0.004 | W18: 46.566002 | X18: 202312 | Y18: 202212 | Z18: 2023-03-07 | AA18: 4 | AB18: 0 | AC18: 0.016 | AD18: 0.0003435983188
A19: 4 | B19: 2024-06-13 | C19: 129.389999 | D19: 129.800003 | E19: 127.160004 | F19: 129.610001 | G19: 260704500 | H19: 129.610001 | I19: 1 | J19: 1 | K19: 129.39 | L19: 129.8 | M19: 127.16 | N19: 129.61 | O19: 260704500 | Q19: 2006-04-07 | R19: 2 | S19: 1 | T19: 120 | U19: 2023-09-06 | V19: 0.004 | W19: 47.061001 | X19: 202309 | Y19: 202209 | Z19: 2022-09-07 | AA19: 5 | AB19: 1 | AC19: 0.016 | AD19: 0.0003399842685
A20: 5 | B20: 2024-06-12 | C20: 123.059998 | D20: 126.879997 | E20: 122.57 | F20: 125.199997 | G20: 299595000 | H20: 125.199997 | I20: 1 | J20: 1 | K20: 123.06 | L20: 126.88 | M20: 122.57 | N20: 125.2 | O20: 299595000 | Q20: 2001-09-12 | R20: 2 | S20: 1 | T20: 240 | U20: 2023-06-07 | V20: 0.004 | W20: 37.474998 | X20: 202306 | Y20: 202206 | Z20: 2022-06-08 | AA20: 5 | AB20: 1 | AC20: 0.016 | AD20: 0.0004269513237
A21: 6 | B21: 2024-06-11 | C21: 121.769997 | D21: 122.870003 | E21: 118.739998 | F21: 120.910004 | G21: 222551200 | H21: 120.910004 | I21: 1 | J21: 1 | K21: 121.77 | L21: 122.87 | M21: 118.74 | N21: 120.91 | O21: 222551200 | Q21: 2000-06-27 | R21: 2 | S21: 1 | T21: 480 | U21: 2023-03-07 | V21: 0.004 | W21: 23.288 | X21: 202303 | Y21: 202203 | Z21: 2022-03-02 | AA21: 5 | AB21: 1 | AC21: 0.016 | AD21: 0.000687049124
A22: 7 | B22: 2024-06-10 | C22: 120.370003 | D22: 123.099998 | E22: 117.010002 | F22: 121.790001 | G22: 314162700 | H22: 121.779999 | I22: 0.999917875 | J22: 10 | K22: 120.36 | L22: 123.09 | M22: 117 | N22: 121.78 | O22: 3141627000 | U22: 2022-11-30 | V22: 0.004 | W22: 16.923 | X22: 202211 | Y22: 202111 | Z22: 2021-12-01 | AA22: 5 | AB22: 0 | AC22: 0.02 | AD22: 0.001181823554
A23: 8 | B23: 2024-06-07 | C23: 119.769997 | D23: 121.692001 | E23: 118.022003 | F23: 120.888 | G23: 412386000 | H23: 120.878075 | I23: 0.9999178992 | J23: 10 | K23: 119.76 | L23: 121.68 | M23: 118.01 | N23: 120.88 | O23: 4123860000 | U23: 2022-09-07 | V23: 0.004 | W23: 13.714 | X23: 202209 | Y23: 202109 | Z23: 2021-12-01 | AA23: 4 | AB23: 0 | AC23: 0.016 | AD23: 0.001166690973
A24: 9 | B24: 2024-06-06 | C24: 124.047997 | D24: 125.586998 | E24: 118.32 | F24: 120.998001 | G24: 664696000 | H24: 120.98806 | I24: 0.9999178416 | J24: 10 | K24: 124.04 | L24: 125.58 | M24: 118.31 | N24: 120.99 | O24: 6646960000 | U24: 2022-06-08 | V24: 0.004 | W24: 18.648001 | X24: 202206 | Y24: 202106 | Z24: 2021-06-09 | AA24: 5 | AB24: 1 | AC24: 0.016 | AD24: 0.000858000812
A25: 10 | B25: 2024-06-05 | C25: 118.371002 | D25: 122.448997 | E25: 117.468002 | F25: 122.440002 | G25: 528402000 | H25: 122.429947 | I25: 0.9999178781 | J25: 10 | K25: 118.36 | L25: 122.44 | M25: 117.46 | N25: 122.43 | O25: 5284020000 | U25: 2022-03-02 | V25: 0.004 | W25: 24.219999 | X25: 202203 | Y25: 202103 | Z25: 2021-03-09 | AA25: 5 | AB25: 1 | AC25: 0.016 | AD25: 0.0006606110925
A26: 11 | B26: 2024-06-04 | C26: 115.716003 | D26: 116.599998 | E26: 114.044998 | F26: 116.436996 | G26: 403324000 | H26: 116.427429 | I26: 0.9999178354 | J26: 10 | K26: 115.71 | L26: 116.59 | M26: 114.04 | N26: 116.43 | O26: 4033240000 | U26: 2021-12-01 | V26: 0.004 | W26: 31.434999 | X26: 202112 | Y26: 202012 | Z26: 2020-12-03 | AA26: 5 | AB26: 1 | AC26: 0.016 | AD26: 0.0005089868143
A27: 12 | B27: 2024-06-03 | C27: 113.621002 | D27: 115 | E27: 112.002998 | F27: 115 | G27: 438392000 | H27: 114.990555 | I27: 0.9999178696 | J27: 10 | K27: 113.61 | L27: 114.99 | M27: 111.99 | N27: 114.99 | O27: 4383920000 | U27: 2021-08-31 | V27: 0.004 | W27: 22.385 | X27: 202108 | Y27: 202008 | Z27: 2020-09-01 | AA27: 5 | AB27: 0 | AC27: 0.02 | AD27: 0.0008934554389
A28: 13 | B28: 2024-05-31 | C28: 112.519997 | D28: 112.717003 | E28: 106.940002 | F28: 109.633003 | G28: 613263000 | H28: 109.624001 | I28: 0.9999178897 | J28: 10 | K28: 112.51 | L28: 112.71 | M28: 106.93 | N28: 109.62 | O28: 6132630000 | U28: 2021-06-09 | V28: 0.004 | W28: 17.35825 | X28: 202106 | Y28: 202006 | Z28: 2020-06-04 | AA28: 5 | AB28: 1 | AC28: 0.016 | AD28: 0.0009217519047
A29: 14 | B29: 2024-05-30 | C29: 114.650002 | D29: 115.819 | E29: 109.663002 | F29: 110.5 | G29: 487350000 | H29: 110.490921 | I29: 0.9999178371 | J29: 10 | K29: 114.64 | L29: 115.81 | M29: 109.65 | N29: 110.49 | O29: 4873500000 | U29: 2021-03-09 | V29: 0.004 | W29: 12.52025 | X29: 202103 | Y29: 202003 | Z29: 2020-06-04 | AA29: 4 | AB29: 0 | AC29: 0.016 | AD29: 0.001277929754
A30: 15 | B30: 2024-05-29 | C30: 113.050003 | D30: 115.491997 | E30: 110.901001 | F30: 114.824997 | G30: 557442000 | H30: 114.815567 | I30: 0.999917875 | J30: 10 | K30: 113.04 | L30: 115.48 | M30: 110.89 | N30: 114.82 | O30: 5574420000 | U30: 2020-12-03 | V30: 0.004 | W30: 13.396 | X30: 202012 | Y30: 201912 | Z30: 2020-02-27 | AA30: 4 | AB30: 0 | AC30: 0.016 | AD30: 0.001194386384
A31: 16 | B31: 2024-05-28 | C31: 110.244003 | D31: 114.939003 | E31: 109.883003 | F31: 113.901001 | G31: 652728000 | H31: 113.891647 | I31: 0.9999178761 | J31: 10 | K31: 110.23 | L31: 114.93 | M31: 109.87 | N31: 113.89 | O31: 6527280000 | U31: 2020-09-01 | V31: 0.004 | W31: 13.821 | X31: 202009 | Y31: 201909 | Z31: 2019-11-27 | AA31: 4 | AB31: 0 | AC31: 0.016 | AD31: 0.001157658635
A32: 17 | B32: 2024-05-24 | C32: 104.448997 | D32: 106.474998 | E32: 103 | F32: 106.469002 | G32: 429494000 | H32: 106.460258 | I32: 0.9999178728 | J32: 10 | K32: 104.44 | L32: 106.47 | M32: 102.99 | N32: 106.46 | O32: 4294940000 | U32: 2020-06-04 | V32: 0.004 | W32: 8.7665 | X32: 202006 | Y32: 201906 | Z32: 2019-08-28 | AA32: 4 | AB32: 0 | AC32: 0.016 | AD32: 0.001825129755
A33: 18 | B33: 2024-05-23 | C33: 102.028 | D33: 106.32 | E33: 101.519997 | F33: 103.799004 | G33: 835065000 | H33: 103.790482 | I33: 0.999917899 | J33: 10 | K33: 102.02 | L33: 106.31 | M33: 101.51 | N33: 103.79 | O33: 8350650000 | U33: 2020-02-27 | V33: 0.004 | W33: 6.315 | X33: 202002 | Y33: 201902 | Z33: 2019-02-28 | AA33: 5 | AB33: 1 | AC33: 0.016 | AD33: 0.00253365004
A34: 19 | B34: 2024-05-22 | C34: 95.459 | D34: 96.019997 | E34: 93.249001 | F34: 94.949997 | G34: 548648000 | H34: 94.9422 | I34: 0.9999178831 | J34: 10 | K34: 95.45 | L34: 96.01 | M34: 93.24 | N34: 94.94 | O34: 5486480000 | U34: 2019-11-27 | V34: 0.004 | W34: 5.456 | X34: 201911 | Y34: 201811 | Z34: 2018-11-29 | AA34: 5 | AB34: 1 | AC34: 0.016 | AD34: 0.00293255132
A35: 20 | B35: 2024-05-21 | C35: 93.598999 | D35: 95.400002 | E35: 93.18 | F35: 95.386002 | G35: 328946000 | H35: 95.378166 | I35: 0.9999178496 | J35: 10 | K35: 93.59 | L35: 95.39 | M35: 93.17 | N35: 95.38 | O35: 3289460000 | U35: 2019-08-28 | V35: 0.004 | W35: 4.0305 | X35: 201908 | Y35: 201808 | Z35: 2018-08-29 | AA35: 5 | AB35: 1 | AC35: 0.016 | AD35: 0.003969730803
A36: 21 | B36: 2024-05-20 | C36: 93.75 | D36: 95.199997 | E36: 93.440002 | F36: 94.779999 | G36: 318764000 | H36: 94.772217 | I36: 0.9999178941 | J36: 10 | K36: 93.74 | L36: 95.19 | M36: 93.43 | N36: 94.77 | O36: 3187640000 | U36: 2019-05-30 | V36: 0.004 | W36: 3.47775 | X36: 201905 | Y36: 201805 | Z36: 2018-05-23 | AA36: 5 | AB36: 1 | AC36: 0.01575 | AD36: 0.004528790166
A37: 22 | B37: 2024-05-17 | C37: 94.369003 | D37: 94.739998 | E37: 91.806 | F37: 92.478996 | G37: 359691000 | H37: 92.471397 | I37: 0.99991783 | J37: 10 | K37: 94.36 | L37: 94.73 | M37: 91.8 | N37: 92.47 | O37: 3596910000 | U37: 2019-02-28 | V37: 0.004 | W37: 3.8565 | X37: 201902 | Y37: 201802 | Z37: 2018-02-22 | AA37: 5 | AB37: 1 | AC37: 0.0155 | AD37: 0.004019188383
A38: 23 | B38: 2024-05-16 | C38: 94.910004 | D38: 95.819 | E38: 94.102997 | F38: 94.359001 | G38: 323952000 | H38: 94.35125 | I38: 0.9999178563 | J38: 10 | K38: 94.9 | L38: 95.81 | M38: 94.1 | N38: 94.35 | O38: 3239520000 | U38: 2018-11-29 | V38: 0.004 | W38: 3.934 | X38: 201811 | Y38: 201711 | Z38: 2017-11-22 | AA38: 5 | AB38: 1 | AC38: 0.01525 | AD38: 0.003876461617
A39: 24 | B39: 2024-05-15 | C39: 92.472 | D39: 94.862 | E39: 91.598999 | F39: 94.629997 | G39: 417735000 | H39: 94.622223 | I39: 0.9999178485 | J39: 10 | K39: 92.46 | L39: 94.85 | M39: 91.59 | N39: 94.62 | O39: 4177350000 | U39: 2018-08-29 | V39: 0.00375 | W39: 6.96225 | X39: 201808 | Y39: 201708 | Z39: 2017-08-22 | AA39: 5 | AB39: 1 | AC39: 0.015 | AD39: 0.002154475924
A40: 25 | B40: 2024-05-14 | C40: 89.598999 | D40: 91.651001 | E40: 88.933998 | F40: 91.356003 | G40: 296507000 | H40: 91.348495 | I40: 0.999917816 | J40: 10 | K40: 89.59 | L40: 91.64 | M40: 88.93 | N40: 91.35 | O40: 2965070000 | U40: 2018-05-23 | V40: 0.00375 | W40: 6.1885 | X40: 201805 | Y40: 201705 | Z40: 2017-05-19 | AA40: 5 | AB40: 1 | AC40: 0.01475 | AD40: 0.002383453179
A41: 26 | B41: 2024-05-13 | C41: 90.477997 | D41: 90.998001 | E41: 88.528999 | F41: 90.399002 | G41: 289680000 | H41: 90.391579 | I41: 0.9999178863 | J41: 10 | K41: 90.47 | L41: 90.99 | M41: 88.52 | N41: 90.39 | O41: 2896800000 | U41: 2018-02-22 | V41: 0.00375 | W41: 6.05375 | X41: 201802 | Y41: 201702 | Z41: 2017-02-22 | AA41: 5 | AB41: 1 | AC41: 0.0145 | AD41: 0.002395209581
A42: 27 | B42: 2024-05-10 | C42: 90.305 | D42: 91.401001 | E42: 89.226997 | F42: 89.877998 | G42: 335325000 | H42: 89.870613 | I42: 0.9999178331 | J42: 10 | K42: 90.3 | L42: 91.39 | M42: 89.22 | N42: 89.87 | O42: 3353250000 | U42: 2017-11-22 | V42: 0.00375 | W42: 5.37325 | X42: 201711 | Y42: 201611 | Z42: 2016-11-23 | AA42: 5 | AB42: 1 | AC42: 0.01425 | AD42: 0.002652026241
A43: 28 | B43: 2024-05-09 | C43: 90.528999 | D43: 91.071999 | E43: 88.231003 | F43: 88.747002 | G43: 378013000 | H43: 88.739716 | I43: 0.9999179015 | J43: 10 | K43: 90.52 | L43: 91.06 | M43: 88.22 | N43: 88.74 | O43: 3780130000 | U43: 2017-08-22 | V43: 0.0035 | W43: 4.06375 | X43: 201708 | Y43: 201608 | Z43: 2016-08-23 | AA43: 5 | AB43: 1 | AC43: 0.014 | AD43: 0.003445093817
A44: 29 | B44: 2024-05-08 | C44: 89.483002 | D44: 91.194 | E44: 89.419998 | F44: 90.412003 | G44: 325721000 | H44: 90.404579 | I44: 0.999917887 | J44: 10 | K44: 89.48 | L44: 91.19 | M44: 89.41 | N44: 90.4 | O44: 3257210000 | U44: 2017-05-19 | V44: 0.0035 | W44: 3.4 | X44: 201705 | Y44: 201605 | Z44: 2016-05-24 | AA44: 5 | AB44: 1 | AC44: 0.013375 | AD44: 0.003933823529
A45: 30 | B45: 2024-05-07 | C45: 91.098 | D45: 91.780998 | E45: 89.011002 | F45: 90.554001 | G45: 437342000 | H45: 90.546562 | I45: 0.9999178501 | J45: 10 | K45: 91.09 | L45: 91.77 | M45: 89 | N45: 90.55 | O45: 4373420000 | U45: 2017-02-22 | V45: 0.0035 | W45: 2.769 | X45: 201702 | Y45: 201602 | Z45: 2016-02-29 | AA45: 5 | AB45: 1 | AC45: 0.01275 | AD45: 0.004604550379
A46: 31 | B46: 2024-05-06 | C46: 89.389999 | D46: 92.220001 | E46: 89.055 | F46: 92.139999 | G46: 376203000 | H46: 92.132431 | I46: 0.9999178641 | J46: 10 | K46: 89.38 | L46: 92.21 | M46: 89.05 | N46: 92.13 | O46: 3762030000 | U46: 2016-11-23 | V46: 0.0035 | W46: 2.34925 | X46: 201611 | Y46: 201511 | Z46: 2015-11-18 | AA46: 5 | AB46: 1 | AC46: 0.012125 | AD46: 0.005161221666
A47: 32 | B47: 2024-05-03 | C47: 87.789001 | D47: 89.280998 | E47: 87.040001 | F47: 88.789001 | G47: 398341000 | H47: 88.781708 | I47: 0.9999178614 | J47: 10 | K47: 87.78 | L47: 89.27 | M47: 87.03 | N47: 88.78 | O47: 3983410000 | U47: 2016-08-23 | V47: 0.002875 | W47: 1.57275 | X47: 201608 | Y47: 201508 | Z47: 2015-08-18 | AA47: 5 | AB47: 1 | AC47: 0.0115 | AD47: 0.007312033063
A48: 33 | B48: 2024-05-02 | C48: 84.448997 | D48: 86.237 | E48: 83.199997 | F48: 85.817001 | G48: 377898000 | H48: 85.809952 | I48: 0.9999178601 | J48: 10 | K48: 84.44 | L48: 86.23 | M48: 83.19 | N48: 85.81 | O48: 3778980000 | U48: 2016-05-24 | V48: 0.002875 | W48: 1.134 | X48: 201605 | Y48: 201505 | Z48: 2015-05-19 | AA48: 5 | AB48: 1 | AC48: 0.011075 | AD48: 0.009766313933
A49: 34 | B49: 2024-05-01 | C49: 85.077003 | D49: 86 | E49: 81.254997 | F49: 83.041 | G49: 559863000 | H49: 83.03418 | I49: 0.9999178719 | J49: 10 | K49: 85.07 | L49: 85.99 | M49: 81.25 | N49: 83.03 | O49: 5598630000 | U49: 2016-02-29 | V49: 0.002875 | W49: 0.784 | X49: 201602 | Y49: 201502 | Z49: 2015-02-24 | AA49: 5 | AB49: 1 | AC49: 0.01065 | AD49: 0.01358418367
A50: 35 | B50: 2024-04-30 | C50: 87.239998 | D50: 88.819 | E50: 86.300003 | F50: 86.402 | G50: 363709000 | H50: 86.394905 | I50: 0.9999178838 | J50: 10 | K50: 87.23 | L50: 88.81 | M50: 86.29 | N50: 86.39 | O50: 3637090000 | U50: 2015-11-18 | V50: 0.002875 | W50: 0.77575 | X50: 201511 | Y50: 201411 | Z50: 2014-11-19 | AA50: 5 | AB50: 1 | AC50: 0.0099 | AD50: 0.01276184338
A51: 36 | B51: 2024-04-29 | C51: 87.595001 | D51: 87.991997 | E51: 85.265999 | F51: 87.757004 | G51: 388971000 | H51: 87.749794 | I51: 0.9999178413 | J51: 10 | K51: 87.59 | L51: 87.98 | M51: 85.26 | N51: 87.75 | O51: 3889710000 | U51: 2015-08-18 | V51: 0.00245 | W51: 0.577 | X51: 201508 | Y51: 201408 | Z51: 2014-08-19 | AA51: 5 | AB51: 1 | AC51: 0.00915 | AD51: 0.01585788562
A52: 37 | B52: 2024-04-26 | C52: 83.818001 | D52: 88.331001 | E52: 83.387001 | F52: 87.735001 | G52: 551011000 | H52: 87.727791 | I52: 0.9999178207 | J52: 10 | K52: 83.81 | L52: 88.32 | M52: 83.38 | N52: 87.73 | O52: 5510110000 | U52: 2015-05-19 | V52: 0.00245 | W52: 0.526 | X52: 201505 | Y52: 201405 | Z52: 2014-05-20 | AA52: 5 | AB52: 1 | AC52: 0.008825 | AD52: 0.01677756654
A53: 38 | B53: 2024-04-25 | C53: 78.867996 | D53: 83.322998 | E53: 78.223 | F53: 82.632004 | G53: 424641000 | H53: 82.625214 | I53: 0.9999178284 | J53: 10 | K53: 78.86 | L53: 83.32 | M53: 78.22 | N53: 82.63 | O53: 4246410000 | U53: 2015-02-24 | V53: 0.002125 | W53: 0.55775 | X53: 201502 | Y53: 201402 | Z53: 2014-02-25 | AA53: 5 | AB53: 1 | AC53: 0.0085 | AD53: 0.01523980278
A54: 39 | B54: 2024-04-24 | C54: 83.949997 | D54: 84.082001 | E54: 79.182999 | F54: 79.677002 | G54: 512208000 | H54: 79.670456 | I54: 0.9999178433 | J54: 10 | K54: 83.94 | L54: 84.08 | M54: 79.18 | N54: 79.67 | O54: 5122080000 | U54: 2014-11-19 | V54: 0.002125 | W54: 0.50025 | X54: 201411 | Y54: 201311 | Z54: 2013-11-19 | AA54: 5 | AB54: 1 | AC54: 0.0085 | AD54: 0.01699150425
A55: 40 | B55: 2024-04-23 | C55: 80.768997 | D55: 82.768997 | E55: 80.264 | F55: 82.422997 | G55: 438559000 | H55: 82.416229 | I55: 0.999917887 | J55: 10 | K55: 80.76 | L55: 82.76 | M55: 80.26 | N55: 82.42 | O55: 4385590000 | U55: 2014-08-19 | V55: 0.002125 | W55: 0.48425 | X55: 201408 | Y55: 201308 | Z55: 2013-08-20 | AA55: 5 | AB55: 1 | AC55: 0.0085 | AD55: 0.01755291688
A56: 41 | B56: 2024-04-22 | C56: 78.103996 | D56: 80.072998 | E56: 76.400002 | F56: 79.517998 | G56: 596341000 | H56: 79.511467 | I56: 0.9999178677 | J56: 10 | K56: 78.1 | L56: 80.07 | M56: 76.39 | N56: 79.51 | O56: 5963410000 | U56: 2014-05-20 | V56: 0.002125 | W56: 0.456 | X56: 201405 | Y56: 201305 | Z56: 2013-05-21 | AA56: 5 | AB56: 1 | AC56: 0.00825 | AD56: 0.01809210526
A57: 42 | B57: 2024-04-19 | C57: 83.150002 | D57: 84.323997 | E57: 75.606003 | F57: 76.199997 | G57: 875198000 | H57: 76.193741 | I57: 0.9999179003 | J57: 10 | K57: 83.14 | L57: 84.32 | M57: 75.6 | N57: 76.19 | O57: 8751980000 | U57: 2014-02-25 | V57: 0.002125 | W57: 0.4685 | X57: 201402 | Y57: 201302 | Z57: 2013-02-26 | AA57: 5 | AB57: 1 | AC57: 0.008 | AD57: 0.01707577375
A58: 43 | B58: 2024-04-18 | C58: 84.970001 | D58: 86.190002 | E58: 82.402 | F58: 84.670998 | G58: 447260000 | H58: 84.66404 | I58: 0.9999178231 | J58: 10 | K58: 84.96 | L58: 86.18 | M58: 82.4 | N58: 84.66 | O58: 4472600000 | U58: 2013-11-19 | V58: 0.002125 | W58: 0.386 | X58: 201311 | Y58: 201211 | Z58: 2012-11-20 | AA58: 5 | AB58: 1 | AC58: 0.00775 | AD58: 0.02007772021
A59: 44 | B59: 2024-04-17 | C59: 88.339996 | D59: 88.775002 | E59: 83.949997 | F59: 84.035004 | G59: 495400000 | H59: 84.028099 | I59: 0.9999178319 | J59: 10 | K59: 88.33 | L59: 88.77 | M59: 83.94 | N59: 84.03 | O59: 4954000000 | U59: 2013-08-20 | V59: 0.001875 | W59: 0.37375 | X59: 201308 | Y59: 201208 | Z59: 2012-11-20 | AA59: 4 | AB59: 0 | AC59: 0.0075 | AD59: 0.02006688963
A60: 45 | B60: 2024-04-16 | C60: 86.432999 | D60: 88.117996 | E60: 86.064003 | F60: 87.415001 | G60: 370453000 | H60: 87.407822 | I60: 0.9999178745 | J60: 10 | K60: 86.43 | L60: 88.11 | M60: 86.06 | N60: 87.41 | O60: 3704530000 | U60: 2013-05-21 | V60: 0.001875 | W60: 0.373 | X60: 201305 | Y60: 201205 | Z60: 2012-11-20 | AA60: 3 | AB60: 0 | AC60: 0.005625 | AD60: 0.01508042895
A61: 46 | B61: 2024-04-15 | C61: 89.098 | D61: 90.612999 | E61: 85.929001 | F61: 86.000999 | G61: 443077000 | H61: 85.993935 | I61: 0.9999178614 | J61: 10 | K61: 89.09 | L61: 90.61 | M61: 85.92 | N61: 85.99 | O61: 4430770000 | U61: 2013-02-26 | V61: 0.001875 | W61: 0.30925 | X61: 201302 | Y61: 201202 | Z61: 2012-11-20 | AA61: 2 | AB61: 0 | AC61: 0.00375 | AD61: 0.01212611156
A62: 47 | B62: 2024-04-12 | C62: 89.698997 | D62: 90.175003 | E62: 87.529999 | F62: 88.185997 | G62: 426805000 | H62: 88.178757 | I62: 0.9999179008 | J62: 10 | K62: 89.69 | L62: 90.17 | M62: 87.52 | N62: 88.18 | O62: 4268050000 | U62: 2012-11-20 | V62: 0.001875 | W62: 0.28725 | X62: 201211 | Y62: 201111 | Z62: 2012-11-20 | AA62: 1 | AB62: 1 | AC62: 0.001875 | AD62: 0.006527415144
A63: 48 | B63: 2024-04-11 | C63: 87.419998 | D63: 90.738998 | E63: 86.926003 | F63: 90.615997 | G63: 431637000 | H63: 90.608551 | I63: 0.9999178291 | J63: 10 | K63: 87.41 | L63: 90.73 | M63: 86.92 | N63: 90.61 | O63: 4316370000
A64: 49 | B64: 2024-04-10 | C64: 83.926003 | D64: 87.400002 | E64: 83.709 | F64: 87.039001 | G64: 431929000 | H64: 87.031853 | I64: 0.9999178759 | J64: 10 | K64: 83.92 | L64: 87.39 | M64: 83.7 | N64: 87.03 | O64: 4319290000
A65: 50 | B65: 2024-04-09 | C65: 87.442001 | D65: 87.635002 | E65: 83.022003 | F65: 85.353996 | G65: 503547000 | H65: 85.346985 | I65: 0.9999178597 | J65: 10 | K65: 87.43 | L65: 87.63 | M65: 83.02 | N65: 85.35 | O65: 5035470000
A66: 51 | B66: 2024-04-08 | C66: 88.699997 | D66: 88.830002 | E66: 86.732002 | F66: 87.133003 | G66: 283220000 | H66: 87.125847 | I66: 0.9999178727 | J66: 10 | K66: 88.69 | L66: 88.82 | M66: 86.72 | N66: 87.13 | O66: 2832200000
A67: 52 | B67: 2024-04-05 | C67: 86.865997 | D67: 88.481003 | E67: 85.926003 | F67: 88.008003 | G67: 399678000 | H67: 88.000778 | I67: 0.9999179052 | J67: 10 | K67: 86.86 | L67: 88.47 | M67: 85.92 | N67: 88 | O67: 3996780000
A68: 53 | B68: 2024-04-04 | C68: 90.405998 | D68: 90.634003 | E68: 85.879997 | F68: 85.904999 | G68: 434965000 | H68: 85.897942 | I68: 0.9999178511 | J68: 10 | K68: 90.4 | L68: 90.63 | M68: 85.87 | N68: 85.9 | O68: 4349650000
A69: 54 | B69: 2024-04-03 | C69: 88.484001 | D69: 90.374001 | E69: 88.400002 | F69: 88.963997 | G69: 370067000 | H69: 88.956688 | I69: 0.9999178432 | J69: 10 | K69: 88.48 | L69: 90.37 | M69: 88.39 | N69: 88.96 | O69: 3700670000
A70: 55 | B70: 2024-04-02 | C70: 88.447998 | D70: 90.094002 | E70: 87.620003 | F70: 89.452003 | G70: 433064000 | H70: 89.444656 | I70: 0.9999178666 | J70: 10 | K70: 88.44 | L70: 90.09 | M70: 87.61 | N70: 89.44 | O70: 4330640000
A71: 56 | B71: 2024-04-01 | C71: 90.299004 | D71: 92.224998 | E71: 89.204002 | F71: 90.362999 | G71: 452441000 | H71: 90.355576 | I71: 0.9999178535 | J71: 10 | K71: 90.29 | L71: 92.22 | M71: 89.2 | N71: 90.36 | O71: 4524410000
A72: 57 | B72: 2024-03-28 | C72: 90 | D72: 91.300003 | E72: 89.193001 | F72: 90.356003 | G72: 435212000 | H72: 90.348579 | I72: 0.9999178361 | J72: 10 | K72: 89.99 | L72: 91.29 | M72: 89.19 | N72: 90.35 | O72: 4352120000
A73: 58 | B73: 2024-03-27 | C73: 93.112 | D73: 93.239998 | E73: 89.123001 | F73: 90.25 | G73: 586067000 | H73: 90.242584 | I73: 0.9999178283 | J73: 10 | K73: 93.1 | L73: 93.23 | M73: 89.12 | N73: 90.24 | O73: 5860670000
A74: 59 | B74: 2024-03-26 | C74: 95.850998 | D74: 96.375 | E74: 92.501999 | F74: 92.560997 | G74: 513648000 | H74: 92.553398 | I74: 0.9999179028 | J74: 10 | K74: 95.84 | L74: 96.37 | M74: 92.49 | N74: 92.55 | O74: 5136480000
A75: 60 | B75: 2024-03-25 | C75: 93.941002 | D75: 96.765999 | E75: 93.510002 | F75: 95.001999 | G75: 552136000 | H75: 94.994194 | I75: 0.9999178438 | J75: 10 | K75: 93.93 | L75: 96.76 | M75: 93.5 | N75: 94.99 | O75: 5521360000
A76: 61 | B76: 2024-03-22 | C76: 91.140999 | D76: 94.778 | E76: 90.834 | F76: 94.289001 | G76: 586719000 | H76: 94.281258 | I76: 0.9999178801 | J76: 10 | K76: 91.13 | L76: 94.77 | M76: 90.83 | N76: 94.28 | O76: 5867190000
A77: 62 | B77: 2024-03-21 | C77: 92.300003 | D77: 92.648003 | E77: 90.404999 | F77: 91.434998 | G77: 480372000 | H77: 91.42749 | I77: 0.999917887 | J77: 10 | K77: 92.29 | L77: 92.64 | M77: 90.4 | N77: 91.43 | O77: 4803720000
A78: 63 | B78: 2024-03-20 | C78: 89.796997 | D78: 90.410004 | E78: 88.223 | F78: 90.372002 | G78: 479063000 | H78: 90.364578 | I78: 0.9999178507 | J78: 10 | K78: 89.79 | L78: 90.4 | M78: 88.22 | N78: 90.36 | O78: 4790630000
A79: 64 | B79: 2024-03-19 | C79: 86.699997 | D79: 90.543999 | E79: 85.010002 | F79: 89.398003 | G79: 672171000 | H79: 89.390663 | I79: 0.9999178953 | J79: 10 | K79: 86.69 | L79: 90.54 | M79: 85 | N79: 89.39 | O79: 6721710000
A80: 65 | B80: 2024-03-18 | C80: 90.388 | D80: 92.404999 | E80: 87.084999 | F80: 88.455002 | G80: 668976000 | H80: 88.447739 | I80: 0.9999178905 | J80: 10 | K80: 90.38 | L80: 92.4 | M80: 87.08 | N80: 88.45 | O80: 6689760000
A81: 66 | B81: 2024-03-15 | C81: 86.93 | D81: 89.545998 | E81: 86.257004 | F81: 87.836998 | G81: 642086000 | H81: 87.829781 | I81: =IF(F81=0,1,H81/F81) -> 0.9999178364 | J81: =INDEX(OFFSET($T$15,0,0,$S$13+1,1),MATCH(B81,OFFSET($Q$15,0,0,$S$13+1,1),-1)) -> 10 | K81: =ROUND($I81*C81,2) -> 86.92 | L81: =ROUND($I81*D81,2) -> 89.54 | M81: =ROUND($I81*E81,2) -> 86.25 | N81: =ROUND($I81*F81,2) -> 87.83 | O81: =G81*J81 -> 6420860000
A82: 67 | B82: 2024-03-14 | C82: 89.577003 | D82: 90.646004 | E82: 86.599998 | F82: 87.944 | G82: 602318000 | H82: 87.936775 | I82: 0.9999178454 | J82: 10 | K82: 89.57 | L82: 90.64 | M82: 86.59 | N82: 87.94 | O82: 6023180000
A83: 68 | B83: 2024-03-13 | C83: 91.055 | D83: 91.503998 | E83: 88.434998 | F83: 90.888 | G83: 635713000 | H83: 90.880539 | I83: 0.99991791 | J83: 10 | K83: 91.05 | L83: 91.5 | M83: 88.43 | N83: 90.88 | O83: 6357130000
A84: 69 | B84: 2024-03-12 | C84: 88.049004 | D84: 91.959999 | E84: 86.150002 | F84: 91.913002 | G84: 668075000 | H84: 91.905449 | I84: 0.9999178245 | J84: 10 | K84: 88.04 | L84: 91.95 | M84: 86.14 | N84: 91.91 | O84: 6680750000
A85: 70 | B85: 2024-03-11 | C85: 86.429001 | D85: 88.796997 | E85: 84.166 | F85: 85.774002 | G85: 678364000 | H85: 85.76696 | I85: 0.9999179005 | J85: 10 | K85: 86.42 | L85: 88.79 | M85: 84.16 | N85: 85.77 | O85: 6783640000
A86: 71 | B86: 2024-03-08 | C86: 95.138 | D86: 97.400002 | E86: 86.505997 | F86: 87.528 | G86: 1142269000 | H86: 87.520813 | I86: 0.9999178891 | J86: 10 | K86: 95.13 | L86: 97.39 | M86: 86.5 | N86: 87.52 | O86: 11422690000
A87: 72 | B87: 2024-03-07 | C87: 90.157997 | D87: 92.766998 | E87: 89.601997 | F87: 92.668999 | G87: 608119000 | H87: 92.661385 | I87: 0.9999178366 | J87: 10 | K87: 90.15 | L87: 92.76 | M87: 89.59 | N87: 92.66 | O87: 6081190000
A88: 73 | B88: 2024-03-06 | C88: 88.022003 | D88: 89.723999 | E88: 87.029999 | F88: 88.699997 | G88: 582520000 | H88: 88.692711 | I88: 0.9999178579 | J88: 10 | K88: 88.01 | L88: 89.72 | M88: 87.02 | N88: 88.69 | O88: 5825200000
A89: 74 | B89: 2024-03-05 | C89: 85.269997 | D89: 86.097 | E89: 83.417 | F89: 85.963997 | G89: 520639000 | H89: 85.95694 | I89: 0.9999179075 | J89: 10 | K89: 85.26 | L89: 86.09 | M89: 83.41 | N89: 85.96 | O89: 5206390000
A90: 75 | B90: 2024-03-04 | C90: 84.129997 | D90: 87.695 | E90: 83.719002 | F90: 85.237 | G90: 615616000 | H90: 85.225998 | I90: 0.9998709246 | J90: 10 | K90: 84.12 | L90: 87.68 | M90: 83.71 | N90: 85.23 | O90: 6156160000
A91: 76 | B91: 2024-03-01 | C91: 80 | D91: 82.300003 | E91: 79.434998 | F91: 82.278999 | G91: 479135000 | H91: 82.268379 | I91: 0.999870927 | J91: 10 | K91: 79.99 | L91: 82.29 | M91: 79.42 | N91: 82.27 | O91: 4791350000
A92: 77 | B92: 2024-02-29 | C92: 79.094002 | D92: 79.989998 | E92: 78.349998 | F92: 79.112 | G92: 507289000 | H92: 79.101791 | I92: 0.9998709551 | J92: 10 | K92: 79.08 | L92: 79.98 | M92: 78.34 | N92: 79.1 | O92: 5072890000
A93: 78 | B93: 2024-02-28 | C93: 77.620003 | D93: 78.932999 | E93: 77.125 | F93: 77.663002 | G93: 393110000 | H93: 77.652985 | I93: 0.9998710197 | J93: 10 | K93: 77.61 | L93: 78.92 | M93: 77.12 | N93: 77.65 | O93: 3931100000
A94: 79 | B94: 2024-02-27 | C94: 79.380997 | D94: 79.480003 | E94: 77.162003 | F94: 78.700996 | G94: 391705000 | H94: 78.690842 | I94: 0.99987098 | J94: 10 | K94: 79.37 | L94: 79.47 | M94: 77.15 | N94: 78.69 | O94: 3917050000
A95: 80 | B95: 2024-02-26 | C95: 79.699997 | D95: 80.646004 | E95: 78.504997 | F95: 79.092003 | G95: 503973000 | H95: 79.081802 | I95: 0.9998710236 | J95: 10 | K95: 79.69 | L95: 80.64 | M95: 78.49 | N95: 79.08 | O95: 5039730000
A96: 81 | B96: 2024-02-23 | C96: 80.790001 | D96: 82.393997 | E96: 77.57 | F96: 78.817001 | G96: 829388000 | H96: 78.806824 | I96: 0.9998708781 | J96: 10 | K96: 80.78 | L96: 82.38 | M96: 77.56 | N96: 78.81 | O96: 8293880000
A97: 82 | B97: 2024-02-22 | C97: 75.025002 | D97: 78.574997 | E97: 74.220001 | F97: 78.538002 | G97: 865100000 | H97: 78.527863 | I97: 0.9998709033 | J97: 10 | K97: 75.02 | L97: 78.56 | M97: 74.21 | N97: 78.53 | O97: 8651000000
A98: 83 | B98: 2024-02-21 | C98: 68.005997 | D98: 68.888 | E98: 66.248001 | F98: 67.472 | G98: 690298000 | H98: 67.463295 | I98: 0.9998709835 | J98: 10 | K98: 68 | L98: 68.88 | M98: 66.24 | N98: 67.46 | O98: 6902980000
A99: 84 | B99: 2024-02-20 | C99: 71.946999 | D99: 71.956001 | E99: 67.734001 | F99: 69.452003 | G99: 704833000 | H99: 69.443039 | I99: 0.9998709324 | J99: 10 | K99: 71.94 | L99: 71.95 | M99: 67.73 | N99: 69.44 | O99: 7048330000
A100: 85 | B100: 2024-02-16 | C100: 74.099998 | D100: 74.402 | E100: 72.500999 | F100: 72.612999 | G100: 495327000 | H100: 72.60363 | I100: 0.9998709735 | J100: 10 | K100: 74.09 | L100: 74.39 | M100: 72.49 | N100: 72.6 | O100: 4953270000
A101: 86 | B101: 2024-02-15 | C101: 73.869003 | D101: 73.974998 | E101: 72.400002 | F101: 72.657997 | G101: 420122000 | H101: 72.648621 | I101: 0.9998709571 | J101: 10 | K101: 73.86 | L101: 73.97 | M101: 72.39 | N101: 72.65 | O101: 4201220000
A102: 87 | B102: 2024-02-14 | C102: 73.202003 | D102: 74.236 | E102: 71.938004 | F102: 73.900002 | G102: 504917000 | H102: 73.890465 | I102: 0.9998709472 | J102: 10 | K102: 73.19 | L102: 74.23 | M102: 71.93 | N102: 73.89 | O102: 5049170000
A103: 88 | B103: 2024-02-13 | C103: 70.400002 | D103: 73.449997 | E103: 69.620003 | F103: 72.127998 | G103: 602580000 | H103: 72.11869 | I103: 0.9998709516 | J103: 10 | K103: 70.39 | L103: 73.44 | M103: 69.61 | N103: 72.12 | O103: 6025800000
A104: 89 | B104: 2024-02-12 | C104: 72.599998 | D104: 74.611 | E104: 71.25 | F104: 72.248001 | G104: 613710000 | H104: 72.238678 | I104: 0.9998709584 | J104: 10 | K104: 72.59 | L104: 74.6 | M104: 71.24 | N104: 72.24 | O104: 6137100000
A105: 90 | B105: 2024-02-09 | C105: 70.532997 | D105: 72.184998 | E105: 70.211998 | F105: 72.133003 | G105: 436637000 | H105: 72.123695 | I105: 0.9998709606 | J105: 10 | K105: 70.52 | L105: 72.18 | M105: 70.2 | N105: 72.12 | O105: 4366370000
A106: 91 | B106: 2024-02-08 | C106: 70.073997 | D106: 70.793999 | E106: 69.455002 | F106: 69.640999 | G106: 414422000 | H106: 69.632011 | I106: 0.9998709381 | J106: 10 | K106: 70.06 | L106: 70.78 | M106: 69.45 | N106: 69.63 | O106: 4144220000
A107: 92 | B107: 2024-02-07 | C107: 68.319 | D107: 70.220001 | E107: 67.599998 | F107: 70.098999 | G107: 495575000 | H107: 70.089951 | I107: 0.9998709254 | J107: 10 | K107: 68.31 | L107: 70.21 | M107: 67.59 | N107: 70.09 | O107: 4955750000
A108: 93 | B108: 2024-02-06 | C108: 69.629997 | D108: 69.753998 | E108: 66.300003 | F108: 68.223 | G108: 683111000 | H108: 68.214203 | I108: 0.9998710552 | J108: 10 | K108: 69.62 | L108: 69.75 | M108: 66.29 | N108: 68.21 | O108: 6831110000
A109: 94 | B109: 2024-02-05 | C109: 68.224998 | D109: 69.497002 | E109: 67.205002 | F109: 69.332001 | G109: 680078000 | H109: 69.323059 | I109: 0.9998710264 | J109: 10 | K109: 68.22 | L109: 69.49 | M109: 67.2 | N109: 69.32 | O109: 6800780000
A110: 95 | B110: 2024-02-02 | C110: 63.973999 | D110: 66.599998 | E110: 63.689999 | F110: 66.160004 | G110: 476578000 | H110: 66.151466 | I110: 0.9998709492 | J110: 10 | K110: 63.97 | L110: 66.59 | M110: 63.68 | N110: 66.15 | O110: 4765780000
A111: 96 | B111: 2024-02-01 | C111: 62.099998 | D111: 63.191002 | E111: 61.650002 | F111: 63.027 | G111: 369146000 | H111: 63.018867 | I111: 0.9998709601 | J111: 10 | K111: 62.09 | L111: 63.18 | M111: 61.64 | N111: 63.02 | O111: 3691460000
A112: 97 | B112: 2024-01-31 | C112: 61.439999 | D112: 62.269001 | E112: 60.700001 | F112: 61.527 | G112: 453795000 | H112: 61.519058 | I112: 0.9998709185 | J112: 10 | K112: 61.43 | L112: 62.26 | M112: 60.69 | N112: 61.52 | O112: 4537950000
A113: 98 | B113: 2024-01-30 | C113: 62.900002 | D113: 63.493 | E113: 62.259998 | F113: 62.773998 | G113: 410735000 | H113: 62.765896 | I113: 0.9998709338 | J113: 10 | K113: 62.89 | L113: 63.48 | M113: 62.25 | N113: 62.77 | O113: 4107350000
A114: 99 | B114: 2024-01-29 | C114: 61.231998 | D114: 62.488998 | E114: 60.907001 | F114: 62.465 | G114: 348733000 | H114: 62.45694 | I114: 0.9998709677 | J114: 10 | K114: 61.22 | L114: 62.48 | M114: 60.9 | N114: 62.46 | O114: 3487330000
A115: 100 | B115: 2024-01-26 | C115: 60.959999 | D115: 61.783001 | E115: 60.573002 | F115: 61.030998 | G115: 390309000 | H115: 61.023125 | I115: 0.999871 | J115: 10 | K115: 60.95 | L115: 61.78 | M115: 60.57 | N115: 61.02 | O115: 3903090000
A116: 101 | B116: 2024-01-25 | C116: 62.349998 | D116: 62.719002 | E116: 60.849998 | F116: 61.617001 | G116: 482777000 | H116: 61.609047 | I116: 0.9998709123 | J116: 10 | K116: 62.34 | L116: 62.71 | M116: 60.84 | N116: 61.61 | O116: 4827770000
A117: 102 | B117: 2024-01-24 | C117: 60.304001 | D117: 62.848999 | E117: 59.938 | F117: 61.362 | G117: 560271000 | H117: 61.354084 | I117: 0.9998709951 | J117: 10 | K117: 60.3 | L117: 62.84 | M117: 59.93 | N117: 61.35 | O117: 5602710000
A118: 103 | B118: 2024-01-23 | C118: 59.57 | D118: 59.91 | E118: 58.584999 | F118: 59.873001 | G118: 294654000 | H118: 59.865276 | I118: 0.9998709769 | J118: 10 | K118: 59.56 | L118: 59.9 | M118: 58.58 | N118: 59.87 | O118: 2946540000
A119: 104 | B119: 2024-01-22 | C119: 60.049 | D119: 60.331001 | E119: 59.07 | F119: 59.653999 | G119: 452955000 | H119: 59.646305 | I119: 0.9998710229 | J119: 10 | K119: 60.04 | L119: 60.32 | M119: 59.06 | N119: 59.65 | O119: 4529550000
A120: 105 | B120: 2024-01-19 | C120: 57.988998 | D120: 59.5 | E120: 57.224998 | F120: 59.491001 | G120: 543501000 | H120: 59.483326 | I120: 0.9998709889 | J120: 10 | K120: 57.98 | L120: 59.49 | M120: 57.22 | N120: 59.48 | O120: 5435010000
A121: 106 | B121: 2024-01-18 | C121: 57.259998 | D121: 57.599998 | E121: 56.106998 | F121: 57.106998 | G121: 491650000 | H121: 57.099628 | I121: 0.999870944 | J121: 10 | K121: 57.25 | L121: 57.59 | M121: 56.1 | N121: 57.1 | O121: 4916500000
A122: 107 | B122: 2024-01-17 | C122: 56.347 | D122: 56.471001 | E122: 54.740002 | F122: 56.053001 | G122: 474394000 | H122: 56.045769 | I122: 0.9998709793 | J122: 10 | K122: 56.34 | L122: 56.46 | M122: 54.73 | N122: 56.05 | O122: 4743940000
A123: 108 | B123: 2024-01-16 | C123: 55.018002 | D123: 56.834999 | E123: 54.900002 | F123: 56.382 | G123: 449580000 | H123: 56.374725 | I123: 0.9998709695 | J123: 10 | K123: 55.01 | L123: 56.83 | M123: 54.89 | N123: 56.37 | O123: 4495800000
A124: 109 | B124: 2024-01-12 | C124: 54.619999 | D124: 54.970001 | E124: 54.330002 | F124: 54.709999 | G124: 352994000 | H124: 54.702938 | I124: 0.9998709377 | J124: 10 | K124: 54.61 | L124: 54.96 | M124: 54.32 | N124: 54.7 | O124: 3529940000
A125: 110 | B125: 2024-01-11 | C125: 54.999001 | D125: 55.346001 | E125: 53.560001 | F125: 54.821999 | G125: 596759000 | H125: 54.814926 | I125: 0.9998709824 | J125: 10 | K125: 54.99 | L125: 55.34 | M125: 53.55 | N125: 54.81 | O125: 5967590000
A126: 111 | B126: 2024-01-10 | C126: 53.616001 | D126: 54.599998 | E126: 53.488998 | F126: 54.349998 | G126: 533796000 | H126: 54.342987 | I126: 0.9998710028 | J126: 10 | K126: 53.61 | L126: 54.59 | M126: 53.48 | N126: 54.34 | O126: 5337960000
A127: 112 | B127: 2024-01-09 | C127: 52.401001 | D127: 54.325001 | E127: 51.689999 | F127: 53.139999 | G127: 773100000 | H127: 53.133144 | I127: 0.9998710011 | J127: 10 | K127: 52.39 | L127: 54.32 | M127: 51.68 | N127: 53.13 | O127: 7731000000
A128: 113 | B128: 2024-01-08 | C128: 49.512001 | D128: 52.275002 | E128: 49.479 | F128: 52.252998 | G128: 642510000 | H128: 52.246258 | I128: 0.9998710122 | J128: 10 | K128: 49.51 | L128: 52.27 | M128: 49.47 | N128: 52.25 | O128: 6425100000
A129: 114 | B129: 2024-01-05 | C129: 48.462002 | D129: 49.547001 | E129: 48.306 | F129: 49.097 | G129: 415039000 | H129: 49.090664 | I129: 0.9998709493 | J129: 10 | K129: 48.46 | L129: 49.54 | M129: 48.3 | N129: 49.09 | O129: 4150390000
A130: 115 | B130: 2024-01-04 | C130: 47.766998 | D130: 48.5 | E130: 47.507999 | F130: 47.998001 | G130: 306535000 | H130: 47.99181 | I130: 0.9998710155 | J130: 10 | K130: 47.76 | L130: 48.49 | M130: 47.5 | N130: 47.99 | O130: 3065350000
A131: 116 | B131: 2024-01-03 | C131: 47.485001 | D131: 48.183998 | E131: 47.32 | F131: 47.569 | G131: 320896000 | H131: 47.562862 | I131: 0.9998709664 | J131: 10 | K131: 47.48 | L131: 48.18 | M131: 47.31 | N131: 47.56 | O131: 3208960000
A132: 117 | B132: 2024-01-02 | C132: 49.243999 | D132: 49.294998 | E132: 47.595001 | F132: 48.167999 | G132: 411254000 | H132: 48.161785 | I132: 0.9998709932 | J132: 10 | K132: 49.24 | L132: 49.29 | M132: 47.59 | N132: 48.16 | O132: 4112540000
A133: 118 | B133: 2023-12-29 | C133: 49.813 | D133: 49.997002 | E133: 48.750999 | F133: 49.521999 | G133: 389293000 | H133: 49.51561 | I133: 0.9998709866 | J133: 10 | K133: 49.81 | L133: 49.99 | M133: 48.74 | N133: 49.52 | O133: 3892930000
A134: 119 | B134: 2023-12-28 | C134: 49.643002 | D134: 49.883999 | E134: 49.411999 | F134: 49.521999 | G134: 246587000 | H134: 49.51561 | I134: 0.9998709866 | J134: 10 | K134: 49.64 | L134: 49.88 | M134: 49.41 | N134: 49.52 | O134: 2465870000
A135: 120 | B135: 2023-12-27 | C135: 49.511002 | D135: 49.68 | E135: 49.084999 | F135: 49.417 | G135: 233648000 | H135: 49.410622 | I135: 0.9998709351 | J135: 10 | K135: 49.5 | L135: 49.67 | M135: 49.08 | N135: 49.41 | O135: 2336480000
A136: 121 | B136: 2023-12-26 | C136: 48.967999 | D136: 49.599998 | E136: 48.959999 | F136: 49.278999 | G136: 244200000 | H136: 49.27264 | I136: 0.9998709592 | J136: 10 | K136: 48.96 | L136: 49.59 | M136: 48.95 | N136: 49.27 | O136: 2442000000
A137: 122 | B137: 2023-12-22 | C137: 49.195 | D137: 49.382999 | E137: 48.466999 | F137: 48.830002 | G137: 252507000 | H137: 48.823704 | I137: 0.9998710219 | J137: 10 | K137: 49.19 | L137: 49.38 | M137: 48.46 | N137: 48.82 | O137: 2525070000
A138: 123 | B138: 2023-12-21 | C138: 48.811001 | D138: 49.095001 | E138: 48.418999 | F138: 48.990002 | G138: 300425000 | H138: 48.983681 | I138: 0.9998709737 | J138: 10 | K138: 48.8 | L138: 49.09 | M138: 48.41 | N138: 48.98 | O138: 3004250000
A139: 124 | B139: 2023-12-20 | C139: 49.654999 | D139: 49.999001 | E139: 48.098 | F139: 48.111 | G139: 397894000 | H139: 48.10479 | I139: 0.9998709235 | J139: 10 | K139: 49.65 | L139: 49.99 | M139: 48.09 | N139: 48.1 | O139: 3978940000
A140: 125 | B140: 2023-12-19 | C140: 49.424 | D140: 49.700001 | E140: 48.895 | F140: 49.604 | G140: 464444000 | H140: 49.597599 | I140: 0.999870958 | J140: 10 | K140: 49.42 | L140: 49.69 | M140: 48.89 | N140: 49.6 | O140: 4644440000
A141: 126 | B141: 2023-12-18 | C141: 49.400002 | D141: 50.432999 | E141: 49.150002 | F141: 50.077 | G141: 412587000 | H141: 50.070538 | I141: 0.9998709587 | J141: 10 | K141: 49.39 | L141: 50.43 | M141: 49.14 | N141: 50.07 | O141: 4125870000
A142: 127 | B142: 2023-12-15 | C142: 48.194 | D142: 49.403999 | E142: 48.119999 | F142: 48.889999 | G142: 479948000 | H142: 48.88369 | I142: 0.9998709552 | J142: 10 | K142: 48.19 | L142: 49.4 | M142: 48.11 | N142: 48.88 | O142: 4799480000
A143: 128 | B143: 2023-12-14 | C143: 48.389999 | D143: 48.669998 | E143: 47.422001 | F143: 48.349998 | G143: 391232000 | H143: 48.343758 | I143: 0.999870941 | J143: 10 | K143: 48.38 | L143: 48.66 | M143: 47.42 | N143: 48.34 | O143: 3912320000
A144: 129 | B144: 2023-12-13 | C144: 47.629002 | D144: 48.594002 | E144: 47.608002 | F144: 48.088001 | G144: 447792000 | H144: 48.081799 | I144: 0.9998710281 | J144: 10 | K144: 47.62 | L144: 48.59 | M144: 47.6 | N144: 48.08 | O144: 4477920000
A145: 130 | B145: 2023-12-12 | C145: 46.046001 | D145: 47.666 | E145: 46.046001 | F145: 47.657001 | G145: 372387000 | H145: 47.650852 | I145: =IF(F145=0,1,H145/F145) -> 0.9998709738 | J145: =INDEX(OFFSET($T$15,0,0,$S$13+1,1),MATCH(B145,OFFSET($Q$15,0,0,$S$13+1,1),-1)) -> 10 | K145: =ROUND($I145*C145,2) -> 46.04 | L145: =ROUND($I145*D145,2) -> 47.66 | M145: =ROUND($I145*E145,2) -> 46.04 | N145: =ROUND($I145*F145,2) -> 47.65 | O145: =G145*J145 -> 3723870000
A146: 131 | B146: 2023-12-11 | C146: 47.491001 | D146: 47.530998 | E146: 45.830002 | F146: 46.626999 | G146: 509728000 | H146: 46.620983 | I146: 0.999870976 | J146: 10 | K146: 47.48 | L146: 47.52 | M146: 45.82 | N146: 46.62 | O146: 5097280000
A147: 132 | B147: 2023-12-08 | C147: 46.595001 | D147: 47.741001 | E147: 46.549999 | F147: 47.506001 | G147: 359224000 | H147: 47.49987 | I147: 0.9998709426 | J147: 10 | K147: 46.59 | L147: 47.73 | M147: 46.54 | N147: 47.5 | O147: 3592240000
A148: 133 | B148: 2023-12-07 | C148: 45.700001 | D148: 46.629002 | E148: 45.604 | F148: 46.596001 | G148: 350823000 | H148: 46.589989 | I148: 0.9998709761 | J148: 10 | K148: 45.69 | L148: 46.62 | M148: 45.6 | N148: 46.59 | O148: 3508230000
A149: 134 | B149: 2023-12-06 | C149: 47.215 | D149: 47.387001 | E149: 45.411999 | F149: 45.502998 | G149: 380590000 | H149: 45.497128 | I149: 0.9998709975 | J149: 10 | K149: 47.21 | L149: 47.38 | M149: 45.41 | N149: 45.5 | O149: 3805900000
A150: 135 | B150: 2023-12-05 | C150: 45.466 | D150: 46.599998 | E150: 45.271 | F150: 46.566002 | G150: 371718000 | H150: 46.55999 | I150: 0.9998708929 | J150: 10 | K150: 45.46 | L150: 46.59 | M150: 45.27 | N150: 46.56 | O150: 3717180000
A151: 136 | B151: 2023-12-04 | C151: 46.077 | D151: 46.077 | E151: 45.009998 | F151: 45.509998 | G151: 437543000 | H151: 45.500122 | I151: 0.9997829927 | J151: 10 | K151: 46.07 | L151: 46.07 | M151: 45 | N151: 45.5 | O151: 4375430000
A152: 137 | B152: 2023-12-01 | C152: 46.525002 | D152: 47.200001 | E152: 46.187 | F152: 46.764999 | G152: 369317000 | H152: 46.754852 | I152: 0.9997830215 | J152: 10 | K152: 46.51 | L152: 47.19 | M152: 46.18 | N152: 46.75 | O152: 3693170000
A153: 138 | B153: 2023-11-30 | C153: 48.023998 | D153: 48.110001 | E153: 46.422001 | F153: 46.77 | G153: 526247000 | H153: 46.759853 | I153: 0.9997830447 | J153: 10 | K153: 48.01 | L153: 48.1 | M153: 46.41 | N153: 46.76 | O153: 5262470000
A154: 139 | B154: 2023-11-29 | C154: 48.379002 | D154: 48.762001 | E154: 47.860001 | F154: 48.139999 | G154: 382005000 | H154: 48.129555 | I154: 0.9997830494 | J154: 10 | K154: 48.37 | L154: 48.75 | M154: 47.85 | N154: 48.13 | O154: 3820050000
A155: 140 | B155: 2023-11-28 | C155: 48.236 | D155: 48.323002 | E155: 47.473 | F155: 47.820999 | G155: 401491000 | H155: 47.810623 | I155: 0.9997830242 | J155: 10 | K155: 48.23 | L155: 48.31 | M155: 47.46 | N155: 47.81 | O155: 4014910000
A156: 141 | B156: 2023-11-27 | C156: 47.799999 | D156: 48.529999 | E156: 47.652 | F156: 48.242001 | G156: 395662000 | H156: 48.231533 | I156: 0.9997830107 | J156: 10 | K156: 47.79 | L156: 48.52 | M156: 47.64 | N156: 48.23 | O156: 3956620000
A157: 142 | B157: 2023-11-24 | C157: 48.470001 | D157: 48.921001 | E157: 47.744999 | F157: 47.776001 | G157: 294645000 | H157: 47.765636 | I157: 0.9997830501 | J157: 10 | K157: 48.46 | L157: 48.91 | M157: 47.73 | N157: 47.77 | O157: 2946450000
A158: 143 | B158: 2023-11-22 | C158: 49.852001 | D158: 50.334999 | E158: 47.689999 | F158: 48.716 | G158: 899420000 | H158: 48.705429 | I158: 0.9997830076 | J158: 10 | K158: 49.84 | L158: 50.32 | M158: 47.68 | N158: 48.71 | O158: 8994200000
A159: 144 | B159: 2023-11-21 | C159: 50.125999 | D159: 50.516998 | E159: 49.222 | F159: 49.944 | G159: 565747000 | H159: 49.933167 | I159: 0.9997830971 | J159: 10 | K159: 50.12 | L159: 50.51 | M159: 49.21 | N159: 49.93 | O159: 5657470000
A160: 145 | B160: 2023-11-20 | C160: 49.312 | D160: 50.548 | E160: 49.181 | F160: 50.409 | G160: 414120000 | H160: 50.398064 | I160: 0.9997830546 | J160: 10 | K160: 49.3 | L160: 50.54 | M160: 49.17 | N160: 50.4 | O160: 4141200000
A161: 146 | B161: 2023-11-17 | C161: 49.523998 | D161: 49.716999 | E161: 49.007 | F161: 49.298 | G161: 325205000 | H161: 49.287308 | I161: 0.9997831149 | J161: 10 | K161: 49.51 | L161: 49.71 | M161: 49 | N161: 49.29 | O161: 3252050000
A162: 147 | B162: 2023-11-16 | C162: 48.679001 | D162: 49.525002 | E162: 48.330002 | F162: 49.48 | G162: 339756000 | H162: 49.469269 | I162: 0.9997831245 | J162: 10 | K162: 48.67 | L162: 49.51 | M162: 48.32 | N162: 49.47 | O162: 3397560000
A163: 148 | B163: 2023-11-15 | C163: 49.935001 | D163: 49.959999 | E163: 48.200001 | F163: 48.888 | G163: 475497000 | H163: 48.877392 | I163: 0.9997830142 | J163: 10 | K163: 49.92 | L163: 49.95 | M163: 48.19 | N163: 48.88 | O163: 4754970000
A164: 149 | B164: 2023-11-14 | C164: 49.68 | D164: 49.834 | E164: 49.040001 | F164: 49.655998 | G164: 416954000 | H164: 49.645226 | I164: 0.9997830675 | J164: 10 | K164: 49.67 | L164: 49.82 | M164: 49.03 | N164: 49.65 | O164: 4169540000
A165: 150 | B165: 2023-11-13 | C165: 48.32 | D165: 49.116001 | E165: 48.098999 | F165: 48.619999 | G165: 384136000 | H165: 48.609451 | I165: 0.9997830522 | J165: 10 | K165: 48.31 | L165: 49.11 | M165: 48.09 | N165: 48.61 | O165: 3841360000
A166: 151 | B166: 2023-11-10 | C166: 47.5 | D166: 48.472 | E166: 47.283001 | F166: 48.334999 | G166: 421245000 | H166: 48.324512 | I166: 0.9997830351 | J166: 10 | K166: 47.49 | L166: 48.46 | M166: 47.27 | N166: 48.32 | O166: 4212450000
A167: 152 | B167: 2023-11-09 | C167: 47.466999 | D167: 48.23 | E167: 46.75 | F167: 46.950001 | G167: 540496000 | H167: 46.939816 | I167: 0.9997830671 | J167: 10 | K167: 47.46 | L167: 48.22 | M167: 46.74 | N167: 46.94 | O167: 5404960000
A168: 153 | B168: 2023-11-08 | C168: 46.099998 | D168: 46.867001 | E168: 45.967999 | F168: 46.574001 | G168: 346719000 | H168: 46.563896 | I168: 0.9997830335 | J168: 10 | K168: 46.09 | L168: 46.86 | M168: 45.96 | N168: 46.56 | O168: 3467190000
A169: 154 | B169: 2023-11-07 | C169: 45.719002 | D169: 46.217999 | E169: 45.158001 | F169: 45.955002 | G169: 343165000 | H169: 45.945034 | I169: 0.9997830922 | J169: 10 | K169: 45.71 | L169: 46.21 | M169: 45.15 | N169: 45.95 | O169: 3431650000
A170: 155 | B170: 2023-11-06 | C170: 45.285 | D170: 45.935001 | E170: 44.898998 | F170: 45.750999 | G170: 400733000 | H170: 45.741077 | I170: 0.9997831304 | J170: 10 | K170: 45.28 | L170: 45.93 | M170: 44.89 | N170: 45.74 | O170: 4007330000
A171: 156 | B171: 2023-11-03 | C171: 44.02 | D171: 45.308998 | E171: 43.723 | F171: 45.005001 | G171: 424610000 | H171: 44.995239 | I171: 0.9997830908 | J171: 10 | K171: 44.01 | L171: 45.3 | M171: 43.71 | N171: 45 | O171: 4246100000
A172: 157 | B172: 2023-11-02 | C172: 43.327999 | D172: 43.883999 | E172: 42.894001 | F172: 43.506001 | G172: 409172000 | H172: 43.496559 | I172: 0.9997829725 | J172: 10 | K172: 43.32 | L172: 43.87 | M172: 42.88 | N172: 43.5 | O172: 4091720000
A173: 158 | B173: 2023-11-01 | C173: 40.883999 | D173: 42.381001 | E173: 40.868999 | F173: 42.325001 | G173: 437593000 | H173: 42.315823 | I173: 0.9997831542 | J173: 10 | K173: 40.88 | L173: 42.37 | M173: 40.86 | N173: 42.32 | O173: 4375930000
A174: 159 | B174: 2023-10-31 | C174: 40.450001 | D174: 40.879002 | E174: 39.23 | F174: 40.779999 | G174: 517969000 | H174: 40.771152 | I174: 0.9997830554 | J174: 10 | K174: 40.44 | L174: 40.87 | M174: 39.22 | N174: 40.77 | O174: 5179690000
A175: 160 | B175: 2023-10-30 | C175: 41.087002 | D175: 41.765999 | E175: 40.480999 | F175: 41.160999 | G175: 388028000 | H175: 41.152069 | I175: 0.9997830471 | J175: 10 | K175: 41.08 | L175: 41.76 | M175: 40.47 | N175: 41.15 | O175: 3880280000
A176: 161 | B176: 2023-10-27 | C176: 41.130001 | D176: 41.206001 | E176: 40.014999 | F176: 40.5 | G176: 416784000 | H176: 40.491215 | I176: 0.9997830864 | J176: 10 | K176: 41.12 | L176: 41.2 | M176: 40.01 | N176: 40.49 | O176: 4167840000
A177: 162 | B177: 2023-10-26 | C177: 41.853001 | D177: 42.256001 | E177: 39.880001 | F177: 40.326 | G177: 541001000 | H177: 40.317253 | I177: 0.9997830928 | J177: 10 | K177: 41.84 | L177: 42.25 | M177: 39.87 | N177: 40.32 | O177: 5410010000
A178: 163 | B178: 2023-10-25 | C178: 43.397999 | D178: 43.650002 | E178: 41.555 | F178: 41.778999 | G178: 398379000 | H178: 41.769932 | I178: 0.9997829771 | J178: 10 | K178: 43.39 | L178: 43.64 | M178: 41.55 | N178: 41.77 | O178: 3983790000
A179: 164 | B179: 2023-10-24 | C179: 43.077 | D179: 43.696999 | E179: 42.691002 | F179: 43.662998 | G179: 401463000 | H179: 43.653526 | I179: 0.9997830657 | J179: 10 | K179: 43.07 | L179: 43.69 | M179: 42.68 | N179: 43.65 | O179: 4014630000
A180: 165 | B180: 2023-10-23 | C180: 41.229 | D180: 43.248001 | E180: 40.945 | F180: 42.974998 | G180: 478530000 | H180: 42.965679 | I180: 0.999783153 | J180: 10 | K180: 41.22 | L180: 43.24 | M180: 40.94 | N180: 42.97 | O180: 4785300000
A181: 166 | B181: 2023-10-20 | C181: 41.889999 | D181: 42.470001 | E181: 41.077999 | F181: 41.387001 | G181: 477266000 | H181: 41.378021 | I181: 0.9997830237 | J181: 10 | K181: 41.88 | L181: 42.46 | M181: 41.07 | N181: 41.38 | O181: 4772660000
A182: 167 | B182: 2023-10-19 | C182: 42.811001 | D182: 43.297001 | E182: 41.882 | F182: 42.101002 | G182: 501233000 | H182: 42.091869 | I182: 0.9997830693 | J182: 10 | K182: 42.8 | L182: 43.29 | M182: 41.87 | N182: 42.09 | O182: 5012330000
A183: 168 | B183: 2023-10-18 | C183: 42.591 | D183: 43.219002 | E183: 41.825001 | F183: 42.195999 | G183: 627294000 | H183: 42.186844 | I183: 0.9997830363 | J183: 10 | K183: 42.58 | L183: 43.21 | M183: 41.82 | N183: 42.19 | O183: 6272940000
A184: 169 | B184: 2023-10-17 | C184: 44 | D184: 44.754002 | E184: 42.48 | F184: 43.938 | G184: 812333000 | H184: 43.928467 | I184: 0.9997830352 | J184: 10 | K184: 43.99 | L184: 44.74 | M184: 42.47 | N184: 43.93 | O184: 8123330000
A185: 170 | B185: 2023-10-16 | C185: 45.063 | D185: 46.224998 | E185: 44.911999 | F185: 46.095001 | G185: 375099000 | H185: 46.085003 | I185: 0.9997831001 | J185: 10 | K185: 45.05 | L185: 46.21 | M185: 44.9 | N185: 46.09 | O185: 3750990000
A186: 171 | B186: 2023-10-13 | C186: 46.959999 | D186: 47.116001 | E186: 45.279999 | F186: 45.460999 | G186: 474115000 | H186: 45.451134 | I186: 0.9997830008 | J186: 10 | K186: 46.95 | L186: 47.11 | M186: 45.27 | N186: 45.45 | O186: 4741150000
A187: 172 | B187: 2023-10-12 | C187: 46.777 | D187: 47.609001 | E187: 46.330002 | F187: 46.945 | G187: 481325000 | H187: 46.934814 | I187: 0.9997830227 | J187: 10 | K187: 46.77 | L187: 47.6 | M187: 46.32 | N187: 46.93 | O187: 4813250000
A188: 173 | B188: 2023-10-11 | C188: 46.195999 | D188: 46.859001 | E188: 46.049999 | F188: 46.806 | G188: 378137000 | H188: 46.795845 | I188: 0.9997830406 | J188: 10 | K188: 46.19 | L188: 46.85 | M188: 46.04 | N188: 46.8 | O188: 3781370000
A189: 174 | B189: 2023-10-10 | C189: 45.310001 | D189: 46.258999 | E189: 45.088001 | F189: 45.798 | G189: 368582000 | H189: 45.788067 | I189: 0.9997831128 | J189: 10 | K189: 45.3 | L189: 46.25 | M189: 45.08 | N189: 45.79 | O189: 3685820000
A190: 175 | B190: 2023-10-09 | C190: 44.841999 | D190: 45.605 | E190: 44.368 | F190: 45.272999 | G190: 409675000 | H190: 45.263176 | I190: 0.9997830274 | J190: 10 | K190: 44.83 | L190: 45.6 | M190: 44.36 | N190: 45.26 | O190: 4096750000
A191: 176 | B191: 2023-10-06 | C191: 44.193001 | D191: 45.789001 | E191: 44.026001 | F191: 45.762001 | G191: 434436000 | H191: 45.752071 | I191: 0.9997830077 | J191: 10 | K191: 44.18 | L191: 45.78 | M191: 44.02 | N191: 45.75 | O191: 4344360000
A192: 177 | B192: 2023-10-05 | C192: 44.049999 | D192: 44.900002 | E192: 43.888 | F192: 44.688 | G192: 393483000 | H192: 44.678307 | I192: 0.9997830961 | J192: 10 | K192: 44.04 | L192: 44.89 | M192: 43.88 | N192: 44.68 | O192: 3934830000
A193: 178 | B193: 2023-10-04 | C193: 43.742001 | D193: 44.143002 | E193: 43.292 | F193: 44.041 | G193: 361821000 | H193: 44.031448 | I193: 0.9997831112 | J193: 10 | K193: 43.73 | L193: 44.13 | M193: 43.28 | N193: 44.03 | O193: 3618210000
A194: 179 | B194: 2023-10-03 | C194: 44.807999 | D194: 45.130001 | E194: 43.245998 | F194: 43.516998 | G194: 470850000 | H194: 43.507557 | I194: 0.9997830503 | J194: 10 | K194: 44.8 | L194: 45.12 | M194: 43.24 | N194: 43.51 | O194: 4708500000
A195: 180 | B195: 2023-10-02 | C195: 44.029999 | D195: 45.174999 | E195: 43.861 | F195: 44.782001 | G195: 433298000 | H195: 44.772285 | I195: 0.9997830378 | J195: 10 | K195: 44.02 | L195: 45.17 | M195: 43.85 | N195: 44.77 | O195: 4332980000
A196: 181 | B196: 2023-09-29 | C196: 43.827 | D196: 44.144001 | E196: 43.306999 | F196: 43.499001 | G196: 397830000 | H196: 43.489563 | I196: 0.9997830295 | J196: 10 | K196: 43.82 | L196: 44.13 | M196: 43.3 | N196: 43.49 | O196: 3978300000
A197: 182 | B197: 2023-09-28 | C197: 42.459999 | D197: 43.445999 | E197: 42.115002 | F197: 43.089001 | G197: 424663000 | H197: 43.079651 | I197: 0.9997830073 | J197: 10 | K197: 42.45 | L197: 43.44 | M197: 42.11 | N197: 43.08 | O197: 4246630000
A198: 183 | B198: 2023-09-27 | C198: 42.330002 | D198: 42.872002 | E198: 41.629002 | F198: 42.467999 | G198: 444935000 | H198: 42.458786 | I198: 0.9997830602 | J198: 10 | K198: 42.32 | L198: 42.86 | M198: 41.62 | N198: 42.46 | O198: 4449350000
A199: 184 | B199: 2023-09-26 | C199: 42.000999 | D199: 42.82 | E199: 41.654999 | F199: 41.910999 | G199: 402282000 | H199: 41.901909 | I199: 0.9997831118 | J199: 10 | K199: 41.99 | L199: 42.81 | M199: 41.65 | N199: 41.9 | O199: 4022820000
A200: 185 | B200: 2023-09-25 | C200: 41.591 | D200: 42.535999 | E200: 41.176998 | F200: 42.222 | G200: 419091000 | H200: 42.212841 | I200: 0.9997830752 | J200: 10 | K200: 41.58 | L200: 42.53 | M200: 41.17 | N200: 42.21 | O200: 4190910000
... 6208 more rows

Sheet CalculationsAndCharts
A1: VPCI_and_TTI.xlsm
A2: =InputPriceData!A1 & CHAR(13) & InputPriceData!G3 & UPPER(TEXT(InputPriceData!B16,"yyyy mmm dd")) & ", " & TEXT(InputPriceData!H3,"hh:mm am/pm ") & InputPriceData!I3 -> NVIDIA Corporation (NVDA) -NasdaqGS (Daily) As Of: 2024 JUN 18, 11:02 AM EDT
A4: User Charting Controls | E4: Click to Shift Chart One Bar:
A5: Data Control | C5: FALSE
A6: =InputPriceData!$B$10 -> 6393 | B6: Available Input Data Rows | E6: Earliest: | F6: =OFFSET(InputPriceData!B15,CalculationsAndCharts!A6,0,1,1) -> 1999-01-22
A7: =MAX(A33:A56896) -> 1250 | B7: Available Calculation Rows | E7: Latest: | F7: =OFFSET(InputPriceData!B15,1,0,1,1) -> 2024-06-18
A8: =MIN(AvailableInputRows-DataPanRows,A7) -> 1250 | B8: Logically Available for Calc / Plot | E8: $ Change: | F8: =G33-G34 -> 2.5
A10: Historical Price Windowing Specifications | F10: Click to Shift
A11: 0 | B11: Input Data Offset (Pan) | F11: Points to Plot
A12: 115 | B12: Data Points to Plot (Zoom)
B13: First: | C13: =OFFSET(B32,A12,0,1,1) -> 2024-01-04
B14: ="Last: " & IF(OFFSET(InputPriceData!P15,1+A11,0,1,1)="","",TEXT(OFFSET(InputPriceData!P15,1+A11,0,1,1),"H:MM AM/PM")) -> Last: | C14: =B33 -> 2024-06-18
A15: User Controls
A16: VPCI | D16: TTI
A17: 5 | B17: Length1 | D17: 13 | E17: FastLen
A18: 20 | B18: Length2 | D18: 26 | E18: Slow Len
A19: 20 | B19: AvgLen | D19: 9 | E19: Signal Len
A25: Help! I would like to plot data
A26: From | B26: 2023-03-02 | C26: =OFFSET(InputPriceData!$A$15,MATCH(B26,OFFSET(InputPriceData!B15,1,0,InputPriceData!$B$10,1),0),0,1,1)-C27 -> 234 | E26: 80
A27: To | B27: 2024-02-05 | C27: =OFFSET(InputPriceData!$A$15,MATCH(B27,OFFSET(InputPriceData!$B$15,1,0,InputPriceData!$B$10,1),0),0,1,1)-1 -> 93 | E27: =$A$12-$E$26+1 -> 36
H28: Value @ Cursor => | I28: =OFFSET(A32,$E$27,0,1,1)&"(RR)" -> 36(RR) | J28: =OFFSET($B$32,E27,0,1,1) -> 2024-04-29 | K28: =TEXT(OFFSET(D32,$E$27,0,1,1),"#,##0.00")&"(o)" -> 87.60(o) | L28: =TEXT(OFFSET(E32,$E$27,0,1,1),"#,##0.00")&"(h)" -> 87.99(h) | M28: =TEXT(OFFSET(F32,$E$27,0,1,1),"#,##0.00")&"(l)" -> 85.27(l) | N28: =TEXT(OFFSET(G32,$E$27,0,1,1),"#,##0.00")&"(c)" -> 87.76(c) | O28: =TEXT(OFFSET(C32,$E$27,0,1,1),"#,##0.00,,""M""")&"(v)" -> 388.97M(v) | Y28: [ == TrendThrustIndicatorCalculations ==>
E29: Cursor ==> | BE29: Work Area For Chart Cursors
B30: =LogicallyAvailableRows -> 1250 | C30: <== Calculation Rel Row Limits ==> | I30: =B30-A17+1 -> 1246 | L30: =B30-A18+1 -> 1231 | W30: =B30-A18-A19+2 -> 1212 | Y30: =B30-D17+1 -> 1238 | AB30: =B30-D18+1 -> 1225 | AF30: =B30-D18+1-D19+1 -> 1217
A31: Rel Row | H31: Close x Volume | I31: ="Sum(" & $A$17 &") Close*Vol" -> Sum(5) Close*Vol | J31: ="Sum(" & $A$17 & ") Volume" -> Sum(5) Volume | L31: ="Sum(" & $A$18 &") Close*Vol" -> Sum(20) Close*Vol | M31: ="Sum(" & $A$18 & ") Volume" -> Sum(20) Volume | O31: ="Average("&$A$18&") Close" -> Average(20) Close | P31: ="Average("&$A$17&") Close" -> Average(5) Close | Q31: ="Average("&$A$17&") Volume" -> Average(5) Volume | R31: ="Average("&$A$18&") Volume" -> Average(20) Volume | V31: ="VPCI(" & A17&", " & A18 &")" -> VPCI(5, 20) | W31: ="AvgVPCI(" & A19 &")" -> AvgVPCI(20) | Y31: ="Sum(" & $D$17 &") Close*Vol" -> Sum(13) Close*Vol | Z31: ="Sum(" & $D$17 & ") Volume" -> Sum(13) Volume | AB31: ="Sum(" & $D$18&") Close*Vol" -> Sum(26) Close*Vol | AC31: ="Sum(" & $D$18 & ") Volume" -> Sum(26) Volume | AE31: MACD | AG31: Volume Multiple | BC31: Used To Color Vol Bars
B32: Date | C32: Volume | D32: Open | E32: High | F32: Low | G32: Close | K32: ="VWMA 1 ("&$A$17&")" -> VWMA 1 (5) | N32: ="VWMA 2 ("&$A$18&")" -> VWMA 2 (20) | S32: VP | T32: VPR | U32: VM | AA32: ="VWMA F("&$D$17&")" -> VWMA F(13) | AD32: ="VWMA S("&$D$18&")" -> VWMA S(26) | AF32: Signal | AH32: VEFA | AI32: VEFS | AJ32: Buff Spread | AK32: Buff Signal | AL32: Buff Histogram | BC32: Up Vol | BD32: Dn Vol | BE32: Volume Cursor | BF32: =MAX(OFFSET(C33,0,0,A12,1)) -> 1142269000 | BG32: Price Chart Cursor | BI32: Indicator01Cursor | BK32: Indicator02Cursor | BM32: Indicator03Cursor | BO32: Indicator04Cursor | BQ32: Indicator05Cursor | BS32: Indicator06Cursor | BU32: Indicator07Cursor | BW32: Indicator08Cursor
A33: 1 | B33: =IF($A33>$A$8,"",OFFSET(InputPriceData!$B$15,$A33+$A$11,0,1,1)) -> 2024-06-18 | C33: =IF($A33>$A$8,"",OFFSET(InputPriceData!$G$15,CalculationsAndCharts!$A33+$A$11,IF($C$5,8,0),1,1)) -> 95388821 | D33: =IF(A33>$A$8,"",OFFSET(InputPriceData!$C$15,CalculationsAndCharts!$A33+$A$11,IF($C$5,8,0),1,1)) -> 131.177002 | E33: =IF(A33>$A$8,"",OFFSET(InputPriceData!$D$15,CalculationsAndCharts!$A33+$A$11,IF($C$5,8,0),1,1)) -> 133.719894 | F33: =IF(A33>$A$8,"",OFFSET(InputPriceData!$E$15,CalculationsAndCharts!$A33+$A$11,IF($C$5,8,0),1,1)) -> 130.699997 | G33: =IF(A33>$A$8,"",OFFSET(InputPriceData!$F$15,CalculationsAndCharts!$A33+$A$11,IF($C$5,8,0),1,1)) -> 133.479996 | H33: =IF(A34>$A$8,"",G33*C33) -> 1.273249945e+10 | I33: =IF($A33>$I$30,NA(),SUM(OFFSET($H33,0,0,$A$17,1))) -> 1.624853869e+11 | J33: =IF($A33>$I$30,NA(),SUM(OFFSET($C33,0,0,$A$17,1))) -> 1252537421 | K33: =IF($A33>$I$30,NA(),I33/J33) -> 129.724976 | L33: =IF($A33>$L$30,NA(),SUM(OFFSET($H33,0,0,$A$18,1))) -> 9.953281624e+11 | M33: =IF($A33>$L$30,NA(),SUM(OFFSET($C33,0,0,$A$18,1))) -> 8689387321 | N33: =IF($A33>$L$30,NA(),L33/M33) -> 114.5452637 | O33: =IF($A33>$L$30,NA(),AVERAGE(OFFSET($G33,0,0,$A$18,1))) -> 116.9538003 | P33: =IF($A33>$I$30,NA(),AVERAGE(OFFSET($G33,0,0,$A$17,1))) -> 130.229999 | Q33: =IF($A33>$I$30,NA(),AVERAGE(OFFSET($C33,0,0,$A$17,1))) -> 250507484.2 | R33: =IF($A33>$L$30,NA(),AVERAGE(OFFSET($C33,0,0,$A$18,1))) -> 434469366.1 | S33: =IF($A33>$L$30,NA(),N33-O33) -> -2.408536516 | T33: =IF($A33>$I$30,NA(),K33/P33) -> 0.9961220689 | U33: =IF($A33>$L$30,NA(),Q33/R33) -> 0.5765826173 | V33: =IF($A33>$L$30,NA(),S33*T33*U33) -> -1.383334926 | W33: =IF($A33>$W$30,NA(),AVERAGE(OFFSET($V33,0,0,$A$19,1))) -> 0.9613795681 | Y33: =IF($A33>$Y$30,NA(),SUM(OFFSET($H33,0,0,$D$17,1))) -> 5.872436562e+11 | Z33: =IF($A33>$Y$30,NA(),SUM(OFFSET($C33,0,0,$D$17,1))) -> 4849714321 | AA33: =IF($A33>$Y$30,NA(),Y33/Z33) -> 121.0882987 | AB33: =IF($A33>$AB$30,NA(),SUM(OFFSET($H33,0,0,$D$18,1))) -> 1.182177003e+12 | AC33: =IF($A33>$AB$30,NA(),SUM(OFFSET($C33,0,0,$D$18,1))) -> 10695716321 | AD33: =IF($A33>$AB$30,NA(),AB33/AC33) -> 110.5280813 | AE33: =IF($A33>$AB$30,NA(),AA33/AD33) -> 1.095543298 | AF33: =IF($A33>$AF$30,NA(),AVERAGE(OFFSET($AE33,0,0,$D$19,1))) -> 1.089291817 | AG33: =IF($A33>$AB$30,NA(),(AA33/AD33)^2) -> 1.200215118 | AH33: =IF($A33>$AB$30,NA(),AA33*AG33) -> 145.3320067 | AI33: =IF($A33>$AB$30,NA(),AD33/AG33) -> 92.09022583 | AJ33: =IF($A33>$AB$30,NA(),AH33-AI33) -> 53.24178087 | AK33: =IF($A33>$AF$30,NA(),AVERAGE(OFFSET($AJ33,0,0,$D$19,1))) -> 47.85759551 | AL33: =IF($A33>$AF$30,NA(),AJ33-AK33) -> 5.38418536 | BC33: =IF(G33>=G34,C33,NA()) -> 95388821 | BD33: =IF(G33<G34,C33,NA()) ->  | BE33: =$E$27 -> 36 | BF33: 0 | BG33: =$E$27 -> 36 | BH33: 46.43022404 | BI33: =$E$27 -> 36 | BJ33: -1.383334926 | BK33: =$E$27 -> 36 | BL33: -53.3 | BM33: =$E$27 -> 36 | BO33: =$E$27 -> 36 | BP33: 0.9842187057 | BQ33: 36 | BS33: 36 | BT33: 0 | BU33: 36 | BV33: 0 | BW33: 36
A34: 2 | B34: =IF($A34>$A$8,"",OFFSET(InputPriceData!$B$15,$A34+$A$11,0,1,1)) -> 2024-06-17 | C34: =IF($A34>$A$8,"",OFFSET(InputPriceData!$G$15,CalculationsAndCharts!$A34+$A$11,IF($C$5,8,0),1,1)) -> 287528700 | D34: =IF(A34>$A$8,"",OFFSET(InputPriceData!$C$15,CalculationsAndCharts!$A34+$A$11,IF($C$5,8,0),1,1)) -> 132.990005 | E34: =IF(A34>$A$8,"",OFFSET(InputPriceData!$D$15,CalculationsAndCharts!$A34+$A$11,IF($C$5,8,0),1,1)) -> 133.729996 | F34: =IF(A34>$A$8,"",OFFSET(InputPriceData!$E$15,CalculationsAndCharts!$A34+$A$11,IF($C$5,8,0),1,1)) -> 129.580002 | G34: =IF(A34>$A$8,"",OFFSET(InputPriceData!$F$15,CalculationsAndCharts!$A34+$A$11,IF($C$5,8,0),1,1)) -> 130.979996 | H34: =IF(A35>$A$8,"",G34*C34) -> 3.766050798e+10 | I34: =IF($A34>$I$30,NA(),SUM(OFFSET(H34,0,0,$A$17,1))) -> 1.76661554e+11 | J34: =IF($A34>$I$30,NA(),SUM(OFFSET(C34,0,0,$A$17,1))) -> 1379699800 | K34: =IF($A34>$I$30,NA(),I34/J34) -> 128.0434729 | L34: =IF($A34>$L$30,NA(),SUM(OFFSET($H34,0,0,$A$18,1))) -> 1.012808115e+12 | M34: =IF($A34>$L$30,NA(),SUM(OFFSET($C34,0,0,$A$18,1))) -> 8912762500 | N34: =IF($A34>$L$30,NA(),L34/M34) -> 113.6357122 | O34: =IF($A34>$L$30,NA(),AVERAGE(OFFSET($G34,0,0,$A$18,1))) -> 115.0188004 | P34: =IF($A34>$I$30,NA(),AVERAGE(OFFSET($G34,0,0,$A$17,1))) -> 127.7160006 | Q34: =IF($A34>$I$30,NA(),AVERAGE(OFFSET($C34,0,0,$A$17,1))) -> 275939960 | R34: =IF($A34>$L$30,NA(),AVERAGE(OFFSET($C34,0,0,$A$18,1))) -> 445638125 | S34: =IF($A34>$L$30,NA(),N34-O34) -> -1.383088181 | T34: =IF($A34>$I$30,NA(),K34/P34) -> 1.002564066 | U34: =IF($A34>$L$30,NA(),Q34/R34) -> 0.6192018692 | V34: =IF($A34>$L$30,NA(),S34*T34*U34) -> -0.8586066809 | W34: =IF($A34>$W$30,NA(),AVERAGE(OFFSET($V34,0,0,$A$19,1))) -> 1.008669789 | Y34: =IF($A34>$Y$30,NA(),SUM(OFFSET($H34,0,0,$D$17,1))) -> 6.283633318e+11 | Z34: =IF($A34>$Y$30,NA(),SUM(OFFSET($C34,0,0,$D$17,1))) -> 5241675500 | AA34: =IF($A34>$Y$30,NA(),Y34/Z34) -> 119.878335 | AB34: =IF($A34>$AB$30,NA(),SUM(OFFSET($H34,0,0,$D$18,1))) -> 1.199582843e+12 | AC34: =IF($A34>$AB$30,NA(),SUM(OFFSET($C34,0,0,$D$18,1))) -> 10935652500 | AD34: =IF($A34>$AB$30,NA(),AB34/AC34) -> 109.6946746 | AE34: =IF($A34>$AB$30,NA(),AA34/AD34) -> 1.092836416 | AF34: =IF($A34>$AF$30,NA(),AVERAGE(OFFSET($AE34,0,0,$D$19,1))) -> 1.087430196 | AG34: =IF($A34>$AB$30,NA(),(AA34/AD34)^2) -> 1.194291431 | AH34: =IF($A34>$AB$30,NA(),AA34*AG34) -> 143.1696683 | AI34: =IF($A34>$AB$30,NA(),AD34/AG34) -> 91.84916827 | AJ34: =IF($A34>$AB$30,NA(),AH34-AI34) -> 51.32050008 | AK34: =IF($A34>$AF$30,NA(),AVERAGE(OFFSET($AJ34,0,0,$D$19,1))) -> 46.34103111 | AL34: =IF($A34>$AF$30,NA(),AJ34-AK34) -> 4.97946897 | BC34: =IF(G34>=G35,C34,NA()) ->  | BD34: =IF(G34<G35,C34,NA()) -> 287528700 | BE34: =$E$27 -> 36 | BF34: =CEILING(BF32,10^INT(LOG10(BF32))/8) -> 1250000000 | BG34: =$E$27 -> 36 | BH34: 134.807771 | BI34: =$E$27 -> 36 | BJ34: 2.450552609 | BK34: =$E$27 -> 36 | BL34: 53.3 | BM34: 36 | BN34: 0 | BO34: 36 | BP34: 1.01985624 | BQ34: 36 | BR34: 0 | BS34: 36 | BT34: 0 | BU34: 36 | BV34: 0 | BW34: 36 | BX34: 0
A35: 3 | B35: =IF(A35>$A$8,"",OFFSET(InputPriceData!B$15,$A35+$A$11,0,1,1)) -> 2024-06-14 | C35: =IF(A35>$A$8,"",OFFSET(InputPriceData!G$15,CalculationsAndCharts!$A35+$A$11,IF($C$5,8,0),1,1)) -> 309320400 | D35: =IF(A35>$A$8,"",OFFSET(InputPriceData!C$15,CalculationsAndCharts!$A35+$A$11,IF($C$5,8,0),1,1)) -> 129.960007 | E35: =IF(A35>$A$8,"",OFFSET(InputPriceData!D$15,CalculationsAndCharts!$A35+$A$11,IF($C$5,8,0),1,1)) -> 132.839996 | F35: =IF(A35>$A$8,"",OFFSET(InputPriceData!E$15,CalculationsAndCharts!$A35+$A$11,IF($C$5,8,0),1,1)) -> 128.320007 | G35: =IF(A35>$A$8,"",OFFSET(InputPriceData!$F$15,CalculationsAndCharts!$A35+$A$11,IF($C$5,8,0),1,1)) -> 131.880005 | H35: 4.07931759e+10 | I35: 1.772629215e+11 | J35: 1406333800 | K35: 126.0461219 | L35: 1.008411469e+12 | M35: 8984924800 | N35: 112.2337128 | O35: 113.0937504 | P35: 125.8780016 | Q35: 281266760 | R35: 449246240 | S35: =IF($A35>$L$30,NA(),N35-O35) -> -0.8600376477 | T35: =IF($A35>$I$30,NA(),K35/P35) -> 1.001335581 | U35: 0.6260859523 | V35: -0.5391766433 | W35: 1.025439441 | Y35: 6.547110998e+11 | Z35: 5511588800 | AA35: 118.7880888 | AB35: 1.195469855e+12 | AC35: 11026136800 | AD35: 108.4214605 | AE35: 1.095614173 | AF35: 1.085503456 | AG35: 1.200370417 | AH35: 142.5897076 | AI35: 90.32333602 | AJ35: 52.26637161 | AK35: 44.78979959 | AL35: 7.476572019 | BC35: 309320400
A36: 4 | B36: =IF(A36>$A$8,"",OFFSET(InputPriceData!B$15,$A36+$A$11,0,1,1)) -> 2024-06-13 | C36: =IF(A36>$A$8,"",OFFSET(InputPriceData!G$15,CalculationsAndCharts!$A36+$A$11,IF($C$5,8,0),1,1)) -> 260704500 | D36: =IF(A36>$A$8,"",OFFSET(InputPriceData!C$15,CalculationsAndCharts!$A36+$A$11,IF($C$5,8,0),1,1)) -> 129.389999 | E36: =IF(A36>$A$8,"",OFFSET(InputPriceData!D$15,CalculationsAndCharts!$A36+$A$11,IF($C$5,8,0),1,1)) -> 129.800003 | F36: =IF(A36>$A$8,"",OFFSET(InputPriceData!E$15,CalculationsAndCharts!$A36+$A$11,IF($C$5,8,0),1,1)) -> 127.160004 | G36: =IF(A36>$A$8,"",OFFSET(InputPriceData!F$15,CalculationsAndCharts!$A36+$A$11,IF($C$5,8,0),1,1)) -> 129.610001 | H36: 3.378991051e+10 | I36: 1.863222644e+11 | J36: 1509399400 | K36: 123.4413267 | L36: 9.981860803e+11 | M36: 8999556400 | N36: 110.9150314 | O36: 111.2177002 | P36: 123.6796006 | Q36: 301879880 | R36: 449977820 | S36: =IF($A36>$L$30,NA(),N36-O36) -> -0.3026688439 | T36: =IF($A36>$I$30,NA(),K36/P36) -> 0.9980734581 | U36: 0.6708772446 | V36: -0.2026624486 | W36: 1.008067896 | Y36: 6.882642965e+11 | Z36: 5854996400 | AA36: 117.5516174 | AB36: 1.184125768e+12 | AC36: 11042537400 | AD36: 107.2331227 | AE36: 1.096224883 | AF36: 1.08306622 | AG36: 1.201708994 | AH36: 141.2628359 | AI36: 89.23385209 | AJ36: 52.0289838 | AK36: 42.98507155 | AL36: 9.043912241 | BC36: 260704500
A37: 5 | B37: =IF(A37>$A$8,"",OFFSET(InputPriceData!B$15,$A37+$A$11,0,1,1)) -> 2024-06-12 | C37: =IF(A37>$A$8,"",OFFSET(InputPriceData!G$15,CalculationsAndCharts!$A37+$A$11,IF($C$5,8,0),1,1)) -> 299595000 | D37: =IF(A37>$A$8,"",OFFSET(InputPriceData!C$15,CalculationsAndCharts!$A37+$A$11,IF($C$5,8,0),1,1)) -> 123.059998 | E37: =IF(A37>$A$8,"",OFFSET(InputPriceData!D$15,CalculationsAndCharts!$A37+$A$11,IF($C$5,8,0),1,1)) -> 126.879997 | F37: =IF(A37>$A$8,"",OFFSET(InputPriceData!E$15,CalculationsAndCharts!$A37+$A$11,IF($C$5,8,0),1,1)) -> 122.57 | G37: =IF(A37>$A$8,"",OFFSET(InputPriceData!F$15,CalculationsAndCharts!$A37+$A$11,IF($C$5,8,0),1,1)) -> 125.199997 | H37: 3.75092931e+10 | I37: 2.329592412e+11 | J37: 1913390900 | K37: 121.7520378 | L37: 1.003926432e+12 | M37: 9156586900 | N37: 109.6398082 | O37: 109.4687 | P37: 121.9572006 | Q37: 382678180 | R37: 457829345 | S37: =IF($A37>$L$30,NA(),N37-O37) -> 0.1711082116 | T37: =IF($A37>$I$30,NA(),K37/P37) -> 0.9983177475 | U37: 0.8358533243 | V37: 0.1427807694 | W37: 0.9773648573 | Y37: 7.002021835e+11 | Z37: 6023785900 | AA37: 116.2395535 | AB37: 1.189938925e+12 | AC37: 11219174900 | AD37: 106.0629623 | AE37: 1.095948585 | AF37: 1.080493491 | AG37: 1.201103301 | AH37: 139.6157115 | AI37: 88.30461312 | AJ37: 51.31109835 | AK37: 41.12316855 | AL37: 10.1879298 | BC37: 299595000
A38: 6 | B38: =IF(A38>$A$8,"",OFFSET(InputPriceData!B$15,$A38+$A$11,0,1,1)) -> 2024-06-11 | C38: =IF(A38>$A$8,"",OFFSET(InputPriceData!G$15,CalculationsAndCharts!$A38+$A$11,IF($C$5,8,0),1,1)) -> 222551200 | D38: =IF(A38>$A$8,"",OFFSET(InputPriceData!C$15,CalculationsAndCharts!$A38+$A$11,IF($C$5,8,0),1,1)) -> 121.769997 | E38: =IF(A38>$A$8,"",OFFSET(InputPriceData!D$15,CalculationsAndCharts!$A38+$A$11,IF($C$5,8,0),1,1)) -> 122.870003 | F38: =IF(A38>$A$8,"",OFFSET(InputPriceData!E$15,CalculationsAndCharts!$A38+$A$11,IF($C$5,8,0),1,1)) -> 118.739998 | G38: =IF(A38>$A$8,"",OFFSET(InputPriceData!F$15,CalculationsAndCharts!$A38+$A$11,IF($C$5,8,0),1,1)) -> 120.910004 | H38: 2.690866648e+10 | I38: 2.6014749e+11 | J38: 2142197900 | K38: 121.4395225 | L38: 9.935048329e+11 | M38: 9153498900 | N38: 108.5382588 | O38: 107.7765003 | P38: 121.4052016 | Q38: 428439580 | R38: 457674945 | S38: =IF($A38>$L$30,NA(),N38-O38) -> 0.7617585366 | T38: =IF($A38>$I$30,NA(),K38/P38) -> 1.000282697 | U38: 0.9361219894 | V38: 0.7133005075 | W38: 0.9326235562 | Y38: 7.493718057e+11 | Z38: 6559255900 | AA38: 114.2464659 | AB38: 1.187092976e+12 | AC38: 11295782900 | AD38: 105.0916954 | AE38: 1.087112216 | AF38: 1.078274697 | AG38: 1.181812971 | AH38: 135.0179553 | AI38: 88.92413433 | AJ38: 46.09382102 | AK38: 39.43573146 | AL38: 6.658089554 | BD38: 222551200
A39: 7 | B39: =IF(A39>$A$8,"",OFFSET(InputPriceData!B$15,$A39+$A$11,0,1,1)) -> 2024-06-10 | C39: =IF(A39>$A$8,"",OFFSET(InputPriceData!G$15,CalculationsAndCharts!$A39+$A$11,IF($C$5,8,0),1,1)) -> 314162700 | D39: =IF(A39>$A$8,"",OFFSET(InputPriceData!C$15,CalculationsAndCharts!$A39+$A$11,IF($C$5,8,0),1,1)) -> 120.370003 | E39: =IF(A39>$A$8,"",OFFSET(InputPriceData!D$15,CalculationsAndCharts!$A39+$A$11,IF($C$5,8,0),1,1)) -> 123.099998 | F39: =IF(A39>$A$8,"",OFFSET(InputPriceData!E$15,CalculationsAndCharts!$A39+$A$11,IF($C$5,8,0),1,1)) -> 117.010002 | G39: =IF(A39>$A$8,"",OFFSET(InputPriceData!F$15,CalculationsAndCharts!$A39+$A$11,IF($C$5,8,0),1,1)) -> 121.790001 | H39: 3.826187555e+10 | I39: 2.802006585e+11 | J39: 2322970700 | K39: 120.6216929 | L39: 9.927829493e+11 | M39: 9220627700 | N39: 107.6697793 | O39: 106.2509502 | P39: 120.5106 | Q39: 464594140 | R39: 461031385 | S39: =IF($A39>$L$30,NA(),N39-O39) -> 1.41882908 | T39: =IF($A39>$I$30,NA(),K39/P39) -> 1.000921852 | U39: 1.007727793 | V39: 1.431111556 | W39: 0.8597905879 | Y39: 7.745572652e+11 | Z39: 6885352700 | AA39: 112.4934769 | AB39: 1.195552609e+12 | AC39: 11471572700 | AD39: 104.2187188 | AE39: 1.079398003 | AF39: 1.076808154 | AG39: 1.16510005 | AH39: 131.0661556 | AI39: 89.45044572 | AJ39: 41.61570985 | AK39: 38.16963931 | AL39: 3.446070544 | BC39: 314162700
A40: 8 | B40: =IF(A40>$A$8,"",OFFSET(InputPriceData!B$15,$A40+$A$11,0,1,1)) -> 2024-06-07 | C40: =IF(A40>$A$8,"",OFFSET(InputPriceData!G$15,CalculationsAndCharts!$A40+$A$11,IF($C$5,8,0),1,1)) -> 412386000 | D40: =IF(A40>$A$8,"",OFFSET(InputPriceData!C$15,CalculationsAndCharts!$A40+$A$11,IF($C$5,8,0),1,1)) -> 119.769997 | E40: =IF(A40>$A$8,"",OFFSET(InputPriceData!D$15,CalculationsAndCharts!$A40+$A$11,IF($C$5,8,0),1,1)) -> 121.692001 | F40: =IF(A40>$A$8,"",OFFSET(InputPriceData!E$15,CalculationsAndCharts!$A40+$A$11,IF($C$5,8,0),1,1)) -> 118.022003 | G40: =IF(A40>$A$8,"",OFFSET(InputPriceData!F$15,CalculationsAndCharts!$A40+$A$11,IF($C$5,8,0),1,1)) -> 120.888 | H40: 49852518768 | I40: 2.92353863e+11 | J40: 2447200000 | K40: 119.4646383 | L40: 9.846594134e+11 | M40: 9241790000 | N40: 106.5442315 | O40: 104.6553501 | P40: 119.1525998 | Q40: 489440000 | R40: 462089500 | S40: =IF($A40>$L$30,NA(),N40-O40) -> 1.88888147 | T40: =IF($A40>$I$30,NA(),K40/P40) -> 1.002618814 | U40: 1.05918875 | V40: 2.005921418 | W40: 0.7538534772 | Y40: 7.676722334e+11 | Z40: 6900136000 | AA40: 111.2546526 | AB40: 1.189720806e+12 | AC40: 11535308000 | AD40: 103.1373247 | AE40: 1.078704077 | AF40: 1.07579636 | AG40: 1.163602485 | AH40: 129.4561902 | AI40: 88.63621898 | AJ40: 40.81997123 | AK40: 37.14006872 | AL40: 3.679902511 | BC40: =IF(G40>=G41,C40,NA()) ->  | BD40: =IF(G40<G41,C40,NA()) -> 412386000
A41: 9 | B41: =IF(A41>$A$8,"",OFFSET(InputPriceData!B$15,$A41+$A$11,0,1,1)) -> 2024-06-06 | C41: =IF(A41>$A$8,"",OFFSET(InputPriceData!G$15,CalculationsAndCharts!$A41+$A$11,IF($C$5,8,0),1,1)) -> 664696000 | D41: =IF(A41>$A$8,"",OFFSET(InputPriceData!C$15,CalculationsAndCharts!$A41+$A$11,IF($C$5,8,0),1,1)) -> 124.047997 | E41: =IF(A41>$A$8,"",OFFSET(InputPriceData!D$15,CalculationsAndCharts!$A41+$A$11,IF($C$5,8,0),1,1)) -> 125.586998 | F41: =IF(A41>$A$8,"",OFFSET(InputPriceData!E$15,CalculationsAndCharts!$A41+$A$11,IF($C$5,8,0),1,1)) -> 118.32 | G41: =IF(A41>$A$8,"",OFFSET(InputPriceData!F$15,CalculationsAndCharts!$A41+$A$11,IF($C$5,8,0),1,1)) -> 120.998001 | H41: 8.042688727e+10 | I41: 3.097352085e+11 | J41: 2648077000 | K41: 116.9660884 | L41: 9.683544151e+11 | M41: 9207417000 | N41: 105.1711262 | O41: 103.0483002 | P41: 116.9016004 | Q41: 529615400 | R41: 460370850 | S41: =IF($A41>$L$30,NA(),N41-O41) -> 2.122826032 | T41: =IF($A41>$I$30,NA(),K41/P41) -> 1.000551644 | U41: 1.15041037 | V41: 2.443468262 | W41: 0.6207082422 | Y41: 7.480321663e+11 | Z41: 6806514000 | AA41: 109.8994531 | AB41: 1.186359871e+12 | AC41: 11682785000 | AD41: 101.5476935 | AE41: 1.0822447 | AF41: 1.075034766 | AG41: 1.17125359 | AH41: 128.720129 | AI41: 86.70000621 | AJ41: 42.02012282 | AK41: 36.18141167 | AL41: 5.838711156 | BD41: 664696000
A42: 10 | B42: =IF(A42>$A$8,"",OFFSET(InputPriceData!B$15,$A42+$A$11,0,1,1)) -> 2024-06-05 | C42: =IF(A42>$A$8,"",OFFSET(InputPriceData!G$15,CalculationsAndCharts!$A42+$A$11,IF($C$5,8,0),1,1)) -> 528402000 | D42: =IF(A42>$A$8,"",OFFSET(InputPriceData!C$15,CalculationsAndCharts!$A42+$A$11,IF($C$5,8,0),1,1)) -> 118.371002 | E42: =IF(A42>$A$8,"",OFFSET(InputPriceData!D$15,CalculationsAndCharts!$A42+$A$11,IF($C$5,8,0),1,1)) -> 122.448997 | F42: =IF(A42>$A$8,"",OFFSET(InputPriceData!E$15,CalculationsAndCharts!$A42+$A$11,IF($C$5,8,0),1,1)) -> 117.468002 | G42: =IF(A42>$A$8,"",OFFSET(InputPriceData!F$15,CalculationsAndCharts!$A42+$A$11,IF($C$5,8,0),1,1)) -> 122.440002 | H42: 6.469754194e+10 | I42: 2.831604962e+11 | J42: 2470731000 | K42: 114.6059592 | L42: 9.173766159e+11 | M42: 8868442000 | N42: 103.4428162 | O42: 101.5190003 | P42: 114.8020002 | Q42: 494146200 | R42: 443422100 | S42: =IF($A42>$L$30,NA(),N42-O42) -> 1.92381596 | T42: =IF($A42>$I$30,NA(),K42/P42) -> 0.9982923557 | U42: 1.114392359 | V42: 2.140224811 | W42: 0.4665652773 | Y42: 7.008691415e+11 | Z42: 6501509000 | AA42: 107.8009954 | AB42: 1.137358169e+12 | AC42: 11381798000 | AD42: 99.92781182 | AE42: 1.078788712 | AF42: 1.07332189 | AG42: 1.163785084 | AH42: 125.4571904 | AI42: 85.86448923 | AJ42: 39.59270122 | AK42: 34.80676217 | AL42: 4.785939053 | BC42: 528402000
A43: 11 | B43: =IF(A43>$A$8,"",OFFSET(InputPriceData!B$15,$A43+$A$11,0,1,1)) -> 2024-06-04 | C43: =IF(A43>$A$8,"",OFFSET(InputPriceData!G$15,CalculationsAndCharts!$A43+$A$11,IF($C$5,8,0),1,1)) -> 403324000 | D43: =IF(A43>$A$8,"",OFFSET(InputPriceData!C$15,CalculationsAndCharts!$A43+$A$11,IF($C$5,8,0),1,1)) -> 115.716003 | E43: =IF(A43>$A$8,"",OFFSET(InputPriceData!D$15,CalculationsAndCharts!$A43+$A$11,IF($C$5,8,0),1,1)) -> 116.599998 | F43: =IF(A43>$A$8,"",OFFSET(InputPriceData!E$15,CalculationsAndCharts!$A43+$A$11,IF($C$5,8,0),1,1)) -> 114.044998 | G43: =IF(A43>$A$8,"",OFFSET(InputPriceData!F$15,CalculationsAndCharts!$A43+$A$11,IF($C$5,8,0),1,1)) -> 116.436996 | H43: 4.696183497e+10 | I43: 2.824712303e+11 | J43: 2499771000 | K43: 112.9988428 | L43: 8.922821418e+11 | M43: 8777382000 | N43: 101.6569795 | O43: 99.9247002 | P43: 113.2789992 | Q43: 499954200 | R43: 438869100 | S43: =IF($A43>$L$30,NA(),N43-O43) -> 1.732279278 | T43: =IF($A43>$I$30,NA(),K43/P43) -> 0.9975268461 | U43: 1.139187516 | V43: 1.968510428 | W43: 0.3276648421 | Y43: 6.667393867e+11 | Z43: 6297059000 | AA43: 105.8810767 | AB43: 1.106795556e+12 | AC43: 11242367000 | AD43: 98.44862353 | AE43: 1.075495755 | AF43: 1.071465333 | AG43: 1.156691118 | AH43: 122.471701 | AI43: 85.1122845 | AJ43: 37.35941645 | AK43: 33.41941187 | AL43: 3.940004581 | BC43: 403324000
A44: 12 | B44: =IF(A44>$A$8,"",OFFSET(InputPriceData!B$15,$A44+$A$11,0,1,1)) -> 2024-06-03 | C44: =IF(A44>$A$8,"",OFFSET(InputPriceData!G$15,CalculationsAndCharts!$A44+$A$11,IF($C$5,8,0),1,1)) -> 438392000 | D44: =IF(A44>$A$8,"",OFFSET(InputPriceData!C$15,CalculationsAndCharts!$A44+$A$11,IF($C$5,8,0),1,1)) -> 113.621002 | E44: =IF(A44>$A$8,"",OFFSET(InputPriceData!D$15,CalculationsAndCharts!$A44+$A$11,IF($C$5,8,0),1,1)) -> 115 | F44: =IF(A44>$A$8,"",OFFSET(InputPriceData!E$15,CalculationsAndCharts!$A44+$A$11,IF($C$5,8,0),1,1)) -> 112.002998 | G44: =IF(A44>$A$8,"",OFFSET(InputPriceData!F$15,CalculationsAndCharts!$A44+$A$11,IF($C$5,8,0),1,1)) -> 115 | H44: 50415080000 | I44: 3.098557679e+11 | J44: 2749175000 | K44: 112.7086373 | L44: 8.799836509e+11 | M44: 8750261000 | N44: 100.5665603 | O44: 98.70985035 | P44: 112.7718002 | Q44: 549835000 | R44: 437513050 | S44: =IF($A44>$L$30,NA(),N44-O44) -> 1.856709997 | T44: =IF($A44>$I$30,NA(),K44/P44) -> 0.999439905 | U44: 1.256728228 | V44: 2.33207295 | W44: 0.1996277822 | Y44: 6.593078135e+11 | Z44: 6311470000 | AA44: 104.461847 | AB44: 1.108176672e+12 | AC44: 11390054000 | AD44: 97.2933642 | AE44: 1.073679052 | AF44: 1.069703137 | AG44: 1.152786706 | AH44: 120.4222285 | AI44: 84.39840926 | AJ44: 36.02381925 | AK44: 32.14813528 | AL44: 3.875683969 | BC44: 438392000
A45: 13 | B45: =IF(A45>$A$8,"",OFFSET(InputPriceData!B$15,$A45+$A$11,0,1,1)) -> 2024-05-31 | C45: =IF(A45>$A$8,"",OFFSET(InputPriceData!G$15,CalculationsAndCharts!$A45+$A$11,IF($C$5,8,0),1,1)) -> 613263000 | D45: =IF(A45>$A$8,"",OFFSET(InputPriceData!C$15,CalculationsAndCharts!$A45+$A$11,IF($C$5,8,0),1,1)) -> 112.519997 | E45: =IF(A45>$A$8,"",OFFSET(InputPriceData!D$15,CalculationsAndCharts!$A45+$A$11,IF($C$5,8,0),1,1)) -> 112.717003 | F45: =IF(A45>$A$8,"",OFFSET(InputPriceData!E$15,CalculationsAndCharts!$A45+$A$11,IF($C$5,8,0),1,1)) -> 106.940002 | G45: =IF(A45>$A$8,"",OFFSET(InputPriceData!F$15,CalculationsAndCharts!$A45+$A$11,IF($C$5,8,0),1,1)) -> 109.633003 | H45: 6.723386432e+10 | I45: 3.051684854e+11 | J45: 2740277000 | K45: 111.3641013 | L45: 8.649368704e+11 | M45: 8710210000 | N45: 99.30149449 | O45: 97.3993004 | P45: 111.0656006 | Q45: 548055400 | R45: 435510500 | S45: =IF($A45>$L$30,NA(),N45-O45) -> 1.902194094 | T45: =IF($A45>$I$30,NA(),K45/P45) -> 1.002687607 | U45: 1.258420635 | V45: 2.400193787 | W45: 0.05392799552 | Y45: 6.359804279e+11 | Z45: 6169585000 | AA45: 103.0831779 | AB45: 1.092850529e+12 | AC45: 11376303000 | AD45: 96.06376772 | AE45: 1.073070319 | AF45: 1.067575662 | AG45: 1.151479909 | AH45: 118.6982083 | AI45: 83.42635154 | AJ45: 35.27185676 | AK45: 30.76872671 | AL45: 4.503130053 | BC45: =IF(G45>=G46,C45,NA()) ->  | BD45: =IF(G45<G46,C45,NA()) -> 613263000
A46: 14 | B46: =IF(A46>$A$8,"",OFFSET(InputPriceData!B$15,$A46+$A$11,0,1,1)) -> 2024-05-30 | C46: =IF(A46>$A$8,"",OFFSET(InputPriceData!G$15,CalculationsAndCharts!$A46+$A$11,IF($C$5,8,0),1,1)) -> 487350000 | D46: =IF(A46>$A$8,"",OFFSET(InputPriceData!C$15,CalculationsAndCharts!$A46+$A$11,IF($C$5,8,0),1,1)) -> 114.650002 | E46: =IF(A46>$A$8,"",OFFSET(InputPriceData!D$15,CalculationsAndCharts!$A46+$A$11,IF($C$5,8,0),1,1)) -> 115.819 | F46: =IF(A46>$A$8,"",OFFSET(InputPriceData!E$15,CalculationsAndCharts!$A46+$A$11,IF($C$5,8,0),1,1)) -> 109.663002 | G46: =IF(A46>$A$8,"",OFFSET(InputPriceData!F$15,CalculationsAndCharts!$A46+$A$11,IF($C$5,8,0),1,1)) -> 110.5 | H46: 53852175000 | I46: 3.246135364e+11 | J46: 2962079000 | K46: 109.5897633 | L46: 8.301330791e+11 | M46: 8474845000 | N46: 97.95259726 | O46: 96.2085003 | P46: 109.8988008 | Q46: 592415800 | R46: 423742250 | S46: =IF($A46>$L$30,NA(),N46-O46) -> 1.744096955 | T46: =IF($A46>$I$30,NA(),K46/P46) -> 0.9971879808 | U46: 1.398056956 | V46: 2.431490201 | W46: -0.09705114451 | Y46: 5.949333465e+11 | Z46: 5846002000 | AA46: 101.7675578 | AB46: 1.066427862e+12 | AC46: 11275248000 | AD46: 94.58132206 | AE46: 1.075979439 | AF46: 1.06424641 | AG46: 1.157731752 | AH46: 117.819533 | AI46: 81.69536845 | AJ46: 36.12416457 | AK46: 28.91706377 | AL46: 7.207100795 | BD46: 487350000
A47: 15 | B47: =IF(A47>$A$8,"",OFFSET(InputPriceData!B$15,$A47+$A$11,0,1,1)) -> 2024-05-29 | C47: =IF(A47>$A$8,"",OFFSET(InputPriceData!G$15,CalculationsAndCharts!$A47+$A$11,IF($C$5,8,0),1,1)) -> 557442000 | D47: =IF(A47>$A$8,"",OFFSET(InputPriceData!C$15,CalculationsAndCharts!$A47+$A$11,IF($C$5,8,0),1,1)) -> 113.050003 | E47: =IF(A47>$A$8,"",OFFSET(InputPriceData!D$15,CalculationsAndCharts!$A47+$A$11,IF($C$5,8,0),1,1)) -> 115.491997 | F47: =IF(A47>$A$8,"",OFFSET(InputPriceData!E$15,CalculationsAndCharts!$A47+$A$11,IF($C$5,8,0),1,1)) -> 110.901001 | G47: =IF(A47>$A$8,"",OFFSET(InputPriceData!F$15,CalculationsAndCharts!$A47+$A$11,IF($C$5,8,0),1,1)) -> 114.824997 | H47: 6.400827598e+10 | I47: 3.228554873e+11 | J47: 3023377000 | K47: 106.7863807 | L47: 8.227724875e+11 | M47: 8547358000 | N47: 96.26044533 | O47: 94.8355503 | P47: 106.7888002 | Q47: 604675400 | R47: 427367900 | S47: =IF($A47>$L$30,NA(),N47-O47) -> 1.424895029 | T47: =IF($A47>$I$30,NA(),K47/P47) -> 0.9999773432 | U47: 1.414882587 | V47: 2.016013488 | W47: -0.249640393 | Y47: 5.712195111e+11 | Z47: 5693977000 | AA47: 100.3199541 | AB47: 1.048723035e+12 | AC47: 11226457000 | AD47: 93.41531656 | AE47: 1.073913334 | AF47: 1.060054327 | AG47: 1.153289849 | AH47: 115.6979847 | AI47: 80.99899311 | AJ47: 34.69899162 | AK47: 26.73644353 | AL47: 7.96254809 | BC47: 557442000
A48: 16 | B48: =IF(A48>$A$8,"",OFFSET(InputPriceData!B$15,$A48+$A$11,0,1,1)) -> 2024-05-28 | C48: =IF(A48>$A$8,"",OFFSET(InputPriceData!G$15,CalculationsAndCharts!$A48+$A$11,IF($C$5,8,0),1,1)) -> 652728000 | D48: =IF(A48>$A$8,"",OFFSET(InputPriceData!C$15,CalculationsAndCharts!$A48+$A$11,IF($C$5,8,0),1,1)) -> 110.244003 | E48: =IF(A48>$A$8,"",OFFSET(InputPriceData!D$15,CalculationsAndCharts!$A48+$A$11,IF($C$5,8,0),1,1)) -> 114.939003 | F48: =IF(A48>$A$8,"",OFFSET(InputPriceData!E$15,CalculationsAndCharts!$A48+$A$11,IF($C$5,8,0),1,1)) -> 109.883003 | G48: =IF(A48>$A$8,"",OFFSET(InputPriceData!F$15,CalculationsAndCharts!$A48+$A$11,IF($C$5,8,0),1,1)) -> 113.901001 | H48: 7.434637258e+10 | I48: 2.902240552e+11 | J48: 2794881000 | K48: 103.8412924 | L48: 7.901893965e+11 | M48: 8353625000 | N48: 94.5923951 | O48: 93.41440045 | P48: =IF($A48>$I$30,NA(),AVERAGE(OFFSET($G48,0,0,$A$17,1))) -> 102.9010012 | Q48: 558976200 | R48: 417681250 | S48: =IF($A48>$L$30,NA(),N48-O48) -> 1.177994649 | T48: =IF($A48>$I$30,NA(),K48/P48) -> 1.009137824 | U48: 1.338284158 | V48: 1.590897279 | W48: -0.3829075806 | Y48: 5.407587556e+11 | Z48: 5514548000 | AA48: 98.06039509 | AB48: 1.032134601e+12 | AC48: 11265356000 | AD48: 91.62023828 | AE48: 1.070291858 | AF48: 1.055772172 | AG48: 1.145524662 | AH48: 112.330601 | AI48: 79.98102642 | AJ48: 32.34957454 | AK48: 24.57203726 | AL48: 7.777537272 | BC48: 652728000
A49: 17 | B49: =IF(A49>$A$8,"",OFFSET(InputPriceData!B$15,$A49+$A$11,0,1,1)) -> 2024-05-24 | C49: =IF(A49>$A$8,"",OFFSET(InputPriceData!G$15,CalculationsAndCharts!$A49+$A$11,IF($C$5,8,0),1,1)) -> 429494000 | D49: =IF(A49>$A$8,"",OFFSET(InputPriceData!C$15,CalculationsAndCharts!$A49+$A$11,IF($C$5,8,0),1,1)) -> 104.448997 | E49: =IF(A49>$A$8,"",OFFSET(InputPriceData!D$15,CalculationsAndCharts!$A49+$A$11,IF($C$5,8,0),1,1)) -> 106.474998 | F49: =IF(A49>$A$8,"",OFFSET(InputPriceData!E$15,CalculationsAndCharts!$A49+$A$11,IF($C$5,8,0),1,1)) -> 103 | G49: =IF(A49>$A$8,"",OFFSET(InputPriceData!F$15,CalculationsAndCharts!$A49+$A$11,IF($C$5,8,0),1,1)) -> 106.469002 | H49: 4.572779754e+10 | I49: 2.460901342e+11 | J49: 2460917000 | K49: 99.99936373 | L49: 7.499779535e+11 | M49: 8089868000 | N49: 92.70583321 | O49: 92.1072006 | P49: 99.0768008 | Q49: 492183400 | R49: 404493400 | S49: =IF($A49>$L$30,NA(),N49-O49) -> 0.5986326137 | T49: =IF($A49>$I$30,NA(),K49/P49) -> 1.009311594 | U49: 1.216789693 | V49: 0.7351926523 | W49: -0.4956129512 | Y49: 4.958614711e+11 | Z49: 5187541000 | AA49: 95.58699798 | AB49: 1.024478313e+12 | AC49: 11487826000 | AD49: 89.1794769 | AE49: 1.071849727 | AF49: 1.051573415 | AG49: 1.148861838 | AH49: 109.8162541 | AI49: 77.62419639 | AJ49: 32.19205776 | AK49: 22.52496406 | AL49: 9.667093701 | BC49: 429494000
A50: 18 | B50: =IF(A50>$A$8,"",OFFSET(InputPriceData!B$15,$A50+$A$11,0,1,1)) -> 2024-05-23 | C50: =IF(A50>$A$8,"",OFFSET(InputPriceData!G$15,CalculationsAndCharts!$A50+$A$11,IF($C$5,8,0),1,1)) -> 835065000 | D50: =IF(A50>$A$8,"",OFFSET(InputPriceData!C$15,CalculationsAndCharts!$A50+$A$11,IF($C$5,8,0),1,1)) -> 102.028 | E50: =IF(A50>$A$8,"",OFFSET(InputPriceData!D$15,CalculationsAndCharts!$A50+$A$11,IF($C$5,8,0),1,1)) -> 106.32 | F50: =IF(A50>$A$8,"",OFFSET(InputPriceData!E$15,CalculationsAndCharts!$A50+$A$11,IF($C$5,8,0),1,1)) -> 101.519997 | G50: =IF(A50>$A$8,"",OFFSET(InputPriceData!F$15,CalculationsAndCharts!$A50+$A$11,IF($C$5,8,0),1,1)) -> 103.799004 | H50: 8.667891528e+10 | I50: 2.336261992e+11 | J50: 2391114000 | K50: 97.70600615 | L50: 7.525931066e+11 | M50: 8211385000 | N50: 91.65239562 | O50: 91.17050055 | P50: 96.2787996 | Q50: 478222800 | R50: 410569250 | S50: =IF($A50>$L$30,NA(),N50-O50) -> 0.4818950715 | T50: =IF($A50>$I$30,NA(),K50/P50) -> 1.014823685 | U50: 1.164779876 | V50: 0.5696222405 | W50: -0.5673669015 | Y50: 4.897367414e+11 | Z50: 5195389000 | AA50: 94.26372913 | AB50: 1.016620466e+12 | AC50: 11505592000 | AD50: 88.35881425 | AE50: 1.066828815 | AF50: 1.046520853 | AG50: 1.138123721 | AH50: 107.2837862 | AI50: 77.63550887 | AJ50: 29.64827731 | AK50: 20.20168233 | AL50: 9.446594987 | BC50: 835065000
A51: 19 | B51: =IF(A51>$A$8,"",OFFSET(InputPriceData!B$15,$A51+$A$11,0,1,1)) -> 2024-05-22 | C51: =IF(A51>$A$8,"",OFFSET(InputPriceData!G$15,CalculationsAndCharts!$A51+$A$11,IF($C$5,8,0),1,1)) -> 548648000 | D51: =IF(A51>$A$8,"",OFFSET(InputPriceData!C$15,CalculationsAndCharts!$A51+$A$11,IF($C$5,8,0),1,1)) -> 95.459 | E51: =IF(A51>$A$8,"",OFFSET(InputPriceData!D$15,CalculationsAndCharts!$A51+$A$11,IF($C$5,8,0),1,1)) -> 96.019997 | F51: =IF(A51>$A$8,"",OFFSET(InputPriceData!E$15,CalculationsAndCharts!$A51+$A$11,IF($C$5,8,0),1,1)) -> 93.249001 | G51: =IF(A51>$A$8,"",OFFSET(InputPriceData!F$15,CalculationsAndCharts!$A51+$A$11,IF($C$5,8,0),1,1)) -> 94.949997 | H51: 5.209412595e+10 | I51: 1.77515071e+11 | J51: 1880001000 | K51: 94.42285989 | L51: 7.010031282e+11 | M51: 7800961000 | N51: 89.86112457 | O51: 90.11215055 | P51: 94.390799 | Q51: 376000200 | R51: 390048050 | S51: =IF($A51>$L$30,NA(),N51-O51) -> -0.251025984 | T51: =IF($A51>$I$30,NA(),K51/P51) -> 1.000339661 | U51: 0.9639843091 | V51: -0.2420673027 | W51: -0.6381323508 | Y51: 4.377211702e+11 | Z51: 4736527000 | AA51: 92.41395018 | AB51: 9.715724921e+11 | AC51: 11165927000 | AD51: 87.01225542 | AE51: 1.062079701 | AF51: 1.040900262 | AG51: 1.12801329 | AH51: 104.244164 | AI51: 77.13761545 | AJ51: 27.10654857 | AK51: 17.67879263 | AL51: 9.42775594 | BD51: 548648000
A52: 20 | B52: =IF(A52>$A$8,"",OFFSET(InputPriceData!B$15,$A52+$A$11,0,1,1)) -> 2024-05-21 | C52: =IF(A52>$A$8,"",OFFSET(InputPriceData!G$15,CalculationsAndCharts!$A52+$A$11,IF($C$5,8,0),1,1)) -> 328946000 | D52: =IF(A52>$A$8,"",OFFSET(InputPriceData!C$15,CalculationsAndCharts!$A52+$A$11,IF($C$5,8,0),1,1)) -> 93.598999 | E52: =IF(A52>$A$8,"",OFFSET(InputPriceData!D$15,CalculationsAndCharts!$A52+$A$11,IF($C$5,8,0),1,1)) -> 95.400002 | F52: =IF(A52>$A$8,"",OFFSET(InputPriceData!E$15,CalculationsAndCharts!$A52+$A$11,IF($C$5,8,0),1,1)) -> 93.18 | G52: =IF(A52>$A$8,"",OFFSET(InputPriceData!F$15,CalculationsAndCharts!$A52+$A$11,IF($C$5,8,0),1,1)) -> 95.386002 | H52: 3.137684381e+10 | I52: 1.649512069e+11 | J52: 1749088000 | K52: 94.3069799 | L52: 6.897202e+11 | M52: 7764521000 | N52: 88.82971661 | O52: 89.3485008 | P52: 94.326799 | Q52: 349817600 | R52: 388226050 | S52: =IF($A52>$L$30,NA(),N52-O52) -> -0.5187841901 | T52: =IF($A52>$I$30,NA(),K52/P52) -> 0.9997898889 | U52: 0.9010667883 | V52: -0.4673609856 | W52: -0.6645559777 | Y52: 4.209953437e+11 | Z52: 4586220000 | AA52: 91.79571493 | AB52: 9.518615155e+11 | AC52: 10987732000 | AD52: 86.62948054 | AE52: 1.059635985 | AF52: 1.035257634 | AG52: 1.12282842 | AH52: 103.0708376 | AI52: 77.15291044 | AJ52: 25.91792713 | AK52: 15.20261147 | AL52: 10.71531566 | BC52: 328946000
A53: 21 | B53: =IF(A53>$A$8,"",OFFSET(InputPriceData!B$15,$A53+$A$11,0,1,1)) -> 2024-05-20 | C53: =IF(A53>$A$8,"",OFFSET(InputPriceData!G$15,CalculationsAndCharts!$A53+$A$11,IF($C$5,8,0),1,1)) -> 318764000 | D53: =IF(A53>$A$8,"",OFFSET(InputPriceData!C$15,CalculationsAndCharts!$A53+$A$11,IF($C$5,8,0),1,1)) -> 93.75 | E53: =IF(A53>$A$8,"",OFFSET(InputPriceData!D$15,CalculationsAndCharts!$A53+$A$11,IF($C$5,8,0),1,1)) -> 95.199997 | F53: =IF(A53>$A$8,"",OFFSET(InputPriceData!E$15,CalculationsAndCharts!$A53+$A$11,IF($C$5,8,0),1,1)) -> 93.440002 | G53: =IF(A53>$A$8,"",OFFSET(InputPriceData!F$15,CalculationsAndCharts!$A53+$A$11,IF($C$5,8,0),1,1)) -> 94.779999 | H53: 3.02124516e+10 | I53: 1.606620574e+11 | J53: 1716649000 | K53: 93.59051118 | L53: 6.944907034e+11 | M53: 7874134000 | N53: 88.19899476 | O53: 88.70035055 | P53: 93.5207992 | Q53: 343329800 | R53: 393706700 | S53: =IF($A53>$L$30,NA(),N53-O53) -> -0.5013557946 | T53: =IF($A53>$I$30,NA(),K53/P53) -> 1.000745417 | U53: 0.8720445956 | V53: -0.4375305109 | W53: -0.6757376441 | Y53: 4.220485729e+11 | Z53: 4635172000 | AA53: 91.05348689 | AB53: 9.585897363e+11 | AC53: 11101863000 | AD53: 86.34494376 | AE53: 1.054531776 | AF53: 1.028755125 | AG53: 1.112037267 | AH53: 101.2548707 | AI53: 77.64572856 | AJ53: 23.60914212 | AK53: 12.37563575 | AL53: 11.23350637 | BC53: 318764000
A54: 22 | B54: =IF(A54>$A$8,"",OFFSET(InputPriceData!B$15,$A54+$A$11,0,1,1)) -> 2024-05-17 | C54: =IF(A54>$A$8,"",OFFSET(InputPriceData!G$15,CalculationsAndCharts!$A54+$A$11,IF($C$5,8,0),1,1)) -> 359691000 | D54: =IF(A54>$A$8,"",OFFSET(InputPriceData!C$15,CalculationsAndCharts!$A54+$A$11,IF($C$5,8,0),1,1)) -> 94.369003 | E54: =IF(A54>$A$8,"",OFFSET(InputPriceData!D$15,CalculationsAndCharts!$A54+$A$11,IF($C$5,8,0),1,1)) -> 94.739998 | F54: =IF(A54>$A$8,"",OFFSET(InputPriceData!E$15,CalculationsAndCharts!$A54+$A$11,IF($C$5,8,0),1,1)) -> 91.806 | G54: =IF(A54>$A$8,"",OFFSET(InputPriceData!F$15,CalculationsAndCharts!$A54+$A$11,IF($C$5,8,0),1,1)) -> 92.478996 | H54: 3.326386255e+10 | I54: 1.566363887e+11 | J54: 1687565000 | K54: 92.81798847 | L54: 7.116980942e+11 | M54: 8151711000 | N54: 87.30659051 | O54: 87.9372505 | P54: 92.6445998 | Q54: 337513000 | R54: 407585550 | S54: =IF($A54>$L$30,NA(),N54-O54) -> -0.6306599924 | T54: =IF($A54>$I$30,NA(),K54/P54) -> 1.001871546 | U54: 0.828078915 | V54: -0.5232136316 | W54: -0.6836233599 | Y54: 4.383277047e+11 | Z54: 4876271000 | AA54: 89.88993941 | AB54: 9.660155092e+11 | AC54: 11209904000 | AD54: 86.17518127 | AE54: 1.043107053 | AF54: 1.020799716 | AG54: 1.088072325 | AH54: 97.80675535 | AI54: 79.19986503 | AJ54: 18.60689032 | AK54: 8.942802906 | AL54: 9.664087414 | BD54: 359691000
A55: 23 | B55: =IF(A55>$A$8,"",OFFSET(InputPriceData!B$15,$A55+$A$11,0,1,1)) -> 2024-05-16 | C55: =IF(A55>$A$8,"",OFFSET(InputPriceData!G$15,CalculationsAndCharts!$A55+$A$11,IF($C$5,8,0),1,1)) -> 323952000 | D55: =IF(A55>$A$8,"",OFFSET(InputPriceData!C$15,CalculationsAndCharts!$A55+$A$11,IF($C$5,8,0),1,1)) -> 94.910004 | E55: =IF(A55>$A$8,"",OFFSET(InputPriceData!D$15,CalculationsAndCharts!$A55+$A$11,IF($C$5,8,0),1,1)) -> 95.819 | F55: =IF(A55>$A$8,"",OFFSET(InputPriceData!E$15,CalculationsAndCharts!$A55+$A$11,IF($C$5,8,0),1,1)) -> 94.102997 | G55: =IF(A55>$A$8,"",OFFSET(InputPriceData!F$15,CalculationsAndCharts!$A55+$A$11,IF($C$5,8,0),1,1)) -> 94.359001 | H55: 3.056778709e+10 | I55: 1.535108658e+11 | J55: 1663199000 | K55: 92.29855588 | L55: 7.451243166e+11 | M55: 8667218000 | N55: 85.97041365 | O55: 87.12330055 | P55: 92.1244002 | Q55: 332639800 | R55: 433360900 | S55: =IF($A55>$L$30,NA(),N55-O55) -> -1.152886902 | T55: =IF($A55>$I$30,NA(),K55/P55) -> 1.00189044 | U55: 0.7675814777 | V55: -0.886607548 | W55: -0.6755347953 | Y55: 4.364890272e+11 | Z55: 4880289000 | AA55: 89.43917608 | AB55: 9.718648637e+11 | AC55: 11281850000 | AD55: 86.14410436 | AE55: 1.038250693 | AF55: 1.013585421 | AG55: 1.077964502 | AH55: 96.41225693 | AI55: 79.9136745 | AJ55: 16.49858243 | AK55: 5.840040116 | AL55: 10.65854232 | BD55: 323952000
A56: 24 | B56: =IF(A56>$A$8,"",OFFSET(InputPriceData!B$15,$A56+$A$11,0,1,1)) -> 2024-05-15 | C56: =IF(A56>$A$8,"",OFFSET(InputPriceData!G$15,CalculationsAndCharts!$A56+$A$11,IF($C$5,8,0),1,1)) -> 417735000 | D56: =IF(A56>$A$8,"",OFFSET(InputPriceData!C$15,CalculationsAndCharts!$A56+$A$11,IF($C$5,8,0),1,1)) -> 92.472 | E56: =IF(A56>$A$8,"",OFFSET(InputPriceData!D$15,CalculationsAndCharts!$A56+$A$11,IF($C$5,8,0),1,1)) -> 94.862 | F56: =IF(A56>$A$8,"",OFFSET(InputPriceData!E$15,CalculationsAndCharts!$A56+$A$11,IF($C$5,8,0),1,1)) -> 91.598999 | G56: =IF(A56>$A$8,"",OFFSET(InputPriceData!F$15,CalculationsAndCharts!$A56+$A$11,IF($C$5,8,0),1,1)) -> 94.629997 | H56: 3.95302618e+10 | I56: 1.564905992e+11 | J56: 1717260000 | K56: 91.12807567 | L56: 7.524264801e+11 | M56: 8790526000 | N56: 85.59516007 | O56: 86.6389004 | P56: 91.0020004 | Q56: 343452000 | R56: 439526300 | S56: =IF($A56>$L$30,NA(),N56-O56) -> -1.043740325 | T56: =IF($A56>$I$30,NA(),K56/P56) -> 1.001385412 | U56: 0.7814139905 | V56: -0.8167232254 | W56: -0.6207944099 | Y56: 4.400561697e+11 | Z56: 4945308000 | AA56: 88.9845829 | AB56: 9.788917453e+11 | AC56: 11389827000 | AD56: 85.94439102 | AE56: 1.035373942 | AF56: 1.006346625 | AG56: 1.071999199 | AH56: 95.39140162 | AI56: 80.17206643 | AJ56: 15.2193352 | AK56: 2.730808553 | AL56: 12.48852664 | BC56: 417735000
A57: 25 | B57: =IF(A57>$A$8,"",OFFSET(InputPriceData!B$15,$A57+$A$11,0,1,1)) -> 2024-05-14 | C57: =IF(A57>$A$8,"",OFFSET(InputPriceData!G$15,CalculationsAndCharts!$A57+$A$11,IF($C$5,8,0),1,1)) -> 296507000 | D57: =IF(A57>$A$8,"",OFFSET(InputPriceData!C$15,CalculationsAndCharts!$A57+$A$11,IF($C$5,8,0),1,1)) -> 89.598999 | E57: =IF(A57>$A$8,"",OFFSET(InputPriceData!D$15,CalculationsAndCharts!$A57+$A$11,IF($C$5,8,0),1,1)) -> 91.651001 | F57: =IF(A57>$A$8,"",OFFSET(InputPriceData!E$15,CalculationsAndCharts!$A57+$A$11,IF($C$5,8,0),1,1)) -> 88.933998 | G57: =IF(A57>$A$8,"",OFFSET(InputPriceData!F$15,CalculationsAndCharts!$A57+$A$11,IF($C$5,8,0),1,1)) -> 91.356003 | H57: 2.708769438e+10 | I57: 1.464094255e+11 | J57: 1625246000 | K57: 90.08447057 | L57: 7.545271593e+11 | M57: 8868191000 | N57: 85.0824209 | O57: 86.10915075 | P57: 90.1584016 | Q57: 325049200 | R57: 443409550 | S57: =IF($A57>$L$30,NA(),N57-O57) -> -1.026729849 | T57: =IF($A57>$I$30,NA(),K57/P57) -> 0.9991799874 | U57: 0.7330676572 | V57: -0.752045252 | W57: -0.5696862048 | Y57: 4.488688585e+11 | Z57: 5078584000 | AA57: 88.38464787 | AB57: 9.823412321e+11 | AC57: 11475639000 | AD57: 85.60231218 | AE57: 1.032503044 | AF57: 0.9991331246 | AG57: 1.066062535 | AH57: 94.22356179 | AI57: 80.2976461 | AJ57: 13.92591569 | AK57: -0.3642313933 | AL57: 14.29014709 | BC57: 296507000
A58: 26 | B58: =IF(A58>$A$8,"",OFFSET(InputPriceData!B$15,$A58+$A$11,0,1,1)) -> 2024-05-13 | C58: =IF(A58>$A$8,"",OFFSET(InputPriceData!G$15,CalculationsAndCharts!$A58+$A$11,IF($C$5,8,0),1,1)) -> 289680000 | D58: =IF(A58>$A$8,"",OFFSET(InputPriceData!C$15,CalculationsAndCharts!$A58+$A$11,IF($C$5,8,0),1,1)) -> 90.477997 | E58: =IF(A58>$A$8,"",OFFSET(InputPriceData!D$15,CalculationsAndCharts!$A58+$A$11,IF($C$5,8,0),1,1)) -> 90.998001 | F58: =IF(A58>$A$8,"",OFFSET(InputPriceData!E$15,CalculationsAndCharts!$A58+$A$11,IF($C$5,8,0),1,1)) -> 88.528999 | G58: =IF(A58>$A$8,"",OFFSET(InputPriceData!F$15,CalculationsAndCharts!$A58+$A$11,IF($C$5,8,0),1,1)) -> 90.399002 | H58: 2.61867829e+10 | I58: 1.58924799e+11 | J58: 1766081000 | K58: 89.98726501 | L58: 7.598226143e+11 | M58: 8942137000 | N58: 84.97103257 | O58: 85.91210065 | P58: 89.9980012 | Q58: 353216200 | R58: 447106850 | S58: =IF($A58>$L$30,NA(),N58-O58) -> -0.9410680792 | T58: =IF($A58>$I$30,NA(),K58/P58) -> 0.9998807064 | U58: 0.7900040002 | V58: -0.7433588584 | W58: -0.5214378349 | Y58: 4.56870101e+11 | Z58: 5206718000 | AA58: 87.74627337 | AB58: 9.799313469e+11 | AC58: 11462352000 | AD58: 85.49129767 | AE58: 1.026376669 | AF58: 0.99192959 | AG58: 1.053449067 | AH58: 92.43622985 | AI58: 81.15370768 | AJ58: 11.28252217 | AK58: -3.453180065 | AL58: 14.73570224 | BC58: 289680000
A59: 27 | B59: =IF(A59>$A$8,"",OFFSET(InputPriceData!B$15,$A59+$A$11,0,1,1)) -> 2024-05-10 | C59: =IF(A59>$A$8,"",OFFSET(InputPriceData!G$15,CalculationsAndCharts!$A59+$A$11,IF($C$5,8,0),1,1)) -> 335325000 | D59: =IF(A59>$A$8,"",OFFSET(InputPriceData!C$15,CalculationsAndCharts!$A59+$A$11,IF($C$5,8,0),1,1)) -> 90.305 | E59: =IF(A59>$A$8,"",OFFSET(InputPriceData!D$15,CalculationsAndCharts!$A59+$A$11,IF($C$5,8,0),1,1)) -> 91.401001 | F59: =IF(A59>$A$8,"",OFFSET(InputPriceData!E$15,CalculationsAndCharts!$A59+$A$11,IF($C$5,8,0),1,1)) -> 89.226997 | G59: =IF(A59>$A$8,"",OFFSET(InputPriceData!F$15,CalculationsAndCharts!$A59+$A$11,IF($C$5,8,0),1,1)) -> 89.877998 | H59: 3.013833968e+10 | I59: 1.674013601e+11 | J59: 1852604000 | K59: 90.36003384 | L59: 7.71740896e+11 | M59: 9095534000 | N59: 84.84833282 | O59: 85.6922005 | P59: 90.3462006 | Q59: 370520800 | R59: 454776700 | S59: =IF($A59>$L$30,NA(),N59-O59) -> -0.8438676793 | T59: =IF($A59>$I$30,NA(),K59/P59) -> 1.000153114 | U59: 0.8147312736 | V59: -0.6876306586 | W59: -0.4755842321 | Y59: 4.714945159e+11 | Z59: 5429246000 | AA59: 86.84346149 | AB59: 9.889194266e+11 | AC59: 11572350000 | AD59: 85.45536789 | AE59: 1.016243492 | AF59: 0.9851724863 | AG59: 1.032750835 | AH59: 89.6876574 | AI59: 82.74538733 | AJ59: 6.942270069 | AK59: -6.359642028 | AL59: 13.3019121 | BC59: 335325000
A60: 28 | B60: =IF(A60>$A$8,"",OFFSET(InputPriceData!B$15,$A60+$A$11,0,1,1)) -> 2024-05-09 | C60: =IF(A60>$A$8,"",OFFSET(InputPriceData!G$15,CalculationsAndCharts!$A60+$A$11,IF($C$5,8,0),1,1)) -> 378013000 | D60: =IF(A60>$A$8,"",OFFSET(InputPriceData!C$15,CalculationsAndCharts!$A60+$A$11,IF($C$5,8,0),1,1)) -> 90.528999 | E60: =IF(A60>$A$8,"",OFFSET(InputPriceData!D$15,CalculationsAndCharts!$A60+$A$11,IF($C$5,8,0),1,1)) -> 91.071999 | F60: =IF(A60>$A$8,"",OFFSET(InputPriceData!E$15,CalculationsAndCharts!$A60+$A$11,IF($C$5,8,0),1,1)) -> 88.231003 | G60: =IF(A60>$A$8,"",OFFSET(InputPriceData!F$15,CalculationsAndCharts!$A60+$A$11,IF($C$5,8,0),1,1)) -> 88.747002 | H60: 3.354752047e+10 | I60: 1.726313199e+11 | J60: 1915620000 | K60: 90.11772684 | L60: 7.792407808e+11 | M60: 9187014000 | N60: 84.81980987 | O60: 85.60760045 | P60: 90.1284012 | Q60: 383124000 | R60: 459350700 | S60: =IF($A60>$L$30,NA(),N60-O60) -> -0.7877905766 | T60: =IF($A60>$I$30,NA(),K60/P60) -> 0.999881565 | U60: 0.8340555484 | V60: -0.6569832823 | W60: -0.4352252443 | Y60: 4.775035234e+11 | Z60: 5532480000 | AA60: 86.3091278 | AB60: 9.961467548e+11 | AC60: 11671990000 | AD60: 85.34506582 | AE60: 1.011296048 | AF60: 0.9794824385 | AG60: 1.022719697 | AH60: 88.27004505 | AI60: 83.44912693 | AJ60: 4.820918122 | AK60: -8.816649211 | AL60: 13.63756733 | BD60: 378013000
A61: 29 | B61: =IF(A61>$A$8,"",OFFSET(InputPriceData!B$15,$A61+$A$11,0,1,1)) -> 2024-05-08 | C61: =IF(A61>$A$8,"",OFFSET(InputPriceData!G$15,CalculationsAndCharts!$A61+$A$11,IF($C$5,8,0),1,1)) -> 325721000 | D61: =IF(A61>$A$8,"",OFFSET(InputPriceData!C$15,CalculationsAndCharts!$A61+$A$11,IF($C$5,8,0),1,1)) -> 89.483002 | E61: =IF(A61>$A$8,"",OFFSET(InputPriceData!D$15,CalculationsAndCharts!$A61+$A$11,IF($C$5,8,0),1,1)) -> 91.194 | F61: =IF(A61>$A$8,"",OFFSET(InputPriceData!E$15,CalculationsAndCharts!$A61+$A$11,IF($C$5,8,0),1,1)) -> 89.419998 | G61: =IF(A61>$A$8,"",OFFSET(InputPriceData!F$15,CalculationsAndCharts!$A61+$A$11,IF($C$5,8,0),1,1)) -> 90.412003 | H61: 2.944908803e+10 | I61: 1.715138725e+11 | J61: 1915505000 | K61: 89.53976756 | L61: 7.848064774e+11 | M61: 9240638000 | N61: 84.92990175 | O61: 85.7010502 | P61: 89.542401 | Q61: 383101000 | R61: 462031900 | S61: =IF($A61>$L$30,NA(),N61-O61) -> -0.7711484535 | T61: =IF($A61>$I$30,NA(),K61/P61) -> 0.9999705901 | U61: 0.8291656918 | V61: -0.639391036 | W61: -0.3977756537 | Y61: 4.913758453e+11 | Z61: 5750808000 | AA61: 85.44466192 | AB61: 9.955218738e+11 | AC61: 11664044000 | AD61: 85.34963292 | AE61: 1.001113408 | AF61: 0.9741308793 | AG61: 1.002228057 | AH61: 85.63503746 | AI61: 85.15989187 | AJ61: 0.4751455892 | AK61: -11.13291953 | AL61: 11.60806512 | BD61: 325721000
A62: 30 | B62: =IF(A62>$A$8,"",OFFSET(InputPriceData!B$15,$A62+$A$11,0,1,1)) -> 2024-05-07 | C62: =IF(A62>$A$8,"",OFFSET(InputPriceData!G$15,CalculationsAndCharts!$A62+$A$11,IF($C$5,8,0),1,1)) -> 437342000 | D62: =IF(A62>$A$8,"",OFFSET(InputPriceData!C$15,CalculationsAndCharts!$A62+$A$11,IF($C$5,8,0),1,1)) -> 91.098 | E62: =IF(A62>$A$8,"",OFFSET(InputPriceData!D$15,CalculationsAndCharts!$A62+$A$11,IF($C$5,8,0),1,1)) -> 91.780998 | F62: =IF(A62>$A$8,"",OFFSET(InputPriceData!E$15,CalculationsAndCharts!$A62+$A$11,IF($C$5,8,0),1,1)) -> 89.011002 | G62: =IF(A62>$A$8,"",OFFSET(InputPriceData!F$15,CalculationsAndCharts!$A62+$A$11,IF($C$5,8,0),1,1)) -> 90.554001 | H62: 3.960306791e+10 | I62: 1.885563678e+11 | J62: 2149647000 | K62: 87.71503778 | L62: 7.92952058e+11 | M62: 9346846000 | N62: 84.83632426 | O62: 85.5324001 | P62: 88.0682004 | Q62: 429929400 | R62: 467342300 | S62: =IF($A62>$L$30,NA(),N62-O62) -> -0.6960758417 | T62: =IF($A62>$I$30,NA(),K62/P62) -> 0.9959898963 | U62: 0.9199454019 | V62: -0.6377838929 | W62: -0.3603715502 | Y62: 5.286168423e+11 | Z62: 6300285000 | AA62: 83.90363964 | AB62: 1.004811228e+12 | AC62: 11771387000 | AD62: 85.36047859 | AE62: 0.9829330977 | AF62: 0.9695131753 | AG62: 0.9661574746 | AH62: 81.06412859 | AI62: 88.35048202 | AJ62: -7.286353439 | AK62: -13.141875 | AL62: 5.855521559 | BD62: 437342000
A63: 31 | B63: =IF(A63>$A$8,"",OFFSET(InputPriceData!B$15,$A63+$A$11,0,1,1)) -> 2024-05-06 | C63: =IF(A63>$A$8,"",OFFSET(InputPriceData!G$15,CalculationsAndCharts!$A63+$A$11,IF($C$5,8,0),1,1)) -> 376203000 | D63: =IF(A63>$A$8,"",OFFSET(InputPriceData!C$15,CalculationsAndCharts!$A63+$A$11,IF($C$5,8,0),1,1)) -> 89.389999 | E63: =IF(A63>$A$8,"",OFFSET(InputPriceData!D$15,CalculationsAndCharts!$A63+$A$11,IF($C$5,8,0),1,1)) -> 92.220001 | F63: =IF(A63>$A$8,"",OFFSET(InputPriceData!E$15,CalculationsAndCharts!$A63+$A$11,IF($C$5,8,0),1,1)) -> 89.055 | G63: =IF(A63>$A$8,"",OFFSET(InputPriceData!F$15,CalculationsAndCharts!$A63+$A$11,IF($C$5,8,0),1,1)) -> 92.139999 | H63: 3.466334404e+10 | I63: 1.803784849e+11 | J63: 2076014000 | K63: 86.88693089 | L63: 7.963287388e+11 | M63: 9413051000 | N63: 84.59836654 | O63: 85.27239985 | P63: 87.2378002 | Q63: 415202800 | R63: 470652550 | S63: =IF($A63>$L$30,NA(),N63-O63) -> -0.674033309 | T63: =IF($A63>$I$30,NA(),K63/P63) -> 0.9959780128 | U63: 0.8821853828 | V63: -0.5922307694 | W63: -0.3229769517 | Y63: 5.26883725e+11 | Z63: 6310203000 | AA63: 83.49711173 | AB63: 1.006092086e+12 | AC63: 11786486000 | AD63: 85.35979984 | AE63: 0.9781783919 | AF63: 0.9668598623 | AG63: 0.9568329663 | AH63: 79.8927891 | AI63: 89.21076388 | AJ63: -9.317974785 | AK63: -14.31903342 | AL63: 5.001058631 | BC63: 376203000
A64: 32 | B64: =IF(A64>$A$8,"",OFFSET(InputPriceData!B$15,$A64+$A$11,0,1,1)) -> 2024-05-03 | C64: =IF(A64>$A$8,"",OFFSET(InputPriceData!G$15,CalculationsAndCharts!$A64+$A$11,IF($C$5,8,0),1,1)) -> 398341000 | D64: =IF(A64>$A$8,"",OFFSET(InputPriceData!C$15,CalculationsAndCharts!$A64+$A$11,IF($C$5,8,0),1,1)) -> 87.789001 | E64: =IF(A64>$A$8,"",OFFSET(InputPriceData!D$15,CalculationsAndCharts!$A64+$A$11,IF($C$5,8,0),1,1)) -> 89.280998 | F64: =IF(A64>$A$8,"",OFFSET(InputPriceData!E$15,CalculationsAndCharts!$A64+$A$11,IF($C$5,8,0),1,1)) -> 87.040001 | G64: =IF(A64>$A$8,"",OFFSET(InputPriceData!F$15,CalculationsAndCharts!$A64+$A$11,IF($C$5,8,0),1,1)) -> 88.789001 | H64: 3.536829945e+10 | I64: 1.798500705e+11 | J64: 2088782000 | K64: 86.1028439 | L64: 7.863432038e+11 | M64: 9320068000 | N64: 84.37097281 | O64: 85.02205005 | P64: 86.3612012 | Q64: 417756400 | R64: 466003400 | S64: =IF($A64>$L$30,NA(),N64-O64) -> -0.6510772381 | T64: =IF($A64>$I$30,NA(),K64/P64) -> 0.9970084101 | U64: 0.8964664206 | V64: -0.5819227833 | W64: -0.2906709557 | Y64: 5.338513219e+11 | Z64: 6429400000 | AA64: 83.03283695 | AB64: 1.010752758e+12 | AC64: 11845495000 | AD64: 85.32803048 | AE64: 0.9731015292 | AF64: 0.9650680737 | AG64: 0.9469265862 | AH64: 78.62600084 | AI64: 90.11050247 | AJ64: -11.48450163 | AK64: -15.13222042 | AL64: 3.647718783 | BC64: 398341000
A65: 33 | B65: =IF(A65>$A$8,"",OFFSET(InputPriceData!B$15,$A65+$A$11,0,1,1)) -> 2024-05-02 | C65: =IF(A65>$A$8,"",OFFSET(InputPriceData!G$15,CalculationsAndCharts!$A65+$A$11,IF($C$5,8,0),1,1)) -> 377898000 | D65: =IF(A65>$A$8,"",OFFSET(InputPriceData!C$15,CalculationsAndCharts!$A65+$A$11,IF($C$5,8,0),1,1)) -> 84.448997 | E65: =IF(A65>$A$8,"",OFFSET(InputPriceData!D$15,CalculationsAndCharts!$A65+$A$11,IF($C$5,8,0),1,1)) -> 86.237 | F65: =IF(A65>$A$8,"",OFFSET(InputPriceData!E$15,CalculationsAndCharts!$A65+$A$11,IF($C$5,8,0),1,1)) -> 83.199997 | G65: =IF(A65>$A$8,"",OFFSET(InputPriceData!F$15,CalculationsAndCharts!$A65+$A$11,IF($C$5,8,0),1,1)) -> 85.817001 | H65: 3.243007304e+10 | I65: 1.928247217e+11 | J65: 2241452000 | K65: 86.0267013 | L65: 7.86149767e+11 | M65: 9321405000 | N65: 84.33811931 | O65: 84.98300015 | P65: 86.1504012 | Q65: 448290400 | R65: 466070250 | S65: =IF($A65>$L$30,NA(),N65-O65) -> -0.644880842 | T65: =IF($A65>$I$30,NA(),K65/P65) -> 0.9985641402 | U65: 0.9618515664 | V65: -0.6193890134 | W65: -0.265715103 | Y65: 5.308661718e+11 | Z65: 6401512000 | AA65: 82.92824755 | AB65: 1.028277006e+12 | AC65: 12033221000 | AD65: 85.45318047 | AE65: 0.9704524406 | AF65: 0.96392635 | AG65: 0.9417779395 | AH65: 78.0999941 | AI65: 90.73601843 | AJ65: -12.63602433 | AK65: -15.67074772 | AL65: 3.034723392 | BC65: 377898000
A66: 34 | B66: =IF(A66>$A$8,"",OFFSET(InputPriceData!B$15,$A66+$A$11,0,1,1)) -> 2024-05-01 | C66: =IF(A66>$A$8,"",OFFSET(InputPriceData!G$15,CalculationsAndCharts!$A66+$A$11,IF($C$5,8,0),1,1)) -> 559863000 | D66: =IF(A66>$A$8,"",OFFSET(InputPriceData!C$15,CalculationsAndCharts!$A66+$A$11,IF($C$5,8,0),1,1)) -> 85.077003 | E66: =IF(A66>$A$8,"",OFFSET(InputPriceData!D$15,CalculationsAndCharts!$A66+$A$11,IF($C$5,8,0),1,1)) -> 86 | F66: =IF(A66>$A$8,"",OFFSET(InputPriceData!E$15,CalculationsAndCharts!$A66+$A$11,IF($C$5,8,0),1,1)) -> 81.254997 | G66: =IF(A66>$A$8,"",OFFSET(InputPriceData!F$15,CalculationsAndCharts!$A66+$A$11,IF($C$5,8,0),1,1)) -> 83.041 | H66: 46491583383 | I66: 1.954835855e+11 | J66: 2288195000 | K66: 85.43134892 | L66: 7.910853619e+11 | M66: 9378472000 | N66: 84.35119941 | O66: 84.98740005 | P66: 85.5134018 | Q66: 457639000 | R66: 468923600 | S66: =IF($A66>$L$30,NA(),N66-O66) -> -0.6362006377 | T66: =IF($A66>$I$30,NA(),K66/P66) -> 0.9990404676 | U66: 0.975935099 | V66: -0.6202947678 | W66: -0.2396209571 | Y66: 5.365411634e+11 | Z66: 6466691000 | AA66: 82.96997079 | AB66: 1.043390704e+12 | AC66: 12168971000 | AD66: 85.74190075 | AE66: 0.9676712327 | AF66: 0.9635948438 | AG66: 0.9363876146 | AH66: 77.69205304 | AI66: 91.56667539 | AJ66: -13.87462236 | AK66: -15.86113837 | AL66: 1.986516013 | BD66: 559863000
A67: 35 | B67: =IF(A67>$A$8,"",OFFSET(InputPriceData!B$15,$A67+$A$11,0,1,1)) -> 2024-04-30 | C67: =IF(A67>$A$8,"",OFFSET(InputPriceData!G$15,CalculationsAndCharts!$A67+$A$11,IF($C$5,8,0),1,1)) -> 363709000 | D67: =IF(A67>$A$8,"",OFFSET(InputPriceData!C$15,CalculationsAndCharts!$A67+$A$11,IF($C$5,8,0),1,1)) -> 87.239998 | E67: =IF(A67>$A$8,"",OFFSET(InputPriceData!D$15,CalculationsAndCharts!$A67+$A$11,IF($C$5,8,0),1,1)) -> 88.819 | F67: =IF(A67>$A$8,"",OFFSET(InputPriceData!E$15,CalculationsAndCharts!$A67+$A$11,IF($C$5,8,0),1,1)) -> 86.300003 | G67: =IF(A67>$A$8,"",OFFSET(InputPriceData!F$15,CalculationsAndCharts!$A67+$A$11,IF($C$5,8,0),1,1)) -> 86.402 | H67: 31425185018 | I67: 1.898031999e+11 | J67: 2240540000 | K67: 84.71314947 | L67: 7.775164179e+11 | M67: 9188676000 | N67: 84.61680638 | O67: 85.2835499 | P67: 84.8406022 | Q67: 448108000 | R67: 459433800 | S67: =IF($A67>$L$30,NA(),N67-O67) -> -0.6667435234 | T67: =IF($A67>$I$30,NA(),K67/P67) -> 0.9984977389 | U67: 0.9753483527 | V67: -0.649330266 | W67: -0.2157779018 | Y67: 5.276878045e+11 | Z67: 6333633000 | AA67: 83.3151849 | AB67: 1.049353144e+12 | AC67: 12161244000 | AD67: 86.28666147 | AE67: 0.9655627357 | AF67: 0.9646422381 | AG67: 0.9323113965 | AH67: 77.67569638 | AI67: 92.55133187 | AJ67: -14.87563549 | AK67: -15.45350458 | AL67: 0.5778690869 | BD67: 363709000
A68: 36 | B68: =IF(A68>$A$8,"",OFFSET(InputPriceData!B$15,$A68+$A$11,0,1,1)) -> 2024-04-29 | C68: =IF(A68>$A$8,"",OFFSET(InputPriceData!G$15,CalculationsAndCharts!$A68+$A$11,IF($C$5,8,0),1,1)) -> 388971000 | D68: =IF(A68>$A$8,"",OFFSET(InputPriceData!C$15,CalculationsAndCharts!$A68+$A$11,IF($C$5,8,0),1,1)) -> 87.595001 | E68: =IF(A68>$A$8,"",OFFSET(InputPriceData!D$15,CalculationsAndCharts!$A68+$A$11,IF($C$5,8,0),1,1)) -> 87.991997 | F68: =IF(A68>$A$8,"",OFFSET(InputPriceData!E$15,CalculationsAndCharts!$A68+$A$11,IF($C$5,8,0),1,1)) -> 85.265999 | G68: =IF(A68>$A$8,"",OFFSET(InputPriceData!F$15,CalculationsAndCharts!$A68+$A$11,IF($C$5,8,0),1,1)) -> 87.757004 | H68: 3.41349296e+10 | I68: 1.94525362e+11 | J68: 2315390000 | K68: 84.01408058 | L68: 7.848296752e+11 | M68: 9258031000 | N68: 84.77285021 | O68: 85.43605005 | P68: 84.0448016 | Q68: 463078000 | R68: 462901550 | S68: =IF($A68>$L$30,NA(),N68-O68) -> -0.6631998448 | T68: =IF($A68>$I$30,NA(),K68/P68) -> 0.9996344685 | U68: 1.000381183 | V68: -0.6632101321 | W68: -0.1906009664 | Y68: 5.353758365e+11 | Z68: 6401561000 | AA68: 83.63207607 | AB68: 1.073249107e+12 | AC68: 12384254000 | AD68: 86.66239463 | AE68: 0.9650330622 | AF68: 0.9661445733 | AG68: 0.9312888112 | AH68: 77.8856167 | AI68: 93.05641128 | AJ68: -15.17079458 | AK68: -14.83967632 | AL68: -0.3311182565 | BC68: 388971000
A69: 37 | B69: =IF(A69>$A$8,"",OFFSET(InputPriceData!B$15,$A69+$A$11,0,1,1)) -> 2024-04-26 | C69: =IF(A69>$A$8,"",OFFSET(InputPriceData!G$15,CalculationsAndCharts!$A69+$A$11,IF($C$5,8,0),1,1)) -> 551011000 | D69: =IF(A69>$A$8,"",OFFSET(InputPriceData!C$15,CalculationsAndCharts!$A69+$A$11,IF($C$5,8,0),1,1)) -> 83.818001 | E69: =IF(A69>$A$8,"",OFFSET(InputPriceData!D$15,CalculationsAndCharts!$A69+$A$11,IF($C$5,8,0),1,1)) -> 88.331001 | F69: =IF(A69>$A$8,"",OFFSET(InputPriceData!E$15,CalculationsAndCharts!$A69+$A$11,IF($C$5,8,0),1,1)) -> 83.387001 | G69: =IF(A69>$A$8,"",OFFSET(InputPriceData!F$15,CalculationsAndCharts!$A69+$A$11,IF($C$5,8,0),1,1)) -> 87.735001 | H69: 4.834295064e+10 | I69: 2.078102749e+11 | J69: 2522760000 | K69: 82.37417546 | L69: 7.915786712e+11 | M69: 9321501000 | N69: 84.91965738 | O69: 85.5663498 | P69: 82.3970004 | Q69: 504552000 | R69: 466075050 | S69: =IF($A69>$L$30,NA(),N69-O69) -> -0.6466924201 | T69: =IF($A69>$I$30,NA(),K69/P69) -> 0.9997229882 | U69: 1.082555267 | V69: -0.6998863547 | W69: -0.1653840504 | Y69: 5.388355756e+11 | Z69: 6444519000 | AA69: 83.61144961 | AB69: 1.083036991e+12 | AC69: 12475655000 | AD69: 86.81203437 | AE69: 0.9631320152 | AF69: 0.9683663497 | AG69: 0.9276232787 | AH69: 77.55992702 | AI69: 93.58544181 | AJ69: -16.02551479 | AK69: -13.89768319 | AL69: -2.127831602 | BC69: 551011000
A70: 38 | B70: =IF(A70>$A$8,"",OFFSET(InputPriceData!B$15,$A70+$A$11,0,1,1)) -> 2024-04-25 | C70: =IF(A70>$A$8,"",OFFSET(InputPriceData!G$15,CalculationsAndCharts!$A70+$A$11,IF($C$5,8,0),1,1)) -> 424641000 | D70: =IF(A70>$A$8,"",OFFSET(InputPriceData!C$15,CalculationsAndCharts!$A70+$A$11,IF($C$5,8,0),1,1)) -> 78.867996 | E70: =IF(A70>$A$8,"",OFFSET(InputPriceData!D$15,CalculationsAndCharts!$A70+$A$11,IF($C$5,8,0),1,1)) -> 83.322998 | F70: =IF(A70>$A$8,"",OFFSET(InputPriceData!E$15,CalculationsAndCharts!$A70+$A$11,IF($C$5,8,0),1,1)) -> 78.223 | G70: =IF(A70>$A$8,"",OFFSET(InputPriceData!F$15,CalculationsAndCharts!$A70+$A$11,IF($C$5,8,0),1,1)) -> 82.632004 | H70: 3.508893681e+10 | I70: 2.261574092e+11 | J70: 2846947000 | K70: 79.43857375 | L70: 7.825597373e+11 | M70: 9205702000 | N70: 85.00815444 | O70: 85.6973999 | P70: 80.0899996 | Q70: 569389400 | R70: 460285100 | S70: =IF($A70>$L$30,NA(),N70-O70) -> -0.6892454618 | T70: =IF($A70>$I$30,NA(),K70/P70) -> 0.9918663272 | U70: 1.23703635 | V70: -0.8456867444 | W70: -0.1349051016 | Y70: 5.334723736e+11 | Z70: 6397055000 | AA70: 83.39343238 | AB70: 1.077987922e+12 | AC70: 12403707000 | AD70: 86.90852843 | AE70: 0.9595540724 | AF70: 0.9712587241 | AG70: 0.9207440179 | AH70: 76.784004 | AI70: 94.38945758 | AJ70: -17.60545358 | AK70: -12.65469572 | AL70: -4.950757859 | BC70: 424641000
A71: 39 | B71: =IF(A71>$A$8,"",OFFSET(InputPriceData!B$15,$A71+$A$11,0,1,1)) -> 2024-04-24 | C71: =IF(A71>$A$8,"",OFFSET(InputPriceData!G$15,CalculationsAndCharts!$A71+$A$11,IF($C$5,8,0),1,1)) -> 512208000 | D71: =IF(A71>$A$8,"",OFFSET(InputPriceData!C$15,CalculationsAndCharts!$A71+$A$11,IF($C$5,8,0),1,1)) -> 83.949997 | E71: =IF(A71>$A$8,"",OFFSET(InputPriceData!D$15,CalculationsAndCharts!$A71+$A$11,IF($C$5,8,0),1,1)) -> 84.082001 | F71: =IF(A71>$A$8,"",OFFSET(InputPriceData!E$15,CalculationsAndCharts!$A71+$A$11,IF($C$5,8,0),1,1)) -> 79.182999 | G71: =IF(A71>$A$8,"",OFFSET(InputPriceData!F$15,CalculationsAndCharts!$A71+$A$11,IF($C$5,8,0),1,1)) -> 79.677002 | H71: 4.081119784e+10 | I71: 2.28938423e+11 | J71: 2869566000 | K71: 79.78154988 | L71: 8.003633473e+11 | M71: 9367128000 | N71: 85.44383586 | O71: 86.0782997 | P71: 80.4977984 | Q71: 573913200 | R71: 468356400 | S71: =IF($A71>$L$30,NA(),N71-O71) -> -0.6344638447 | T71: =IF($A71>$I$30,NA(),K71/P71) -> 0.9911022595 | U71: 1.225377085 | V71: -0.7705398417 | W71: -0.09266615845 | Y71: 5.230612459e+11 | Z71: 6255634000 | AA71: 83.61442595 | AB71: 1.102989731e+12 | AC71: 12651237000 | AD71: 87.18433863 | AE71: 0.9590532803 | AF71: 0.9749409235 | AG71: 0.9197831945 | AH71: 76.90714381 | AI71: 94.78792301 | AJ71: -17.8807792 | AK71: -11.06199167 | AL71: -6.81878753 | BD71: 512208000
A72: 40 | B72: =IF(A72>$A$8,"",OFFSET(InputPriceData!B$15,$A72+$A$11,0,1,1)) -> 2024-04-23 | C72: =IF(A72>$A$8,"",OFFSET(InputPriceData!G$15,CalculationsAndCharts!$A72+$A$11,IF($C$5,8,0),1,1)) -> 438559000 | D72: =IF(A72>$A$8,"",OFFSET(InputPriceData!C$15,CalculationsAndCharts!$A72+$A$11,IF($C$5,8,0),1,1)) -> 80.768997 | E72: =IF(A72>$A$8,"",OFFSET(InputPriceData!D$15,CalculationsAndCharts!$A72+$A$11,IF($C$5,8,0),1,1)) -> 82.768997 | F72: =IF(A72>$A$8,"",OFFSET(InputPriceData!E$15,CalculationsAndCharts!$A72+$A$11,IF($C$5,8,0),1,1)) -> 80.264 | G72: =IF(A72>$A$8,"",OFFSET(InputPriceData!F$15,CalculationsAndCharts!$A72+$A$11,IF($C$5,8,0),1,1)) -> 82.422997 | H72: 3.614734714e+10 | I72: 2.297581661e+11 | J72: 2852758000 | K72: 80.53896128 | L72: 8.070959204e+11 | M72: 9368568000 | N72: 86.14933685 | O72: 86.72249945 | P72: 81.3693988 | Q72: 570551600 | R72: 468428400 | S72: =IF($A72>$L$30,NA(),N72-O72) -> -0.5731626022 | T72: =IF($A72>$I$30,NA(),K72/P72) -> 0.9897942282 | U72: 1.218012401 | V72: -0.6909943122 | W72: -0.0456601127 | Y72: 5.174249107e+11 | Z72: 6143104000 | AA72: 84.22857739 | AB72: 1.121352806e+12 | AC72: 12808005000 | AD72: 87.55093446 | AE72: 0.9620522946 | AF72: 0.9794537574 | AG72: 0.9255446176 | AH72: 77.95730645 | AI72: 94.59396424 | AJ72: -16.63665779 | AK72: -9.091715618 | AL72: -7.544942168 | BC72: 438559000
A73: 41 | B73: =IF(A73>$A$8,"",OFFSET(InputPriceData!B$15,$A73+$A$11,0,1,1)) -> 2024-04-22 | C73: =IF(A73>$A$8,"",OFFSET(InputPriceData!G$15,CalculationsAndCharts!$A73+$A$11,IF($C$5,8,0),1,1)) -> 596341000 | D73: =IF(A73>$A$8,"",OFFSET(InputPriceData!C$15,CalculationsAndCharts!$A73+$A$11,IF($C$5,8,0),1,1)) -> 78.103996 | E73: =IF(A73>$A$8,"",OFFSET(InputPriceData!D$15,CalculationsAndCharts!$A73+$A$11,IF($C$5,8,0),1,1)) -> 80.072998 | F73: =IF(A73>$A$8,"",OFFSET(InputPriceData!E$15,CalculationsAndCharts!$A73+$A$11,IF($C$5,8,0),1,1)) -> 76.400002 | G73: =IF(A73>$A$8,"",OFFSET(InputPriceData!F$15,CalculationsAndCharts!$A73+$A$11,IF($C$5,8,0),1,1)) -> 79.517998 | H73: 4.741984245e+10 | I73: 2.259939683e+11 | J73: 2784652000 | K73: 81.15698778 | L73: 8.23402597e+11 | M73: 9482145000 | N73: 86.83716575 | O73: 87.35144955 | P73: 82.3677996 | Q73: 556930400 | R73: 474107250 | S73: =IF($A73>$L$30,NA(),N73-O73) -> -0.514283804 | T73: =IF($A73>$I$30,NA(),K73/P73) -> 0.9852999373 | U73: 1.174692857 | V73: -0.5952448281 | W73: 0.007026998584 | Y73: 5.186432314e+11 | Z73: 6139510000 | AA73: 84.47632326 | AB73: 1.141604366e+12 | AC73: 13011532000 | AD73: 87.73789019 | AE73: 0.962826016 | AF73: 0.9843178788 | AG73: 0.927033937 | AH73: 78.31241854 | AI73: 94.64366587 | AJ73: -16.33124734 | AK73: -6.953714453 | AL73: -9.377532883 | BC73: 596341000
A74: 42 | B74: =IF(A74>$A$8,"",OFFSET(InputPriceData!B$15,$A74+$A$11,0,1,1)) -> 2024-04-19 | C74: =IF(A74>$A$8,"",OFFSET(InputPriceData!G$15,CalculationsAndCharts!$A74+$A$11,IF($C$5,8,0),1,1)) -> 875198000 | D74: =IF(A74>$A$8,"",OFFSET(InputPriceData!C$15,CalculationsAndCharts!$A74+$A$11,IF($C$5,8,0),1,1)) -> 83.150002 | E74: =IF(A74>$A$8,"",OFFSET(InputPriceData!D$15,CalculationsAndCharts!$A74+$A$11,IF($C$5,8,0),1,1)) -> 84.323997 | F74: =IF(A74>$A$8,"",OFFSET(InputPriceData!E$15,CalculationsAndCharts!$A74+$A$11,IF($C$5,8,0),1,1)) -> 75.606003 | G74: =IF(A74>$A$8,"",OFFSET(InputPriceData!F$15,CalculationsAndCharts!$A74+$A$11,IF($C$5,8,0),1,1)) -> 76.199997 | H74: 6.669008497e+10 | I74: 2.166791905e+11 | J74: 2631388000 | K74: 82.34406728 | L74: 8.313039029e+11 | M74: 9472523000 | N74: 87.75950219 | O74: 88.0899997 | P74: 83.6643998 | Q74: 526277600 | R74: 473626150 | S74: =IF($A74>$L$30,NA(),N74-O74) -> -0.3304975141 | T74: =IF($A74>$I$30,NA(),K74/P74) -> 0.9842187057 | U74: 1.111166687 | V74: -0.3614423395 | W74: 0.0601596843 | Y74: 5.041460285e+11 | Z74: 5913236000 | AA74: 85.25721423 | AB74: 1.147154778e+12 | AC74: 13017509000 | AD74: 88.12398575 | AE74: 0.967468885 | AF74: 0.9896356696 | AG74: 0.9359960435 | AH74: 79.8004152 | AI74: 94.1499554 | AJ74: -14.3495402 | AK74: -4.60905146 | AL74: -9.740488742 | BD74: 875198000
A75: 43 | B75: =IF(A75>$A$8,"",OFFSET(InputPriceData!B$15,$A75+$A$11,0,1,1)) -> 2024-04-18 | C75: =IF(A75>$A$8,"",OFFSET(InputPriceData!G$15,CalculationsAndCharts!$A75+$A$11,IF($C$5,8,0),1,1)) -> 447260000 | D75: =IF(A75>$A$8,"",OFFSET(InputPriceData!C$15,CalculationsAndCharts!$A75+$A$11,IF($C$5,8,0),1,1)) -> 84.970001 | E75: =IF(A75>$A$8,"",OFFSET(InputPriceData!D$15,CalculationsAndCharts!$A75+$A$11,IF($C$5,8,0),1,1)) -> 86.190002 | F75: =IF(A75>$A$8,"",OFFSET(InputPriceData!E$15,CalculationsAndCharts!$A75+$A$11,IF($C$5,8,0),1,1)) -> 82.402 | G75: =IF(A75>$A$8,"",OFFSET(InputPriceData!F$15,CalculationsAndCharts!$A75+$A$11,IF($C$5,8,0),1,1)) -> 84.670998 | H75: 3.786995057e+10 | I75: 1.8762733e+11 | J75: 2182995000 | K75: 85.94950057 | L75: 8.085366308e+11 | M75: 9077697000 | N75: 89.06847528 | O75: 88.85174975 | P75: 86.0615998 | Q75: 436599000 | R75: 453884850 | S75: =IF($A75>$L$30,NA(),N75-O75) -> 0.2167255262 | T75: =IF($A75>$I$30,NA(),K75/P75) -> 0.9986974536 | U75: 0.9619157811 | V75: 0.2082001598 | W75: 0.09449395441 | Y75: 4.761943857e+11 | Z75: 5471102000 | AA75: 87.03811146 | AB75: 1.138243376e+12 | AC75: 12778024000 | AD75: 89.07819986 | AE75: 0.9770977815 | AF75: 0.9950804149 | AG75: 0.9547200746 | AH75: 83.09703227 | AI75: 93.30295051 | AJ75: -10.20591824 | AK75: -2.198335962 | AL75: -8.007582277 | BC75: 447260000
A76: 44 | B76: =IF(A76>$A$8,"",OFFSET(InputPriceData!B$15,$A76+$A$11,0,1,1)) -> 2024-04-17 | C76: =IF(A76>$A$8,"",OFFSET(InputPriceData!G$15,CalculationsAndCharts!$A76+$A$11,IF($C$5,8,0),1,1)) -> 495400000 | D76: =IF(A76>$A$8,"",OFFSET(InputPriceData!C$15,CalculationsAndCharts!$A76+$A$11,IF($C$5,8,0),1,1)) -> 88.339996 | E76: =IF(A76>$A$8,"",OFFSET(InputPriceData!D$15,CalculationsAndCharts!$A76+$A$11,IF($C$5,8,0),1,1)) -> 88.775002 | F76: =IF(A76>$A$8,"",OFFSET(InputPriceData!E$15,CalculationsAndCharts!$A76+$A$11,IF($C$5,8,0),1,1)) -> 83.949997 | G76: =IF(A76>$A$8,"",OFFSET(InputPriceData!F$15,CalculationsAndCharts!$A76+$A$11,IF($C$5,8,0),1,1)) -> 84.035004 | H76: 4.163094098e+10 | I76: 1.888705965e+11 | J76: 2167372000 | K76: 87.14267626 | L76: 8.139605626e+11 | M76: 9109500000 | N76: 89.35293514 | O76: 89.13679995 | P76: 87.2505996 | Q76: 433474400 | R76: 455475000 | S76: =IF($A76>$L$30,NA(),N76-O76) -> 0.2161351879 | T76: =IF($A76>$I$30,NA(),K76/P76) -> 0.9987630648 | U76: 0.9516974587 | V76: 0.2054408772 | W76: 0.09603912694 | Y76: 4.792083608e+11 | Z76: 5476283000 | AA76: 87.50613523 | AB76: 1.161778204e+12 | AC76: 12998839000 | AD76: 89.37553607 | AE76: 0.9790837524 | AF76: 0.9998755514 | AG76: 0.9586049942 | AH76: 83.88381826 | AI76: 93.23499941 | AJ76: -9.351181156 | AK76: -0.0638896019 | AL76: -9.287291554 | BD76: 495400000
A77: 45 | B77: =IF(A77>$A$8,"",OFFSET(InputPriceData!B$15,$A77+$A$11,0,1,1)) -> 2024-04-16 | C77: =IF(A77>$A$8,"",OFFSET(InputPriceData!G$15,CalculationsAndCharts!$A77+$A$11,IF($C$5,8,0),1,1)) -> 370453000 | D77: =IF(A77>$A$8,"",OFFSET(InputPriceData!C$15,CalculationsAndCharts!$A77+$A$11,IF($C$5,8,0),1,1)) -> 86.432999 | E77: =IF(A77>$A$8,"",OFFSET(InputPriceData!D$15,CalculationsAndCharts!$A77+$A$11,IF($C$5,8,0),1,1)) -> 88.117996 | F77: =IF(A77>$A$8,"",OFFSET(InputPriceData!E$15,CalculationsAndCharts!$A77+$A$11,IF($C$5,8,0),1,1)) -> 86.064003 | G77: =IF(A77>$A$8,"",OFFSET(InputPriceData!F$15,CalculationsAndCharts!$A77+$A$11,IF($C$5,8,0),1,1)) -> 87.415001 | H77: 3.238314937e+10 | I77: 1.848343242e+11 | J77: 2103901000 | K77: 87.85314718 | L77: 8.324203667e+11 | M77: 9286271000 | N77: 89.63989601 | O77: 89.4049499 | P77: 87.851399 | Q77: 420780200 | R77: 464313550 | S77: =IF($A77>$L$30,NA(),N77-O77) -> 0.2349461068 | T77: =IF($A77>$I$30,NA(),K77/P77) -> 1.000019899 | U77: 0.9062414827 | V77: 0.2129221451 | W77: 0.09709878488 | Y77: 4.769014366e+11 | Z77: 5416095000 | AA77: 88.05263508 | AB77: 1.178333258e+12 | AC77: 13181803000 | AD77: 89.39090184 | AE77: 0.9850290495 | AF77: 1.004723597 | AG77: 0.9702822283 | AH77: 85.43590697 | AI77: 92.1287634 | AJ77: -6.692856425 | AK77: 2.093841182 | AL77: -8.786697607 | BC77: 370453000
A78: 46 | B78: =IF(A78>$A$8,"",OFFSET(InputPriceData!B$15,$A78+$A$11,0,1,1)) -> 2024-04-15 | C78: =IF(A78>$A$8,"",OFFSET(InputPriceData!G$15,CalculationsAndCharts!$A78+$A$11,IF($C$5,8,0),1,1)) -> 443077000 | D78: =IF(A78>$A$8,"",OFFSET(InputPriceData!C$15,CalculationsAndCharts!$A78+$A$11,IF($C$5,8,0),1,1)) -> 89.098 | E78: =IF(A78>$A$8,"",OFFSET(InputPriceData!D$15,CalculationsAndCharts!$A78+$A$11,IF($C$5,8,0),1,1)) -> 90.612999 | F78: =IF(A78>$A$8,"",OFFSET(InputPriceData!E$15,CalculationsAndCharts!$A78+$A$11,IF($C$5,8,0),1,1)) -> 85.929001 | G78: =IF(A78>$A$8,"",OFFSET(InputPriceData!F$15,CalculationsAndCharts!$A78+$A$11,IF($C$5,8,0),1,1)) -> 86.000999 | H78: 3.810506463e+10 | I78: 1.954309235e+11 | J78: 2236995000 | K78: 87.3631472 | L78: 8.592114908e+11 | M78: 9584794000 | N78: 89.64318803 | O78: 89.45694995 | P78: 87.439198 | Q78: 447399000 | R78: 479239700 | S78: =IF($A78>$L$30,NA(),N78-O78) -> 0.1862380813 | T78: =IF($A78>$I$30,NA(),K78/P78) -> 0.9991302436 | U78: 0.9335599701 | V78: 0.173713198 | W78: 0.09297315763 | Y78: 4.97410834e+11 | Z78: 5631709000 | AA78: 88.32324858 | AB78: 1.24593063e+12 | AC78: 13953619000 | AD78: 89.29085922 | AE78: 0.9891633853 | AF78: 1.009196147 | AG78: 0.9784442028 | AH78: 86.41937055 | AI78: 91.25799812 | AJ78: -4.838627572 | AK78: 4.080124278 | AL78: -8.918751851 | BD78: 443077000
A79: 47 | B79: =IF(A79>$A$8,"",OFFSET(InputPriceData!B$15,$A79+$A$11,0,1,1)) -> 2024-04-12 | C79: =IF(A79>$A$8,"",OFFSET(InputPriceData!G$15,CalculationsAndCharts!$A79+$A$11,IF($C$5,8,0),1,1)) -> 426805000 | D79: =IF(A79>$A$8,"",OFFSET(InputPriceData!C$15,CalculationsAndCharts!$A79+$A$11,IF($C$5,8,0),1,1)) -> 89.698997 | E79: =IF(A79>$A$8,"",OFFSET(InputPriceData!D$15,CalculationsAndCharts!$A79+$A$11,IF($C$5,8,0),1,1)) -> 90.175003 | F79: =IF(A79>$A$8,"",OFFSET(InputPriceData!E$15,CalculationsAndCharts!$A79+$A$11,IF($C$5,8,0),1,1)) -> 87.529999 | G79: =IF(A79>$A$8,"",OFFSET(InputPriceData!F$15,CalculationsAndCharts!$A79+$A$11,IF($C$5,8,0),1,1)) -> 88.185997 | H79: 3.763822445e+10 | I79: 1.820036679e+11 | J79: 2077138000 | K79: 87.62232839 | L79: 8.775053328e+11 | M79: 9783803000 | N79: 89.68959543 | O79: 89.5487499 | P79: 87.6655988 | Q79: 415427600 | R79: 489190150 | S79: =IF($A79>$L$30,NA(),N79-O79) -> 0.1408455311 | T79: =IF($A79>$I$30,NA(),K79/P79) -> 0.9995064151 | U79: 0.849214973 | V79: 0.1195490971 | W79: 0.09586267676 | Y79: 5.068495403e+11 | Z79: 5702280000 | AA79: 88.88541782 | AB79: 1.264179344e+12 | AC79: 14118661000 | AD79: 89.53960607 | AE79: 0.9926938672 | AF79: 1.013458102 | AG79: 0.985441114 | AH79: 87.59134516 | AI79: 90.86246229 | AJ79: -3.271117137 | AK79: 5.965526414 | AL79: -9.236643552 | BD79: 426805000
A80: 48 | B80: =IF(A80>$A$8,"",OFFSET(InputPriceData!B$15,$A80+$A$11,0,1,1)) -> 2024-04-11 | C80: =IF(A80>$A$8,"",OFFSET(InputPriceData!G$15,CalculationsAndCharts!$A80+$A$11,IF($C$5,8,0),1,1)) -> 431637000 | D80: =IF(A80>$A$8,"",OFFSET(InputPriceData!C$15,CalculationsAndCharts!$A80+$A$11,IF($C$5,8,0),1,1)) -> 87.419998 | E80: =IF(A80>$A$8,"",OFFSET(InputPriceData!D$15,CalculationsAndCharts!$A80+$A$11,IF($C$5,8,0),1,1)) -> 90.738998 | F80: =IF(A80>$A$8,"",OFFSET(InputPriceData!E$15,CalculationsAndCharts!$A80+$A$11,IF($C$5,8,0),1,1)) -> 86.926003 | G80: =IF(A80>$A$8,"",OFFSET(InputPriceData!F$15,CalculationsAndCharts!$A80+$A$11,IF($C$5,8,0),1,1)) -> 90.615997 | H80: 3.91132171e+10 | I80: 1.795403061e+11 | J80: 2050011000 | K80: 87.58016719 | L80: 8.928373626e+11 | M80: 9959316000 | N80: 89.64846206 | O80: 89.53665005 | P80: 87.63 | Q80: 410002200 | R80: 497965800 | S80: =IF($A80>$L$30,NA(),N80-O80) -> 0.1118120121 | T80: =IF($A80>$I$30,NA(),K80/P80) -> 0.999431327 | U80: 0.823354134 | V80: 0.09200852982 | W80: 0.1124133852 | Y80: 5.216653396e+11 | Z80: 5827611000 | AA80: 89.51615672 | AB80: 1.278210642e+12 | AC80: 14274376000 | AD80: 89.54581566 | AE80: 0.9996687848 | AF80: 1.018158187 | AG80: 0.9993376792 | AH80: 89.45686831 | AI80: 89.60516302 | AJ80: -0.1482947071 | AK80: 8.032947293 | AL80: -8.181242 | BC80: 431637000
A81: 49 | B81: =IF(A81>$A$8,"",OFFSET(InputPriceData!B$15,$A81+$A$11,0,1,1)) -> 2024-04-10 | C81: =IF(A81>$A$8,"",OFFSET(InputPriceData!G$15,CalculationsAndCharts!$A81+$A$11,IF($C$5,8,0),1,1)) -> 431929000 | D81: =IF(A81>$A$8,"",OFFSET(InputPriceData!C$15,CalculationsAndCharts!$A81+$A$11,IF($C$5,8,0),1,1)) -> 83.926003 | E81: =IF(A81>$A$8,"",OFFSET(InputPriceData!D$15,CalculationsAndCharts!$A81+$A$11,IF($C$5,8,0),1,1)) -> 87.400002 | F81: =IF(A81>$A$8,"",OFFSET(InputPriceData!E$15,CalculationsAndCharts!$A81+$A$11,IF($C$5,8,0),1,1)) -> 83.709 | G81: =IF(A81>$A$8,"",OFFSET(InputPriceData!F$15,CalculationsAndCharts!$A81+$A$11,IF($C$5,8,0),1,1)) -> 87.039001 | H81: 3.759466866e+10 | I81: 1.777927569e+11 | J81: 2053339000 | K81: 86.58714265 | L81: 9.115028286e+11 | M81: 10163392000 | N81: 89.68490329 | O81: 89.5502502 | P81: 86.6878004 | Q81: 410667800 | R81: 508169600 | S81: =IF($A81>$L$30,NA(),N81-O81) -> 0.1346530918 | T81: =IF($A81>$I$30,NA(),K81/P81) -> 0.9988388476 | U81: 0.8081313798 | V81: 0.1086910353 | W81: 0.1351043678 | Y81: 5.378732709e+11 | Z81: 5982693000 | AA81: 89.90487576 | AB81: 1.283853634e+12 | AC81: 14363378000 | AD81: 89.38382282 | AE81: 1.005829387 | AF81: 1.023016819 | AG81: 1.011692757 | AH81: 90.95611159 | AI81: 88.35075889 | AJ81: 2.605352699 | AK81: 10.14980315 | AL81: -7.544450446 | BC81: 431929000
A82: 50 | B82: =IF(A82>$A$8,"",OFFSET(InputPriceData!B$15,$A82+$A$11,0,1,1)) -> 2024-04-09 | C82: =IF(A82>$A$8,"",OFFSET(InputPriceData!G$15,CalculationsAndCharts!$A82+$A$11,IF($C$5,8,0),1,1)) -> 503547000 | D82: =IF(A82>$A$8,"",OFFSET(InputPriceData!C$15,CalculationsAndCharts!$A82+$A$11,IF($C$5,8,0),1,1)) -> 87.442001 | E82: =IF(A82>$A$8,"",OFFSET(InputPriceData!D$15,CalculationsAndCharts!$A82+$A$11,IF($C$5,8,0),1,1)) -> 87.635002 | F82: =IF(A82>$A$8,"",OFFSET(InputPriceData!E$15,CalculationsAndCharts!$A82+$A$11,IF($C$5,8,0),1,1)) -> 83.022003 | G82: =IF(A82>$A$8,"",OFFSET(InputPriceData!F$15,CalculationsAndCharts!$A82+$A$11,IF($C$5,8,0),1,1)) -> 85.353996 | H82: 4.297974862e+10 | I82: 1.731207277e+11 | J82: 1991477000 | K82: 86.93081955 | L82: 9.353129388e+11 | M82: 10399538000 | N82: 89.93793174 | O82: 89.79395025 | P82: 87.0727996 | Q82: 398295400 | R82: 519976900 | S82: =IF($A82>$L$30,NA(),N82-O82) -> 0.1439814913 | T82: =IF($A82>$I$30,NA(),K82/P82) -> 0.9983694098 | U82: 0.7659867198 | V82: 0.1101080759 | W82: 0.1558183517 | Y82: 5.442014151e+11 | Z82: 6031136000 | AA82: 90.23199196 | AB82: 1.298732227e+12 | AC82: 14547065000 | AD82: 89.27795583 | AE82: 1.010686133 | AF82: 1.02792455 | AG82: 1.02148646 | AH82: 92.17075802 | AI82: 87.40003843 | AJ82: 4.770719597 | AK82: 12.25549508 | AL82: -7.484775486 | BD82: 503547000
A83: 51 | B83: =IF(A83>$A$8,"",OFFSET(InputPriceData!B$15,$A83+$A$11,0,1,1)) -> 2024-04-08 | C83: =IF(A83>$A$8,"",OFFSET(InputPriceData!G$15,CalculationsAndCharts!$A83+$A$11,IF($C$5,8,0),1,1)) -> 283220000 | D83: =IF(A83>$A$8,"",OFFSET(InputPriceData!C$15,CalculationsAndCharts!$A83+$A$11,IF($C$5,8,0),1,1)) -> 88.699997 | E83: =IF(A83>$A$8,"",OFFSET(InputPriceData!D$15,CalculationsAndCharts!$A83+$A$11,IF($C$5,8,0),1,1)) -> 88.830002 | F83: =IF(A83>$A$8,"",OFFSET(InputPriceData!E$15,CalculationsAndCharts!$A83+$A$11,IF($C$5,8,0),1,1)) -> 86.732002 | G83: =IF(A83>$A$8,"",OFFSET(InputPriceData!F$15,CalculationsAndCharts!$A83+$A$11,IF($C$5,8,0),1,1)) -> 87.133003 | H83: 2.467780911e+10 | I83: 1.688794213e+11 | J83: 1920994000 | K83: 87.9125189 | L83: 9.505191853e+11 | M83: 10574355000 | N83: 89.8890935 | O83: 89.81495055 | P83: 87.892401 | Q83: 384198800 | R83: 528717750 | S83: =IF($A83>$L$30,NA(),N83-O83) -> 0.07414294593 | T83: =IF($A83>$I$30,NA(),K83/P83) -> 1.000228892 | U83: 0.726661437 | V83: 0.05388915162 | W83: 0.172011098 | Y83: 5.445155488e+11 | Z83: 6006652000 | AA83: 90.65208852 | AB83: 1.295175226e+12 | AC83: 14522653000 | AD83: 89.18310078 | AE83: 1.016471593 | AF83: 1.033010008 | AG83: 1.033214499 | AH83: 93.66305226 | AI83: 86.31615298 | AJ83: 7.346899281 | AK83: 14.4037821 | AL83: -7.056882815 | BD83: 283220000
A84: 52 | B84: =IF(A84>$A$8,"",OFFSET(InputPriceData!B$15,$A84+$A$11,0,1,1)) -> 2024-04-05 | C84: =IF(A84>$A$8,"",OFFSET(InputPriceData!G$15,CalculationsAndCharts!$A84+$A$11,IF($C$5,8,0),1,1)) -> 399678000 | D84: =IF(A84>$A$8,"",OFFSET(InputPriceData!C$15,CalculationsAndCharts!$A84+$A$11,IF($C$5,8,0),1,1)) -> 86.865997 | E84: =IF(A84>$A$8,"",OFFSET(InputPriceData!D$15,CalculationsAndCharts!$A84+$A$11,IF($C$5,8,0),1,1)) -> 88.481003 | F84: =IF(A84>$A$8,"",OFFSET(InputPriceData!E$15,CalculationsAndCharts!$A84+$A$11,IF($C$5,8,0),1,1)) -> 85.926003 | G84: =IF(A84>$A$8,"",OFFSET(InputPriceData!F$15,CalculationsAndCharts!$A84+$A$11,IF($C$5,8,0),1,1)) -> 88.008003 | H84: 3.517486262e+10 | I84: 1.850855378e+11 | J84: 2090215000 | K84: 88.54856455 | L84: 1.025821897e+12 | M84: 11433404000 | N84: 89.72147728 | O84: 89.8347004 | P84: 88.5384002 | Q84: 418043000 | R84: 571670200 | S84: =IF($A84>$L$30,NA(),N84-O84) -> -0.1132231237 | T84: =IF($A84>$I$30,NA(),K84/P84) -> 1.000114802 | U84: 0.7312660342 | V84: -0.0828057298 | W84: 0.1941305277 | Y84: 5.799284848e+11 | Z84: 6395603000 | AA84: 90.67612308 | AB84: 1.310630064e+12 | AC84: 14746722000 | AD84: 88.87602712 | AE84: 1.02025401 | AF84: 1.038371294 | AG84: 1.040918245 | AH84: 94.38643092 | AI84: 85.38233192 | AJ84: 9.004099004 | AK84: 16.63828196 | AL84: -7.634182955 | BC84: 399678000
A85: 53 | B85: =IF(A85>$A$8,"",OFFSET(InputPriceData!B$15,$A85+$A$11,0,1,1)) -> 2024-04-04 | C85: =IF(A85>$A$8,"",OFFSET(InputPriceData!G$15,CalculationsAndCharts!$A85+$A$11,IF($C$5,8,0),1,1)) -> 434965000 | D85: =IF(A85>$A$8,"",OFFSET(InputPriceData!C$15,CalculationsAndCharts!$A85+$A$11,IF($C$5,8,0),1,1)) -> 90.405998 | E85: =IF(A85>$A$8,"",OFFSET(InputPriceData!D$15,CalculationsAndCharts!$A85+$A$11,IF($C$5,8,0),1,1)) -> 90.634003 | F85: =IF(A85>$A$8,"",OFFSET(InputPriceData!E$15,CalculationsAndCharts!$A85+$A$11,IF($C$5,8,0),1,1)) -> 85.879997 | G85: =IF(A85>$A$8,"",OFFSET(InputPriceData!F$15,CalculationsAndCharts!$A85+$A$11,IF($C$5,8,0),1,1)) -> 85.904999 | H85: 3.736566789e+10 | I85: 1.89234692e+11 | J85: 2125749000 | K85: 89.02024275 | L85: 1.047000814e+12 | M85: 11641845000 | N85: 89.93426846 | O85: 90.0677502 | P85: 89.0080002 | Q85: 425149800 | R85: 582092250 | S85: =IF($A85>$L$30,NA(),N85-O85) -> -0.1334817437 | T85: =IF($A85>$I$30,NA(),K85/P85) -> 1.000137544 | U85: 0.7303821688 | V85: -0.09750609505 | W85: 0.2026584295 | Y85: 6.039278956e+11 | Z85: 6664901000 | AA85: 90.61318324 | AB85: 1.305985305e+12 | AC85: 14740154000 | AD85: 88.60051968 | AE85: 1.02271616 | AF85: 1.04371846 | AG85: 1.045948344 | AH85: 94.77670891 | AI85: 84.70831301 | AJ85: 10.0683959 | AK85: 18.83646116 | AL85: -8.76806526 | BD85: 434965000
A86: 54 | B86: =IF(A86>$A$8,"",OFFSET(InputPriceData!B$15,$A86+$A$11,0,1,1)) -> 2024-04-03 | C86: =IF(A86>$A$8,"",OFFSET(InputPriceData!G$15,CalculationsAndCharts!$A86+$A$11,IF($C$5,8,0),1,1)) -> 370067000 | D86: =IF(A86>$A$8,"",OFFSET(InputPriceData!C$15,CalculationsAndCharts!$A86+$A$11,IF($C$5,8,0),1,1)) -> 88.484001 | E86: =IF(A86>$A$8,"",OFFSET(InputPriceData!D$15,CalculationsAndCharts!$A86+$A$11,IF($C$5,8,0),1,1)) -> 90.374001 | F86: =IF(A86>$A$8,"",OFFSET(InputPriceData!E$15,CalculationsAndCharts!$A86+$A$11,IF($C$5,8,0),1,1)) -> 88.400002 | G86: =IF(A86>$A$8,"",OFFSET(InputPriceData!F$15,CalculationsAndCharts!$A86+$A$11,IF($C$5,8,0),1,1)) -> 88.963997 | H86: 3.292263948e+10 | I86: 2.047615709e+11 | J86: 2276851000 | K86: 89.93191512 | L86: 1.061304668e+12 | M86: 11789400000 | N86: 90.02194072 | O86: 90.2075001 | P86: 89.8770004 | Q86: 455370200 | R86: 589470000 | S86: =IF($A86>$L$30,NA(),N86-O86) -> -0.1855593805 | T86: =IF($A86>$I$30,NA(),K86/P86) -> 1.000610999 | U86: 0.772507846 | V86: -0.1434336616 | W86: 0.2100385433 | Y86: 6.229611344e+11 | Z86: 6872022000 | AA86: 90.6517957 | AB86: 1.29944721e+12 | AC86: 14696894000 | AD86: 88.41645114 | AE86: 1.025281998 | AF86: 1.04905994 | AG86: 1.051203176 | AH86: 95.29345554 | AI86: 84.10976409 | AJ86: 11.18369144 | AK86: 21.00225274 | AL86: -9.818561296 | BD86: 370067000
A87: 55 | B87: =IF(A87>$A$8,"",OFFSET(InputPriceData!B$15,$A87+$A$11,0,1,1)) -> 2024-04-02 | C87: =IF(A87>$A$8,"",OFFSET(InputPriceData!G$15,CalculationsAndCharts!$A87+$A$11,IF($C$5,8,0),1,1)) -> 433064000 | D87: =IF(A87>$A$8,"",OFFSET(InputPriceData!C$15,CalculationsAndCharts!$A87+$A$11,IF($C$5,8,0),1,1)) -> 88.447998 | E87: =IF(A87>$A$8,"",OFFSET(InputPriceData!D$15,CalculationsAndCharts!$A87+$A$11,IF($C$5,8,0),1,1)) -> 90.094002 | F87: =IF(A87>$A$8,"",OFFSET(InputPriceData!E$15,CalculationsAndCharts!$A87+$A$11,IF($C$5,8,0),1,1)) -> 87.620003 | G87: =IF(A87>$A$8,"",OFFSET(InputPriceData!F$15,CalculationsAndCharts!$A87+$A$11,IF($C$5,8,0),1,1)) -> 89.452003 | H87: 3.873844223e+10 | I87: 2.193827024e+11 | J87: 2420432000 | K87: 90.63782927 | L87: 1.073138238e+12 | M87: 11939972000 | N87: 89.87778513 | O87: 90.0575001 | P87: 90.5964004 | Q87: 484086400 | R87: 596998600 | S87: =IF($A87>$L$30,NA(),N87-O87) -> -0.1797149699 | T87: =IF($A87>$I$30,NA(),K87/P87) -> 1.00045729 | U87: 0.8108668932 | V87: -0.1457915579 | W87: 0.2141979088 | Y87: 6.430087491e+11 | Z87: 7104273000 | AA87: 90.51014074 | AB87: 1.306384805e+12 | AC87: 14830800000 | AD87: 88.08592961 | AE87: 1.02752098 | AF87: 1.05452782 | AG87: 1.055799365 | AH87: 95.56054913 | AI87: 83.43055747 | AJ87: 12.12999165 | AK87: 23.18985124 | AL87: -11.05985959 | BD87: 433064000
A88: 56 | B88: =IF(A88>$A$8,"",OFFSET(InputPriceData!B$15,$A88+$A$11,0,1,1)) -> 2024-04-01 | C88: =IF(A88>$A$8,"",OFFSET(InputPriceData!G$15,CalculationsAndCharts!$A88+$A$11,IF($C$5,8,0),1,1)) -> 452441000 | D88: =IF(A88>$A$8,"",OFFSET(InputPriceData!C$15,CalculationsAndCharts!$A88+$A$11,IF($C$5,8,0),1,1)) -> 90.299004 | E88: =IF(A88>$A$8,"",OFFSET(InputPriceData!D$15,CalculationsAndCharts!$A88+$A$11,IF($C$5,8,0),1,1)) -> 92.224998 | F88: =IF(A88>$A$8,"",OFFSET(InputPriceData!E$15,CalculationsAndCharts!$A88+$A$11,IF($C$5,8,0),1,1)) -> 89.204002 | G88: =IF(A88>$A$8,"",OFFSET(InputPriceData!F$15,CalculationsAndCharts!$A88+$A$11,IF($C$5,8,0),1,1)) -> 90.362999 | H88: 4.088392563e+10 | I88: 2.330982839e+11 | J88: 2539504000 | K88: 91.78890203 | L88: 1.086873057e+12 | M88: 12122524000 | N88: 89.65732356 | O88: 89.84674995 | P88: 91.7063996 | Q88: 507900800 | R88: 606126200 | S88: =IF($A88>$L$30,NA(),N88-O88) -> -0.1894263893 | T88: =IF($A88>$I$30,NA(),K88/P88) -> 1.000899637 | U88: 0.8379456291 | V88: -0.1588718134 | W88: 0.2179921482 | Y88: 6.6204899e+11 | Z88: 7306922000 | AA88: 90.60572838 | AB88: 1.333016237e+12 | AC88: 15227124000 | AD88: 87.54221988 | AE88: 1.03499464 | AF88: 1.06004358 | AG88: 1.071213905 | AH88: 97.05811615 | AI88: 81.72244538 | AJ88: 15.33567077 | AK88: 25.3695028 | AL88: -10.03383203 | BC88: 452441000
A89: 57 | B89: =IF(A89>$A$8,"",OFFSET(InputPriceData!B$15,$A89+$A$11,0,1,1)) -> 2024-03-28 | C89: =IF(A89>$A$8,"",OFFSET(InputPriceData!G$15,CalculationsAndCharts!$A89+$A$11,IF($C$5,8,0),1,1)) -> 435212000 | D89: =IF(A89>$A$8,"",OFFSET(InputPriceData!C$15,CalculationsAndCharts!$A89+$A$11,IF($C$5,8,0),1,1)) -> 90 | E89: =IF(A89>$A$8,"",OFFSET(InputPriceData!D$15,CalculationsAndCharts!$A89+$A$11,IF($C$5,8,0),1,1)) -> 91.300003 | F89: =IF(A89>$A$8,"",OFFSET(InputPriceData!E$15,CalculationsAndCharts!$A89+$A$11,IF($C$5,8,0),1,1)) -> 89.193001 | G89: =IF(A89>$A$8,"",OFFSET(InputPriceData!F$15,CalculationsAndCharts!$A89+$A$11,IF($C$5,8,0),1,1)) -> 90.356003 | H89: 3.932401678e+10 | I89: 2.475355066e+11 | J89: 2673782000 | K89: 92.57879162 | L89: 1.085411879e+12 | M89: 12149218000 | N89: 89.34006116 | O89: 89.44254995 | P89: 92.4916 | Q89: 534756400 | R89: 607460900 | S89: =IF($A89>$L$30,NA(),N89-O89) -> -0.1024887876 | T89: =IF($A89>$I$30,NA(),K89/P89) -> 1.000942698 | U89: 0.8803141075 | V89: -0.09030737798 | W89: 0.2228348024 | Y89: 6.825698432e+11 | Z89: 7522556000 | AA89: 90.73642565 | AB89: 1.360075537e+12 | AC89: 15639783000 | AD89: 86.96255807 | AE89: 1.043396465 | AF89: 1.06470949 | AG89: 1.088676183 | AH89: 98.7825855 | AI89: 79.87917753 | AJ89: 18.90340797 | AK89: 27.15951884 | AL89: -8.256110874 | BC89: 435212000
A90: 58 | B90: =IF(A90>$A$8,"",OFFSET(InputPriceData!B$15,$A90+$A$11,0,1,1)) -> 2024-03-27 | C90: =IF(A90>$A$8,"",OFFSET(InputPriceData!G$15,CalculationsAndCharts!$A90+$A$11,IF($C$5,8,0),1,1)) -> 586067000 | D90: =IF(A90>$A$8,"",OFFSET(InputPriceData!C$15,CalculationsAndCharts!$A90+$A$11,IF($C$5,8,0),1,1)) -> 93.112 | E90: =IF(A90>$A$8,"",OFFSET(InputPriceData!D$15,CalculationsAndCharts!$A90+$A$11,IF($C$5,8,0),1,1)) -> 93.239998 | F90: =IF(A90>$A$8,"",OFFSET(InputPriceData!E$15,CalculationsAndCharts!$A90+$A$11,IF($C$5,8,0),1,1)) -> 89.123001 | G90: =IF(A90>$A$8,"",OFFSET(InputPriceData!F$15,CalculationsAndCharts!$A90+$A$11,IF($C$5,8,0),1,1)) -> 90.25 | H90: 52892546750 | I90: 2.521343027e+11 | J90: 2718942000 | K90: 92.73250503 | L90: 1.08622051e+12 | M90: 12221295000 | N90: 88.87932987 | O90: 88.8803498 | P90: 92.707399 | Q90: 543788400 | R90: 611064750 | S90: =IF($A90>$L$30,NA(),N90-O90) -> -0.001019926573 | T90: =IF($A90>$I$30,NA(),K90/P90) -> 1.000270809 | U90: 0.8899030749 | V90: -0.00090788159 | W90: 0.2348032927 | Y90: 7.014318215e+11 | Z90: 7765708000 | AA90: 90.3242591 | AB90: 1.367327307e+12 | AC90: 15894869000 | AD90: 86.02318819 | AE90: 1.049998971 | AF90: 1.068592313 | AG90: 1.10249784 | AH90: 99.58230054 | AI90: 78.0257204 | AJ90: 21.55658014 | AK90: 28.58811904 | AL90: -7.031538899 | BD90: 586067000
A91: 59 | B91: =IF(A91>$A$8,"",OFFSET(InputPriceData!B$15,$A91+$A$11,0,1,1)) -> 2024-03-26 | C91: =IF(A91>$A$8,"",OFFSET(InputPriceData!G$15,CalculationsAndCharts!$A91+$A$11,IF($C$5,8,0),1,1)) -> 513648000 | D91: =IF(A91>$A$8,"",OFFSET(InputPriceData!C$15,CalculationsAndCharts!$A91+$A$11,IF($C$5,8,0),1,1)) -> 95.850998 | E91: =IF(A91>$A$8,"",OFFSET(InputPriceData!D$15,CalculationsAndCharts!$A91+$A$11,IF($C$5,8,0),1,1)) -> 96.375 | F91: =IF(A91>$A$8,"",OFFSET(InputPriceData!E$15,CalculationsAndCharts!$A91+$A$11,IF($C$5,8,0),1,1)) -> 92.501999 | G91: =IF(A91>$A$8,"",OFFSET(InputPriceData!F$15,CalculationsAndCharts!$A91+$A$11,IF($C$5,8,0),1,1)) -> 92.560997 | H91: 4.754377099e+10 | I91: 2.425356383e+11 | J91: 2611938000 | K91: 92.85658325 | L91: 1.063858066e+12 | M91: 12028338000 | N91: 88.44597365 | O91: 88.2509999 | P91: 92.7317994 | Q91: 522387600 | R91: 601416900 | S91: =IF($A91>$L$30,NA(),N91-O91) -> 0.1949737459 | T91: =IF($A91>$I$30,NA(),K91/P91) -> 1.001345642 | U91: 0.8685948133 | V91: 0.1695810732 | W91: 0.250091191 | Y91: 7.485197958e+11 | Z91: 8321910000 | AA91: 89.94567302 | AB91: 1.363386824e+12 | AC91: 16013635000 | AD91: 85.13912201 | AE91: 1.056455257 | AF91: 1.072024078 | AG91: 1.11609771 | AH91: 100.3881597 | AI91: 76.28285699 | AJ91: 24.10530271 | AK91: 29.80888018 | AL91: -5.703577475 | BD91: 513648000
A92: 60 | B92: =IF(A92>$A$8,"",OFFSET(InputPriceData!B$15,$A92+$A$11,0,1,1)) -> 2024-03-25 | C92: =IF(A92>$A$8,"",OFFSET(InputPriceData!G$15,CalculationsAndCharts!$A92+$A$11,IF($C$5,8,0),1,1)) -> 552136000 | D92: =IF(A92>$A$8,"",OFFSET(InputPriceData!C$15,CalculationsAndCharts!$A92+$A$11,IF($C$5,8,0),1,1)) -> 93.941002 | E92: =IF(A92>$A$8,"",OFFSET(InputPriceData!D$15,CalculationsAndCharts!$A92+$A$11,IF($C$5,8,0),1,1)) -> 96.765999 | F92: =IF(A92>$A$8,"",OFFSET(InputPriceData!E$15,CalculationsAndCharts!$A92+$A$11,IF($C$5,8,0),1,1)) -> 93.510002 | G92: =IF(A92>$A$8,"",OFFSET(InputPriceData!F$15,CalculationsAndCharts!$A92+$A$11,IF($C$5,8,0),1,1)) -> 95.001999 | H92: 5.245402372e+10 | I92: 2.550826124e+11 | J92: 2770461000 | K92: 92.0722625 | L92: 1.047141868e+12 | M92: 11906395000 | N92: 87.94785226 | O92: 87.55799985 | P92: 92.0992006 | Q92: 554092200 | R92: 595319750 | S92: =IF($A92>$L$30,NA(),N92-O92) -> 0.3898524095 | T92: =IF($A92>$I$30,NA(),K92/P92) -> 0.9997075099 | U92: 0.9307472161 | V92: 0.3627479136 | W92: 0.2701505684 | Y92: 7.573298038e+11 | Z92: 8416381000 | AA92: 89.98283274 | AB92: 1.351810232e+12 | AC92: 15995314000 | AD92: 84.51289121 | AE92: 1.064723162 | AF92: 1.075158525 | AG92: 1.133635411 | AH92: 102.0077256 | AI92: 74.55032754 | AJ92: 27.45739805 | AK92: 30.8783186 | AL92: -3.420920546 | BC92: 552136000
A93: 61 | B93: =IF(A93>$A$8,"",OFFSET(InputPriceData!B$15,$A93+$A$11,0,1,1)) -> 2024-03-22 | C93: =IF(A93>$A$8,"",OFFSET(InputPriceData!G$15,CalculationsAndCharts!$A93+$A$11,IF($C$5,8,0),1,1)) -> 586719000 | D93: =IF(A93>$A$8,"",OFFSET(InputPriceData!C$15,CalculationsAndCharts!$A93+$A$11,IF($C$5,8,0),1,1)) -> 91.140999 | E93: =IF(A93>$A$8,"",OFFSET(InputPriceData!D$15,CalculationsAndCharts!$A93+$A$11,IF($C$5,8,0),1,1)) -> 94.778 | F93: =IF(A93>$A$8,"",OFFSET(InputPriceData!E$15,CalculationsAndCharts!$A93+$A$11,IF($C$5,8,0),1,1)) -> 90.834 | G93: =IF(A93>$A$8,"",OFFSET(InputPriceData!F$15,CalculationsAndCharts!$A93+$A$11,IF($C$5,8,0),1,1)) -> 94.289001 | H93: 5.532114838e+10 | I93: 2.618028621e+11 | J93: 2887301000 | K93: 90.67390692 | L93: 1.034548079e+12 | M93: 11858232000 | N93: 87.24302904 | O93: 86.76250005 | P93: 90.7898012 | Q93: 577460200 | R93: 592911600 | S93: =IF($A93>$L$30,NA(),N93-O93) -> 0.4805289876 | T93: =IF($A93>$I$30,NA(),K93/P93) -> 0.9987234879 | U93: 0.9739397914 | V93: 0.4674088862 | W93: 0.3010663813 | Y93: 7.565453023e+11 | Z93: 8446765000 | AA93: 89.56627802 | AB93: 1.329881431e+12 | AC93: 15863300000 | AD93: 83.83384487 | AE93: 1.068378507 | AF93: 1.077156624 | AG93: 1.141432634 | AH93: 102.2338727 | AI93: 73.44616086 | AJ93: 28.78771179 | AK93: 31.44540756 | AL93: -2.657695769 | BC93: 586719000
A94: 62 | B94: =IF(A94>$A$8,"",OFFSET(InputPriceData!B$15,$A94+$A$11,0,1,1)) -> 2024-03-21 | C94: =IF(A94>$A$8,"",OFFSET(InputPriceData!G$15,CalculationsAndCharts!$A94+$A$11,IF($C$5,8,0),1,1)) -> 480372000 | D94: =IF(A94>$A$8,"",OFFSET(InputPriceData!C$15,CalculationsAndCharts!$A94+$A$11,IF($C$5,8,0),1,1)) -> 92.300003 | E94: =IF(A94>$A$8,"",OFFSET(InputPriceData!D$15,CalculationsAndCharts!$A94+$A$11,IF($C$5,8,0),1,1)) -> 92.648003 | F94: =IF(A94>$A$8,"",OFFSET(InputPriceData!E$15,CalculationsAndCharts!$A94+$A$11,IF($C$5,8,0),1,1)) -> 90.404999 | G94: =IF(A94>$A$8,"",OFFSET(InputPriceData!F$15,CalculationsAndCharts!$A94+$A$11,IF($C$5,8,0),1,1)) -> 91.434998 | H94: 4.392281286e+10 | I94: 2.628806204e+11 | J94: 2942668000 | K94: 89.33410784 | L94: 1.044596805e+12 | M94: 12100901000 | N94: 86.32388656 | O94: 85.98890005 | P94: 89.4994006 | Q94: 588533600 | R94: 605045050 | S94: =IF($A94>$L$30,NA(),N94-O94) -> 0.3349865068 | T94: =IF($A94>$I$30,NA(),K94/P94) -> 0.9981531411 | U94: 0.9727103792 | V94: 0.3252430625 | W94: 0.3386473872 | Y94: 7.459803634e+11 | Z94: 8380685000 | AA94: 89.01186042 | AB94: 1.31187365e+12 | AC94: 15781498000 | AD94: 83.12732101 | AE94: 1.070789475 | AF94: 1.07846179 | AG94: 1.1465901 | AH94: 102.0601179 | AI94: 72.49959775 | AJ94: 29.56052015 | AK94: 31.70699132 | AL94: -2.146471175 | BC94: 480372000
A95: 63 | B95: =IF(A95>$A$8,"",OFFSET(InputPriceData!B$15,$A95+$A$11,0,1,1)) -> 2024-03-20 | C95: =IF(A95>$A$8,"",OFFSET(InputPriceData!G$15,CalculationsAndCharts!$A95+$A$11,IF($C$5,8,0),1,1)) -> 479063000 | D95: =IF(A95>$A$8,"",OFFSET(InputPriceData!C$15,CalculationsAndCharts!$A95+$A$11,IF($C$5,8,0),1,1)) -> 89.796997 | E95: =IF(A95>$A$8,"",OFFSET(InputPriceData!D$15,CalculationsAndCharts!$A95+$A$11,IF($C$5,8,0),1,1)) -> 90.410004 | F95: =IF(A95>$A$8,"",OFFSET(InputPriceData!E$15,CalculationsAndCharts!$A95+$A$11,IF($C$5,8,0),1,1)) -> 88.223 | G95: =IF(A95>$A$8,"",OFFSET(InputPriceData!F$15,CalculationsAndCharts!$A95+$A$11,IF($C$5,8,0),1,1)) -> 90.372002 | H95: 4.329388239e+10 | I95: 2.719280618e+11 | J95: 3064614000 | K95: 88.73158635 | L95: 1.068617218e+12 | M95: 12485629000 | N95: 85.58777598 | O95: 85.34405025 | P95: 88.801201 | Q95: 612922800 | R95: 624281450 | S95: =IF($A95>$L$30,NA(),N95-O95) -> 0.2437257306 | T95: =IF($A95>$I$30,NA(),K95/P95) -> 0.9992160619 | U95: 0.9818052419 | V95: 0.2391036104 | W95: 0.3650704501 | Y95: 7.545308115e+11 | Z95: 8515929000 | AA95: 88.60229008 | AB95: 1.311413726e+12 | AC95: 15903706000 | AD95: 82.45963088 | AE95: 1.074492926 | AF95: 1.078398396 | AG95: 1.154535048 | AH95: 102.2944493 | AI95: 71.42237128 | AJ95: 30.87207798 | AK95: 31.422118 | AL95: -0.5500400263 | BC95: 479063000
A96: 64 | B96: =IF(A96>$A$8,"",OFFSET(InputPriceData!B$15,$A96+$A$11,0,1,1)) -> 2024-03-19 | C96: =IF(A96>$A$8,"",OFFSET(InputPriceData!G$15,CalculationsAndCharts!$A96+$A$11,IF($C$5,8,0),1,1)) -> 672171000 | D96: =IF(A96>$A$8,"",OFFSET(InputPriceData!C$15,CalculationsAndCharts!$A96+$A$11,IF($C$5,8,0),1,1)) -> 86.699997 | E96: =IF(A96>$A$8,"",OFFSET(InputPriceData!D$15,CalculationsAndCharts!$A96+$A$11,IF($C$5,8,0),1,1)) -> 90.543999 | F96: =IF(A96>$A$8,"",OFFSET(InputPriceData!E$15,CalculationsAndCharts!$A96+$A$11,IF($C$5,8,0),1,1)) -> 85.010002 | G96: =IF(A96>$A$8,"",OFFSET(InputPriceData!F$15,CalculationsAndCharts!$A96+$A$11,IF($C$5,8,0),1,1)) -> 89.398003 | H96: 6.009074507e+10 | I96: 2.864128625e+11 | J96: 3221264000 | K96: 88.91319138 | L96: 1.071899122e+12 | M96: 12696864000 | N96: 84.42235201 | O96: 84.19905015 | P96: 88.9044006 | Q96: 644252800 | R96: 634843200 | S96: =IF($A96>$L$30,NA(),N96-O96) -> 0.2233018647 | T96: =IF($A96>$I$30,NA(),K96/P96) -> 1.000098879 | U96: 1.014821928 | V96: 0.226634036 | W96: 0.3718084088 | Y96: 7.506596773e+11 | Z96: 8516001000 | AA96: 88.14696914 | AB96: 1.312459165e+12 | AC96: 16038353000 | AD96: 81.83254008 | AE96: 1.077162814 | AF96: 1.077139948 | AG96: 1.160279728 | AH96: 102.2751413 | AI96: 70.52828567 | AJ96: 31.74685566 | AK96: 30.64039398 | AL96: 1.10646168 | BC96: 672171000
A97: 65 | B97: =IF(A97>$A$8,"",OFFSET(InputPriceData!B$15,$A97+$A$11,0,1,1)) -> 2024-03-18 | C97: =IF(A97>$A$8,"",OFFSET(InputPriceData!G$15,CalculationsAndCharts!$A97+$A$11,IF($C$5,8,0),1,1)) -> 668976000 | D97: =IF(A97>$A$8,"",OFFSET(InputPriceData!C$15,CalculationsAndCharts!$A97+$A$11,IF($C$5,8,0),1,1)) -> 90.388 | E97: =IF(A97>$A$8,"",OFFSET(InputPriceData!D$15,CalculationsAndCharts!$A97+$A$11,IF($C$5,8,0),1,1)) -> 92.404999 | F97: =IF(A97>$A$8,"",OFFSET(InputPriceData!E$15,CalculationsAndCharts!$A97+$A$11,IF($C$5,8,0),1,1)) -> 87.084999 | G97: =IF(A97>$A$8,"",OFFSET(InputPriceData!F$15,CalculationsAndCharts!$A97+$A$11,IF($C$5,8,0),1,1)) -> 88.455002 | H97: 5.917427342e+10 | I97: 2.877268963e+11 | J97: 3217168000 | K97: 89.43483718 | L97: 1.060760441e+12 | M97: 12729526000 | N97: 83.33071009 | O97: 83.20175015 | P97: 89.4074004 | Q97: 643433600 | R97: 636476300 | S97: =IF($A97>$L$30,NA(),N97-O97) -> 0.1289599367 | T97: =IF($A97>$I$30,NA(),K97/P97) -> 1.000306874 | U97: 1.010930965 | V97: 0.1304096002 | W97: 0.3886011603 | Y97: 7.307015796e+11 | Z97: 8351119000 | AA97: 87.49744551 | AB97: 1.283864358e+12 | AC97: 15802819000 | AD97: 81.24274268 | AE97: 1.076987834 | AF97: 1.075108454 | AG97: 1.159902796 | AH97: 101.4885316 | AI97: 70.04271651 | AJ97: 31.44581514 | AK97: 29.54401684 | AL97: 1.901798299 | BC97: 668976000
A98: 66 | B98: =IF(A98>$A$8,"",OFFSET(InputPriceData!B$15,$A98+$A$11,0,1,1)) -> 2024-03-15 | C98: =IF(A98>$A$8,"",OFFSET(InputPriceData!G$15,CalculationsAndCharts!$A98+$A$11,IF($C$5,8,0),1,1)) -> 642086000 | D98: =IF(A98>$A$8,"",OFFSET(InputPriceData!C$15,CalculationsAndCharts!$A98+$A$11,IF($C$5,8,0),1,1)) -> 86.93 | E98: =IF(A98>$A$8,"",OFFSET(InputPriceData!D$15,CalculationsAndCharts!$A98+$A$11,IF($C$5,8,0),1,1)) -> 89.545998 | F98: =IF(A98>$A$8,"",OFFSET(InputPriceData!E$15,CalculationsAndCharts!$A98+$A$11,IF($C$5,8,0),1,1)) -> 86.257004 | G98: =IF(A98>$A$8,"",OFFSET(InputPriceData!F$15,CalculationsAndCharts!$A98+$A$11,IF($C$5,8,0),1,1)) -> 87.836998 | H98: =IF(A99>$A$8,"",G98*C98) -> 5.63989067e+10 | I98: =IF($A98>$I$30,NA(),SUM(OFFSET(H98,0,0,$A$17,1))) -> 2.867386179e+11 | J98: =IF($A98>$I$30,NA(),SUM(OFFSET(C98,0,0,$A$17,1))) -> 3226556000 | K98: =IF($A98>$I$30,NA(),I98/J98) -> 88.86832212 | L98: =IF($A98>$L$30,NA(),SUM(OFFSET($H98,0,0,$A$18,1))) -> 1.037553346e+12 | M98: =IF($A98>$L$30,NA(),SUM(OFFSET($C98,0,0,$A$18,1))) -> 12555877000 | N98: =IF($A98>$L$30,NA(),L98/M98) -> 82.63487657 | O98: =IF($A98>$L$30,NA(),AVERAGE(OFFSET($G98,0,0,$A$18,1))) -> 82.40965 | P98: =IF($A98>$I$30,NA(),AVERAGE(OFFSET($G98,0,0,$A$17,1))) -> 88.8712004 | Q98: =IF($A98>$I$30,NA(),AVERAGE(OFFSET($C98,0,0,$A$17,1))) -> 645311200 | R98: =IF($A98>$L$30,NA(),AVERAGE(OFFSET($C98,0,0,$A$18,1))) -> 627793850 | S98: =IF($A98>$L$30,NA(),N98-O98) -> 0.2252265749 | T98: =IF($A98>$I$30,NA(),K98/P98) -> 0.9999676129 | U98: =IF($A98>$L$30,NA(),Q98/R98) -> 1.027903029 | V98: =IF($A98>$L$30,NA(),S98*T98*U98) -> 0.2315035806 | W98: =IF($A98>$W$30,NA(),AVERAGE(OFFSET($V98,0,0,$A$19,1))) -> 0.4088866835 | Y98: =IF($A98>$Y$30,NA(),SUM(OFFSET($H98,0,0,$D$17,1))) -> 7.020574089e+11 | Z98: =IF($A98>$Y$30,NA(),SUM(OFFSET($C98,0,0,$D$17,1))) -> 8075253000 | AA98: =IF($A98>$Y$30,NA(),Y98/Z98) -> 86.93937006 | AB98: =IF($A98>$AB$30,NA(),SUM(OFFSET($H98,0,0,$D$18,1))) -> 1.253550846e+12 | AC98: =IF($A98>$AB$30,NA(),SUM(OFFSET($C98,0,0,$D$18,1))) -> 15548265000 | AD98: =IF($A98>$AB$30,NA(),AB98/AC98) -> 80.62319792 | AE98: =IF($A98>$AB$30,NA(),AA98/AD98) -> 1.078341871 | AF98: =IF($A98>$AF$30,NA(),AVERAGE(OFFSET($AE98,0,0,$D$19,1))) -> 1.072828417 | AG98: =IF($A98>$AB$30,NA(),(AA98/AD98)^2) -> 1.16282119 | AH98: =IF($A98>$AB$30,NA(),AA98*AG98) -> 101.0949418 | AI98: =IF($A98>$AB$30,NA(),AD98/AG98) -> 69.33413203 | AJ98: =IF($A98>$AB$30,NA(),AH98-AI98) -> 31.76080974 | AK98: =IF($A98>$AF$30,NA(),AVERAGE(OFFSET($AJ98,0,0,$D$19,1))) -> 28.35247475 | AL98: =IF($A98>$AF$30,NA(),AJ98-AK98) -> 3.408334984 | BD98: 642086000
A99: 67 | B99: =IF(A99>$A$8,"",OFFSET(InputPriceData!B$15,$A99+$A$11,0,1,1)) -> 2024-03-14 | C99: =IF(A99>$A$8,"",OFFSET(InputPriceData!G$15,CalculationsAndCharts!$A99+$A$11,IF($C$5,8,0),1,1)) -> 602318000 | D99: =IF(A99>$A$8,"",OFFSET(InputPriceData!C$15,CalculationsAndCharts!$A99+$A$11,IF($C$5,8,0),1,1)) -> 89.577003 | E99: =IF(A99>$A$8,"",OFFSET(InputPriceData!D$15,CalculationsAndCharts!$A99+$A$11,IF($C$5,8,0),1,1)) -> 90.646004 | F99: =IF(A99>$A$8,"",OFFSET(InputPriceData!E$15,CalculationsAndCharts!$A99+$A$11,IF($C$5,8,0),1,1)) -> 86.599998 | G99: =IF(A99>$A$8,"",OFFSET(InputPriceData!F$15,CalculationsAndCharts!$A99+$A$11,IF($C$5,8,0),1,1)) -> 87.944 | H99: 52970254192 | I99: 3.303202323e+11 | J99: 3726739000 | K99: 88.63519347 | L99: 1.011679663e+12 | M99: 12333913000 | N99: 82.0242256 | O99: 81.65069995 | P99: 88.8094008 | Q99: 745347800 | R99: 616695650 | S99: =IF($A99>$L$30,NA(),N99-O99) -> 0.3735256549 | T99: =IF($A99>$I$30,NA(),K99/P99) -> 0.9980384134 | U99: 1.208615303 | V99: 0.4505632666 | W99: 0.4203665541 | Y99: 6.764860759e+11 | Z99: 7824872000 | AA99: 86.45330887 | AB99: 1.231891251e+12 | AC99: 15401754000 | AD99: 79.98382854 | AE99: 1.080884854 | AF99: 1.070448121 | AG99: 1.168312069 | AH99: 101.0044441 | AI99: 68.4610137 | AJ99: 32.54343042 | AK99: 27.1182155 | AL99: 5.42521492 | BD99: 602318000
A100: 68 | B100: =IF(A100>$A$8,"",OFFSET(InputPriceData!B$15,$A100+$A$11,0,1,1)) -> 2024-03-13 | C100: =IF(A100>$A$8,"",OFFSET(InputPriceData!G$15,CalculationsAndCharts!$A100+$A$11,IF($C$5,8,0),1,1)) -> 635713000 | D100: =IF(A100>$A$8,"",OFFSET(InputPriceData!C$15,CalculationsAndCharts!$A100+$A$11,IF($C$5,8,0),1,1)) -> 91.055 | E100: =IF(A100>$A$8,"",OFFSET(InputPriceData!D$15,CalculationsAndCharts!$A100+$A$11,IF($C$5,8,0),1,1)) -> 91.503998 | F100: =IF(A100>$A$8,"",OFFSET(InputPriceData!E$15,CalculationsAndCharts!$A100+$A$11,IF($C$5,8,0),1,1)) -> 88.434998 | G100: =IF(A100>$A$8,"",OFFSET(InputPriceData!F$15,CalculationsAndCharts!$A100+$A$11,IF($C$5,8,0),1,1)) -> 90.888 | H100: 57778683144 | I100: 3.337037571e+11 | J100: 3732540000 | K100: 89.40393327 | L100: 9.960227756e+11 | M100: 12236512000 | N100: 81.39760543 | O100: 80.94850005 | P100: 89.7544006 | Q100: 746508000 | R100: 611825600 | S100: =IF($A100>$L$30,NA(),N100-O100) -> 0.4491053804 | T100: =IF($A100>$I$30,NA(),K100/P100) -> 0.996095263 | U100: 1.220132011 | V100: 0.5458281808 | W100: 0.4226189781 | Y100: 6.633760557e+11 | Z100: 7726527000 | AA100: 85.85695173 | AB100: 1.225524879e+12 | AC100: 15482547000 | AD100: 79.15525001 | AE100: 1.084665284 | AF100: 1.06767838 | AG100: 1.176498778 | AH100: 101.0105988 | AI100: 67.28035038 | AJ100: 33.73024843 | AK100: 25.72801573 | AL100: 8.002232702 | BD100: 635713000
A101: 69 | B101: =IF(A101>$A$8,"",OFFSET(InputPriceData!B$15,$A101+$A$11,0,1,1)) -> 2024-03-12 | C101: =IF(A101>$A$8,"",OFFSET(InputPriceData!G$15,CalculationsAndCharts!$A101+$A$11,IF($C$5,8,0),1,1)) -> 668075000 | D101: =IF(A101>$A$8,"",OFFSET(InputPriceData!C$15,CalculationsAndCharts!$A101+$A$11,IF($C$5,8,0),1,1)) -> 88.049004 | E101: =IF(A101>$A$8,"",OFFSET(InputPriceData!D$15,CalculationsAndCharts!$A101+$A$11,IF($C$5,8,0),1,1)) -> 91.959999 | F101: =IF(A101>$A$8,"",OFFSET(InputPriceData!E$15,CalculationsAndCharts!$A101+$A$11,IF($C$5,8,0),1,1)) -> 86.150002 | G101: =IF(A101>$A$8,"",OFFSET(InputPriceData!F$15,CalculationsAndCharts!$A101+$A$11,IF($C$5,8,0),1,1)) -> 91.913002 | H101: 6.140477881e+10 | I101: 3.275945962e+11 | J101: 3679347000 | K101: 89.03606977 | L101: 9.817069815e+11 | M101: 12203379000 | N101: 80.4455046 | O101: 80.01049995 | P101: 89.3168 | Q101: 735869400 | R101: 610168950 | S101: =IF($A101>$L$30,NA(),N101-O101) -> 0.4350046526 | T101: =IF($A101>$I$30,NA(),K101/P101) -> 0.9968569157 | U101: 1.206009254 | V101: 0.5229707127 | W101: 0.419641707 | Y101: 6.709672474e+11 | Z101: 7920202000 | AA101: 84.71592611 | AB101: 1.214897364e+12 | AC101: 15526912000 | AD101: 78.24462225 | AE101: 1.082706053 | AF101: 1.06470693 | AG101: 1.172252397 | AH101: 99.30844743 | AI101: 66.74724868 | AJ101: 32.56119875 | AK101: 24.25909706 | AL101: 8.302101688 | BC101: 668075000
A102: 70 | B102: =IF(A102>$A$8,"",OFFSET(InputPriceData!B$15,$A102+$A$11,0,1,1)) -> 2024-03-11 | C102: =IF(A102>$A$8,"",OFFSET(InputPriceData!G$15,CalculationsAndCharts!$A102+$A$11,IF($C$5,8,0),1,1)) -> 678364000 | D102: =IF(A102>$A$8,"",OFFSET(InputPriceData!C$15,CalculationsAndCharts!$A102+$A$11,IF($C$5,8,0),1,1)) -> 86.429001 | E102: =IF(A102>$A$8,"",OFFSET(InputPriceData!D$15,CalculationsAndCharts!$A102+$A$11,IF($C$5,8,0),1,1)) -> 88.796997 | F102: =IF(A102>$A$8,"",OFFSET(InputPriceData!E$15,CalculationsAndCharts!$A102+$A$11,IF($C$5,8,0),1,1)) -> 84.166 | G102: =IF(A102>$A$8,"",OFFSET(InputPriceData!F$15,CalculationsAndCharts!$A102+$A$11,IF($C$5,8,0),1,1)) -> 85.774002 | H102: 5.818599509e+10 | I102: 3.109460268e+11 | J102: 3531911000 | K102: 88.03903236 | L102: 9.646415234e+11 | M102: 12149014000 | N102: 79.40080762 | O102: 79.0272499 | P102: 88.126999 | Q102: 706382200 | R102: 607450700 | S102: =IF($A102>$L$30,NA(),N102-O102) -> 0.3735577206 | T102: =IF($A102>$I$30,NA(),K102/P102) -> 0.9990018196 | U102: 1.162863422 | V102: 0.4339630033 | W102: 0.4147670108 | Y102: 6.775056941e+11 | Z102: 8117227000 | AA102: 83.46516539 | AB102: 1.185022988e+12 | AC102: 15335415000 | AD102: 77.27361716 | AE102: 1.080124996 | AF102: 1.062166886 | AG102: 1.166670006 | AH102: 97.37630503 | AI102: 66.2343394 | AJ102: 31.14196563 | AK102: 22.97776906 | AL102: 8.16419657 | BD102: 678364000
A103: 71 | B103: =IF(A103>$A$8,"",OFFSET(InputPriceData!B$15,$A103+$A$11,0,1,1)) -> 2024-03-08 | C103: =IF(A103>$A$8,"",OFFSET(InputPriceData!G$15,CalculationsAndCharts!$A103+$A$11,IF($C$5,8,0),1,1)) -> 1142269000 | D103: =IF(A103>$A$8,"",OFFSET(InputPriceData!C$15,CalculationsAndCharts!$A103+$A$11,IF($C$5,8,0),1,1)) -> 95.138 | E103: =IF(A103>$A$8,"",OFFSET(InputPriceData!D$15,CalculationsAndCharts!$A103+$A$11,IF($C$5,8,0),1,1)) -> 97.400002 | F103: =IF(A103>$A$8,"",OFFSET(InputPriceData!E$15,CalculationsAndCharts!$A103+$A$11,IF($C$5,8,0),1,1)) -> 86.505997 | G103: =IF(A103>$A$8,"",OFFSET(InputPriceData!F$15,CalculationsAndCharts!$A103+$A$11,IF($C$5,8,0),1,1)) -> 87.528 | H103: 99980521032 | I103: 3.052332927e+11 | J103: 3469163000 | K103: 87.98470776 | L103: 9.379514663e+11 | M103: 11907287000 | N103: 78.77121517 | O103: 78.34519995 | P103: 88.0195986 | Q103: 693832600 | R103: 595364350 | S103: =IF($A103>$L$30,NA(),N103-O103) -> 0.426015217 | T103: =IF($A103>$I$30,NA(),K103/P103) -> 0.9996036014 | U103: 1.165391579 | V103: 0.4962777447 | W103: 0.4139001605 | Y103: 6.658954857e+11 | Z103: 8129161000 | AA103: 81.9144172 | AB103: 1.150103158e+12 | AC103: 15026197000 | AD103: 76.5398695 | AE103: 1.070218929 | AF103: 1.060179617 | AG103: 1.145368557 | AH103: 93.82219783 | AI103: 66.82553754 | AJ103: 26.99666029 | AK103: 21.92855683 | AL103: 5.068103467 | BD103: 1142269000
A104: 72 | B104: =IF(A104>$A$8,"",OFFSET(InputPriceData!B$15,$A104+$A$11,0,1,1)) -> 2024-03-07 | C104: =IF(A104>$A$8,"",OFFSET(InputPriceData!G$15,CalculationsAndCharts!$A104+$A$11,IF($C$5,8,0),1,1)) -> 608119000 | D104: =IF(A104>$A$8,"",OFFSET(InputPriceData!C$15,CalculationsAndCharts!$A104+$A$11,IF($C$5,8,0),1,1)) -> 90.157997 | E104: =IF(A104>$A$8,"",OFFSET(InputPriceData!D$15,CalculationsAndCharts!$A104+$A$11,IF($C$5,8,0),1,1)) -> 92.766998 | F104: =IF(A104>$A$8,"",OFFSET(InputPriceData!E$15,CalculationsAndCharts!$A104+$A$11,IF($C$5,8,0),1,1)) -> 89.601997 | G104: =IF(A104>$A$8,"",OFFSET(InputPriceData!F$15,CalculationsAndCharts!$A104+$A$11,IF($C$5,8,0),1,1)) -> 92.668999 | H104: 5.6353779e+10 | I104: 2.446755199e+11 | J104: 2806029000 | K104: 87.19636179 | L104: 8.668317074e+11 | M104: 11179440000 | N104: 77.53802582 | O104: 77.4508499 | P104: 86.9697984 | Q104: 561205800 | R104: 558972000 | S104: =IF($A104>$L$30,NA(),N104-O104) -> 0.08717592132 | T104: =IF($A104>$I$30,NA(),K104/P104) -> 1.002605081 | U104: 1.003996265 | V104: 0.08775230727 | W104: 0.4055171064 | Y104: 6.148670283e+11 | Z104: 7691725000 | AA104: 79.93876904 | AB104: 1.078043281e+12 | AC104: 14337723000 | AD104: 75.1892948 | AE104: 1.063166894 | AF104: 1.059622912 | AG104: 1.130323845 | AH104: 90.35669678 | AI104: 66.52013503 | AJ104: 23.83656175 | AK104: 21.43185735 | AL104: 2.404704401 | BC104: 608119000
A105: 73 | B105: =IF(A105>$A$8,"",OFFSET(InputPriceData!B$15,$A105+$A$11,0,1,1)) -> 2024-03-06 | C105: =IF(A105>$A$8,"",OFFSET(InputPriceData!G$15,CalculationsAndCharts!$A105+$A$11,IF($C$5,8,0),1,1)) -> 582520000 | D105: =IF(A105>$A$8,"",OFFSET(InputPriceData!C$15,CalculationsAndCharts!$A105+$A$11,IF($C$5,8,0),1,1)) -> 88.022003 | E105: =IF(A105>$A$8,"",OFFSET(InputPriceData!D$15,CalculationsAndCharts!$A105+$A$11,IF($C$5,8,0),1,1)) -> 89.723999 | F105: =IF(A105>$A$8,"",OFFSET(InputPriceData!E$15,CalculationsAndCharts!$A105+$A$11,IF($C$5,8,0),1,1)) -> 87.029999 | G105: =IF(A105>$A$8,"",OFFSET(InputPriceData!F$15,CalculationsAndCharts!$A105+$A$11,IF($C$5,8,0),1,1)) -> 88.699997 | H105: 5.166952225e+10 | I105: 2.284543882e+11 | J105: 2705199000 | K105: 84.45012298 | L105: 8.452172398e+11 | M105: 11066896000 | N105: 76.37346911 | O105: 76.3223499 | P105: 84.2583986 | Q105: 541039800 | R105: 553344800 | S105: =IF($A105>$L$30,NA(),N105-O105) -> 0.05111921134 | T105: =IF($A105>$I$30,NA(),K105/P105) -> 1.002275433 | U105: 0.977762509 | V105: 0.05009618007 | W105: 0.4174157432 | Y105: 5.944804282e+11 | Z105: 7578933000 | AA105: 78.43853854 | AB105: 1.047472981e+12 | AC105: 14140339000 | AD105: 74.07693553 | AE105: 1.058879366 | AF105: 1.059892242 | AG105: 1.121225512 | AH105: 87.94729053 | AI105: 66.06782912 | AJ105: 21.87946141 | AK105: 21.27188703 | AL105: 0.6075743851 | BC105: 582520000
A106: 74 | B106: =IF(A106>$A$8,"",OFFSET(InputPriceData!B$15,$A106+$A$11,0,1,1)) -> 2024-03-05 | C106: =IF(A106>$A$8,"",OFFSET(InputPriceData!G$15,CalculationsAndCharts!$A106+$A$11,IF($C$5,8,0),1,1)) -> 520639000 | D106: =IF(A106>$A$8,"",OFFSET(InputPriceData!C$15,CalculationsAndCharts!$A106+$A$11,IF($C$5,8,0),1,1)) -> 85.269997 | E106: =IF(A106>$A$8,"",OFFSET(InputPriceData!D$15,CalculationsAndCharts!$A106+$A$11,IF($C$5,8,0),1,1)) -> 86.097 | F106: =IF(A106>$A$8,"",OFFSET(InputPriceData!E$15,CalculationsAndCharts!$A106+$A$11,IF($C$5,8,0),1,1)) -> 83.417 | G106: =IF(A106>$A$8,"",OFFSET(InputPriceData!F$15,CalculationsAndCharts!$A106+$A$11,IF($C$5,8,0),1,1)) -> 85.963997 | H106: 4.475620943e+10 | I106: 2.073149687e+11 | J106: 2515789000 | K106: 82.40554701 | L106: 8.401515993e+11 | M106: 11167487000 | N106: 75.23192992 | O106: 75.29850005 | P106: 82.0509996 | Q106: 503157800 | R106: 558374350 | S106: =IF($A106>$L$30,NA(),N106-O106) -> -0.06657013462 | T106: =IF($A106>$I$30,NA(),K106/P106) -> 1.004321061 | U106: 0.9011119511 | V106: -0.06024635202 | W106: 0.4174986785 | Y106: 5.73336129e+11 | Z106: 7416535000 | AA106: 77.30512011 | AB106: 1.017587065e+12 | AC106: 13906552000 | AD106: 73.17321109 | AE106: 1.05646751 | AF106: 1.060961769 | AG106: 1.116123599 | AH106: 86.2820689 | AI106: 65.56013254 | AJ106: 20.72193636 | AK106: 21.39898001 | AL106: -0.6770436481 | BC106: 520639000
A107: 75 | B107: =IF(A107>$A$8,"",OFFSET(InputPriceData!B$15,$A107+$A$11,0,1,1)) -> 2024-03-04 | C107: =IF(A107>$A$8,"",OFFSET(InputPriceData!G$15,CalculationsAndCharts!$A107+$A$11,IF($C$5,8,0),1,1)) -> 615616000 | D107: =IF(A107>$A$8,"",OFFSET(InputPriceData!C$15,CalculationsAndCharts!$A107+$A$11,IF($C$5,8,0),1,1)) -> 84.129997 | E107: =IF(A107>$A$8,"",OFFSET(InputPriceData!D$15,CalculationsAndCharts!$A107+$A$11,IF($C$5,8,0),1,1)) -> 87.695 | F107: =IF(A107>$A$8,"",OFFSET(InputPriceData!E$15,CalculationsAndCharts!$A107+$A$11,IF($C$5,8,0),1,1)) -> 83.719002 | G107: =IF(A107>$A$8,"",OFFSET(InputPriceData!F$15,CalculationsAndCharts!$A107+$A$11,IF($C$5,8,0),1,1)) -> 85.237 | H107: 52473260992 | I107: 1.933863329e+11 | J107: 2386855000 | K107: 81.02139967 | L107: 8.425465585e+11 | M107: 11326926000 | N107: 74.38439683 | O107: 74.46690025 | P107: 80.5983994 | Q107: 477371000 | R107: 566346300 | S107: =IF($A107>$L$30,NA(),N107-O107) -> -0.08250341921 | T107: =IF($A107>$I$30,NA(),K107/P107) -> 1.005248246 | U107: 0.8428959455 | V107: -0.06990677004 | W107: 0.4088301157 | Y107: 5.658932869e+11 | Z107: 7400813000 | AA107: 76.46366512 | AB107: 9.966518035e+11 | AC107: 13776222000 | AD107: 72.34580014 | AE107: 1.056919199 | AF107: 1.062341978 | AG107: 1.117078193 | AH107: 85.41589285 | AI107: 64.76341638 | AJ107: 20.65247647 | AK107: 21.62523156 | AL107: -0.9727550954 | BC107: 615616000
A108: 76 | B108: =IF(A108>$A$8,"",OFFSET(InputPriceData!B$15,$A108+$A$11,0,1,1)) -> 2024-03-01 | C108: =IF(A108>$A$8,"",OFFSET(InputPriceData!G$15,CalculationsAndCharts!$A108+$A$11,IF($C$5,8,0),1,1)) -> 479135000 | D108: =IF(A108>$A$8,"",OFFSET(InputPriceData!C$15,CalculationsAndCharts!$A108+$A$11,IF($C$5,8,0),1,1)) -> 80 | E108: =IF(A108>$A$8,"",OFFSET(InputPriceData!D$15,CalculationsAndCharts!$A108+$A$11,IF($C$5,8,0),1,1)) -> 82.300003 | F108: =IF(A108>$A$8,"",OFFSET(InputPriceData!E$15,CalculationsAndCharts!$A108+$A$11,IF($C$5,8,0),1,1)) -> 79.434998 | G108: =IF(A108>$A$8,"",OFFSET(InputPriceData!F$15,CalculationsAndCharts!$A108+$A$11,IF($C$5,8,0),1,1)) -> 82.278999 | H108: 3.942274819e+10 | I108: 1.807733059e+11 | J108: 2275212000 | K108: 79.45338981 | L108: 8.216036999e+11 | M108: 11187888000 | N108: 73.43688995 | O108: 73.51305045 | P108: 79.3694 | Q108: 455042400 | R108: 559394400 | S108: =IF($A108>$L$30,NA(),N108-O108) -> -0.076160498 | T108: =IF($A108>$I$30,NA(),K108/P108) -> 1.001058214 | U108: 0.8134554082 | V108: -0.0620187287 | W108: 0.3953144688 | Y108: 5.568829149e+11 | Z108: 7387777000 | AA108: 75.37895566 | AB108: 9.739258134e+11 | AC108: 13643383000 | AD108: 71.38448091 | AE108: 1.055957187 | AF108: 1.064223951 | AG108: 1.115045581 | AH108: 84.05097138 | AI108: 64.0193389 | AJ108: 20.03163249 | AK108: 22.02666389 | AL108: -1.995031397 | BC108: 479135000
A109: 77 | B109: =IF(A109>$A$8,"",OFFSET(InputPriceData!B$15,$A109+$A$11,0,1,1)) -> 2024-02-29 | C109: =IF(A109>$A$8,"",OFFSET(InputPriceData!G$15,CalculationsAndCharts!$A109+$A$11,IF($C$5,8,0),1,1)) -> 507289000 | D109: =IF(A109>$A$8,"",OFFSET(InputPriceData!C$15,CalculationsAndCharts!$A109+$A$11,IF($C$5,8,0),1,1)) -> 79.094002 | E109: =IF(A109>$A$8,"",OFFSET(InputPriceData!D$15,CalculationsAndCharts!$A109+$A$11,IF($C$5,8,0),1,1)) -> 79.989998 | F109: =IF(A109>$A$8,"",OFFSET(InputPriceData!E$15,CalculationsAndCharts!$A109+$A$11,IF($C$5,8,0),1,1)) -> 78.349998 | G109: =IF(A109>$A$8,"",OFFSET(InputPriceData!F$15,CalculationsAndCharts!$A109+$A$11,IF($C$5,8,0),1,1)) -> 79.112 | H109: 40132647368 | I109: 2.067204326e+11 | J109: 2625465000 | K109: 78.73669334 | L109: 8.054471166e+11 | M109: 11077899000 | N109: 72.70756996 | O109: 72.5504505 | P109: 78.6770004 | Q109: 525093000 | R109: 553894950 | S109: =IF($A109>$L$30,NA(),N109-O109) -> 0.157119465 | T109: =IF($A109>$I$30,NA(),K109/P109) -> 1.000758709 | U109: 0.9480010605 | V109: 0.1490624287 | W109: 0.3887247666 | Y109: 5.617994874e+11 | Z109: 7522352000 | AA109: 74.68402002 | AB109: 9.688824143e+11 | AC109: 13724519000 | AD109: 70.59499967 | AE109: 1.057922238 | AF109: 1.066686338 | AG109: 1.119199461 | AH109: 83.58631497 | AI109: 63.07633458 | AJ109: 20.50998039 | AK109: 22.62227007 | AL109: -2.112289678 | BC109: =IF(G109>=G110,C109,NA()) -> 507289000 | BD109: =IF(G109<G110,C109,NA()) -> 
A110: 78 | B110: =IF(A110>$A$8,"",OFFSET(InputPriceData!B$15,$A110+$A$11,0,1,1)) -> 2024-02-28 | C110: =IF(A110>$A$8,"",OFFSET(InputPriceData!G$15,CalculationsAndCharts!$A110+$A$11,IF($C$5,8,0),1,1)) -> 393110000 | D110: =IF(A110>$A$8,"",OFFSET(InputPriceData!C$15,CalculationsAndCharts!$A110+$A$11,IF($C$5,8,0),1,1)) -> 77.620003 | E110: =IF(A110>$A$8,"",OFFSET(InputPriceData!D$15,CalculationsAndCharts!$A110+$A$11,IF($C$5,8,0),1,1)) -> 78.932999 | F110: =IF(A110>$A$8,"",OFFSET(InputPriceData!E$15,CalculationsAndCharts!$A110+$A$11,IF($C$5,8,0),1,1)) -> 77.125 | G110: =IF(A110>$A$8,"",OFFSET(InputPriceData!F$15,CalculationsAndCharts!$A110+$A$11,IF($C$5,8,0),1,1)) -> 77.663002 | H110: 3.053010272e+10 | I110: 2.345310107e+11 | J110: 2983276000 | K110: 78.61525743 | L110: 7.932351142e+11 | M110: 11024405000 | N110: 71.95264635 | O110: 71.6712005 | P110: 78.5622008 | Q110: 596655200 | R110: 551220250 | S110: =IF($A110>$L$30,NA(),N110-O110) -> 0.2814458518 | T110: =IF($A110>$I$30,NA(),K110/P110) -> 1.000675346 | U110: 1.082426126 | V110: 0.3048500834 | W110: 0.3803485215 | Y110: 5.531627781e+11 | Z110: 7451700000 | AA110: 74.23309823 | AB110: 9.463915861e+11 | AC110: 13511884000 | AD110: 70.04142325 | AE110: 1.059845657 | AF110: 1.069206248 | AG110: 1.123272816 | AH110: 83.38402131 | AI110: 62.35477458 | AJ110: 21.02924673 | AK110: 23.22147838 | AL110: -2.192231653 | BD110: 393110000
A111: 79 | B111: =IF(A111>$A$8,"",OFFSET(InputPriceData!B$15,$A111+$A$11,0,1,1)) -> 2024-02-27 | C111: =IF(A111>$A$8,"",OFFSET(InputPriceData!G$15,CalculationsAndCharts!$A111+$A$11,IF($C$5,8,0),1,1)) -> 391705000 | D111: =IF(A111>$A$8,"",OFFSET(InputPriceData!C$15,CalculationsAndCharts!$A111+$A$11,IF($C$5,8,0),1,1)) -> 79.380997 | E111: =IF(A111>$A$8,"",OFFSET(InputPriceData!D$15,CalculationsAndCharts!$A111+$A$11,IF($C$5,8,0),1,1)) -> 79.480003 | F111: =IF(A111>$A$8,"",OFFSET(InputPriceData!E$15,CalculationsAndCharts!$A111+$A$11,IF($C$5,8,0),1,1)) -> 77.162003 | G111: =IF(A111>$A$8,"",OFFSET(InputPriceData!F$15,CalculationsAndCharts!$A111+$A$11,IF($C$5,8,0),1,1)) -> 78.700996 | H111: 3.082757364e+10 | I111: 2.505766947e+11 | J111: 3280464000 | K111: 76.38452813 | L111: 7.884884896e+11 | M111: 11042030000 | N111: 71.40792857 | O111: 70.9267503 | P111: 76.5240004 | Q111: 656092800 | R111: 552101500 | S111: =IF($A111>$L$30,NA(),N111-O111) -> 0.4811782744 | T111: =IF($A111>$I$30,NA(),K111/P111) -> 0.9981774048 | U111: 1.188355402 | V111: 0.5707686222 | W111: 0.3665808629 | Y111: 5.514934374e+11 | Z111: 7473012000 | AA111: 73.7980131 | AB111: 9.428820605e+11 | AC111: 13571729000 | AD111: 69.47398232 | AE111: 1.06223957 | AF111: 1.072250571 | AG111: 1.128352904 | AH111: 83.27020238 | AI111: 61.57114683 | AJ111: 21.69905555 | AK111: 23.95784346 | AL111: -2.258787914 | BD111: 391705000
A112: 80 | B112: =IF(A112>$A$8,"",OFFSET(InputPriceData!B$15,$A112+$A$11,0,1,1)) -> 2024-02-26 | C112: =IF(A112>$A$8,"",OFFSET(InputPriceData!G$15,CalculationsAndCharts!$A112+$A$11,IF($C$5,8,0),1,1)) -> 503973000 | D112: =IF(A112>$A$8,"",OFFSET(InputPriceData!C$15,CalculationsAndCharts!$A112+$A$11,IF($C$5,8,0),1,1)) -> 79.699997 | E112: =IF(A112>$A$8,"",OFFSET(InputPriceData!D$15,CalculationsAndCharts!$A112+$A$11,IF($C$5,8,0),1,1)) -> 80.646004 | F112: =IF(A112>$A$8,"",OFFSET(InputPriceData!E$15,CalculationsAndCharts!$A112+$A$11,IF($C$5,8,0),1,1)) -> 78.504997 | G112: =IF(A112>$A$8,"",OFFSET(InputPriceData!F$15,CalculationsAndCharts!$A112+$A$11,IF($C$5,8,0),1,1)) -> 79.092003 | H112: 3.986023403e+10 | I112: 2.687011847e+11 | J112: 3593592000 | K112: 74.77231268 | L112: 7.794445228e+11 | M112: 10999058000 | N112: 70.86466157 | O112: 70.1149505 | P112: 74.6742018 | Q112: 718718400 | R112: 549952900 | S112: =IF($A112>$L$30,NA(),N112-O112) -> 0.7497110704 | T112: =IF($A112>$I$30,NA(),K112/P112) -> 1.001313852 | U112: 1.306872643 | V112: 0.9810641704 | W112: 0.3434113953 | Y112: 5.554051752e+11 | Z112: 7576882000 | AA112: 73.30260326 | AB112: 9.443879054e+11 | AC112: 13723525000 | AD112: 68.81525741 | AE112: 1.065208589 | AF112: 1.075296927 | AG112: 1.134669339 | AH112: 83.17421636 | AI112: 60.64785138 | AJ112: 22.52636499 | AK112: 24.65814818 | AL112: -2.131783191 | BC112: 503973000
A113: 81 | B113: =IF(A113>$A$8,"",OFFSET(InputPriceData!B$15,$A113+$A$11,0,1,1)) -> 2024-02-23 | C113: =IF(A113>$A$8,"",OFFSET(InputPriceData!G$15,CalculationsAndCharts!$A113+$A$11,IF($C$5,8,0),1,1)) -> 829388000 | D113: =IF(A113>$A$8,"",OFFSET(InputPriceData!C$15,CalculationsAndCharts!$A113+$A$11,IF($C$5,8,0),1,1)) -> 80.790001 | E113: =IF(A113>$A$8,"",OFFSET(InputPriceData!D$15,CalculationsAndCharts!$A113+$A$11,IF($C$5,8,0),1,1)) -> 82.393997 | F113: =IF(A113>$A$8,"",OFFSET(InputPriceData!E$15,CalculationsAndCharts!$A113+$A$11,IF($C$5,8,0),1,1)) -> 77.57 | G113: =IF(A113>$A$8,"",OFFSET(InputPriceData!F$15,CalculationsAndCharts!$A113+$A$11,IF($C$5,8,0),1,1)) -> 78.817001 | H113: 6.536987483e+10 | I113: 2.648081296e+11 | J113: 3584946000 | K113: 73.86669969 | L113: 7.634052365e+11 | M113: 10885394000 | N113: 70.13115341 | O113: 69.21190025 | P113: 73.378401 | Q113: 716989200 | R113: 544269700 | S113: =IF($A113>$L$30,NA(),N113-O113) -> 0.9192531592 | T113: =IF($A113>$I$30,NA(),K113/P113) -> 1.006654529 | U113: 1.317341752 | V113: 1.219029006 | W113: 0.3105468625 | Y113: 5.62148823e+11 | Z113: 7756020000 | AA113: 72.47903215 | AB113: 9.32604327e+11 | AC113: 13711202000 | AD113: 68.0176929 | AE113: 1.065590864 | AF113: 1.078147873 | AG113: 1.13548389 | AH113: 82.29877334 | AI113: 59.90194448 | AJ113: 22.39682886 | AK113: 25.26373706 | AL113: -2.866908197 | BC113: 829388000
A114: 82 | B114: =IF(A114>$A$8,"",OFFSET(InputPriceData!B$15,$A114+$A$11,0,1,1)) -> 2024-02-22 | C114: =IF(A114>$A$8,"",OFFSET(InputPriceData!G$15,CalculationsAndCharts!$A114+$A$11,IF($C$5,8,0),1,1)) -> 865100000 | D114: =IF(A114>$A$8,"",OFFSET(InputPriceData!C$15,CalculationsAndCharts!$A114+$A$11,IF($C$5,8,0),1,1)) -> 75.025002 | E114: =IF(A114>$A$8,"",OFFSET(InputPriceData!D$15,CalculationsAndCharts!$A114+$A$11,IF($C$5,8,0),1,1)) -> 78.574997 | F114: =IF(A114>$A$8,"",OFFSET(InputPriceData!E$15,CalculationsAndCharts!$A114+$A$11,IF($C$5,8,0),1,1)) -> 74.220001 | G114: =IF(A114>$A$8,"",OFFSET(InputPriceData!F$15,CalculationsAndCharts!$A114+$A$11,IF($C$5,8,0),1,1)) -> 78.538002 | H114: 6.794322553e+10 | I114: 2.299634778e+11 | J114: 3175680000 | K114: 72.4139327 | L114: 7.277826326e+11 | M114: 10538783000 | N114: 69.05755936 | O114: 68.35190025 | P114: 72.1466002 | Q114: 635136000 | R114: 526939150 | S114: =IF($A114>$L$30,NA(),N114-O114) -> 0.7056591096 | T114: =IF($A114>$I$30,NA(),K114/P114) -> 1.003705407 | U114: 1.205330824 | V114: 0.8537043198 | W114: 0.2762433178 | Y114: 5.439301167e+11 | Z114: 7606710000 | AA114: 71.50661938 | AB114: 8.938256595e+11 | AC114: 13356208000 | AD114: 66.92211289 | AE114: 1.068505107 | AF114: 1.080796776 | AG114: 1.141703163 | AH114: 81.63933355 | AI114: 58.61603527 | AJ114: 23.02329828 | AK114: 25.79054229 | AL114: -2.767244015 | BC114: 865100000
A115: 83 | B115: =IF(A115>$A$8,"",OFFSET(InputPriceData!B$15,$A115+$A$11,0,1,1)) -> 2024-02-21 | C115: =IF(A115>$A$8,"",OFFSET(InputPriceData!G$15,CalculationsAndCharts!$A115+$A$11,IF($C$5,8,0),1,1)) -> 690298000 | D115: =IF(A115>$A$8,"",OFFSET(InputPriceData!C$15,CalculationsAndCharts!$A115+$A$11,IF($C$5,8,0),1,1)) -> 68.005997 | E115: =IF(A115>$A$8,"",OFFSET(InputPriceData!D$15,CalculationsAndCharts!$A115+$A$11,IF($C$5,8,0),1,1)) -> 68.888 | F115: =IF(A115>$A$8,"",OFFSET(InputPriceData!E$15,CalculationsAndCharts!$A115+$A$11,IF($C$5,8,0),1,1)) -> 66.248001 | G115: =IF(A115>$A$8,"",OFFSET(InputPriceData!F$15,CalculationsAndCharts!$A115+$A$11,IF($C$5,8,0),1,1)) -> 67.472 | H115: 4.657578666e+10 | I115: 1.993336196e+11 | J115: 2815497000 | K115: 70.79873272 | L115: 6.942187562e+11 | M115: 10233954000 | N115: 67.83485212 | O115: 67.49310015 | P115: 71.2190002 | Q115: 563099400 | R115: 511697700 | S115: =IF($A115>$L$30,NA(),N115-O115) -> 0.341751968 | T115: =IF($A115>$I$30,NA(),K115/P115) -> 0.9940989415 | U115: 1.100453256 | V115: 0.3738627836 | W115: 0.265351369 | Y115: 5.075172936e+11 | Z115: 7218188000 | AA115: 70.31089985 | AB115: 8.512306535e+11 | AC115: 12940688000 | AD115: 65.77939701 | AE115: 1.068889395 | AF115: 1.083241683 | AG115: 1.142524538 | AH115: 80.33192836 | AI115: 57.57372803 | AJ115: 22.75820033 | AK115: 26.24683222 | AL115: -3.488631883 | BD115: 690298000
A116: 84 | B116: =IF(A116>$A$8,"",OFFSET(InputPriceData!B$15,$A116+$A$11,0,1,1)) -> 2024-02-20 | C116: =IF(A116>$A$8,"",OFFSET(InputPriceData!G$15,CalculationsAndCharts!$A116+$A$11,IF($C$5,8,0),1,1)) -> 704833000 | D116: =IF(A116>$A$8,"",OFFSET(InputPriceData!C$15,CalculationsAndCharts!$A116+$A$11,IF($C$5,8,0),1,1)) -> 71.946999 | E116: =IF(A116>$A$8,"",OFFSET(InputPriceData!D$15,CalculationsAndCharts!$A116+$A$11,IF($C$5,8,0),1,1)) -> 71.956001 | F116: =IF(A116>$A$8,"",OFFSET(InputPriceData!E$15,CalculationsAndCharts!$A116+$A$11,IF($C$5,8,0),1,1)) -> 67.734001 | G116: =IF(A116>$A$8,"",OFFSET(InputPriceData!F$15,CalculationsAndCharts!$A116+$A$11,IF($C$5,8,0),1,1)) -> 69.452003 | H116: 4.895206363e+10 | I116: 1.962207219e+11 | J116: 2727779000 | K116: 71.93424465 | L116: 6.652847888e+11 | M116: 9838310000 | N116: 67.62185668 | O116: 67.1131502 | P116: 72.1501998 | Q116: 545555800 | R116: 491915500 | S116: =IF($A116>$L$30,NA(),N116-O116) -> 0.5087064759 | T116: =IF($A116>$I$30,NA(),K116/P116) -> 0.997006867 | U116: 1.109043728 | V116: 0.5624890675 | W116: 0.2775399985 | Y116: 4.842076718e+11 | Z116: 6897036000 | AA116: 70.20518261 | AB116: 8.239671683e+11 | AC116: 12603384000 | AD116: 65.3766614 | AE116: 1.073856956 | AF116: 1.085770656 | AG116: 1.153168762 | AH116: 80.95842352 | AI116: 56.69305617 | AJ116: 24.26536735 | AK116: 26.73448777 | AL116: -2.469120414 | BD116: 704833000
A117: 85 | B117: =IF(A117>$A$8,"",OFFSET(InputPriceData!B$15,$A117+$A$11,0,1,1)) -> 2024-02-16 | C117: =IF(A117>$A$8,"",OFFSET(InputPriceData!G$15,CalculationsAndCharts!$A117+$A$11,IF($C$5,8,0),1,1)) -> 495327000 | D117: =IF(A117>$A$8,"",OFFSET(InputPriceData!C$15,CalculationsAndCharts!$A117+$A$11,IF($C$5,8,0),1,1)) -> 74.099998 | E117: =IF(A117>$A$8,"",OFFSET(InputPriceData!D$15,CalculationsAndCharts!$A117+$A$11,IF($C$5,8,0),1,1)) -> 74.402 | F117: =IF(A117>$A$8,"",OFFSET(InputPriceData!E$15,CalculationsAndCharts!$A117+$A$11,IF($C$5,8,0),1,1)) -> 72.500999 | G117: =IF(A117>$A$8,"",OFFSET(InputPriceData!F$15,CalculationsAndCharts!$A117+$A$11,IF($C$5,8,0),1,1)) -> 72.612999 | H117: 3.596717896e+10 | I117: 1.91607979e+11 | J117: 2636656000 | K117: 72.67082965 | L117: 6.433533022e+11 | M117: 9586432000 | N117: 67.11081894 | O117: 66.62325 | P117: 72.7093994 | Q117: 527331200 | R117: 479321600 | S117: =IF($A117>$L$30,NA(),N117-O117) -> 0.4875689407 | T117: =IF($A117>$I$30,NA(),K117/P117) -> 0.9994695355 | U117: 1.100161562 | V117: 0.5361200636 | W117: 0.2916835816 | Y117: 4.631762532e+11 | Z117: 6645998000 | AA117: 69.69250565 | AB117: 8.077306259e+11 | AC117: 12495310000 | AD117: 64.64270402 | AE117: 1.078118663 | AF117: 1.087605147 | AG117: 1.162339852 | AH117: 81.00637673 | AI117: 55.61428862 | AJ117: 25.39208811 | AK117: 26.97398404 | AL117: -1.581895934 | BD117: 495327000
A118: 86 | B118: =IF(A118>$A$8,"",OFFSET(InputPriceData!B$15,$A118+$A$11,0,1,1)) -> 2024-02-15 | C118: =IF(A118>$A$8,"",OFFSET(InputPriceData!G$15,CalculationsAndCharts!$A118+$A$11,IF($C$5,8,0),1,1)) -> 420122000 | D118: =IF(A118>$A$8,"",OFFSET(InputPriceData!C$15,CalculationsAndCharts!$A118+$A$11,IF($C$5,8,0),1,1)) -> 73.869003 | E118: =IF(A118>$A$8,"",OFFSET(InputPriceData!D$15,CalculationsAndCharts!$A118+$A$11,IF($C$5,8,0),1,1)) -> 73.974998 | F118: =IF(A118>$A$8,"",OFFSET(InputPriceData!E$15,CalculationsAndCharts!$A118+$A$11,IF($C$5,8,0),1,1)) -> 72.400002 | G118: =IF(A118>$A$8,"",OFFSET(InputPriceData!F$15,CalculationsAndCharts!$A118+$A$11,IF($C$5,8,0),1,1)) -> 72.657997 | H118: 3.052522302e+10 | I118: 1.871367381e+11 | J118: 2577966000 | K118: 72.59084801 | L118: 6.397195418e+11 | M118: 9634606000 | N118: 66.39810095 | O118: 65.9671501 | P118: 72.6134002 | Q118: 515593200 | R118: 481730300 | S118: =IF($A118>$L$30,NA(),N118-O118) -> 0.4309508517 | T118: =IF($A118>$I$30,NA(),K118/P118) -> 0.9996894211 | U118: 1.070294312 | V118: 0.4611009926 | W118: 0.3049661406 | Y118: 4.529925523e+11 | Z118: 6561406000 | AA118: 69.03894566 | AB118: 8.007752585e+11 | AC118: 12533779000 | AD118: 63.88937116 | AE118: 1.080601427 | AF118: 1.088491992 | AG118: 1.167699445 | AH118: 80.61673851 | AI118: 54.71388331 | AJ118: 25.9028552 | AK118: 26.91106701 | AL118: -1.008211807 | BD118: 420122000
A119: 87 | B119: =IF(A119>$A$8,"",OFFSET(InputPriceData!B$15,$A119+$A$11,0,1,1)) -> 2024-02-14 | C119: =IF(A119>$A$8,"",OFFSET(InputPriceData!G$15,CalculationsAndCharts!$A119+$A$11,IF($C$5,8,0),1,1)) -> 504917000 | D119: =IF(A119>$A$8,"",OFFSET(InputPriceData!C$15,CalculationsAndCharts!$A119+$A$11,IF($C$5,8,0),1,1)) -> 73.202003 | E119: =IF(A119>$A$8,"",OFFSET(InputPriceData!D$15,CalculationsAndCharts!$A119+$A$11,IF($C$5,8,0),1,1)) -> 74.236 | F119: =IF(A119>$A$8,"",OFFSET(InputPriceData!E$15,CalculationsAndCharts!$A119+$A$11,IF($C$5,8,0),1,1)) -> 71.938004 | G119: =IF(A119>$A$8,"",OFFSET(InputPriceData!F$15,CalculationsAndCharts!$A119+$A$11,IF($C$5,8,0),1,1)) -> 73.900002 | H119: 3.731336731e+10 | I119: 1.854722772e+11 | J119: 2572266000 | K119: 72.10462571 | L119: 6.372709744e+11 | M119: 9706134000 | N119: 65.65651931 | O119: 65.18960015 | P119: 72.0100006 | Q119: 514453200 | R119: 485306700 | S119: =IF($A119>$L$30,NA(),N119-O119) -> 0.4669191572 | T119: =IF($A119>$I$30,NA(),K119/P119) -> 1.001314055 | U119: 1.060057897 | V119: 0.4956117465 | W119: 0.3159923966 | Y119: 4.442509361e+11 | Z119: 6490017000 | AA119: 68.45142873 | AB119: 8.113325687e+11 | AC119: 12886757000 | AD119: 62.95863022 | AE119: 1.087244568 | AF119: 1.0883223 | AG119: 1.182100751 | AH119: 80.91648531 | AI119: 53.25995282 | AJ119: 27.65653249 | AK119: 26.52487772 | AL119: 1.131654765 | BC119: 504917000
A120: 88 | B120: =IF(A120>$A$8,"",OFFSET(InputPriceData!B$15,$A120+$A$11,0,1,1)) -> 2024-02-13 | C120: =IF(A120>$A$8,"",OFFSET(InputPriceData!G$15,CalculationsAndCharts!$A120+$A$11,IF($C$5,8,0),1,1)) -> 602580000 | D120: =IF(A120>$A$8,"",OFFSET(InputPriceData!C$15,CalculationsAndCharts!$A120+$A$11,IF($C$5,8,0),1,1)) -> 70.400002 | E120: =IF(A120>$A$8,"",OFFSET(InputPriceData!D$15,CalculationsAndCharts!$A120+$A$11,IF($C$5,8,0),1,1)) -> 73.449997 | F120: =IF(A120>$A$8,"",OFFSET(InputPriceData!E$15,CalculationsAndCharts!$A120+$A$11,IF($C$5,8,0),1,1)) -> 69.620003 | G120: =IF(A120>$A$8,"",OFFSET(InputPriceData!F$15,CalculationsAndCharts!$A120+$A$11,IF($C$5,8,0),1,1)) -> 72.127998 | H120: 4.346288903e+10 | I120: 1.828982213e+11 | J120: 2562924000 | K120: 71.36310764 | L120: 6.265488144e+11 | M120: 9675611000 | N120: 64.75547791 | O120: 64.2972501 | P120: 71.2498 | Q120: 512584800 | R120: 483780550 | S120: =IF($A120>$L$30,NA(),N120-O120) -> 0.4582278141 | T120: =IF($A120>$I$30,NA(),K120/P120) -> 1.001590287 | U120: 1.059539909 | V120: 0.4862827578 | W120: 0.3231621109 | Y120: 4.307585166e+11 | Z120: 6375409000 | AA120: 67.56562859 | AB120: 8.075922752e+11 | AC120: 13024350000 | AD120: 62.00634006 | AE120: 1.089656776 | AF120: 1.087062458 | AG120: 1.187351889 | AH120: 80.22417675 | AI120: 52.22237875 | AJ120: 28.001798 | AK120: 25.81873132 | AL120: 2.183066676 | BD120: 602580000
A121: 89 | B121: =IF(A121>$A$8,"",OFFSET(InputPriceData!B$15,$A121+$A$11,0,1,1)) -> 2024-02-12 | C121: =IF(A121>$A$8,"",OFFSET(InputPriceData!G$15,CalculationsAndCharts!$A121+$A$11,IF($C$5,8,0),1,1)) -> 613710000 | D121: =IF(A121>$A$8,"",OFFSET(InputPriceData!C$15,CalculationsAndCharts!$A121+$A$11,IF($C$5,8,0),1,1)) -> 72.599998 | E121: =IF(A121>$A$8,"",OFFSET(InputPriceData!D$15,CalculationsAndCharts!$A121+$A$11,IF($C$5,8,0),1,1)) -> 74.611 | F121: =IF(A121>$A$8,"",OFFSET(InputPriceData!E$15,CalculationsAndCharts!$A121+$A$11,IF($C$5,8,0),1,1)) -> 71.25 | G121: =IF(A121>$A$8,"",OFFSET(InputPriceData!F$15,CalculationsAndCharts!$A121+$A$11,IF($C$5,8,0),1,1)) -> 72.248001 | H121: 4.433932069e+10 | I121: 1.86039214e+11 | J121: 2643455000 | K121: 70.37729562 | L121: 6.084341449e+11 | M121: 9522611000 | N121: 63.89362591 | O121: 63.5099502 | P121: 70.4688004 | Q121: 528691000 | R121: 476130550 | S121: =IF($A121>$L$30,NA(),N121-O121) -> 0.3836757122 | T121: =IF($A121>$I$30,NA(),K121/P121) -> 0.9987014852 | U121: 1.110390837 | V121: 0.425476789 | W121: 0.3309104159 | Y121: 4.170428985e+11 | Z121: 6255606000 | AA121: 66.66706606 | AB121: 7.845065559e+11 | AC121: 12836809000 | AD121: 61.11382945 | AE121: 1.090867103 | AF121: 1.08534831 | AG121: 1.189991036 | AH121: 79.33321098 | AI121: 51.35654608 | AJ121: 27.97666491 | AK121: 25.00486037 | AL121: 2.971804536 | BC121: 613710000
A122: 90 | B122: =IF(A122>$A$8,"",OFFSET(InputPriceData!B$15,$A122+$A$11,0,1,1)) -> 2024-02-09 | C122: =IF(A122>$A$8,"",OFFSET(InputPriceData!G$15,CalculationsAndCharts!$A122+$A$11,IF($C$5,8,0),1,1)) -> 436637000 | D122: =IF(A122>$A$8,"",OFFSET(InputPriceData!C$15,CalculationsAndCharts!$A122+$A$11,IF($C$5,8,0),1,1)) -> 70.532997 | E122: =IF(A122>$A$8,"",OFFSET(InputPriceData!D$15,CalculationsAndCharts!$A122+$A$11,IF($C$5,8,0),1,1)) -> 72.184998 | F122: =IF(A122>$A$8,"",OFFSET(InputPriceData!E$15,CalculationsAndCharts!$A122+$A$11,IF($C$5,8,0),1,1)) -> 70.211998 | G122: =IF(A122>$A$8,"",OFFSET(InputPriceData!F$15,CalculationsAndCharts!$A122+$A$11,IF($C$5,8,0),1,1)) -> 72.133003 | H122: 3.149593803e+10 | I122: 1.888510619e+11 | J122: 2709823000 | K122: 69.69129049 | L122: 5.834071256e+11 | M122: 9261895000 | N122: 62.99003882 | O122: 62.6330501 | P122: 69.8856004 | Q122: 541964600 | R122: 463094750 | S122: =IF($A122>$L$30,NA(),N122-O122) -> 0.3569887241 | T122: =IF($A122>$I$30,NA(),K122/P122) -> 0.9972196002 | U122: 1.170310395 | V122: 0.4166259982 | W122: 0.3427291744 | Y122: 4.070829269e+11 | Z122: 6202167000 | AA122: 65.63559589 | AB122: 7.548803025e+11 | AC122: 12529634000 | AD122: 60.24759402 | AE122: 1.089430988 | AF122: 1.083150331 | AG122: 1.186859878 | AH122: 77.90025534 | AI122: 50.76217937 | AJ122: 27.13807598 | AK122: 24.07848008 | AL122: 3.059595896 | BC122: 436637000
A123: 91 | B123: =IF(A123>$A$8,"",OFFSET(InputPriceData!B$15,$A123+$A$11,0,1,1)) -> 2024-02-08 | C123: =IF(A123>$A$8,"",OFFSET(InputPriceData!G$15,CalculationsAndCharts!$A123+$A$11,IF($C$5,8,0),1,1)) -> 414422000 | D123: =IF(A123>$A$8,"",OFFSET(InputPriceData!C$15,CalculationsAndCharts!$A123+$A$11,IF($C$5,8,0),1,1)) -> 70.073997 | E123: =IF(A123>$A$8,"",OFFSET(InputPriceData!D$15,CalculationsAndCharts!$A123+$A$11,IF($C$5,8,0),1,1)) -> 70.793999 | F123: =IF(A123>$A$8,"",OFFSET(InputPriceData!E$15,CalculationsAndCharts!$A123+$A$11,IF($C$5,8,0),1,1)) -> 69.455002 | G123: =IF(A123>$A$8,"",OFFSET(InputPriceData!F$15,CalculationsAndCharts!$A123+$A$11,IF($C$5,8,0),1,1)) -> 69.640999 | H123: 2.886076209e+10 | I123: 1.888855262e+11 | J123: 2749764000 | K123: 68.69154089 | L123: 5.846267089e+11 | M123: 9422017000 | N123: 62.04899746 | O123: 61.7674999 | P123: 68.6910006 | Q123: 549952800 | R123: 471100850 | S123: =IF($A123>$L$30,NA(),N123-O123) -> 0.2814975604 | T123: =IF($A123>$I$30,NA(),K123/P123) -> 1.000007865 | U123: 1.167378068 | V123: 0.3286166628 | W123: 0.3569223844 | Y123: 3.932288081e+11 | Z123: 6060184000 | AA123: 64.88727208 | AB123: 7.386490663e+11 | AC123: 12413893000 | AD123: 59.50180707 | AE123: 1.090509268 | AF123: 1.080927435 | AG123: 1.189210464 | AH123: 77.16462294 | AI123: 50.03471536 | AJ123: 27.12990759 | AK123: 23.17277834 | AL123: 3.957129252 | BD123: 414422000
A124: 92 | B124: =IF(A124>$A$8,"",OFFSET(InputPriceData!B$15,$A124+$A$11,0,1,1)) -> 2024-02-07 | C124: =IF(A124>$A$8,"",OFFSET(InputPriceData!G$15,CalculationsAndCharts!$A124+$A$11,IF($C$5,8,0),1,1)) -> 495575000 | D124: =IF(A124>$A$8,"",OFFSET(InputPriceData!C$15,CalculationsAndCharts!$A124+$A$11,IF($C$5,8,0),1,1)) -> 68.319 | E124: =IF(A124>$A$8,"",OFFSET(InputPriceData!D$15,CalculationsAndCharts!$A124+$A$11,IF($C$5,8,0),1,1)) -> 70.220001 | F124: =IF(A124>$A$8,"",OFFSET(InputPriceData!E$15,CalculationsAndCharts!$A124+$A$11,IF($C$5,8,0),1,1)) -> 67.599998 | G124: =IF(A124>$A$8,"",OFFSET(InputPriceData!F$15,CalculationsAndCharts!$A124+$A$11,IF($C$5,8,0),1,1)) -> 70.098999 | H124: 3.473931143e+10 | I124: 1.832909291e+11 | J124: 2704488000 | K124: 67.77287571 | L124: 5.847777583e+11 | M124: 9541391000 | N124: 61.28852264 | O124: 61.00294985 | P124: 67.3682008 | Q124: 540897600 | R124: 477069550 | S124: =IF($A124>$L$30,NA(),N124-O124) -> 0.285572793 | T124: =IF($A124>$I$30,NA(),K124/P124) -> 1.006006913 | U124: 1.133791918 | V124: 0.3257250437 | W124: 0.366463437 | Y124: 3.913886231e+11 | Z124: 6098717000 | AA124: 64.17556727 | AB124: 7.295975864e+11 | AC124: 12410725000 | AD124: 58.78766844 | AE124: 1.091650153 | AF124: 1.077850936 | AG124: 1.191700057 | AH124: 76.4780272 | AI124: 49.33092692 | AJ124: 27.14710028 | AK124: 22.04975354 | AL124: 5.097346741 | BC124: 495575000
A125: 93 | B125: =IF(A125>$A$8,"",OFFSET(InputPriceData!B$15,$A125+$A$11,0,1,1)) -> 2024-02-06 | C125: =IF(A125>$A$8,"",OFFSET(InputPriceData!G$15,CalculationsAndCharts!$A125+$A$11,IF($C$5,8,0),1,1)) -> 683111000 | D125: =IF(A125>$A$8,"",OFFSET(InputPriceData!C$15,CalculationsAndCharts!$A125+$A$11,IF($C$5,8,0),1,1)) -> 69.629997 | E125: =IF(A125>$A$8,"",OFFSET(InputPriceData!D$15,CalculationsAndCharts!$A125+$A$11,IF($C$5,8,0),1,1)) -> 69.753998 | F125: =IF(A125>$A$8,"",OFFSET(InputPriceData!E$15,CalculationsAndCharts!$A125+$A$11,IF($C$5,8,0),1,1)) -> 66.300003 | G125: =IF(A125>$A$8,"",OFFSET(InputPriceData!F$15,CalculationsAndCharts!$A125+$A$11,IF($C$5,8,0),1,1)) -> 68.223 | H125: 46603881753 | I125: 1.764722626e+11 | J125: 2662708000 | K125: 66.27548444 | L125: 5.911209801e+11 | M125: 9818916000 | N125: 60.2022647 | O125: 60.15499985 | P125: 65.653801 | Q125: 532541600 | R125: 490945800 | S125: =IF($A125>$L$30,NA(),N125-O125) -> 0.04726485487 | T125: =IF($A125>$I$30,NA(),K125/P125) -> 1.009469116 | U125: 1.08472585 | V125: 0.05175488583 | W125: 0.3668721486 | Y125: 3.889827302e+11 | Z125: 6146643000 | AA125: 63.2837681 | AB125: 7.141368426e+11 | AC125: 12304443000 | AD125: 58.0389411 | AE125: 1.090367379 | AF125: 1.074046199 | AG125: 1.188901022 | AH125: 75.23813655 | AI125: 48.81730274 | AJ125: 26.42083382 | AK125: 20.74816966 | AL125: 5.672664153 | BD125: 683111000
A126: 94 | B126: =IF(A126>$A$8,"",OFFSET(InputPriceData!B$15,$A126+$A$11,0,1,1)) -> 2024-02-05 | C126: =IF(A126>$A$8,"",OFFSET(InputPriceData!G$15,CalculationsAndCharts!$A126+$A$11,IF($C$5,8,0),1,1)) -> 680078000 | D126: =IF(A126>$A$8,"",OFFSET(InputPriceData!C$15,CalculationsAndCharts!$A126+$A$11,IF($C$5,8,0),1,1)) -> 68.224998 | E126: =IF(A126>$A$8,"",OFFSET(InputPriceData!D$15,CalculationsAndCharts!$A126+$A$11,IF($C$5,8,0),1,1)) -> 69.497002 | F126: =IF(A126>$A$8,"",OFFSET(InputPriceData!E$15,CalculationsAndCharts!$A126+$A$11,IF($C$5,8,0),1,1)) -> 67.205002 | G126: =IF(A126>$A$8,"",OFFSET(InputPriceData!F$15,CalculationsAndCharts!$A126+$A$11,IF($C$5,8,0),1,1)) -> 69.332001 | H126: 4.715116858e+10 | I126: 1.556518589e+11 | J126: 2390332000 | K126: 65.11725523 | L126: 5.780901721e+11 | M126: 9778315000 | N126: 59.11961029 | O126: 59.35649975 | P126: 64.5640006 | Q126: 478066400 | R126: 488915750 | S126: =IF($A126>$L$30,NA(),N126-O126) -> -0.2368894553 | T126: =IF($A126>$I$30,NA(),K126/P126) -> 1.008569088 | U126: 0.977809367 | V126: -0.2336176097 | W126: 0.368473488 | Y126: 3.70455504e+11 | Z126: 5955182000 | AA126: 62.20725144 | AB126: 6.79744442e+11 | AC126: 11867919000 | AD126: 57.27579047 | AE126: 1.086100269 | AF126: 1.069853451 | AG126: 1.179613794 | AH126: 73.3805319 | AI126: 48.55469709 | AJ126: 24.82583481 | AK126: 19.36761682 | AL126: 5.458217987 | BC126: 680078000
A127: 95 | B127: =IF(A127>$A$8,"",OFFSET(InputPriceData!B$15,$A127+$A$11,0,1,1)) -> 2024-02-02 | C127: =IF(A127>$A$8,"",OFFSET(InputPriceData!G$15,CalculationsAndCharts!$A127+$A$11,IF($C$5,8,0),1,1)) -> 476578000 | D127: =IF(A127>$A$8,"",OFFSET(InputPriceData!C$15,CalculationsAndCharts!$A127+$A$11,IF($C$5,8,0),1,1)) -> 63.973999 | E127: =IF(A127>$A$8,"",OFFSET(InputPriceData!D$15,CalculationsAndCharts!$A127+$A$11,IF($C$5,8,0),1,1)) -> 66.599998 | F127: =IF(A127>$A$8,"",OFFSET(InputPriceData!E$15,CalculationsAndCharts!$A127+$A$11,IF($C$5,8,0),1,1)) -> 63.689999 | G127: =IF(A127>$A$8,"",OFFSET(InputPriceData!F$15,CalculationsAndCharts!$A127+$A$11,IF($C$5,8,0),1,1)) -> 66.160004 | H127: 3.153040239e+10 | I127: 1.302842972e+11 | J127: 2058987000 | K127: 63.27592025 | L127: 5.513161733e+11 | M127: 9513276000 | N127: 57.9522946 | O127: 58.3447497 | P127: 63.1906004 | Q127: 411797400 | R127: 475663800 | S127: =IF($A127>$L$30,NA(),N127-O127) -> -0.3924551018 | T127: =IF($A127>$I$30,NA(),K127/P127) -> 1.001350198 | U127: 0.865732057 | V127: -0.3402197073 | W127: 0.3776635389 | Y127: 3.498955428e+11 | Z127: 5749498000 | AA127: 60.85671181 | AB127: 6.441394566e+11 | AC127: 11421489000 | AD127: 56.39715247 | AE127: 1.079074193 | AF127: 1.065626289 | AG127: 1.164401114 | AH127: 70.86162305 | AI127: 48.4344714 | AJ127: 22.42715165 | AK127: 18.01246224 | AL127: 4.41468941 | BC127: 476578000
A128: 96 | B128: =IF(A128>$A$8,"",OFFSET(InputPriceData!B$15,$A128+$A$11,0,1,1)) -> 2024-02-01 | C128: =IF(A128>$A$8,"",OFFSET(InputPriceData!G$15,CalculationsAndCharts!$A128+$A$11,IF($C$5,8,0),1,1)) -> 369146000 | D128: =IF(A128>$A$8,"",OFFSET(InputPriceData!C$15,CalculationsAndCharts!$A128+$A$11,IF($C$5,8,0),1,1)) -> 62.099998 | E128: =IF(A128>$A$8,"",OFFSET(InputPriceData!D$15,CalculationsAndCharts!$A128+$A$11,IF($C$5,8,0),1,1)) -> 63.191002 | F128: =IF(A128>$A$8,"",OFFSET(InputPriceData!E$15,CalculationsAndCharts!$A128+$A$11,IF($C$5,8,0),1,1)) -> 61.650002 | G128: =IF(A128>$A$8,"",OFFSET(InputPriceData!F$15,CalculationsAndCharts!$A128+$A$11,IF($C$5,8,0),1,1)) -> 63.027 | H128: 23266164942 | I128: 1.225748426e+11 | J128: 1972718000 | K128: 62.13500491 | L128: 5.344988382e+11 | M128: 9343233000 | N128: 57.20705437 | O128: 57.43664955 | P128: 62.1647992 | Q128: 394543600 | R128: 467161650 | S128: =IF($A128>$L$30,NA(),N128-O128) -> -0.2295951828 | T128: =IF($A128>$I$30,NA(),K128/P128) -> 0.9995207209 | U128: 0.8445547703 | V128: -0.1938127719 | W128: 0.3918757193 | Y128: 3.4371336e+11 | Z128: 5722500000 | AA128: 60.06349672 | AB128: 6.246429858e+11 | AC128: 11189111000 | AD128: 55.82597096 | AE128: 1.075905993 | AF128: 1.061736754 | AG128: 1.157573706 | AH128: 69.52792448 | AI128: 48.22670962 | AJ128: 21.30121486 | AK128: 16.79774052 | AL128: 4.503474341 | BC128: 369146000
A129: 97 | B129: =IF(A129>$A$8,"",OFFSET(InputPriceData!B$15,$A129+$A$11,0,1,1)) -> 2024-01-31 | C129: =IF(A129>$A$8,"",OFFSET(InputPriceData!G$15,CalculationsAndCharts!$A129+$A$11,IF($C$5,8,0),1,1)) -> 453795000 | D129: =IF(A129>$A$8,"",OFFSET(InputPriceData!C$15,CalculationsAndCharts!$A129+$A$11,IF($C$5,8,0),1,1)) -> 61.439999 | E129: =IF(A129>$A$8,"",OFFSET(InputPriceData!D$15,CalculationsAndCharts!$A129+$A$11,IF($C$5,8,0),1,1)) -> 62.269001 | F129: =IF(A129>$A$8,"",OFFSET(InputPriceData!E$15,CalculationsAndCharts!$A129+$A$11,IF($C$5,8,0),1,1)) -> 60.700001 | G129: =IF(A129>$A$8,"",OFFSET(InputPriceData!F$15,CalculationsAndCharts!$A129+$A$11,IF($C$5,8,0),1,1)) -> 61.527 | H129: 27920644965 | I129: 1.290559486e+11 | J129: 2086349000 | K129: 61.85731561 | L129: 5.264973751e+11 | M129: 9294983000 | N129: 56.64317784 | O129: 56.66374955 | P129: 61.8827994 | Q129: 417269800 | R129: 464749150 | S129: =IF($A129>$L$30,NA(),N129-O129) -> -0.02057171115 | T129: =IF($A129>$I$30,NA(),K129/P129) -> 0.9995881927 | U129: 0.8978387588 | V129: -0.0184624735 | W129: 0.3987753443 | Y129: 3.397594964e+11 | Z129: 5706348000 | AA129: 59.54061975 | AB129: 6.137067381e+11 | AC129: 11072472000 | AD129: 55.42635268 | AE129: 1.074229439 | AF129: 1.057555804 | AG129: 1.153968888 | AH129: 68.70802274 | AI129: 48.0310633 | AJ129: 20.67695945 | AK129: 15.52991227 | AL129: 5.147047181 | BD129: 453795000
A130: 98 | B130: =IF(A130>$A$8,"",OFFSET(InputPriceData!B$15,$A130+$A$11,0,1,1)) -> 2024-01-30 | C130: =IF(A130>$A$8,"",OFFSET(InputPriceData!G$15,CalculationsAndCharts!$A130+$A$11,IF($C$5,8,0),1,1)) -> 410735000 | D130: =IF(A130>$A$8,"",OFFSET(InputPriceData!C$15,CalculationsAndCharts!$A130+$A$11,IF($C$5,8,0),1,1)) -> 62.900002 | E130: =IF(A130>$A$8,"",OFFSET(InputPriceData!D$15,CalculationsAndCharts!$A130+$A$11,IF($C$5,8,0),1,1)) -> 63.493 | F130: =IF(A130>$A$8,"",OFFSET(InputPriceData!E$15,CalculationsAndCharts!$A130+$A$11,IF($C$5,8,0),1,1)) -> 62.259998 | G130: =IF(A130>$A$8,"",OFFSET(InputPriceData!F$15,CalculationsAndCharts!$A130+$A$11,IF($C$5,8,0),1,1)) -> 62.773998 | H130: 2.578347807e+10 | I130: 1.355146527e+11 | J130: 2192825000 | K130: 61.79911881 | L130: 5.183860124e+11 | M130: 9252442000 | N130: 56.02693996 | O130: 55.9957995 | P130: 61.8497994 | Q130: 438565000 | R130: 462622100 | S130: =IF($A130>$L$30,NA(),N130-O130) -> 0.03114045529 | T130: =IF($A130>$I$30,NA(),K130/P130) -> 0.999180586 | U130: 0.9479983771 | V130: 0.02949691107 | W130: 0.3959609066 | Y130: 3.445543728e+11 | Z130: 5849312000 | AA130: 58.90511102 | AB130: 6.005039145e+11 | AC130: 10919102000 | AD130: 54.99572351 | AE130: 1.0710853 | AF130: 1.053280166 | AG130: 1.14722372 | AH130: 67.57734061 | AI130: 47.93809833 | AJ130: 19.63924229 | AK130: 14.24622638 | AL130: 5.393015905 | BC130: 410735000
A131: 99 | B131: =IF(A131>$A$8,"",OFFSET(InputPriceData!B$15,$A131+$A$11,0,1,1)) -> 2024-01-29 | C131: =IF(A131>$A$8,"",OFFSET(InputPriceData!G$15,CalculationsAndCharts!$A131+$A$11,IF($C$5,8,0),1,1)) -> 348733000 | D131: =IF(A131>$A$8,"",OFFSET(InputPriceData!C$15,CalculationsAndCharts!$A131+$A$11,IF($C$5,8,0),1,1)) -> 61.231998 | E131: =IF(A131>$A$8,"",OFFSET(InputPriceData!D$15,CalculationsAndCharts!$A131+$A$11,IF($C$5,8,0),1,1)) -> 62.488998 | F131: =IF(A131>$A$8,"",OFFSET(InputPriceData!E$15,CalculationsAndCharts!$A131+$A$11,IF($C$5,8,0),1,1)) -> 60.907001 | G131: =IF(A131>$A$8,"",OFFSET(InputPriceData!F$15,CalculationsAndCharts!$A131+$A$11,IF($C$5,8,0),1,1)) -> 62.465 | H131: 21783606845 | I131: 1.273729939e+11 | J131: 2076744000 | K131: 61.33302606 | L131: 5.118811019e+11 | M131: 9231000000 | N131: 55.45239973 | O131: 55.33319955 | P131: 61.2696 | Q131: 415348800 | R131: 461550000 | S131: =IF($A131>$L$30,NA(),N131-O131) -> 0.1192001751 | T131: =IF($A131>$I$30,NA(),K131/P131) -> 1.001035196 | U131: 0.8998999025 | V131: 0.1073792696 | W131: 0.3910959949 | Y131: 3.477827062e+11 | Z131: 5972373000 | AA131: 58.23191322 | AB131: 5.938635147e+11 | AC131: 10906261000 | AD131: 54.45161405 | AE131: 1.069424924 | AF131: 1.049166462 | AG131: 1.143669668 | AH131: 66.59807286 | AI131: 47.61131258 | AJ131: 18.98676028 | AK131: 13.02241502 | AL131: 5.964345262 | BC131: 348733000
A132: 100 | B132: =IF(A132>$A$8,"",OFFSET(InputPriceData!B$15,$A132+$A$11,0,1,1)) -> 2024-01-26 | C132: =IF(A132>$A$8,"",OFFSET(InputPriceData!G$15,CalculationsAndCharts!$A132+$A$11,IF($C$5,8,0),1,1)) -> 390309000 | D132: =IF(A132>$A$8,"",OFFSET(InputPriceData!C$15,CalculationsAndCharts!$A132+$A$11,IF($C$5,8,0),1,1)) -> 60.959999 | E132: =IF(A132>$A$8,"",OFFSET(InputPriceData!D$15,CalculationsAndCharts!$A132+$A$11,IF($C$5,8,0),1,1)) -> 61.783001 | F132: =IF(A132>$A$8,"",OFFSET(InputPriceData!E$15,CalculationsAndCharts!$A132+$A$11,IF($C$5,8,0),1,1)) -> 60.573002 | G132: =IF(A132>$A$8,"",OFFSET(InputPriceData!F$15,CalculationsAndCharts!$A132+$A$11,IF($C$5,8,0),1,1)) -> 61.030998 | H132: 2.38209478e+10 | I132: 1.326099641e+11 | J132: 2180966000 | K132: 60.80331566 | L132: 5.023089762e+11 | M132: 9128854000 | N132: 55.02431917 | O132: 54.6860495 | P132: 60.7073998 | Q132: 436193200 | R132: 456442700 | S132: =IF($A132>$L$30,NA(),N132-O132) -> 0.3382696735 | T132: =IF($A132>$I$30,NA(),K132/P132) -> 1.00157997 | U132: 0.9556362715 | V132: 0.323773515 | W132: 0.3817289642 | Y132: 3.670816326e+11 | Z132: 6396740000 | AA132: 57.38573595 | AB132: 5.95118188e+11 | AC132: 11021972000 | AD132: 53.99380329 | AE132: 1.062820777 | AF132: 1.045138256 | AG132: 1.129588004 | AH132: 64.82223891 | AI132: 47.79955445 | AJ132: 17.02268446 | AK132: 11.83906951 | AL132: 5.18361495 | BD132: 390309000
A133: 101 | B133: =IF(A133>$A$8,"",OFFSET(InputPriceData!B$15,$A133+$A$11,0,1,1)) -> 2024-01-25 | C133: =IF(A133>$A$8,"",OFFSET(InputPriceData!G$15,CalculationsAndCharts!$A133+$A$11,IF($C$5,8,0),1,1)) -> 482777000 | D133: =IF(A133>$A$8,"",OFFSET(InputPriceData!C$15,CalculationsAndCharts!$A133+$A$11,IF($C$5,8,0),1,1)) -> 62.349998 | E133: =IF(A133>$A$8,"",OFFSET(InputPriceData!D$15,CalculationsAndCharts!$A133+$A$11,IF($C$5,8,0),1,1)) -> 62.719002 | F133: =IF(A133>$A$8,"",OFFSET(InputPriceData!E$15,CalculationsAndCharts!$A133+$A$11,IF($C$5,8,0),1,1)) -> 60.849998 | G133: =IF(A133>$A$8,"",OFFSET(InputPriceData!F$15,CalculationsAndCharts!$A133+$A$11,IF($C$5,8,0),1,1)) -> 61.617001 | H133: 2.974727089e+10 | I133: 1.411224349e+11 | J133: 2334158000 | K133: 60.45967534 | L133: 4.900342116e+11 | M133: 8972193000 | N133: 54.61699404 | O133: 54.1053496 | P133: 60.3994004 | Q133: 466831600 | R133: 448609650 | S133: =IF($A133>$L$30,NA(),N133-O133) -> 0.5116444395 | T133: =IF($A133>$I$30,NA(),K133/P133) -> 1.000997939 | U133: 1.040618721 | V133: 0.5329581117 | W133: 0.3622857417 | Y133: 3.768337586e+11 | Z133: 6648941000 | AA133: 56.67575612 | AB133: 5.919583594e+11 | AC133: 11044250000 | AD133: 53.59878303 | AE133: 1.057407518 | AF133: 1.041752499 | AG133: 1.118110659 | AH133: 63.36976701 | AI133: 47.93692163 | AJ133: 15.43284538 | AK133: 10.84319144 | AL133: 4.589653936 | BC133: 482777000
A134: 102 | B134: =IF(A134>$A$8,"",OFFSET(InputPriceData!B$15,$A134+$A$11,0,1,1)) -> 2024-01-24 | C134: =IF(A134>$A$8,"",OFFSET(InputPriceData!G$15,CalculationsAndCharts!$A134+$A$11,IF($C$5,8,0),1,1)) -> 560271000 | D134: =IF(A134>$A$8,"",OFFSET(InputPriceData!C$15,CalculationsAndCharts!$A134+$A$11,IF($C$5,8,0),1,1)) -> 60.304001 | E134: =IF(A134>$A$8,"",OFFSET(InputPriceData!D$15,CalculationsAndCharts!$A134+$A$11,IF($C$5,8,0),1,1)) -> 62.848999 | F134: =IF(A134>$A$8,"",OFFSET(InputPriceData!E$15,CalculationsAndCharts!$A134+$A$11,IF($C$5,8,0),1,1)) -> 59.938 | G134: =IF(A134>$A$8,"",OFFSET(InputPriceData!F$15,CalculationsAndCharts!$A134+$A$11,IF($C$5,8,0),1,1)) -> 61.362 | H134: 34379349102 | I134: 1.394518196e+11 | J134: 2343031000 | K134: 59.51770145 | L134: 4.723208723e+11 | M134: 8733616000 | N134: 54.08079222 | O134: 53.4884495 | P134: 59.4973998 | Q134: 468606200 | R134: 436680800 | S134: =IF($A134>$L$30,NA(),N134-O134) -> 0.5923427247 | T134: =IF($A134>$I$30,NA(),K134/P134) -> 1.000341219 | U134: 1.073109237 | V134: 0.6358653446 | W134: 0.3333374789 | Y134: 3.674636574e+11 | Z134: 6581203000 | AA134: 55.83533245 | AB134: 5.856757458e+11 | AC134: 11041421000 | AD134: 53.04351186 | AE134: 1.05263265 | AF134: 1.038848919 | AG134: 1.108035496 | AH134: 61.86753028 | AI134: 47.87167204 | AJ134: 13.99585823 | AK134: 9.989369665 | AL134: 4.00648857 | BC134: 560271000
A135: 103 | B135: =IF(A135>$A$8,"",OFFSET(InputPriceData!B$15,$A135+$A$11,0,1,1)) -> 2024-01-23 | C135: =IF(A135>$A$8,"",OFFSET(InputPriceData!G$15,CalculationsAndCharts!$A135+$A$11,IF($C$5,8,0),1,1)) -> 294654000 | D135: =IF(A135>$A$8,"",OFFSET(InputPriceData!C$15,CalculationsAndCharts!$A135+$A$11,IF($C$5,8,0),1,1)) -> 59.57 | E135: =IF(A135>$A$8,"",OFFSET(InputPriceData!D$15,CalculationsAndCharts!$A135+$A$11,IF($C$5,8,0),1,1)) -> 59.91 | F135: =IF(A135>$A$8,"",OFFSET(InputPriceData!E$15,CalculationsAndCharts!$A135+$A$11,IF($C$5,8,0),1,1)) -> 58.584999 | G135: =IF(A135>$A$8,"",OFFSET(InputPriceData!F$15,CalculationsAndCharts!$A135+$A$11,IF($C$5,8,0),1,1)) -> 59.873001 | H135: 1.764181924e+10 | I135: 1.316636778e+11 | J135: 2257154000 | K135: 58.33172119 | L135: 4.502714405e+11 | M135: 8425852000 | N135: 53.43927718 | O135: 52.8618496 | P135: 58.4356 | Q135: 451430800 | R135: 421292600 | S135: =IF($A135>$L$30,NA(),N135-O135) -> 0.5774275768 | T135: =IF($A135>$I$30,NA(),K135/P135) -> 0.9982223369 | U135: 1.071537454 | V135: 0.6176353727 | W135: 0.3004234732 | Y135: 3.477973756e+11 | Z135: 6327467000 | AA135: 54.96628834 | AB135: 5.702124631e+11 | AC135: 10872382000 | AD135: 52.44595555 | AE135: 1.048055808 | AF135: 1.036294289 | AG135: 1.098420977 | AH135: 60.37612417 | AI135: 47.74668058 | AJ135: 12.62944359 | AK135: 9.242381822 | AL135: 3.387061767 | BC135: 294654000
A136: 104 | B136: =IF(A136>$A$8,"",OFFSET(InputPriceData!B$15,$A136+$A$11,0,1,1)) -> 2024-01-22 | C136: =IF(A136>$A$8,"",OFFSET(InputPriceData!G$15,CalculationsAndCharts!$A136+$A$11,IF($C$5,8,0),1,1)) -> 452955000 | D136: =IF(A136>$A$8,"",OFFSET(InputPriceData!C$15,CalculationsAndCharts!$A136+$A$11,IF($C$5,8,0),1,1)) -> 60.049 | E136: =IF(A136>$A$8,"",OFFSET(InputPriceData!D$15,CalculationsAndCharts!$A136+$A$11,IF($C$5,8,0),1,1)) -> 60.331001 | F136: =IF(A136>$A$8,"",OFFSET(InputPriceData!E$15,CalculationsAndCharts!$A136+$A$11,IF($C$5,8,0),1,1)) -> 59.07 | G136: =IF(A136>$A$8,"",OFFSET(InputPriceData!F$15,CalculationsAndCharts!$A136+$A$11,IF($C$5,8,0),1,1)) -> 59.653999 | H136: 2.702057712e+10 | I136: 1.393700781e+11 | J136: 2412080000 | K136: 57.78003969 | L136: 4.473474426e+11 | M136: 8431623000 | N136: 53.05591137 | O136: 52.31769965 | P136: 57.7373998 | Q136: 482416000 | R136: 421581150 | S136: =IF($A136>$L$30,NA(),N136-O136) -> 0.73821172 | T136: =IF($A136>$I$30,NA(),K136/P136) -> 1.000738514 | U136: 1.144301637 | V136: 0.8453607297 | W136: 0.2693101877 | Y136: 3.454202582e+11 | Z136: 6353709000 | AA136: 54.36513667 | AB136: 5.74104066e+11 | AC136: 11025520000 | AD136: 52.07047523 | AE136: 1.044068379 | AF136: 1.033697014 | AG136: 1.090078781 | AH136: 59.26228189 | AI136: 47.76762575 | AJ136: 11.49465614 | AK136: 8.506895376 | AL136: 2.987760761 | BC136: 452955000
A137: 105 | B137: =IF(A137>$A$8,"",OFFSET(InputPriceData!B$15,$A137+$A$11,0,1,1)) -> 2024-01-19 | C137: =IF(A137>$A$8,"",OFFSET(InputPriceData!G$15,CalculationsAndCharts!$A137+$A$11,IF($C$5,8,0),1,1)) -> 543501000 | D137: =IF(A137>$A$8,"",OFFSET(InputPriceData!C$15,CalculationsAndCharts!$A137+$A$11,IF($C$5,8,0),1,1)) -> 57.988998 | E137: =IF(A137>$A$8,"",OFFSET(InputPriceData!D$15,CalculationsAndCharts!$A137+$A$11,IF($C$5,8,0),1,1)) -> 59.5 | F137: =IF(A137>$A$8,"",OFFSET(InputPriceData!E$15,CalculationsAndCharts!$A137+$A$11,IF($C$5,8,0),1,1)) -> 57.224998 | G137: =IF(A137>$A$8,"",OFFSET(InputPriceData!F$15,CalculationsAndCharts!$A137+$A$11,IF($C$5,8,0),1,1)) -> 59.491001 | H137: 3.233341853e+10 | I137: 1.316618024e+11 | J137: 2312119000 | K137: 56.94421542 | L137: 4.394699437e+11 | M137: 8376562000 | N137: 52.46423816 | O137: 51.7405497 | P137: 56.7485998 | Q137: 462423800 | R137: 418828100 | S137: =IF($A137>$L$30,NA(),N137-O137) -> 0.7236884576 | T137: =IF($A137>$I$30,NA(),K137/P137) -> 1.003447056 | U137: 1.104089721 | V137: 0.8017712437 | W137: 0.2306080794 | Y137: 3.382089633e+11 | Z137: 6312008000 | AA137: 53.58183375 | AB137: 5.648303365e+11 | AC137: 10944952000 | AD137: 51.60646995 | AE137: 1.038277445 | AF137: 1.03127089 | AG137: 1.078020052 | AH137: 57.76229123 | AI137: 47.87153063 | AJ137: 9.890760595 | AK137: 7.825732466 | AL137: 2.065028129 | BC137: 543501000
A138: 106 | B138: =IF(A138>$A$8,"",OFFSET(InputPriceData!B$15,$A138+$A$11,0,1,1)) -> 2024-01-18 | C138: =IF(A138>$A$8,"",OFFSET(InputPriceData!G$15,CalculationsAndCharts!$A138+$A$11,IF($C$5,8,0),1,1)) -> 491650000 | D138: =IF(A138>$A$8,"",OFFSET(InputPriceData!C$15,CalculationsAndCharts!$A138+$A$11,IF($C$5,8,0),1,1)) -> 57.259998 | E138: =IF(A138>$A$8,"",OFFSET(InputPriceData!D$15,CalculationsAndCharts!$A138+$A$11,IF($C$5,8,0),1,1)) -> 57.599998 | F138: =IF(A138>$A$8,"",OFFSET(InputPriceData!E$15,CalculationsAndCharts!$A138+$A$11,IF($C$5,8,0),1,1)) -> 56.106998 | G138: =IF(A138>$A$8,"",OFFSET(InputPriceData!F$15,CalculationsAndCharts!$A138+$A$11,IF($C$5,8,0),1,1)) -> 57.106998 | H138: 2.807665557e+10 | I138: 1.320439052e+11 | J138: 2365377000 | K138: 55.82361931 | L138: 4.301748054e+11 | M138: 8297505000 | N138: 51.84387419 | O138: 51.24619965 | P138: 55.8147994 | Q138: 473075400 | R138: 414875250 | S138: =IF($A138>$L$30,NA(),N138-O138) -> 0.5976745449 | T138: =IF($A138>$I$30,NA(),K138/P138) -> 1.000158021 | U138: 1.140283495 | V138: 0.6816261131 | W138: 0.1957489484 | Y138: 3.251541123e+11 | Z138: 6157800000 | AA138: 52.80361693 | AB138: 5.562640049e+11 | AC138: 10911179000 | AD138: 50.98110891 | AE138: 1.035748693 | AF138: 1.029292065 | AG138: 1.072775355 | AH138: 56.64641892 | AI138: 47.52263244 | AJ138: 9.123786482 | AK138: 7.272369696 | AL138: 1.851416786 | BC138: 491650000
A139: 107 | B139: =IF(A139>$A$8,"",OFFSET(InputPriceData!B$15,$A139+$A$11,0,1,1)) -> 2024-01-17 | C139: =IF(A139>$A$8,"",OFFSET(InputPriceData!G$15,CalculationsAndCharts!$A139+$A$11,IF($C$5,8,0),1,1)) -> 474394000 | D139: =IF(A139>$A$8,"",OFFSET(InputPriceData!C$15,CalculationsAndCharts!$A139+$A$11,IF($C$5,8,0),1,1)) -> 56.347 | E139: =IF(A139>$A$8,"",OFFSET(InputPriceData!D$15,CalculationsAndCharts!$A139+$A$11,IF($C$5,8,0),1,1)) -> 56.471001 | F139: =IF(A139>$A$8,"",OFFSET(InputPriceData!E$15,CalculationsAndCharts!$A139+$A$11,IF($C$5,8,0),1,1)) -> 54.740002 | G139: =IF(A139>$A$8,"",OFFSET(InputPriceData!F$15,CalculationsAndCharts!$A139+$A$11,IF($C$5,8,0),1,1)) -> 56.053001 | H139: 2.659120736e+10 | I139: 1.329790611e+11 | J139: 2407523000 | K139: 55.23480404 | L139: 4.22759269e+11 | M139: 8218442000 | N139: 51.44031788 | O139: 50.89469975 | P139: 55.2633994 | Q139: 481504600 | R139: 410922100 | S139: =IF($A139>$L$30,NA(),N139-O139) -> 0.5456181331 | T139: =IF($A139>$I$30,NA(),K139/P139) -> 0.9994825625 | U139: 1.171766133 | V139: 0.639006033 | W139: 0.1661220797 | Y139: 3.092889379e+11 | Z139: 5912737000 | AA139: 52.30892866 | AB139: 5.452526451e+11 | AC139: 10778753000 | AD139: 50.58587436 | AE139: 1.034061965 | AF139: 1.027675663 | AG139: 1.069284148 | AH139: 55.93310823 | AI139: 47.30816823 | AJ139: 8.624939996 | AK139: 6.823146961 | AL139: 1.801793035 | BD139: 474394000
A140: 108 | B140: =IF(A140>$A$8,"",OFFSET(InputPriceData!B$15,$A140+$A$11,0,1,1)) -> 2024-01-16 | C140: =IF(A140>$A$8,"",OFFSET(InputPriceData!G$15,CalculationsAndCharts!$A140+$A$11,IF($C$5,8,0),1,1)) -> 449580000 | D140: =IF(A140>$A$8,"",OFFSET(InputPriceData!C$15,CalculationsAndCharts!$A140+$A$11,IF($C$5,8,0),1,1)) -> 55.018002 | E140: =IF(A140>$A$8,"",OFFSET(InputPriceData!D$15,CalculationsAndCharts!$A140+$A$11,IF($C$5,8,0),1,1)) -> 56.834999 | F140: =IF(A140>$A$8,"",OFFSET(InputPriceData!E$15,CalculationsAndCharts!$A140+$A$11,IF($C$5,8,0),1,1)) -> 54.900002 | G140: =IF(A140>$A$8,"",OFFSET(InputPriceData!F$15,CalculationsAndCharts!$A140+$A$11,IF($C$5,8,0),1,1)) -> 56.382 | H140: 25348219560 | I140: 1.47470387e+11 | J140: 2706229000 | K140: 54.49294461 | L140: 4.196327189e+11 | M140: 8223996000 | N140: 51.02540406 | O140: 50.53654965 | P140: 54.680799 | Q140: 541245800 | R140: 411199800 | S140: =IF($A140>$L$30,NA(),N140-O140) -> 0.4888544075 | T140: =IF($A140>$I$30,NA(),K140/P140) -> 0.9965645274 | U140: 1.316259881 | V140: 0.6412488572 | W140: 0.1382515874 | Y140: 2.942439138e+11 | Z140: 5671991000 | AA140: 51.87665386 | AB140: 5.350083866e+11 | AC140: 10655182000 | AD140: 50.2110979 | AE140: 1.033171072 | AF140: 1.026251787 | AG140: 1.067442465 | AH140: 55.37534325 | AI140: 47.03869255 | AJ140: 8.336650699 | AK140: 6.430703006 | AL140: 1.905947693 | BC140: 449580000
A141: 109 | B141: =IF(A141>$A$8,"",OFFSET(InputPriceData!B$15,$A141+$A$11,0,1,1)) -> 2024-01-12 | C141: =IF(A141>$A$8,"",OFFSET(InputPriceData!G$15,CalculationsAndCharts!$A141+$A$11,IF($C$5,8,0),1,1)) -> 352994000 | D141: =IF(A141>$A$8,"",OFFSET(InputPriceData!C$15,CalculationsAndCharts!$A141+$A$11,IF($C$5,8,0),1,1)) -> 54.619999 | E141: =IF(A141>$A$8,"",OFFSET(InputPriceData!D$15,CalculationsAndCharts!$A141+$A$11,IF($C$5,8,0),1,1)) -> 54.970001 | F141: =IF(A141>$A$8,"",OFFSET(InputPriceData!E$15,CalculationsAndCharts!$A141+$A$11,IF($C$5,8,0),1,1)) -> 54.330002 | G141: =IF(A141>$A$8,"",OFFSET(InputPriceData!F$15,CalculationsAndCharts!$A141+$A$11,IF($C$5,8,0),1,1)) -> 54.709999 | H141: 1.931230139e+10 | I141: 1.556952412e+11 | J141: 2899159000 | K141: 53.70358824 | L141: 4.132005657e+11 | M141: 8165648000 | N141: 50.6022995 | O141: 50.13494955 | P141: 53.8549986 | Q141: 579831800 | R141: 408282400 | S141: =IF($A141>$L$30,NA(),N141-O141) -> 0.4673499522 | T141: =IF($A141>$I$30,NA(),K141/P141) -> 0.9971885552 | U141: 1.42017339 | V141: 0.6618519594 | W141: 0.1089732886 | Y141: 2.809296258e+11 | Z141: 5466611000 | AA141: 51.390089 | AB141: 5.26978153e+11 | AC141: 10586192000 | AD141: 49.77976528 | AE141: 1.032348962 | AF141: 1.024939162 | AG141: 1.065744378 | AH141: 54.76869845 | AI141: 46.7089166 | AJ141: 8.059781847 | AK141: 6.073317732 | AL141: 1.986464115 | BD141: 352994000
A142: 110 | B142: =IF(A142>$A$8,"",OFFSET(InputPriceData!B$15,$A142+$A$11,0,1,1)) -> 2024-01-11 | C142: =IF(A142>$A$8,"",OFFSET(InputPriceData!G$15,CalculationsAndCharts!$A142+$A$11,IF($C$5,8,0),1,1)) -> 596759000 | D142: =IF(A142>$A$8,"",OFFSET(InputPriceData!C$15,CalculationsAndCharts!$A142+$A$11,IF($C$5,8,0),1,1)) -> 54.999001 | E142: =IF(A142>$A$8,"",OFFSET(InputPriceData!D$15,CalculationsAndCharts!$A142+$A$11,IF($C$5,8,0),1,1)) -> 55.346001 | F142: =IF(A142>$A$8,"",OFFSET(InputPriceData!E$15,CalculationsAndCharts!$A142+$A$11,IF($C$5,8,0),1,1)) -> 53.560001 | G142: =IF(A142>$A$8,"",OFFSET(InputPriceData!F$15,CalculationsAndCharts!$A142+$A$11,IF($C$5,8,0),1,1)) -> 54.821999 | H142: 3.27155213e+10 | I142: 1.567601096e+11 | J142: 2961204000 | K142: 52.93796361 | L142: 4.154216865e+11 | M142: 8260446000 | N142: 50.29046694 | O142: 49.80384965 | P142: 52.7323988 | Q142: 592240800 | R142: 413022300 | S142: =IF($A142>$L$30,NA(),N142-O142) -> 0.4866172911 | T142: =IF($A142>$I$30,NA(),K142/P142) -> 1.003898264 | U142: 1.43391967 | V142: 0.7004901974 | W142: 0.07895112053 | Y142: 2.739472417e+11 | Z142: 5366124000 | AA142: 51.05123208 | AB142: 5.249752728e+11 | AC142: 10604916000 | AD142: 49.50301094 | AE142: 1.031275292 | AF142: 1.023497835 | AG142: 1.063528729 | AH142: 54.29445197 | AI142: 46.54600256 | AJ142: 7.748449403 | AK142: 5.69453998 | AL142: 2.053909423 | BC142: 596759000
A143: 111 | B143: =IF(A143>$A$8,"",OFFSET(InputPriceData!B$15,$A143+$A$11,0,1,1)) -> 2024-01-10 | C143: =IF(A143>$A$8,"",OFFSET(InputPriceData!G$15,CalculationsAndCharts!$A143+$A$11,IF($C$5,8,0),1,1)) -> 533796000 | D143: =IF(A143>$A$8,"",OFFSET(InputPriceData!C$15,CalculationsAndCharts!$A143+$A$11,IF($C$5,8,0),1,1)) -> 53.616001 | E143: =IF(A143>$A$8,"",OFFSET(InputPriceData!D$15,CalculationsAndCharts!$A143+$A$11,IF($C$5,8,0),1,1)) -> 54.599998 | F143: =IF(A143>$A$8,"",OFFSET(InputPriceData!E$15,CalculationsAndCharts!$A143+$A$11,IF($C$5,8,0),1,1)) -> 53.488998 | G143: =IF(A143>$A$8,"",OFFSET(InputPriceData!F$15,CalculationsAndCharts!$A143+$A$11,IF($C$5,8,0),1,1)) -> 54.349998 | H143: 2.901181153e+10 | I143: 1.387576555e+11 | J143: 2670980000 | K143: 51.95009155 | L143: 4.004530128e+11 | M143: 8036074000 | N143: 49.83192201 | O143: 49.44559975 | P143: 51.3675992 | Q143: 534196000 | R143: 401803700 | S143: =IF($A143>$L$30,NA(),N143-O143) -> 0.3863222572 | T143: =IF($A143>$I$30,NA(),K143/P143) -> 1.011339684 | U143: 1.329494975 | V143: 0.5194377144 | W143: 0.04676727888 | Y143: 2.559495418e+11 | Z143: 5069790000 | AA143: 50.48523544 | AB143: 5.121723325e+11 | AC143: 10445700000 | AD143: 49.03188226 | AE143: 1.029640983 | AF143: 1.021378616 | AG143: 1.060160553 | AH143: 53.52245514 | AI143: 46.24948749 | AJ143: 7.272967649 | AK143: 5.159274684 | AL143: 2.113692964 | BC143: 533796000
A144: 112 | B144: =IF(A144>$A$8,"",OFFSET(InputPriceData!B$15,$A144+$A$11,0,1,1)) -> 2024-01-09 | C144: =IF(A144>$A$8,"",OFFSET(InputPriceData!G$15,CalculationsAndCharts!$A144+$A$11,IF($C$5,8,0),1,1)) -> 773100000 | D144: =IF(A144>$A$8,"",OFFSET(InputPriceData!C$15,CalculationsAndCharts!$A144+$A$11,IF($C$5,8,0),1,1)) -> 52.401001 | E144: =IF(A144>$A$8,"",OFFSET(InputPriceData!D$15,CalculationsAndCharts!$A144+$A$11,IF($C$5,8,0),1,1)) -> 54.325001 | F144: =IF(A144>$A$8,"",OFFSET(InputPriceData!E$15,CalculationsAndCharts!$A144+$A$11,IF($C$5,8,0),1,1)) -> 51.689999 | G144: =IF(A144>$A$8,"",OFFSET(InputPriceData!F$15,CalculationsAndCharts!$A144+$A$11,IF($C$5,8,0),1,1)) -> 53.139999 | H144: 4.108253323e+10 | I144: 1.250105458e+11 | J144: 2458080000 | K144: 50.85698831 | L144: 3.952082882e+11 | M144: 8012006000 | N144: 49.32700852 | O144: 49.0594498 | P144: 50.0113996 | Q144: 491616000 | R144: 400600300 | S144: =IF($A144>$L$30,NA(),N144-O144) -> 0.2675587202 | T144: =IF($A144>$I$30,NA(),K144/P144) -> 1.016907919 | U144: 1.227198282 | V144: 0.3338992766 | W144: 0.02337780009 | Y144: 2.460808085e+11 | Z144: 4933888000 | AA144: 49.87563732 | AB144: 5.004316301e+11 | AC144: 10281221000 | AD144: 48.6743384 | AE144: 1.024680334 | AF144: 1.019010038 | AG144: 1.049969787 | AH144: 52.36791227 | AI144: 46.35784669 | AJ144: 6.010065578 | AK144: 4.573574867 | AL144: 1.436490711 | BC144: 773100000
A145: 113 | B145: =IF(A145>$A$8,"",OFFSET(InputPriceData!B$15,$A145+$A$11,0,1,1)) -> 2024-01-08 | C145: =IF(A145>$A$8,"",OFFSET(InputPriceData!G$15,CalculationsAndCharts!$A145+$A$11,IF($C$5,8,0),1,1)) -> 642510000 | D145: =IF(A145>$A$8,"",OFFSET(InputPriceData!C$15,CalculationsAndCharts!$A145+$A$11,IF($C$5,8,0),1,1)) -> 49.512001 | E145: =IF(A145>$A$8,"",OFFSET(InputPriceData!D$15,CalculationsAndCharts!$A145+$A$11,IF($C$5,8,0),1,1)) -> 52.275002 | F145: =IF(A145>$A$8,"",OFFSET(InputPriceData!E$15,CalculationsAndCharts!$A145+$A$11,IF($C$5,8,0),1,1)) -> 49.479 | G145: =IF(A145>$A$8,"",OFFSET(InputPriceData!F$15,CalculationsAndCharts!$A145+$A$11,IF($C$5,8,0),1,1)) -> 52.252998 | H145: 3.357307374e+10 | I145: 1.037372948e+11 | J145: 2096234000 | K145: 49.48745934 | L145: 3.711910507e+11 | M145: 7598130000 | N145: 48.85294812 | O145: 48.7777499 | P145: 49.0169996 | Q145: 419246800 | R145: 379906500 | S145: =IF($A145>$L$30,NA(),N145-O145) -> 0.07519822043 | T145: =IF($A145>$I$30,NA(),K145/P145) -> 1.009597889 | U145: 1.103552585 | V145: 0.0837816732 | W145: 0.009791596888 | Y145: 2.280365554e+11 | Z145: 4625232000 | AA145: 49.30272804 | AB145: 4.839616691e+11 | AC145: 10034368000 | AD145: 48.23040864 | AE145: 1.022233264 | AF145: 1.016766195 | AG145: 1.044960846 | AH145: 51.51942039 | AI145: 46.15523044 | AJ145: 5.364189945 | AK145: 4.025660237 | AL145: 1.338529708 | BC145: 642510000
A146: 114 | B146: =IF(A146>$A$8,"",OFFSET(InputPriceData!B$15,$A146+$A$11,0,1,1)) -> 2024-01-05 | C146: =IF(A146>$A$8,"",OFFSET(InputPriceData!G$15,CalculationsAndCharts!$A146+$A$11,IF($C$5,8,0),1,1)) -> 415039000 | D146: =IF(A146>$A$8,"",OFFSET(InputPriceData!C$15,CalculationsAndCharts!$A146+$A$11,IF($C$5,8,0),1,1)) -> 48.462002 | E146: =IF(A146>$A$8,"",OFFSET(InputPriceData!D$15,CalculationsAndCharts!$A146+$A$11,IF($C$5,8,0),1,1)) -> 49.547001 | F146: =IF(A146>$A$8,"",OFFSET(InputPriceData!E$15,CalculationsAndCharts!$A146+$A$11,IF($C$5,8,0),1,1)) -> 48.306 | G146: =IF(A146>$A$8,"",OFFSET(InputPriceData!F$15,CalculationsAndCharts!$A146+$A$11,IF($C$5,8,0),1,1)) -> 49.097 | H146: 20377169783 | I146: 8.944278866e+10 | J146: 1843017000 | K146: 48.53063681 | L146: 3.539649258e+11 | M146: 7306443000 | N146: 48.44558779 | O146: 48.49490005 | P146: 48.4707998 | Q146: 368603400 | R146: 365322150 | S146: =IF($A146>$L$30,NA(),N146-O146) -> -0.0493122563 | T146: =IF($A146>$I$30,NA(),K146/P146) -> 1.001234496 | U146: 1.008981799 | V146: -0.04981659162 | W146: 0.007824996128 | Y146: 2.151246009e+11 | Z146: 4395309000 | AA146: 48.94413587 | AB146: 4.687783157e+11 | AC146: 9773863000 | AD146: 47.96243979 | AE146: 1.020468018 | AF146: 1.014166595 | AG146: 1.041354976 | AH146: 50.96821941 | AI146: 46.05772375 | AJ146: 4.910495664 | AK146: 3.3985471 | AL146: 1.511948563 | BC146: 415039000
A147: 115 | B147: =IF(A147>$A$8,"",OFFSET(InputPriceData!B$15,$A147+$A$11,0,1,1)) -> 2024-01-04 | C147: =IF(A147>$A$8,"",OFFSET(InputPriceData!G$15,CalculationsAndCharts!$A147+$A$11,IF($C$5,8,0),1,1)) -> 306535000 | D147: =IF(A147>$A$8,"",OFFSET(InputPriceData!C$15,CalculationsAndCharts!$A147+$A$11,IF($C$5,8,0),1,1)) -> 47.766998 | E147: =IF(A147>$A$8,"",OFFSET(InputPriceData!D$15,CalculationsAndCharts!$A147+$A$11,IF($C$5,8,0),1,1)) -> 48.5 | F147: =IF(A147>$A$8,"",OFFSET(InputPriceData!E$15,CalculationsAndCharts!$A147+$A$11,IF($C$5,8,0),1,1)) -> 47.507999 | G147: =IF(A147>$A$8,"",OFFSET(InputPriceData!F$15,CalculationsAndCharts!$A147+$A$11,IF($C$5,8,0),1,1)) -> 47.998001 | H147: 1.471306724e+10 | I147: 8.127710005e+10 | J147: 1674565000 | K147: 48.53624675 | L147: 3.50905742e+11 | M147: 7271994000 | N147: 48.25440478 | O147: 48.31519995 | P147: 48.5557996 | Q147: 334913000 | R147: 363599700 | S147: =IF($A147>$L$30,NA(),N147-O147) -> -0.06079516887 | T147: =IF($A147>$I$30,NA(),K147/P147) -> 0.9995973118 | U147: 0.9211036203 | V147: -0.05597610014 | W147: 0.0127896438 | Y147: 2.182120883e+11 | Z147: 4460218000 | AA147: 48.92408585 | AB147: 4.676008466e+11 | AC147: 9760315000 | AD147: 47.90837658 | AE147: 1.021201079 | AF147: 1.011393828 | AG147: 1.042851643 | AH147: 51.02056332 | AI147: 45.93978146 | AJ147: 5.080781867 | AK147: 2.732951845 | AL147: 2.347830022 | BC147: 306535000
A148: 116 | B148: =IF(A148>$A$8,"",OFFSET(InputPriceData!B$15,$A148+$A$11,0,1,1)) -> 2024-01-03 | C148: =IF(A148>$A$8,"",OFFSET(InputPriceData!G$15,CalculationsAndCharts!$A148+$A$11,IF($C$5,8,0),1,1)) -> 320896000 | D148: =IF(A148>$A$8,"",OFFSET(InputPriceData!C$15,CalculationsAndCharts!$A148+$A$11,IF($C$5,8,0),1,1)) -> 47.485001 | E148: =IF(A148>$A$8,"",OFFSET(InputPriceData!D$15,CalculationsAndCharts!$A148+$A$11,IF($C$5,8,0),1,1)) -> 48.183998 | F148: =IF(A148>$A$8,"",OFFSET(InputPriceData!E$15,CalculationsAndCharts!$A148+$A$11,IF($C$5,8,0),1,1)) -> 47.32 | G148: =IF(A148>$A$8,"",OFFSET(InputPriceData!F$15,CalculationsAndCharts!$A148+$A$11,IF($C$5,8,0),1,1)) -> 47.569 | H148: 15264701824 | I148: 7.811021602e+10 | J148: 1601678000 | K148: 48.76773985 | L148: 3.535020959e+11 | M148: 7337177000 | N148: 48.17957859 | O148: 48.2436 | P148: 48.8395994 | Q148: 320335600 | R148: 366858850 | S148: =IF($A148>$L$30,NA(),N148-O148) -> -0.06402140501 | T148: =IF($A148>$I$30,NA(),K148/P148) -> 0.9985286621 | U148: 0.8731848775 | V148: -0.05582027119 | W148: 0.01837822802 | Y148: 2.224150875e+11 | Z148: 4544915000 | AA148: 48.93712809 | AB148: 4.719753059e+11 | AC148: 9849442000 | AD148: 47.91898931 | AE148: 1.021247084 | AF148: 1.00787183 | AG148: 1.042945606 | AH148: 51.03876271 | AI148: 45.94581831 | AJ148: 5.092944403 | AK148: 1.887498493 | AL148: 3.20544591 | BD148: 320896000
A149: 117 | B149: =IF(A149>$A$8,"",OFFSET(InputPriceData!B$15,$A149+$A$11,0,1,1)) -> 2024-01-02 | C149: =IF(A149>$A$8,"",OFFSET(InputPriceData!G$15,CalculationsAndCharts!$A149+$A$11,IF($C$5,8,0),1,1)) -> 411254000 | D149: =IF(A149>$A$8,"",OFFSET(InputPriceData!C$15,CalculationsAndCharts!$A149+$A$11,IF($C$5,8,0),1,1)) -> 49.243999 | E149: =IF(A149>$A$8,"",OFFSET(InputPriceData!D$15,CalculationsAndCharts!$A149+$A$11,IF($C$5,8,0),1,1)) -> 49.294998 | F149: =IF(A149>$A$8,"",OFFSET(InputPriceData!E$15,CalculationsAndCharts!$A149+$A$11,IF($C$5,8,0),1,1)) -> 47.595001 | G149: =IF(A149>$A$8,"",OFFSET(InputPriceData!F$15,CalculationsAndCharts!$A149+$A$11,IF($C$5,8,0),1,1)) -> 48.167999 | H149: 1.980928226e+10 | I149: 7.487944576e+10 | J149: 1524982000 | K149: 49.10185547 | L149: 3.581499752e+11 | M149: 7453824000 | N149: 48.04915909 | O149: 48.1406499 | P149: 49.1815992 | Q149: 304996400 | R149: 372691200 | S149: =IF($A149>$L$30,NA(),N149-O149) -> -0.09149081497 | T149: =IF($A149>$I$30,NA(),K149/P149) -> 0.998378586 | U149: 0.8183622259 | V149: -0.07475122747 | W149: 0.02389432898 | Y149: 2.286838078e+11 | Z149: 4671811000 | AA149: 48.94971304 | AB149: 4.707875639e+11 | AC149: 9823191000 | AD149: 47.92613357 | AE149: 1.021357439 | AF149: 1.004084706 | AG149: 1.043171018 | AH149: 51.06292199 | AI149: 45.94273876 | AJ149: 5.12018323 | AK149: 0.9779221789 | AL149: 4.142261052 | BD149: 411254000
A150: 118 | B150: =IF(A150>$A$8,"",OFFSET(InputPriceData!B$15,$A150+$A$11,0,1,1)) -> 2023-12-29 | C150: =IF(A150>$A$8,"",OFFSET(InputPriceData!G$15,CalculationsAndCharts!$A150+$A$11,IF($C$5,8,0),1,1)) -> 389293000 | D150: =IF(A150>$A$8,"",OFFSET(InputPriceData!C$15,CalculationsAndCharts!$A150+$A$11,IF($C$5,8,0),1,1)) -> 49.813 | E150: =IF(A150>$A$8,"",OFFSET(InputPriceData!D$15,CalculationsAndCharts!$A150+$A$11,IF($C$5,8,0),1,1)) -> 49.997002 | F150: =IF(A150>$A$8,"",OFFSET(InputPriceData!E$15,CalculationsAndCharts!$A150+$A$11,IF($C$5,8,0),1,1)) -> 48.750999 | G150: =IF(A150>$A$8,"",OFFSET(InputPriceData!F$15,CalculationsAndCharts!$A150+$A$11,IF($C$5,8,0),1,1)) -> 49.521999 | H150: 1.927856756e+10 | I150: 6.740008081e+10 | J150: 1366235000 | K150: 49.33271422 | L150: 3.55611802e+11 | M150: 7411887000 | N150: 47.97857847 | O150: 48.0704999 | P150: 49.3139998 | Q150: 273247000 | R150: 370594350 | S150: =IF($A150>$L$30,NA(),N150-O150) -> -0.09192142967 | T150: =IF($A150>$I$30,NA(),K150/P150) -> 1.000379495 | U150: 0.7373210088 | V150: -0.06780132176 | W150: 0.03051195789 | Y150: 2.266213732e+11 | Z150: 4632944000 | AA150: 48.91519803 | AB150: 4.947944264e+11 | AC150: 10311357000 | AD150: 47.98538412 | AE150: 1.019377023 | AF150: 0.9998246461 | AG150: 1.039129516 | AH150: 50.82922604 | AI150: 46.17844396 | AJ150: 4.650782081 | AK150: -0.04523818799 | AL150: 4.696020268 | BC150: 389293000
A151: 119 | B151: =IF(A151>$A$8,"",OFFSET(InputPriceData!B$15,$A151+$A$11,0,1,1)) -> 2023-12-28 | C151: =IF(A151>$A$8,"",OFFSET(InputPriceData!G$15,CalculationsAndCharts!$A151+$A$11,IF($C$5,8,0),1,1)) -> 246587000 | D151: =IF(A151>$A$8,"",OFFSET(InputPriceData!C$15,CalculationsAndCharts!$A151+$A$11,IF($C$5,8,0),1,1)) -> 49.643002 | E151: =IF(A151>$A$8,"",OFFSET(InputPriceData!D$15,CalculationsAndCharts!$A151+$A$11,IF($C$5,8,0),1,1)) -> 49.883999 | F151: =IF(A151>$A$8,"",OFFSET(InputPriceData!E$15,CalculationsAndCharts!$A151+$A$11,IF($C$5,8,0),1,1)) -> 49.411999 | G151: =IF(A151>$A$8,"",OFFSET(InputPriceData!F$15,CalculationsAndCharts!$A151+$A$11,IF($C$5,8,0),1,1)) -> 49.521999 | H151: 1.221148117e+10 | I151: 6.283933461e+10 | J151: 1277367000 | K151: 49.19442463 | L151: 3.609458067e+11 | M151: 7548841000 | N151: 47.81473165 | O151: 47.93289995 | P151: 49.2076004 | Q151: 255473400 | R151: 377442050 | S151: =IF($A151>$L$30,NA(),N151-O151) -> -0.118168301 | T151: =IF($A151>$I$30,NA(),K151/P151) -> 0.9997322411 | U151: 0.6768546324 | V151: -0.07996134584 | W151: 0.03685130031 | Y151: 2.311098926e+11 | Z151: 4753379000 | AA151: 48.62012741 | AB151: 5.03771527e+11 | AC151: 10487811000 | AD151: 48.03400128 | AE151: 1.012202317 | AF151: 0.9957212393 | AG151: 1.024553531 | AH151: 49.81392322 | AI151: 46.88286148 | AJ151: 2.931061744 | AK151: -1.030263194 | AL151: 3.961324937 | BC151: 246587000
A152: 120 | B152: =IF(A152>$A$8,"",OFFSET(InputPriceData!B$15,$A152+$A$11,0,1,1)) -> 2023-12-27 | C152: =IF(A152>$A$8,"",OFFSET(InputPriceData!G$15,CalculationsAndCharts!$A152+$A$11,IF($C$5,8,0),1,1)) -> 233648000 | D152: =IF(A152>$A$8,"",OFFSET(InputPriceData!C$15,CalculationsAndCharts!$A152+$A$11,IF($C$5,8,0),1,1)) -> 49.511002 | E152: =IF(A152>$A$8,"",OFFSET(InputPriceData!D$15,CalculationsAndCharts!$A152+$A$11,IF($C$5,8,0),1,1)) -> 49.68 | F152: =IF(A152>$A$8,"",OFFSET(InputPriceData!E$15,CalculationsAndCharts!$A152+$A$11,IF($C$5,8,0),1,1)) -> 49.084999 | G152: =IF(A152>$A$8,"",OFFSET(InputPriceData!F$15,CalculationsAndCharts!$A152+$A$11,IF($C$5,8,0),1,1)) -> 49.417 | H152: 11546183216 | I152: 6.977093167e+10 | J152: 1428674000 | K152: 48.83614573 | L152: 3.671240458e+11 | M152: 7684259000 | N152: 47.77611554 | O152: 47.86379995 | P152: 48.9254006 | Q152: 285734800 | R152: 384212950 | S152: =IF($A152>$L$30,NA(),N152-O152) -> -0.08768440957 | T152: =IF($A152>$I$30,NA(),K152/P152) -> 0.9981756948 | U152: 0.7436886237 | V152: -0.06509093511 | W152: 0.04482695412 | Y152: 2.359637071e+11 | Z152: 4866016000 | AA152: 48.49217658 | AB152: 5.124354209e+11 | AC152: 10655344000 | AD152: 48.09187023 | AE152: 1.008323784 | AF152: 0.9923566029 | AG152: 1.016716854 | AH152: 49.30281321 | AI152: 47.30114392 | AJ152: 2.001669293 | AK152: -1.837410899 | AL152: 3.839080192 | BC152: 233648000
A153: 121 | B153: =IF(A153>$A$8,"",OFFSET(InputPriceData!B$15,$A153+$A$11,0,1,1)) -> 2023-12-26 | C153: =IF(A153>$A$8,"",OFFSET(InputPriceData!G$15,CalculationsAndCharts!$A153+$A$11,IF($C$5,8,0),1,1)) -> 244200000 | D153: =IF(A153>$A$8,"",OFFSET(InputPriceData!C$15,CalculationsAndCharts!$A153+$A$11,IF($C$5,8,0),1,1)) -> 48.967999 | E153: =IF(A153>$A$8,"",OFFSET(InputPriceData!D$15,CalculationsAndCharts!$A153+$A$11,IF($C$5,8,0),1,1)) -> 49.599998 | F153: =IF(A153>$A$8,"",OFFSET(InputPriceData!E$15,CalculationsAndCharts!$A153+$A$11,IF($C$5,8,0),1,1)) -> 48.959999 | G153: =IF(A153>$A$8,"",OFFSET(InputPriceData!F$15,CalculationsAndCharts!$A153+$A$11,IF($C$5,8,0),1,1)) -> 49.278999 | H153: 1.203393156e+10 | I153: 8.126302863e+10 | J153: 1659470000 | K153: 48.96926647 | L153: 3.747775633e+11 | M153: 7852102000 | N153: 47.72958417 | O153: 47.7839999 | P153: 48.9628006 | Q153: 331894000 | R153: 392605100 | S153: =IF($A153>$L$30,NA(),N153-O153) -> -0.05441573004 | T153: =IF($A153>$I$30,NA(),K153/P153) -> 1.000132057 | U153: 0.8453634454 | V153: -0.04600714378 | W153: 0.04880182334 | Y153: 2.407644728e+11 | Z153: 4983191000 | AA153: 48.315321 | AB153: 5.169211938e+11 | AC153: 10746901000 | AD153: 48.09955854 | AE153: 1.004485747 | AF153: 0.9895802576 | AG153: 1.008991616 | AH153: 48.74975383 | AI153: 47.67091992 | AJ153: 1.078833904 | AK153: -2.502853764 | AL153: 3.581687668 | BC153: 244200000
A154: 122 | B154: =IF(A154>$A$8,"",OFFSET(InputPriceData!B$15,$A154+$A$11,0,1,1)) -> 2023-12-22 | C154: =IF(A154>$A$8,"",OFFSET(InputPriceData!G$15,CalculationsAndCharts!$A154+$A$11,IF($C$5,8,0),1,1)) -> 252507000 | D154: =IF(A154>$A$8,"",OFFSET(InputPriceData!C$15,CalculationsAndCharts!$A154+$A$11,IF($C$5,8,0),1,1)) -> 49.195 | E154: =IF(A154>$A$8,"",OFFSET(InputPriceData!D$15,CalculationsAndCharts!$A154+$A$11,IF($C$5,8,0),1,1)) -> 49.382999 | F154: =IF(A154>$A$8,"",OFFSET(InputPriceData!E$15,CalculationsAndCharts!$A154+$A$11,IF($C$5,8,0),1,1)) -> 48.466999 | G154: =IF(A154>$A$8,"",OFFSET(InputPriceData!F$15,CalculationsAndCharts!$A154+$A$11,IF($C$5,8,0),1,1)) -> 48.830002 | H154: 1.232991732e+10 | I154: 8.989021627e+10 | J154: 1827857000 | K154: 49.17792599 | L154: 3.818311584e+11 | M154: 8003564000 | N154: 47.70764104 | O154: 47.73215 | P154: 49.1224008 | Q154: 365571400 | R154: 400178200 | S154: =IF($A154>$L$30,NA(),N154-O154) -> -0.02450895859 | T154: =IF($A154>$I$30,NA(),K154/P154) -> 1.001130344 | U154: 0.9135215262 | V154: -0.02241476904 | W154: 0.05396909348 | Y154: 2.460485272e+11 | Z154: 5119581000 | AA154: 48.06028603 | AB154: 5.216983891e+11 | AC154: 10842457000 | AD154: 48.11625161 | AE154: 0.9988368674 | AF154: 0.9873135414 | AG154: 0.9976750877 | AH154: 47.94855008 | AI154: 48.22837836 | AJ154: -0.2798282839 | AK154: -3.045084294 | AL154: 2.76525601 | BD154: 252507000
A155: 123 | B155: =IF(A155>$A$8,"",OFFSET(InputPriceData!B$15,$A155+$A$11,0,1,1)) -> 2023-12-21 | C155: =IF(A155>$A$8,"",OFFSET(InputPriceData!G$15,CalculationsAndCharts!$A155+$A$11,IF($C$5,8,0),1,1)) -> 300425000 | D155: =IF(A155>$A$8,"",OFFSET(InputPriceData!C$15,CalculationsAndCharts!$A155+$A$11,IF($C$5,8,0),1,1)) -> 48.811001 | E155: =IF(A155>$A$8,"",OFFSET(InputPriceData!D$15,CalculationsAndCharts!$A155+$A$11,IF($C$5,8,0),1,1)) -> 49.095001 | F155: =IF(A155>$A$8,"",OFFSET(InputPriceData!E$15,CalculationsAndCharts!$A155+$A$11,IF($C$5,8,0),1,1)) -> 48.418999 | G155: =IF(A155>$A$8,"",OFFSET(InputPriceData!F$15,CalculationsAndCharts!$A155+$A$11,IF($C$5,8,0),1,1)) -> 48.990002 | H155: 1.471782135e+10 | I155: 1.010249562e+11 | J155: 2055298000 | K155: 49.15343478 | L155: 3.835782009e+11 | M155: 8045702000 | N155: 47.67492021 | O155: 47.67944995 | P155: 49.1344002 | Q155: 411059600 | R155: 402285100 | S155: =IF($A155>$L$30,NA(),N155-O155) -> -0.004529742466 | T155: =IF($A155>$I$30,NA(),K155/P155) -> 1.000387398 | U155: 1.021811646 | V155: -0.004630336692 | W155: 0.05912541768 | Y155: 2.51028031e+11 | Z155: 5238792000 | AA155: 47.91715935 | AB155: 5.326145691e+11 | AC155: 11065447000 | AD155: 48.1331273 | AE155: 0.9955131118 | AF155: 0.9864425482 | AG155: 0.9910463558 | AH155: 47.48812615 | AI155: 48.56798779 | AJ155: -1.079861636 | AK155: -3.252345383 | AL155: 2.172483747 | BC155: 300425000
A156: 124 | B156: =IF(A156>$A$8,"",OFFSET(InputPriceData!B$15,$A156+$A$11,0,1,1)) -> 2023-12-20 | C156: =IF(A156>$A$8,"",OFFSET(InputPriceData!G$15,CalculationsAndCharts!$A156+$A$11,IF($C$5,8,0),1,1)) -> 397894000 | D156: =IF(A156>$A$8,"",OFFSET(InputPriceData!C$15,CalculationsAndCharts!$A156+$A$11,IF($C$5,8,0),1,1)) -> 49.654999 | E156: =IF(A156>$A$8,"",OFFSET(InputPriceData!D$15,CalculationsAndCharts!$A156+$A$11,IF($C$5,8,0),1,1)) -> 49.999001 | F156: =IF(A156>$A$8,"",OFFSET(InputPriceData!E$15,CalculationsAndCharts!$A156+$A$11,IF($C$5,8,0),1,1)) -> 48.098 | G156: =IF(A156>$A$8,"",OFFSET(InputPriceData!F$15,CalculationsAndCharts!$A156+$A$11,IF($C$5,8,0),1,1)) -> 48.111 | H156: 19143078234 | I156: 1.052232013e+11 | J156: 2146105000 | K156: 49.02984769 | L156: 4.126765242e+11 | M156: 8644697000 | N156: 47.73753484 | O156: 47.66574985 | P156: 49.0063994 | Q156: 429221000 | R156: 432234850 | S156: =IF($A156>$L$30,NA(),N156-O156) -> 0.07178499162 | T156: =IF($A156>$I$30,NA(),K156/P156) -> 1.000478474 | U156: 0.993027286 | V156: 0.07131856316 | W156: 0.06100676598 | Y156: 2.562227907e+11 | Z156: 5375910000 | AA156: 47.66128725 | AB156: 5.386010148e+11 | AC156: 11181976000 | AD156: 48.16689061 | AE156: 0.9895030933 | AF156: 0.9869394756 | AG156: 0.9791163716 | AH156: 46.66594664 | AI156: 49.19424494 | AJ156: -2.528298298 | AK156: -3.132744898 | AL156: 0.6044466007 | BD156: 397894000
A157: 125 | B157: =IF(A157>$A$8,"",OFFSET(InputPriceData!B$15,$A157+$A$11,0,1,1)) -> 2023-12-19 | C157: =IF(A157>$A$8,"",OFFSET(InputPriceData!G$15,CalculationsAndCharts!$A157+$A$11,IF($C$5,8,0),1,1)) -> 464444000 | D157: =IF(A157>$A$8,"",OFFSET(InputPriceData!C$15,CalculationsAndCharts!$A157+$A$11,IF($C$5,8,0),1,1)) -> 49.424 | E157: =IF(A157>$A$8,"",OFFSET(InputPriceData!D$15,CalculationsAndCharts!$A157+$A$11,IF($C$5,8,0),1,1)) -> 49.700001 | F157: =IF(A157>$A$8,"",OFFSET(InputPriceData!E$15,CalculationsAndCharts!$A157+$A$11,IF($C$5,8,0),1,1)) -> 48.895 | G157: =IF(A157>$A$8,"",OFFSET(InputPriceData!F$15,CalculationsAndCharts!$A157+$A$11,IF($C$5,8,0),1,1)) -> 49.604 | H157: 23038280176 | I157: 1.076135452e+11 | J157: 2196003000 | K157: 49.00427967 | L157: 4.217891142e+11 | M157: 8812550000 | N157: 47.86232296 | O157: 47.75739985 | P157: 49.0017996 | Q157: 439200600 | R157: 440627500 | S157: =IF($A157>$L$30,NA(),N157-O157) -> 0.1049231061 | T157: =IF($A157>$I$30,NA(),K157/P157) -> 1.000050612 | U157: 0.9967616638 | V157: 0.104588623 | W157: 0.05242761208 | Y157: 2.543508216e+11 | Z157: 5347333000 | AA157: 47.56592149 | AB157: 5.381346285e+11 | AC157: 11168218000 | AD157: 48.18446671 | AE157: 0.9871629745 | AF157: 0.989072627 | AG157: 0.9744907383 | AH157: 46.35254995 | AI157: 49.44579237 | AJ157: -3.093242425 | AK157: -2.622940713 | AL157: -0.4703017118 | BD157: 464444000
A158: 126 | B158: =IF(A158>$A$8,"",OFFSET(InputPriceData!B$15,$A158+$A$11,0,1,1)) -> 2023-12-18 | C158: =IF(A158>$A$8,"",OFFSET(InputPriceData!G$15,CalculationsAndCharts!$A158+$A$11,IF($C$5,8,0),1,1)) -> 412587000 | D158: =IF(A158>$A$8,"",OFFSET(InputPriceData!C$15,CalculationsAndCharts!$A158+$A$11,IF($C$5,8,0),1,1)) -> 49.400002 | E158: =IF(A158>$A$8,"",OFFSET(InputPriceData!D$15,CalculationsAndCharts!$A158+$A$11,IF($C$5,8,0),1,1)) -> 50.432999 | F158: =IF(A158>$A$8,"",OFFSET(InputPriceData!E$15,CalculationsAndCharts!$A158+$A$11,IF($C$5,8,0),1,1)) -> 49.150002 | G158: =IF(A158>$A$8,"",OFFSET(InputPriceData!F$15,CalculationsAndCharts!$A158+$A$11,IF($C$5,8,0),1,1)) -> 50.077 | H158: 20661119199 | I158: 1.023221126e+11 | J158: 2103946000 | K158: 48.63343101 | L158: 4.196262091e+11 | M158: 8762226000 | N158: 47.89036588 | O158: 47.79764985 | P158: 48.6123998 | Q158: 420789200 | R158: 438111300 | S158: =IF($A158>$L$30,NA(),N158-O158) -> 0.09271603086 | T158: =IF($A158>$I$30,NA(),K158/P158) -> 1.00043263 | U158: 0.9604618735 | V158: 0.08908873854 | W158: 0.03902085081 | Y158: 2.559251137e+11 | Z158: 5409136000 | AA158: 47.31349215 | AB158: 5.35457225e+11 | AC158: 11125019000 | AD158: 48.13090431 | AE158: 0.9830168958 | AF158: 0.9925036868 | AG158: 0.9663222174 | AH158: 45.72007864 | AI158: 49.80833872 | AJ158: -4.088260072 | AK158: -1.807346061 | AL158: -2.28091401 | BC158: 412587000
A159: 127 | B159: =IF(A159>$A$8,"",OFFSET(InputPriceData!B$15,$A159+$A$11,0,1,1)) -> 2023-12-15 | C159: =IF(A159>$A$8,"",OFFSET(InputPriceData!G$15,CalculationsAndCharts!$A159+$A$11,IF($C$5,8,0),1,1)) -> 479948000 | D159: =IF(A159>$A$8,"",OFFSET(InputPriceData!C$15,CalculationsAndCharts!$A159+$A$11,IF($C$5,8,0),1,1)) -> 48.194 | E159: =IF(A159>$A$8,"",OFFSET(InputPriceData!D$15,CalculationsAndCharts!$A159+$A$11,IF($C$5,8,0),1,1)) -> 49.403999 | F159: =IF(A159>$A$8,"",OFFSET(InputPriceData!E$15,CalculationsAndCharts!$A159+$A$11,IF($C$5,8,0),1,1)) -> 48.119999 | G159: =IF(A159>$A$8,"",OFFSET(InputPriceData!F$15,CalculationsAndCharts!$A159+$A$11,IF($C$5,8,0),1,1)) -> 48.889999 | H159: 2.346465724e+10 | I159: 1.054280804e+11 | J159: 2201087000 | K159: 47.89818866 | L159: 4.14997046e+11 | M159: 8674844000 | N159: 47.83913647 | O159: 47.75869985 | P159: 47.9223996 | Q159: 440217400 | R159: 433742200 | S159: =IF($A159>$L$30,NA(),N159-O159) -> 0.08043661882 | T159: =IF($A159>$I$30,NA(),K159/P159) -> 0.9994947886 | U159: 1.014928683 | V159: 0.08159618748 | W159: 0.02601837654 | Y159: 2.536537148e+11 | Z159: 5378554000 | AA159: 47.16020603 | AB159: 5.401723935e+11 | AC159: 11252928000 | AD159: 48.00283033 | AE159: 0.9824463621 | AF159: 0.9973596259 | AG159: 0.9652008545 | AH159: 45.51907116 | AI159: 49.73351413 | AJ159: -4.214442971 | AK159: -0.6562071953 | AL159: -3.558235775 | BC159: 479948000
A160: 128 | B160: =IF(A160>$A$8,"",OFFSET(InputPriceData!B$15,$A160+$A$11,0,1,1)) -> 2023-12-14 | C160: =IF(A160>$A$8,"",OFFSET(InputPriceData!G$15,CalculationsAndCharts!$A160+$A$11,IF($C$5,8,0),1,1)) -> 391232000 | D160: =IF(A160>$A$8,"",OFFSET(InputPriceData!C$15,CalculationsAndCharts!$A160+$A$11,IF($C$5,8,0),1,1)) -> 48.389999 | E160: =IF(A160>$A$8,"",OFFSET(InputPriceData!D$15,CalculationsAndCharts!$A160+$A$11,IF($C$5,8,0),1,1)) -> 48.669998 | F160: =IF(A160>$A$8,"",OFFSET(InputPriceData!E$15,CalculationsAndCharts!$A160+$A$11,IF($C$5,8,0),1,1)) -> 47.422001 | G160: =IF(A160>$A$8,"",OFFSET(InputPriceData!F$15,CalculationsAndCharts!$A160+$A$11,IF($C$5,8,0),1,1)) -> 48.349998 | H160: 1.891606642e+10 | I160: 9.902871884e+10 | J160: 2080363000 | K160: 47.60165358 | L160: 4.083435156e+11 | M160: 8534652000 | N160: 47.84536213 | O160: 47.7881999 | P160: 47.6456 | Q160: 416072600 | R160: 426732600 | S160: =IF($A160>$L$30,NA(),N160-O160) -> 0.05716223096 | T160: =IF($A160>$I$30,NA(),K160/P160) -> 0.9990776394 | U160: 0.9750194853 | V160: 0.05568288189 | W160: 0.01468494918 | Y160: 2.493887582e+11 | Z160: 5300097000 | AA160: 47.05362152 | AB160: 5.328558273e+11 | AC160: 11119699000 | AD160: 47.91998662 | AE160: 0.9819205896 | AF160: 1.003213428 | AG160: 0.9641680444 | AH160: 45.36759824 | AI160: 49.70086584 | AJ160: -4.333267602 | AK160: 0.7243437818 | AL160: -5.057611384 | BC160: 391232000
A161: 129 | B161: =IF(A161>$A$8,"",OFFSET(InputPriceData!B$15,$A161+$A$11,0,1,1)) -> 2023-12-13 | C161: =IF(A161>$A$8,"",OFFSET(InputPriceData!G$15,CalculationsAndCharts!$A161+$A$11,IF($C$5,8,0),1,1)) -> 447792000 | D161: =IF(A161>$A$8,"",OFFSET(InputPriceData!C$15,CalculationsAndCharts!$A161+$A$11,IF($C$5,8,0),1,1)) -> 47.629002 | E161: =IF(A161>$A$8,"",OFFSET(InputPriceData!D$15,CalculationsAndCharts!$A161+$A$11,IF($C$5,8,0),1,1)) -> 48.594002 | F161: =IF(A161>$A$8,"",OFFSET(InputPriceData!E$15,CalculationsAndCharts!$A161+$A$11,IF($C$5,8,0),1,1)) -> 47.608002 | G161: =IF(A161>$A$8,"",OFFSET(InputPriceData!F$15,CalculationsAndCharts!$A161+$A$11,IF($C$5,8,0),1,1)) -> 48.088001 | H161: 2.153342214e+10 | I161: 9.645960128e+10 | J161: 2039954000 | K161: 47.28518451 | L161: 4.126735465e+11 | M161: 8618917000 | N161: 47.87997686 | O161: 47.8151 | P161: 47.2948006 | Q161: 407990800 | R161: 430945850 | S161: =IF($A161>$L$30,NA(),N161-O161) -> 0.06487686022 | T161: =IF($A161>$I$30,NA(),K161/P161) -> 0.9997966777 | U161: 0.9467333309 | V161: 0.0614085977 | W161: 0.005962001036 | Y161: 2.495602184e+11 | Z161: 5304527000 | AA161: 47.04664873 | AB161: 5.297099092e+11 | AC161: 11071632000 | AD161: 47.8438869 | AE161: 0.9833366764 | AF161: 1.010499197 | AG161: 0.9669510192 | AH161: 45.49180494 | AI161: 49.47912143 | AJ161: -3.987316493 | AK161: 2.433498779 | AL161: -6.420815272 | BC161: 447792000
A162: 130 | B162: =IF(A162>$A$8,"",OFFSET(InputPriceData!B$15,$A162+$A$11,0,1,1)) -> 2023-12-12 | C162: =IF(A162>$A$8,"",OFFSET(InputPriceData!G$15,CalculationsAndCharts!$A162+$A$11,IF($C$5,8,0),1,1)) -> 372387000 | D162: =IF(A162>$A$8,"",OFFSET(InputPriceData!C$15,CalculationsAndCharts!$A162+$A$11,IF($C$5,8,0),1,1)) -> 46.046001 | E162: =IF(A162>$A$8,"",OFFSET(InputPriceData!D$15,CalculationsAndCharts!$A162+$A$11,IF($C$5,8,0),1,1)) -> 47.666 | F162: =IF(A162>$A$8,"",OFFSET(InputPriceData!E$15,CalculationsAndCharts!$A162+$A$11,IF($C$5,8,0),1,1)) -> 46.046001 | G162: =IF(A162>$A$8,"",OFFSET(InputPriceData!F$15,CalculationsAndCharts!$A162+$A$11,IF($C$5,8,0),1,1)) -> 47.657001 | H162: =IF(A163>$A$8,"",G162*C162) -> 1.774684763e+10 | I162: =IF($A162>$I$30,NA(),SUM(OFFSET(H162,0,0,$A$17,1))) -> 9.224416515e+10 | J162: =IF($A162>$I$30,NA(),SUM(OFFSET(C162,0,0,$A$17,1))) -> 1972752000 | K162: =IF($A162>$I$30,NA(),I162/J162) -> 46.75912895 | L162: =IF($A162>$L$30,NA(),SUM(OFFSET($H162,0,0,$A$18,1))) -> 4.118443914e+11 | M162: =IF($A162>$L$30,NA(),SUM(OFFSET($C162,0,0,$A$18,1))) -> 8588079000 | N162: =IF($A162>$L$30,NA(),L162/M162) -> 47.95535665 | O162: =IF($A162>$L$30,NA(),AVERAGE(OFFSET($G162,0,0,$A$18,1))) -> 47.89349985 | P162: =IF($A162>$I$30,NA(),AVERAGE(OFFSET($G162,0,0,$A$17,1))) -> 46.7778 | Q162: =IF($A162>$I$30,NA(),AVERAGE(OFFSET($C162,0,0,$A$17,1))) -> 394550400 | R162: =IF($A162>$L$30,NA(),AVERAGE(OFFSET($C162,0,0,$A$18,1))) -> 429403950 | S162: =IF($A162>$L$30,NA(),N162-O162) -> 0.06185679803 | T162: =IF($A162>$I$30,NA(),K162/P162) -> 0.9996008565 | U162: =IF($A162>$L$30,NA(),Q162/R162) -> 0.9188327215 | V162: =IF($A162>$L$30,NA(),S162*T162*U162) -> 0.05681336434 | W162: =IF($A162>$W$30,NA(),AVERAGE(OFFSET($V162,0,0,$A$19,1))) -> -0.005384081315 | Y162: =IF($A162>$Y$30,NA(),SUM(OFFSET($H162,0,0,$D$17,1))) -> 2.421037561e+11 | Z162: =IF($A162>$Y$30,NA(),SUM(OFFSET($C162,0,0,$D$17,1))) -> 5151380000 | AA162: =IF($A162>$Y$30,NA(),Y162/Z162) -> 46.99784448 | AB162: =IF($A162>$AB$30,NA(),SUM(OFFSET($H162,0,0,$D$18,1))) -> 5.265104221e+11 | AC162: =IF($A162>$AB$30,NA(),SUM(OFFSET($C162,0,0,$D$18,1))) -> 11024573000 | AD162: =IF($A162>$AB$30,NA(),AB162/AC162) -> 47.75789703 | AE162: =IF($A162>$AB$30,NA(),AA162/AD162) -> 0.9840853012 | AF162: =IF($A162>$AF$30,NA(),AVERAGE(OFFSET($AE162,0,0,$D$19,1))) -> 1.018346238 | AG162: =IF($A162>$AB$30,NA(),(AA162/AD162)^2) -> 0.9684238801 | AH162: =IF($A162>$AB$30,NA(),AA162*AG162) -> 45.51383491 | AI162: =IF($A162>$AB$30,NA(),AD162/AG162) -> 49.31507577 | AJ162: =IF($A162>$AB$30,NA(),AH162-AI162) -> -3.801240865 | AK162: =IF($A162>$AF$30,NA(),AVERAGE(OFFSET($AJ162,0,0,$D$19,1))) -> 4.267040363 | AL162: =IF($A162>$AF$30,NA(),AJ162-AK162) -> -8.068281228 | BC162: 372387000
A163: 131 | B163: =IF(A163>$A$8,"",OFFSET(InputPriceData!B$15,$A163+$A$11,0,1,1)) -> 2023-12-11 | C163: =IF(A163>$A$8,"",OFFSET(InputPriceData!G$15,CalculationsAndCharts!$A163+$A$11,IF($C$5,8,0),1,1)) -> 509728000 | D163: =IF(A163>$A$8,"",OFFSET(InputPriceData!C$15,CalculationsAndCharts!$A163+$A$11,IF($C$5,8,0),1,1)) -> 47.491001 | E163: =IF(A163>$A$8,"",OFFSET(InputPriceData!D$15,CalculationsAndCharts!$A163+$A$11,IF($C$5,8,0),1,1)) -> 47.530998 | F163: =IF(A163>$A$8,"",OFFSET(InputPriceData!E$15,CalculationsAndCharts!$A163+$A$11,IF($C$5,8,0),1,1)) -> 45.830002 | G163: =IF(A163>$A$8,"",OFFSET(InputPriceData!F$15,CalculationsAndCharts!$A163+$A$11,IF($C$5,8,0),1,1)) -> 46.626999 | H163: 2.376708695e+10 | I163: 9.180673865e+10 | J163: 1972083000 | K163: 46.55318191 | L163: 4.127742357e+11 | M163: 8599828000 | N163: 47.99796411 | O163: 47.94164975 | P163: 46.5596002 | Q163: 394416600 | R163: 429991400 | S163: =IF($A163>$L$30,NA(),N163-O163) -> 0.05631435707 | T163: =IF($A163>$I$30,NA(),K163/P163) -> 0.999862149 | U163: 0.9172662523 | V163: 0.05164813853 | W163: -0.01436647489 | Y163: 2.681730532e+11 | Z163: 5678413000 | AA163: 47.22676093 | AB163: 5.278731479e+11 | AC163: 11076796000 | AD163: 47.65576146 | AE163: 0.9909979293 | AF163: 1.026770567 | AG163: 0.9820768958 | AH163: 46.38031077 | AI163: 48.52548885 | AJ163: -2.145178085 | AK163: 6.230163601 | AL163: -8.375341686 | BD163: 509728000
A164: 132 | B164: =IF(A164>$A$8,"",OFFSET(InputPriceData!B$15,$A164+$A$11,0,1,1)) -> 2023-12-08 | C164: =IF(A164>$A$8,"",OFFSET(InputPriceData!G$15,CalculationsAndCharts!$A164+$A$11,IF($C$5,8,0),1,1)) -> 359224000 | D164: =IF(A164>$A$8,"",OFFSET(InputPriceData!C$15,CalculationsAndCharts!$A164+$A$11,IF($C$5,8,0),1,1)) -> 46.595001 | E164: =IF(A164>$A$8,"",OFFSET(InputPriceData!D$15,CalculationsAndCharts!$A164+$A$11,IF($C$5,8,0),1,1)) -> 47.741001 | F164: =IF(A164>$A$8,"",OFFSET(InputPriceData!E$15,CalculationsAndCharts!$A164+$A$11,IF($C$5,8,0),1,1)) -> 46.549999 | G164: =IF(A164>$A$8,"",OFFSET(InputPriceData!F$15,CalculationsAndCharts!$A164+$A$11,IF($C$5,8,0),1,1)) -> 47.506001 | H164: 1.70652957e+10 | I164: 8.795223276e+10 | J164: 1899898000 | K164: 46.29313403 | L164: 4.093680254e+11 | M164: 8511345000 | N164: 48.09674915 | O164: 48.02704975 | P164: 46.3362 | Q164: 379979600 | R164: 425567250 | S164: =IF($A164>$L$30,NA(),N164-O164) -> 0.06969939816 | T164: =IF($A164>$I$30,NA(),K164/P164) -> 0.9990705761 | U164: 0.8928779176 | V164: 0.0621752126 | W164: -0.02230610442 | Y164: 2.726616344e+11 | Z164: 5734432000 | AA164: 47.54815026 | AB164: 5.219074984e+11 | AC164: 10976240000 | AD164: 47.54884172 | AE164: 0.999985458 | AF164: 1.034625479 | AG164: 0.9999709162 | AH164: 47.54676738 | AI164: 47.55022466 | AJ164: -0.0034572773 | AK164: 8.048691841 | AL164: -8.052149119 | BC164: 359224000
A165: 133 | B165: =IF(A165>$A$8,"",OFFSET(InputPriceData!B$15,$A165+$A$11,0,1,1)) -> 2023-12-07 | C165: =IF(A165>$A$8,"",OFFSET(InputPriceData!G$15,CalculationsAndCharts!$A165+$A$11,IF($C$5,8,0),1,1)) -> 350823000 | D165: =IF(A165>$A$8,"",OFFSET(InputPriceData!C$15,CalculationsAndCharts!$A165+$A$11,IF($C$5,8,0),1,1)) -> 45.700001 | E165: =IF(A165>$A$8,"",OFFSET(InputPriceData!D$15,CalculationsAndCharts!$A165+$A$11,IF($C$5,8,0),1,1)) -> 46.629002 | F165: =IF(A165>$A$8,"",OFFSET(InputPriceData!E$15,CalculationsAndCharts!$A165+$A$11,IF($C$5,8,0),1,1)) -> 45.604 | G165: =IF(A165>$A$8,"",OFFSET(InputPriceData!F$15,CalculationsAndCharts!$A165+$A$11,IF($C$5,8,0),1,1)) -> 46.596001 | H165: 1.634694886e+10 | I165: 8.815804619e+10 | J165: 1909991000 | K165: 46.15626262 | L165: 4.176790174e+11 | M165: 8692617000 | N165: 48.04985857 | O165: 47.99924975 | P165: 46.1879996 | Q165: 381998200 | R165: 434630850 | S165: =IF($A165>$L$30,NA(),N165-O165) -> 0.05060881569 | T165: =IF($A165>$I$30,NA(),K165/P165) -> 0.9993128738 | U165: 0.8789026366 | V165: 0.04444965802 | W165: -0.02963742625 | Y165: 2.764717138e+11 | Z165: 5789328000 | AA165: 47.75540681 | AB165: 5.233633269e+11 | AC165: 11054609000 | AD165: 47.34344986 | AE165: 1.008701456 | AF165: 1.041983024 | AG165: 1.017478628 | AH165: 48.59010578 | AI165: 46.53016641 | AJ165: 2.059939369 | AK165: 9.736249997 | AL165: -7.676310628 | BC165: 350823000
A166: 134 | B166: =IF(A166>$A$8,"",OFFSET(InputPriceData!B$15,$A166+$A$11,0,1,1)) -> 2023-12-06 | C166: =IF(A166>$A$8,"",OFFSET(InputPriceData!G$15,CalculationsAndCharts!$A166+$A$11,IF($C$5,8,0),1,1)) -> 380590000 | D166: =IF(A166>$A$8,"",OFFSET(InputPriceData!C$15,CalculationsAndCharts!$A166+$A$11,IF($C$5,8,0),1,1)) -> 47.215 | E166: =IF(A166>$A$8,"",OFFSET(InputPriceData!D$15,CalculationsAndCharts!$A166+$A$11,IF($C$5,8,0),1,1)) -> 47.387001 | F166: =IF(A166>$A$8,"",OFFSET(InputPriceData!E$15,CalculationsAndCharts!$A166+$A$11,IF($C$5,8,0),1,1)) -> 45.411999 | G166: =IF(A166>$A$8,"",OFFSET(InputPriceData!F$15,CalculationsAndCharts!$A166+$A$11,IF($C$5,8,0),1,1)) -> 45.502998 | H166: 1.731798601e+10 | I166: 9.642366952e+10 | J166: 2085415000 | K166: 46.2371612 | L166: 4.174801596e+11 | M166: 8688513000 | N166: 48.04966737 | O166: 47.99814975 | P166: 46.2227994 | Q166: 417083000 | R166: 434425650 | S166: =IF($A166>$L$30,NA(),N166-O166) -> 0.05151762226 | T166: =IF($A166>$I$30,NA(),K166/P166) -> 1.000310708 | U166: 0.9600791298 | V166: 0.04947636188 | W166: -0.03679215564 | Y166: 2.76156721e+11 | Z166: 5763710000 | AA166: 47.91301454 | AB166: 5.281391533e+11 | AC166: 11221755000 | AD166: 47.06386419 | AE166: 1.018042512 | AF166: 1.048683057 | AG166: 1.036410557 | AH166: 49.65755407 | AI166: 45.41044463 | AJ166: 4.247109441 | AK166: 11.2571068 | AL166: -7.009997355 | BD166: 380590000
A167: 135 | B167: =IF(A167>$A$8,"",OFFSET(InputPriceData!B$15,$A167+$A$11,0,1,1)) -> 2023-12-05 | C167: =IF(A167>$A$8,"",OFFSET(InputPriceData!G$15,CalculationsAndCharts!$A167+$A$11,IF($C$5,8,0),1,1)) -> 371718000 | D167: =IF(A167>$A$8,"",OFFSET(InputPriceData!C$15,CalculationsAndCharts!$A167+$A$11,IF($C$5,8,0),1,1)) -> 45.466 | E167: =IF(A167>$A$8,"",OFFSET(InputPriceData!D$15,CalculationsAndCharts!$A167+$A$11,IF($C$5,8,0),1,1)) -> 46.599998 | F167: =IF(A167>$A$8,"",OFFSET(InputPriceData!E$15,CalculationsAndCharts!$A167+$A$11,IF($C$5,8,0),1,1)) -> 45.271 | G167: =IF(A167>$A$8,"",OFFSET(InputPriceData!F$15,CalculationsAndCharts!$A167+$A$11,IF($C$5,8,0),1,1)) -> 46.566002 | H167: 1.730942113e+10 | I167: 9.749540383e+10 | J167: 2086830000 | K167: 46.71938003 | L167: 4.159323219e+11 | M167: 8651088000 | N167: 48.07861414 | O167: 48.02074995 | P167: 46.7501996 | Q167: 417366000 | R167: 432554400 | S167: =IF($A167>$L$30,NA(),N167-O167) -> 0.05786419219 | T167: =IF($A167>$I$30,NA(),K167/P167) -> 0.9993407607 | U167: 0.9648867287 | V167: 0.0557955842 | W167: -0.04402520273 | Y167: 2.756498619e+11 | Z167: 5722876000 | AA167: 48.16631741 | AB167: 5.267927874e+11 | AC167: 11229193000 | AD167: 46.91279128 | AE167: 1.026720348 | AF167: 1.054571772 | AG167: 1.054154674 | AH167: 50.77474861 | AI167: 44.50275889 | AJ167: 6.271989724 | AK167: 12.57803611 | AL167: -6.306046387 | BC167: 371718000
A168: 136 | B168: =IF(A168>$A$8,"",OFFSET(InputPriceData!B$15,$A168+$A$11,0,1,1)) -> 2023-12-04 | C168: =IF(A168>$A$8,"",OFFSET(InputPriceData!G$15,CalculationsAndCharts!$A168+$A$11,IF($C$5,8,0),1,1)) -> 437543000 | D168: =IF(A168>$A$8,"",OFFSET(InputPriceData!C$15,CalculationsAndCharts!$A168+$A$11,IF($C$5,8,0),1,1)) -> 46.077 | E168: =IF(A168>$A$8,"",OFFSET(InputPriceData!D$15,CalculationsAndCharts!$A168+$A$11,IF($C$5,8,0),1,1)) -> 46.077 | F168: =IF(A168>$A$8,"",OFFSET(InputPriceData!E$15,CalculationsAndCharts!$A168+$A$11,IF($C$5,8,0),1,1)) -> 45.009998 | G168: =IF(A168>$A$8,"",OFFSET(InputPriceData!F$15,CalculationsAndCharts!$A168+$A$11,IF($C$5,8,0),1,1)) -> 45.509998 | H168: 1.991258105e+10 | I168: 9.938568341e+10 | J168: 2116603000 | K168: 46.95527853 | L168: 4.169568358e+11 | M168: 8680103000 | N168: 48.03593181 | O168: 47.9799998 | P168: 47.001199 | Q168: 423320600 | R168: 434005150 | S168: =IF($A168>$L$30,NA(),N168-O168) -> 0.05593201013 | T168: =IF($A168>$I$30,NA(),K168/P168) -> 0.9990229937 | U168: 0.9753815133 | V168: 0.05450174806 | W168: -0.05155112008 | Y168: 2.815865381e+11 | Z168: 5826655000 | AA168: 48.32730582 | AB168: 5.263631183e+11 | AC168: 11274259000 | AD168: 46.68715863 | AE168: 1.035130585 | AF168: 1.059650566 | AG168: 1.071495328 | AH168: 51.7824824 | AI168: 43.57196658 | AJ168: 8.210515823 | AK168: 13.69500918 | AL168: -5.484493359 | BD168: 437543000
A169: 137 | B169: =IF(A169>$A$8,"",OFFSET(InputPriceData!B$15,$A169+$A$11,0,1,1)) -> 2023-12-01 | C169: =IF(A169>$A$8,"",OFFSET(InputPriceData!G$15,CalculationsAndCharts!$A169+$A$11,IF($C$5,8,0),1,1)) -> 369317000 | D169: =IF(A169>$A$8,"",OFFSET(InputPriceData!C$15,CalculationsAndCharts!$A169+$A$11,IF($C$5,8,0),1,1)) -> 46.525002 | E169: =IF(A169>$A$8,"",OFFSET(InputPriceData!D$15,CalculationsAndCharts!$A169+$A$11,IF($C$5,8,0),1,1)) -> 47.200001 | F169: =IF(A169>$A$8,"",OFFSET(InputPriceData!E$15,CalculationsAndCharts!$A169+$A$11,IF($C$5,8,0),1,1)) -> 46.187 | G169: =IF(A169>$A$8,"",OFFSET(InputPriceData!F$15,CalculationsAndCharts!$A169+$A$11,IF($C$5,8,0),1,1)) -> 46.764999 | H169: 1.727110914e+10 | I169: 9.856062895e+10 | J169: 2074722000 | K169: 47.50546288 | L169: 4.161538282e+11 | M169: 8667170000 | N169: 48.01496085 | O169: 47.95474995 | P169: 47.5475996 | Q169: 414944400 | R169: 433358500 | S169: =IF($A169>$L$30,NA(),N169-O169) -> 0.06021090027 | T169: =IF($A169>$I$30,NA(),K169/P169) -> 0.9991137992 | U169: 0.9575083909 | V169: 0.05760135059 | W169: -0.05874619366 | Y169: 2.82378224e+11 | Z169: 5806066000 | AA169: 48.63503516 | AB169: 5.282669436e+11 | AC169: 11377717000 | AD169: 46.42995986 | AE169: 1.047492509 | AF169: 1.062962292 | AG169: 1.097240557 | AH169: 53.36433306 | AI169: 42.31520569 | AJ169: 11.04912737 | AK169: 14.39989594 | AL169: -3.350768565 | BD169: 369317000
A170: 138 | B170: =IF(A170>$A$8,"",OFFSET(InputPriceData!B$15,$A170+$A$11,0,1,1)) -> 2023-11-30 | C170: =IF(A170>$A$8,"",OFFSET(InputPriceData!G$15,CalculationsAndCharts!$A170+$A$11,IF($C$5,8,0),1,1)) -> 526247000 | D170: =IF(A170>$A$8,"",OFFSET(InputPriceData!C$15,CalculationsAndCharts!$A170+$A$11,IF($C$5,8,0),1,1)) -> 48.023998 | E170: =IF(A170>$A$8,"",OFFSET(InputPriceData!D$15,CalculationsAndCharts!$A170+$A$11,IF($C$5,8,0),1,1)) -> 48.110001 | F170: =IF(A170>$A$8,"",OFFSET(InputPriceData!E$15,CalculationsAndCharts!$A170+$A$11,IF($C$5,8,0),1,1)) -> 46.422001 | G170: =IF(A170>$A$8,"",OFFSET(InputPriceData!F$15,CalculationsAndCharts!$A170+$A$11,IF($C$5,8,0),1,1)) -> 46.77 | H170: 24612572190 | I170: 9.536647963e+10 | J170: 2000050000 | K170: 47.68204776 | L170: 4.166841565e+11 | M170: 8707025000 | N170: 47.85608822 | O170: 47.79180005 | P170: 47.7498 | Q170: 400010000 | R170: 435351250 | S170: =IF($A170>$L$30,NA(),N170-O170) -> 0.0642881705 | T170: =IF($A170>$I$30,NA(),K170/P170) -> 0.9985810991 | U170: 0.9188212966 | V170: 0.05898552664 | W170: -0.0661156051 | Y170: 2.837838068e+11 | Z170: 5820885000 | AA170: 48.75269084 | AB170: 5.276397103e+11 | AC170: 11406779000 | AD170: 46.25667862 | AE170: 1.05396004 | AF170: 1.063709805 | AG170: 1.110831766 | AH170: 54.15603765 | AI170: 41.64147988 | AJ170: 12.51455777 | AK170: 14.51575819 | AL170: -2.001200423 | BD170: 526247000
A171: 139 | B171: =IF(A171>$A$8,"",OFFSET(InputPriceData!B$15,$A171+$A$11,0,1,1)) -> 2023-11-29 | C171: =IF(A171>$A$8,"",OFFSET(InputPriceData!G$15,CalculationsAndCharts!$A171+$A$11,IF($C$5,8,0),1,1)) -> 382005000 | D171: =IF(A171>$A$8,"",OFFSET(InputPriceData!C$15,CalculationsAndCharts!$A171+$A$11,IF($C$5,8,0),1,1)) -> 48.379002 | E171: =IF(A171>$A$8,"",OFFSET(InputPriceData!D$15,CalculationsAndCharts!$A171+$A$11,IF($C$5,8,0),1,1)) -> 48.762001 | F171: =IF(A171>$A$8,"",OFFSET(InputPriceData!E$15,CalculationsAndCharts!$A171+$A$11,IF($C$5,8,0),1,1)) -> 47.860001 | G171: =IF(A171>$A$8,"",OFFSET(InputPriceData!F$15,CalculationsAndCharts!$A171+$A$11,IF($C$5,8,0),1,1)) -> 48.139999 | H171: 1.838972032e+10 | I171: 1.145700522e+11 | J171: 2373223000 | K171: 48.27614268 | L171: 4.105927085e+11 | M171: 8618371000 | N171: 47.64156805 | O171: 47.5695501 | P171: 48.139 | Q171: 474644600 | R171: 430918550 | S171: =IF($A171>$L$30,NA(),N171-O171) -> 0.07201795395 | T171: =IF($A171>$I$30,NA(),K171/P171) -> 1.002848889 | U171: 1.101471728 | V171: 0.07955173046 | W171: -0.07430039309 | Y171: 2.795321113e+11 | Z171: 5715883000 | AA171: 48.90444946 | AB171: 5.205562163e+11 | AC171: 11281995000 | AD171: 46.14044026 | AE171: 1.059904266 | AF171: 1.062015156 | AG171: 1.123397053 | AH171: 54.9391144 | AI171: 41.07224612 | AJ171: 13.86686828 | AK171: 14.0824375 | AL171: -0.2155692214 | BC171: 382005000
A172: 140 | B172: =IF(A172>$A$8,"",OFFSET(InputPriceData!B$15,$A172+$A$11,0,1,1)) -> 2023-11-28 | C172: =IF(A172>$A$8,"",OFFSET(InputPriceData!G$15,CalculationsAndCharts!$A172+$A$11,IF($C$5,8,0),1,1)) -> 401491000 | D172: =IF(A172>$A$8,"",OFFSET(InputPriceData!C$15,CalculationsAndCharts!$A172+$A$11,IF($C$5,8,0),1,1)) -> 48.236 | E172: =IF(A172>$A$8,"",OFFSET(InputPriceData!D$15,CalculationsAndCharts!$A172+$A$11,IF($C$5,8,0),1,1)) -> 48.323002 | F172: =IF(A172>$A$8,"",OFFSET(InputPriceData!E$15,CalculationsAndCharts!$A172+$A$11,IF($C$5,8,0),1,1)) -> 47.473 | G172: =IF(A172>$A$8,"",OFFSET(InputPriceData!F$15,CalculationsAndCharts!$A172+$A$11,IF($C$5,8,0),1,1)) -> 47.820999 | H172: 1.919970071e+10 | I172: 1.24436e+11 | J172: 2556965000 | K172: 48.66550775 | L172: 4.133257635e+11 | M172: 8754335000 | N172: 47.21383903 | O172: 47.2015501 | P172: 48.4998002 | Q172: 511393000 | R172: 437716750 | S172: =IF($A172>$L$30,NA(),N172-O172) -> 0.01228892886 | T172: =IF($A172>$I$30,NA(),K172/P172) -> 1.003416664 | U172: 1.168319467 | V172: 0.01440644922 | W172: -0.08394611553 | Y172: 2.865186787e+11 | Z172: 5874374000 | AA172: 48.77433386 | AB172: 5.227313217e+11 | AC172: 11378520000 | AD172: 45.9401857 | AE172: 1.061692136 | AF172: 1.058444181 | AG172: 1.127190191 | AH172: 54.9779507 | AI172: 40.75637463 | AJ172: 14.22157607 | AK172: 13.22672754 | AL172: 0.9948485301 | BD172: 401491000
A173: 141 | B173: =IF(A173>$A$8,"",OFFSET(InputPriceData!B$15,$A173+$A$11,0,1,1)) -> 2023-11-27 | C173: =IF(A173>$A$8,"",OFFSET(InputPriceData!G$15,CalculationsAndCharts!$A173+$A$11,IF($C$5,8,0),1,1)) -> 395662000 | D173: =IF(A173>$A$8,"",OFFSET(InputPriceData!C$15,CalculationsAndCharts!$A173+$A$11,IF($C$5,8,0),1,1)) -> 47.799999 | E173: =IF(A173>$A$8,"",OFFSET(InputPriceData!D$15,CalculationsAndCharts!$A173+$A$11,IF($C$5,8,0),1,1)) -> 48.529999 | F173: =IF(A173>$A$8,"",OFFSET(InputPriceData!E$15,CalculationsAndCharts!$A173+$A$11,IF($C$5,8,0),1,1)) -> 47.652 | G173: =IF(A173>$A$8,"",OFFSET(InputPriceData!F$15,CalculationsAndCharts!$A173+$A$11,IF($C$5,8,0),1,1)) -> 48.242001 | H173: 1.90875266e+10 | I173: 1.261116744e+11 | J173: 2569594000 | K173: 49.07844367 | L173: 4.100976829e+11 | M173: 8740872000 | N173: 46.91725069 | O173: 46.8685501 | P173: 49.0174004 | Q173: 513918800 | R173: 437043600 | S173: =IF($A173>$L$30,NA(),N173-O173) -> 0.04870059366 | T173: =IF($A173>$I$30,NA(),K173/P173) -> 1.001245339 | U173: 1.17589824 | V173: 0.05733825911 | W173: -0.08926607936 | Y173: 2.834670691e+11 | Z173: 5819602000 | AA173: 48.70901293 | AB173: 5.232842295e+11 | AC173: 11454295000 | AD173: 45.68454274 | AE173: 1.066203359 | AF173: 1.0533298 | AG173: 1.136789603 | AH173: 55.37189948 | AI173: 40.18733336 | AJ173: 15.18456612 | AK173: 12.03159964 | AL173: 3.152966482 | BC173: =IF(G173>=G174,C173,NA()) -> 395662000 | BD173: =IF(G173<G174,C173,NA()) -> 
A174: 142 | B174: =IF(A174>$A$8,"",OFFSET(InputPriceData!B$15,$A174+$A$11,0,1,1)) -> 2023-11-24 | C174: =IF(A174>$A$8,"",OFFSET(InputPriceData!G$15,CalculationsAndCharts!$A174+$A$11,IF($C$5,8,0),1,1)) -> 294645000 | D174: =IF(A174>$A$8,"",OFFSET(InputPriceData!C$15,CalculationsAndCharts!$A174+$A$11,IF($C$5,8,0),1,1)) -> 48.470001 | E174: =IF(A174>$A$8,"",OFFSET(InputPriceData!D$15,CalculationsAndCharts!$A174+$A$11,IF($C$5,8,0),1,1)) -> 48.921001 | F174: =IF(A174>$A$8,"",OFFSET(InputPriceData!E$15,CalculationsAndCharts!$A174+$A$11,IF($C$5,8,0),1,1)) -> 47.744999 | G174: =IF(A174>$A$8,"",OFFSET(InputPriceData!F$15,CalculationsAndCharts!$A174+$A$11,IF($C$5,8,0),1,1)) -> 47.776001 | H174: 1.407695981e+10 | I174: 1.230561039e+11 | J174: 2499137000 | K174: 49.239439 | L174: 4.078899083e+11 | M174: 8761994000 | N174: 46.55217845 | O174: 46.48145005 | P174: 49.2286002 | Q174: 499827400 | R174: 438099700 | S174: =IF($A174>$L$30,NA(),N174-O174) -> 0.07072840453 | T174: =IF($A174>$I$30,NA(),K174/P174) -> 1.000220173 | U174: 1.14089875 | V174: 0.08071171492 | W174: -0.0980277754 | Y174: 2.801496907e+11 | Z174: 5767105000 | AA174: 48.5771788 | AB174: 5.252991144e+11 | AC174: 11559866000 | AD174: 45.44162661 | AE174: 1.06900176 | AF174: 1.046095472 | AG174: 1.142764762 | AH174: 55.51228816 | AI174: 39.76463759 | AJ174: 15.74765057 | AK174: 10.37122877 | AL174: 5.376421794 | BD174: 294645000
A175: 143 | B175: =IF(A175>$A$8,"",OFFSET(InputPriceData!B$15,$A175+$A$11,0,1,1)) -> 2023-11-22 | C175: =IF(A175>$A$8,"",OFFSET(InputPriceData!G$15,CalculationsAndCharts!$A175+$A$11,IF($C$5,8,0),1,1)) -> 899420000 | D175: =IF(A175>$A$8,"",OFFSET(InputPriceData!C$15,CalculationsAndCharts!$A175+$A$11,IF($C$5,8,0),1,1)) -> 49.852001 | E175: =IF(A175>$A$8,"",OFFSET(InputPriceData!D$15,CalculationsAndCharts!$A175+$A$11,IF($C$5,8,0),1,1)) -> 50.334999 | F175: =IF(A175>$A$8,"",OFFSET(InputPriceData!E$15,CalculationsAndCharts!$A175+$A$11,IF($C$5,8,0),1,1)) -> 47.689999 | G175: =IF(A175>$A$8,"",OFFSET(InputPriceData!F$15,CalculationsAndCharts!$A175+$A$11,IF($C$5,8,0),1,1)) -> 48.716 | H175: 43816144720 | I175: 125790270938 | J175: 2544248000 | K175: 49.44104149 | L175: 4.156293548e+11 | M175: 9008350000 | N175: 46.1382334 | O175: 46.10895 | P175: 49.5694 | Q175: 508849600 | R175: 450417500 | S175: =IF($A175>$L$30,NA(),N175-O175) -> 0.02928339645 | T175: =IF($A175>$I$30,NA(),K175/P175) -> 0.9974105294 | U175: 1.129728752 | V175: 0.03299662928 | W175: -0.1088098884 | Y175: 2.84406666e+11 | Z175: 5873193000 | AA175: 48.42453943 | AB175: 5.376914516e+11 | AC175: 11892515000 | AD175: 45.21259394 | AE175: 1.071040947 | AF175: 1.037564035 | AG175: 1.14712871 | AH175: 55.54917946 | AI175: 39.41370618 | AJ175: 16.13547328 | AK175: 8.431280275 | AL175: 7.704193001 | BD175: 899420000
A176: 144 | B176: =IF(A176>$A$8,"",OFFSET(InputPriceData!B$15,$A176+$A$11,0,1,1)) -> 2023-11-21 | C176: =IF(A176>$A$8,"",OFFSET(InputPriceData!G$15,CalculationsAndCharts!$A176+$A$11,IF($C$5,8,0),1,1)) -> 565747000 | D176: =IF(A176>$A$8,"",OFFSET(InputPriceData!C$15,CalculationsAndCharts!$A176+$A$11,IF($C$5,8,0),1,1)) -> 50.125999 | E176: =IF(A176>$A$8,"",OFFSET(InputPriceData!D$15,CalculationsAndCharts!$A176+$A$11,IF($C$5,8,0),1,1)) -> 50.516998 | F176: =IF(A176>$A$8,"",OFFSET(InputPriceData!E$15,CalculationsAndCharts!$A176+$A$11,IF($C$5,8,0),1,1)) -> 49.222 | G176: =IF(A176>$A$8,"",OFFSET(InputPriceData!F$15,CalculationsAndCharts!$A176+$A$11,IF($C$5,8,0),1,1)) -> 49.944 | H176: 28255668168 | I176: 105220223554 | J176: 2120325000 | K176: 49.62457338 | L176: 3.884570859e+11 | M176: 8507309000 | N176: 45.66157006 | O176: 45.76209995 | P176: 49.6038 | Q176: 424065000 | R176: 425365450 | S176: =IF($A176>$L$30,NA(),N176-O176) -> -0.1005298884 | T176: =IF($A176>$I$30,NA(),K176/P176) -> 1.000418786 | U176: 0.9969427465 | V176: -0.1002645148 | W176: -0.1153662883 | Y176: 2.597000947e+11 | Z176: 5398383000 | AA176: 48.10701552 | AB176: 5.295675942e+11 | AC176: 11805428000 | AD176: 44.85797501 | AE176: 1.072429496 | AF176: 1.028242271 | AG176: 1.150105023 | AH176: 55.3281202 | AI176: 39.00337283 | AJ176: 16.32474737 | AK176: 6.325123166 | AL176: 9.999624203 | BD176: 565747000
A177: 145 | B177: =IF(A177>$A$8,"",OFFSET(InputPriceData!B$15,$A177+$A$11,0,1,1)) -> 2023-11-20 | C177: =IF(A177>$A$8,"",OFFSET(InputPriceData!G$15,CalculationsAndCharts!$A177+$A$11,IF($C$5,8,0),1,1)) -> 414120000 | D177: =IF(A177>$A$8,"",OFFSET(InputPriceData!C$15,CalculationsAndCharts!$A177+$A$11,IF($C$5,8,0),1,1)) -> 49.312 | E177: =IF(A177>$A$8,"",OFFSET(InputPriceData!D$15,CalculationsAndCharts!$A177+$A$11,IF($C$5,8,0),1,1)) -> 50.548 | F177: =IF(A177>$A$8,"",OFFSET(InputPriceData!E$15,CalculationsAndCharts!$A177+$A$11,IF($C$5,8,0),1,1)) -> 49.181 | G177: =IF(A177>$A$8,"",OFFSET(InputPriceData!F$15,CalculationsAndCharts!$A177+$A$11,IF($C$5,8,0),1,1)) -> 50.409 | H177: 20875375080 | I177: 9.766882238e+10 | J177: 1971532000 | K177: 49.53955725 | L177: 3.777304959e+11 | M177: 8343025000 | N177: 45.27500468 | O177: 45.44804985 | P177: 49.5461996 | Q177: 394306400 | R177: 417151250 | S177: =IF($A177>$L$30,NA(),N177-O177) -> -0.1730451679 | T177: =IF($A177>$I$30,NA(),K177/P177) -> 0.9998659362 | U177: 0.9452360505 | V177: -0.1635466025 | W177: -0.1164152424 | Y177: 2.49245864e+11 | Z177: 5241808000 | AA177: 47.54959816 | AB177: 5.186021148e+11 | AC177: 11614780000 | AD177: 44.65018836 | AE177: 1.064936116 | AF177: 1.018130521 | AG177: 1.13408893 | AH177: 53.92547291 | AI177: 39.37097627 | AJ177: 14.55449664 | AK177: 4.059827724 | AL177: 10.49466891 | BC177: 414120000
A178: 146 | B178: =IF(A178>$A$8,"",OFFSET(InputPriceData!B$15,$A178+$A$11,0,1,1)) -> 2023-11-17 | C178: =IF(A178>$A$8,"",OFFSET(InputPriceData!G$15,CalculationsAndCharts!$A178+$A$11,IF($C$5,8,0),1,1)) -> 325205000 | D178: =IF(A178>$A$8,"",OFFSET(InputPriceData!C$15,CalculationsAndCharts!$A178+$A$11,IF($C$5,8,0),1,1)) -> 49.523998 | E178: =IF(A178>$A$8,"",OFFSET(InputPriceData!D$15,CalculationsAndCharts!$A178+$A$11,IF($C$5,8,0),1,1)) -> 49.716999 | F178: =IF(A178>$A$8,"",OFFSET(InputPriceData!E$15,CalculationsAndCharts!$A178+$A$11,IF($C$5,8,0),1,1)) -> 49.007 | G178: =IF(A178>$A$8,"",OFFSET(InputPriceData!F$15,CalculationsAndCharts!$A178+$A$11,IF($C$5,8,0),1,1)) -> 49.298 | H178: 16031956090 | I178: 9.547013923e+10 | J178: 1941548000 | K178: 49.17217562 | L178: 3.774199467e+11 | M178: 8407435000 | N178: 44.89121196 | O178: 45.07634975 | P178: 49.1883994 | Q178: 388309600 | R178: 420371750 | S178: =IF($A178>$L$30,NA(),N178-O178) -> -0.185137787 | T178: =IF($A178>$I$30,NA(),K178/P178) -> 0.9996701706 | U178: 0.9237290565 | V178: -0.1709607468 | W178: -0.1146669246 | Y178: 2.468916131e+11 | Z178: 5265281000 | AA178: 46.89049133 | AB178: 5.192804813e+11 | AC178: 11674775000 | AD178: 44.47884274 | AE178: 1.054220129 | AF178: 1.008179996 | AG178: 1.11138008 | AH178: 52.11315803 | AI178: 40.02127042 | AJ178: 12.0918876 | AK178: 1.845493739 | AL178: 10.24639387 | BD178: 325205000
A179: 147 | B179: =IF(A179>$A$8,"",OFFSET(InputPriceData!B$15,$A179+$A$11,0,1,1)) -> 2023-11-16 | C179: =IF(A179>$A$8,"",OFFSET(InputPriceData!G$15,CalculationsAndCharts!$A179+$A$11,IF($C$5,8,0),1,1)) -> 339756000 | D179: =IF(A179>$A$8,"",OFFSET(InputPriceData!C$15,CalculationsAndCharts!$A179+$A$11,IF($C$5,8,0),1,1)) -> 48.679001 | E179: =IF(A179>$A$8,"",OFFSET(InputPriceData!D$15,CalculationsAndCharts!$A179+$A$11,IF($C$5,8,0),1,1)) -> 49.525002 | F179: =IF(A179>$A$8,"",OFFSET(InputPriceData!E$15,CalculationsAndCharts!$A179+$A$11,IF($C$5,8,0),1,1)) -> 48.330002 | G179: =IF(A179>$A$8,"",OFFSET(InputPriceData!F$15,CalculationsAndCharts!$A179+$A$11,IF($C$5,8,0),1,1)) -> 49.48 | H179: 1.681112688e+10 | I179: 9.97990598e+10 | J179: 2037588000 | K179: 48.97901823 | L179: 3.81140599e+11 | M179: 8559496000 | N179: 44.52839267 | O179: 44.6807998 | P179: 48.9957992 | Q179: 407517600 | R179: 427974800 | S179: =IF($A179>$L$30,NA(),N179-O179) -> -0.152407126 | T179: =IF($A179>$I$30,NA(),K179/P179) -> 0.9996575018 | U179: 0.9521999893 | V179: -0.1450723597 | W179: -0.1117222394 | Y179: 2.519824323e+11 | Z179: 5458045000 | AA179: 46.16715918 | AB179: 5.258443273e+11 | AC179: 11830895000 | AD179: 44.44670731 | AE179: 1.038708196 | AF179: 0.9988693959 | AG179: 1.078914717 | AH179: 49.81042747 | AI179: 41.1957559 | AJ179: 8.614671563 | AK179: -0.2152340843 | AL179: 8.829905647 | BC179: 339756000
A180: 148 | B180: =IF(A180>$A$8,"",OFFSET(InputPriceData!B$15,$A180+$A$11,0,1,1)) -> 2023-11-15 | C180: =IF(A180>$A$8,"",OFFSET(InputPriceData!G$15,CalculationsAndCharts!$A180+$A$11,IF($C$5,8,0),1,1)) -> 475497000 | D180: =IF(A180>$A$8,"",OFFSET(InputPriceData!C$15,CalculationsAndCharts!$A180+$A$11,IF($C$5,8,0),1,1)) -> 49.935001 | E180: =IF(A180>$A$8,"",OFFSET(InputPriceData!D$15,CalculationsAndCharts!$A180+$A$11,IF($C$5,8,0),1,1)) -> 49.959999 | F180: =IF(A180>$A$8,"",OFFSET(InputPriceData!E$15,CalculationsAndCharts!$A180+$A$11,IF($C$5,8,0),1,1)) -> 48.200001 | G180: =IF(A180>$A$8,"",OFFSET(InputPriceData!F$15,CalculationsAndCharts!$A180+$A$11,IF($C$5,8,0),1,1)) -> 48.888 | H180: 23246097336 | I180: 1.083642207e+11 | J180: 2238328000 | K180: 48.41302108 | L180: 3.854318836e+11 | M180: 8720973000 | N180: 44.19597259 | O180: 44.3118499 | P180: 48.4897994 | Q180: 447665600 | R180: 436048650 | S180: =IF($A180>$L$30,NA(),N180-O180) -> -0.1158773135 | T180: =IF($A180>$I$30,NA(),K180/P180) -> 0.9984166089 | U180: 1.026641408 | V180: -0.1187760811 | W180: -0.1100468372 | Y180: 2.511429256e+11 | Z180: 5506317000 | AA180: 45.60996498 | AB180: 5.267322809e+11 | AC180: 11869276000 | AD180: 44.37779363 | AE180: 1.027765494 | AF180: 0.9908555641 | AG180: 1.05630191 | AH180: 48.17789314 | AI180: 42.01241444 | AJ180: 6.165478694 | AK180: -1.981533084 | AL180: 8.147011778 | BD180: 475497000
A181: 149 | B181: =IF(A181>$A$8,"",OFFSET(InputPriceData!B$15,$A181+$A$11,0,1,1)) -> 2023-11-14 | C181: =IF(A181>$A$8,"",OFFSET(InputPriceData!G$15,CalculationsAndCharts!$A181+$A$11,IF($C$5,8,0),1,1)) -> 416954000 | D181: =IF(A181>$A$8,"",OFFSET(InputPriceData!C$15,CalculationsAndCharts!$A181+$A$11,IF($C$5,8,0),1,1)) -> 49.68 | E181: =IF(A181>$A$8,"",OFFSET(InputPriceData!D$15,CalculationsAndCharts!$A181+$A$11,IF($C$5,8,0),1,1)) -> 49.834 | F181: =IF(A181>$A$8,"",OFFSET(InputPriceData!E$15,CalculationsAndCharts!$A181+$A$11,IF($C$5,8,0),1,1)) -> 49.040001 | G181: =IF(A181>$A$8,"",OFFSET(InputPriceData!F$15,CalculationsAndCharts!$A181+$A$11,IF($C$5,8,0),1,1)) -> 49.655998 | H181: 2.070426699e+10 | I181: 1.012662144e+11 | J181: 2109550000 | K181: 48.00370428 | L181: 3.886550833e+11 | M181: 8872770000 | N181: 43.80312837 | O181: 43.97724985 | P181: 48.0269996 | Q181: 421910000 | R181: 443638500 | S181: =IF($A181>$L$30,NA(),N181-O181) -> -0.1741214813 | T181: =IF($A181>$I$30,NA(),K181/P181) -> 0.9995149538 | U181: 0.9510220596 | V181: -0.1655130493 | W181: -0.1090024643 | Y181: 2.447765802e+11 | Z181: 5447604000 | AA181: 44.93288797 | AB181: 5.20366502e+11 | AC181: 11762361000 | AD181: 44.23997036 | AE181: 1.015662705 | AF181: 0.9843346789 | AG181: 1.031570731 | AH181: 46.35145207 | AI181: 42.88602715 | AJ181: 3.46542492 | AK181: -3.414005723 | AL181: 6.879430643 | BC181: 416954000
A182: 150 | B182: =IF(A182>$A$8,"",OFFSET(InputPriceData!B$15,$A182+$A$11,0,1,1)) -> 2023-11-13 | C182: =IF(A182>$A$8,"",OFFSET(InputPriceData!G$15,CalculationsAndCharts!$A182+$A$11,IF($C$5,8,0),1,1)) -> 384136000 | D182: =IF(A182>$A$8,"",OFFSET(InputPriceData!C$15,CalculationsAndCharts!$A182+$A$11,IF($C$5,8,0),1,1)) -> 48.32 | E182: =IF(A182>$A$8,"",OFFSET(InputPriceData!D$15,CalculationsAndCharts!$A182+$A$11,IF($C$5,8,0),1,1)) -> 49.116001 | F182: =IF(A182>$A$8,"",OFFSET(InputPriceData!E$15,CalculationsAndCharts!$A182+$A$11,IF($C$5,8,0),1,1)) -> 48.098999 | G182: =IF(A182>$A$8,"",OFFSET(InputPriceData!F$15,CalculationsAndCharts!$A182+$A$11,IF($C$5,8,0),1,1)) -> 48.619999 | H182: 1.867669194e+10 | I182: 9.633209564e+10 | J182: 2035761000 | K182: 47.31994357 | L182: 4.036431037e+11 | M182: 9268149000 | N182: 43.55164161 | O182: 43.69134995 | P182: 47.2868004 | Q182: 407152200 | R182: 463407450 | S182: =IF($A182>$L$30,NA(),N182-O182) -> -0.1397083374 | T182: =IF($A182>$I$30,NA(),K182/P182) -> 1.000700897 | U182: 0.8786052102 | V182: -0.1228345072 | W182: -0.1023254761 | Y182: 2.458887196e+11 | Z182: 5571651000 | AA182: 44.13211085 | AB182: 5.182094508e+11 | AC182: 11755082000 | AD182: 44.08386524 | AE182: 1.001094405 | AF182: 0.9796258471 | AG182: 1.002190008 | AH182: 44.22876052 | AI182: 43.9875322 | AJ182: 0.2412283177 | AK182: -4.444076948 | AL182: 4.685305266 | BC182: 384136000
A183: 151 | B183: =IF(A183>$A$8,"",OFFSET(InputPriceData!B$15,$A183+$A$11,0,1,1)) -> 2023-11-10 | C183: =IF(A183>$A$8,"",OFFSET(InputPriceData!G$15,CalculationsAndCharts!$A183+$A$11,IF($C$5,8,0),1,1)) -> 421245000 | D183: =IF(A183>$A$8,"",OFFSET(InputPriceData!C$15,CalculationsAndCharts!$A183+$A$11,IF($C$5,8,0),1,1)) -> 47.5 | E183: =IF(A183>$A$8,"",OFFSET(InputPriceData!D$15,CalculationsAndCharts!$A183+$A$11,IF($C$5,8,0),1,1)) -> 48.472 | F183: =IF(A183>$A$8,"",OFFSET(InputPriceData!E$15,CalculationsAndCharts!$A183+$A$11,IF($C$5,8,0),1,1)) -> 47.283001 | G183: =IF(A183>$A$8,"",OFFSET(InputPriceData!F$15,CalculationsAndCharts!$A183+$A$11,IF($C$5,8,0),1,1)) -> 48.334999 | H183: 2.036087665e+10 | I183: 9.598933879e+10 | J183: 2052358000 | K183: 46.77027048 | L183: 4.022566005e+11 | M183: 9259112000 | N183: 43.44440379 | O183: 43.56510005 | P183: 46.7130004 | Q183: 410471600 | R183: 462955600 | S183: =IF($A183>$L$30,NA(),N183-O183) -> -0.1206962558 | T183: =IF($A183>$I$30,NA(),K183/P183) -> 1.001225999 | U183: 0.886632757 | V183: -0.1071444521 | W183: -0.09722842861 | Y183: 2.438559035e+11 | Z183: 5585894000 | AA183: 43.65566254 | AB183: 5.194134196e+11 | AC183: 11805382000 | AD183: 43.99801883 | AE183: 0.9922188249 | AF183: 0.9771571969 | AG183: 0.9844981964 | AH183: 42.97892104 | AI183: 44.69080694 | AJ183: -1.711885909 | AK183: -4.980595651 | AL183: 3.268709742 | BC183: 421245000
A184: 152 | B184: =IF(A184>$A$8,"",OFFSET(InputPriceData!B$15,$A184+$A$11,0,1,1)) -> 2023-11-09 | C184: =IF(A184>$A$8,"",OFFSET(InputPriceData!G$15,CalculationsAndCharts!$A184+$A$11,IF($C$5,8,0),1,1)) -> 540496000 | D184: =IF(A184>$A$8,"",OFFSET(InputPriceData!C$15,CalculationsAndCharts!$A184+$A$11,IF($C$5,8,0),1,1)) -> 47.466999 | E184: =IF(A184>$A$8,"",OFFSET(InputPriceData!D$15,CalculationsAndCharts!$A184+$A$11,IF($C$5,8,0),1,1)) -> 48.23 | F184: =IF(A184>$A$8,"",OFFSET(InputPriceData!E$15,CalculationsAndCharts!$A184+$A$11,IF($C$5,8,0),1,1)) -> 46.75 | G184: =IF(A184>$A$8,"",OFFSET(InputPriceData!F$15,CalculationsAndCharts!$A184+$A$11,IF($C$5,8,0),1,1)) -> 46.950001 | H184: 2.537628774e+10 | I184: 9.473803561e+10 | J184: 2055723000 | K184: 46.08502002 | L184: 4.034494654e+11 | M184: 9311982000 | N184: 43.32584249 | O184: 43.42140005 | P184: 46.0470008 | Q184: 411144600 | R184: 465599100 | S184: =IF($A184>$L$30,NA(),N184-O184) -> -0.09555756112 | T184: =IF($A184>$I$30,NA(),K184/P184) -> 1.000825661 | U184: 0.8830442327 | V184: -0.08445122381 | W184: -0.09235036408 | Y184: 2.41024105e+11 | Z184: 5566112000 | AA184: 43.30205806 | AB184: 5.166365112e+11 | AC184: 11777620000 | AD184: 43.8659518 | AE184: 0.98714507 | AF184: 0.9767049271 | AG184: 0.9744553892 | AH184: 42.19592383 | AI184: 45.01586454 | AJ184: -2.819940704 | AK184: -5.076765702 | AL184: 2.256824998 | BC184: 540496000
A185: 153 | B185: =IF(A185>$A$8,"",OFFSET(InputPriceData!B$15,$A185+$A$11,0,1,1)) -> 2023-11-08 | C185: =IF(A185>$A$8,"",OFFSET(InputPriceData!G$15,CalculationsAndCharts!$A185+$A$11,IF($C$5,8,0),1,1)) -> 346719000 | D185: =IF(A185>$A$8,"",OFFSET(InputPriceData!C$15,CalculationsAndCharts!$A185+$A$11,IF($C$5,8,0),1,1)) -> 46.099998 | E185: =IF(A185>$A$8,"",OFFSET(InputPriceData!D$15,CalculationsAndCharts!$A185+$A$11,IF($C$5,8,0),1,1)) -> 46.867001 | F185: =IF(A185>$A$8,"",OFFSET(InputPriceData!E$15,CalculationsAndCharts!$A185+$A$11,IF($C$5,8,0),1,1)) -> 45.967999 | G185: =IF(A185>$A$8,"",OFFSET(InputPriceData!F$15,CalculationsAndCharts!$A185+$A$11,IF($C$5,8,0),1,1)) -> 46.574001 | H185: 1.614809105e+10 | I185: 8.716318531e+10 | J185: 1924399000 | K185: 45.29371784 | L185: 4.006689798e+11 | M185: 9252811000 | N185: 43.30240613 | O185: 43.42115 | P185: 45.3582008 | Q185: 384879800 | R185: 462640550 | S185: =IF($A185>$L$30,NA(),N185-O185) -> -0.118743869 | T185: =IF($A185>$I$30,NA(),K185/P185) -> 0.9985783615 | U185: 0.8319197269 | V185: -0.09864492996 | W185: -0.08904151947 | Y185: 2.36212643e+11 | Z185: 5504146000 | AA185: 42.91540287 | AB185: 5.071951821e+11 | AC185: 11598945000 | AD185: 43.72769956 | AE185: 0.9814237497 | AF185: 0.9776800931 | AG185: 0.9631925766 | AH185: 41.33579746 | AI185: 45.39870906 | AJ185: -4.062911604 | AK185: -4.86197761 | AL185: 0.7990660058 | BC185: 346719000
A186: 154 | B186: =IF(A186>$A$8,"",OFFSET(InputPriceData!B$15,$A186+$A$11,0,1,1)) -> 2023-11-07 | C186: =IF(A186>$A$8,"",OFFSET(InputPriceData!G$15,CalculationsAndCharts!$A186+$A$11,IF($C$5,8,0),1,1)) -> 343165000 | D186: =IF(A186>$A$8,"",OFFSET(InputPriceData!C$15,CalculationsAndCharts!$A186+$A$11,IF($C$5,8,0),1,1)) -> 45.719002 | E186: =IF(A186>$A$8,"",OFFSET(InputPriceData!D$15,CalculationsAndCharts!$A186+$A$11,IF($C$5,8,0),1,1)) -> 46.217999 | F186: =IF(A186>$A$8,"",OFFSET(InputPriceData!E$15,CalculationsAndCharts!$A186+$A$11,IF($C$5,8,0),1,1)) -> 45.158001 | G186: =IF(A186>$A$8,"",OFFSET(InputPriceData!F$15,CalculationsAndCharts!$A186+$A$11,IF($C$5,8,0),1,1)) -> 45.955002 | H186: 1.577014826e+10 | I186: 8.953621842e+10 | J186: 2015273000 | K186: 44.42882846 | L186: 4.022199691e+11 | M186: 9284229000 | N186: 43.32292635 | O186: 43.43274995 | P186: 44.5084008 | Q186: 403054600 | R186: 464211450 | S186: =IF($A186>$L$30,NA(),N186-O186) -> -0.1098236041 | T186: =IF($A186>$I$30,NA(),K186/P186) -> 0.9982121951 | U186: 0.868256481 | V186: -0.09518457983 | W186: -0.0865685715 | Y186: 2.398171604e+11 | Z186: 5634693000 | AA186: 42.56082104 | AB186: 5.115370696e+11 | AC186: 11723076000 | AD186: 43.6350553 | AE186: 0.9753813933 | AF186: 0.9801073812 | AG186: 0.9513688625 | AH186: 40.4910399 | AI186: 45.86554913 | AJ186: -5.374509231 | AK186: -4.331533052 | AL186: -1.042976179 | BC186: 343165000
A187: 155 | B187: =IF(A187>$A$8,"",OFFSET(InputPriceData!B$15,$A187+$A$11,0,1,1)) -> 2023-11-06 | C187: =IF(A187>$A$8,"",OFFSET(InputPriceData!G$15,CalculationsAndCharts!$A187+$A$11,IF($C$5,8,0),1,1)) -> 400733000 | D187: =IF(A187>$A$8,"",OFFSET(InputPriceData!C$15,CalculationsAndCharts!$A187+$A$11,IF($C$5,8,0),1,1)) -> 45.285 | E187: =IF(A187>$A$8,"",OFFSET(InputPriceData!D$15,CalculationsAndCharts!$A187+$A$11,IF($C$5,8,0),1,1)) -> 45.935001 | F187: =IF(A187>$A$8,"",OFFSET(InputPriceData!E$15,CalculationsAndCharts!$A187+$A$11,IF($C$5,8,0),1,1)) -> 44.898998 | G187: =IF(A187>$A$8,"",OFFSET(InputPriceData!F$15,CalculationsAndCharts!$A187+$A$11,IF($C$5,8,0),1,1)) -> 45.750999 | H187: 1.833393508e+10 | I187: 9.488884546e+10 | J187: 2190077000 | K187: 43.32671658 | L187: 4.033301393e+11 | M187: 9309646000 | N187: 43.32389645 | O187: 43.42489985 | P187: 43.4734002 | Q187: 438015400 | R187: 465482300 | S187: =IF($A187>$L$30,NA(),N187-O187) -> -0.1010033968 | T187: =IF($A187>$I$30,NA(),K187/P187) -> 0.9966258995 | U187: 0.9409926006 | V187: -0.0947227629 | W187: -0.08373639863 | Y187: 2.451494237e+11 | Z187: 5792761000 | AA187: 42.3199617 | AB187: 5.151708728e+11 | AC187: 11813209000 | AD187: 43.60973151 | AE187: 0.9704247248 | AF187: 0.9839457216 | AG187: 0.9417241465 | AH187: 39.85372981 | AI187: 46.30839262 | AJ187: -6.454662805 | AK187: -3.493859549 | AL187: -2.960803257 | BC187: 400733000
A188: 156 | B188: =IF(A188>$A$8,"",OFFSET(InputPriceData!B$15,$A188+$A$11,0,1,1)) -> 2023-11-03 | C188: =IF(A188>$A$8,"",OFFSET(InputPriceData!G$15,CalculationsAndCharts!$A188+$A$11,IF($C$5,8,0),1,1)) -> 424610000 | D188: =IF(A188>$A$8,"",OFFSET(InputPriceData!C$15,CalculationsAndCharts!$A188+$A$11,IF($C$5,8,0),1,1)) -> 44.02 | E188: =IF(A188>$A$8,"",OFFSET(InputPriceData!D$15,CalculationsAndCharts!$A188+$A$11,IF($C$5,8,0),1,1)) -> 45.308998 | F188: =IF(A188>$A$8,"",OFFSET(InputPriceData!E$15,CalculationsAndCharts!$A188+$A$11,IF($C$5,8,0),1,1)) -> 43.723 | G188: =IF(A188>$A$8,"",OFFSET(InputPriceData!F$15,CalculationsAndCharts!$A188+$A$11,IF($C$5,8,0),1,1)) -> 45.005001 | H188: 1.910957347e+10 | I188: 9.25265305e+10 | J188: 2177372000 | K188: 42.49459004 | L188: 4.035434201e+11 | M188: 9318588000 | N188: 43.30521106 | O188: 43.40099985 | P188: 42.5554002 | Q188: 435474400 | R188: 465929400 | S188: =IF($A188>$L$30,NA(),N188-O188) -> -0.09578879198 | T188: =IF($A188>$I$30,NA(),K188/P188) -> 0.9985710354 | U188: 0.93463602 | V188: -0.08939972344 | W188: -0.08088908925 | Y188: 2.532847856e+11 | Z188: 6019322000 | AA188: 42.07862374 | AB188: 5.141421453e+11 | AC188: 11810306000 | AD188: 43.53334666 | AE188: 0.9665837102 | AF188: 0.9888557241 | AG188: 0.9342840689 | AH188: 39.3133878 | AI188: 46.59540723 | AJ188: -7.282019437 | AK188: -2.422051966 | AL188: -4.859967471 | BC188: 424610000
A189: 157 | B189: =IF(A189>$A$8,"",OFFSET(InputPriceData!B$15,$A189+$A$11,0,1,1)) -> 2023-11-02 | C189: =IF(A189>$A$8,"",OFFSET(InputPriceData!G$15,CalculationsAndCharts!$A189+$A$11,IF($C$5,8,0),1,1)) -> 409172000 | D189: =IF(A189>$A$8,"",OFFSET(InputPriceData!C$15,CalculationsAndCharts!$A189+$A$11,IF($C$5,8,0),1,1)) -> 43.327999 | E189: =IF(A189>$A$8,"",OFFSET(InputPriceData!D$15,CalculationsAndCharts!$A189+$A$11,IF($C$5,8,0),1,1)) -> 43.883999 | F189: =IF(A189>$A$8,"",OFFSET(InputPriceData!E$15,CalculationsAndCharts!$A189+$A$11,IF($C$5,8,0),1,1)) -> 42.894001 | G189: =IF(A189>$A$8,"",OFFSET(InputPriceData!F$15,CalculationsAndCharts!$A189+$A$11,IF($C$5,8,0),1,1)) -> 43.506001 | H189: 1.780143744e+10 | I189: 9.029670903e+10 | J189: 2169546000 | K189: 41.62009426 | L189: 4.043145073e+11 | M189: 9328414000 | N189: 43.34225596 | O189: 43.43884985 | P189: 41.6544 | Q189: 433909200 | R189: 466420700 | S189: =IF($A189>$L$30,NA(),N189-O189) -> -0.09659388938 | T189: =IF($A189>$I$30,NA(),K189/P189) -> 0.9991764198 | U189: 0.9302957609 | V189: -0.08978687818 | W189: -0.07772588286 | Y189: 2.698674995e+11 | Z189: 6407045000 | AA189: 42.12043141 | AB189: 5.133308762e+11 | AC189: 11810359000 | AD189: 43.46445999 | AE189: 0.9690775272 | AF189: 0.9943265343 | AG189: 0.9391112537 | AH189: 39.55577115 | AI189: 46.2825462 | AJ189: -6.726775056 | AK189: -1.228919426 | AL189: -5.49785563 | BC189: 409172000
A190: 158 | B190: =IF(A190>$A$8,"",OFFSET(InputPriceData!B$15,$A190+$A$11,0,1,1)) -> 2023-11-01 | C190: =IF(A190>$A$8,"",OFFSET(InputPriceData!G$15,CalculationsAndCharts!$A190+$A$11,IF($C$5,8,0),1,1)) -> 437593000 | D190: =IF(A190>$A$8,"",OFFSET(InputPriceData!C$15,CalculationsAndCharts!$A190+$A$11,IF($C$5,8,0),1,1)) -> 40.883999 | E190: =IF(A190>$A$8,"",OFFSET(InputPriceData!D$15,CalculationsAndCharts!$A190+$A$11,IF($C$5,8,0),1,1)) -> 42.381001 | F190: =IF(A190>$A$8,"",OFFSET(InputPriceData!E$15,CalculationsAndCharts!$A190+$A$11,IF($C$5,8,0),1,1)) -> 40.868999 | G190: =IF(A190>$A$8,"",OFFSET(InputPriceData!F$15,CalculationsAndCharts!$A190+$A$11,IF($C$5,8,0),1,1)) -> 42.325001 | H190: 1.852112416e+10 | I190: 9.431167791e+10 | J190: 2301375000 | K190: 40.98057809 | L190: 4.040970382e+11 | M190: 9312725000 | N190: 43.39192214 | O190: 43.4979498 | P190: 41.0183998 | Q190: 460275000 | R190: 465636250 | S190: =IF($A190>$L$30,NA(),N190-O190) -> -0.106027655 | T190: =IF($A190>$I$30,NA(),K190/P190) -> 0.9990779332 | U190: 0.9884861842 | V190: -0.1047102332 | W190: -0.07409944708 | Y190: 2.693562508e+11 | Z190: 6372972000 | AA190: 42.26540628 | AB190: 5.144249379e+11 | AC190: 11846122000 | AD190: 43.42559851 | AE190: 0.9732832183 | AF190: 0.9996505439 | AG190: 0.9472802231 | AH190: 40.03718349 | AI190: 45.84239959 | AJ190: -5.805216102 | AK190: -0.06864243142 | AL190: -5.736573671 | BC190: 437593000
A191: 159 | B191: =IF(A191>$A$8,"",OFFSET(InputPriceData!B$15,$A191+$A$11,0,1,1)) -> 2023-10-31 | C191: =IF(A191>$A$8,"",OFFSET(InputPriceData!G$15,CalculationsAndCharts!$A191+$A$11,IF($C$5,8,0),1,1)) -> 517969000 | D191: =IF(A191>$A$8,"",OFFSET(InputPriceData!C$15,CalculationsAndCharts!$A191+$A$11,IF($C$5,8,0),1,1)) -> 40.450001 | E191: =IF(A191>$A$8,"",OFFSET(InputPriceData!D$15,CalculationsAndCharts!$A191+$A$11,IF($C$5,8,0),1,1)) -> 40.879002 | F191: =IF(A191>$A$8,"",OFFSET(InputPriceData!E$15,CalculationsAndCharts!$A191+$A$11,IF($C$5,8,0),1,1)) -> 39.23 | G191: =IF(A191>$A$8,"",OFFSET(InputPriceData!F$15,CalculationsAndCharts!$A191+$A$11,IF($C$5,8,0),1,1)) -> 40.779999 | H191: 2.11227753e+10 | I191: 9.243442959e+10 | J191: 2262161000 | K191: 40.8611189 | L191: 4.015108727e+11 | M191: 9236953000 | N191: 43.4678917 | O191: 43.58374975 | P191: 40.9091994 | Q191: 452432200 | R191: 461847650 | S191: =IF($A191>$L$30,NA(),N191-O191) -> -0.1158580485 | T191: =IF($A191>$I$30,NA(),K191/P191) -> 0.998824702 | U191: 0.9796135154 | V191: -0.1133627184 | W191: -0.06943535348 | Y191: 2.723888682e+11 | Z191: 6409494000 | AA191: 42.49771794 | AB191: 5.127638543e+11 | AC191: 11810811000 | AD191: 43.41478788 | AE191: 0.9788765538 | AF191: 1.004534507 | AG191: 0.9581993075 | AH191: 40.72128391 | AI191: 45.30872392 | AJ191: -4.587440009 | AK191: 0.9966821718 | AL191: -5.584122181 | BD191: 517969000
A192: 160 | B192: =IF(A192>$A$8,"",OFFSET(InputPriceData!B$15,$A192+$A$11,0,1,1)) -> 2023-10-30 | C192: =IF(A192>$A$8,"",OFFSET(InputPriceData!G$15,CalculationsAndCharts!$A192+$A$11,IF($C$5,8,0),1,1)) -> 388028000 | D192: =IF(A192>$A$8,"",OFFSET(InputPriceData!C$15,CalculationsAndCharts!$A192+$A$11,IF($C$5,8,0),1,1)) -> 41.087002 | E192: =IF(A192>$A$8,"",OFFSET(InputPriceData!D$15,CalculationsAndCharts!$A192+$A$11,IF($C$5,8,0),1,1)) -> 41.765999 | F192: =IF(A192>$A$8,"",OFFSET(InputPriceData!E$15,CalculationsAndCharts!$A192+$A$11,IF($C$5,8,0),1,1)) -> 40.480999 | G192: =IF(A192>$A$8,"",OFFSET(InputPriceData!F$15,CalculationsAndCharts!$A192+$A$11,IF($C$5,8,0),1,1)) -> 41.160999 | H192: 1.597162012e+10 | I192: 8.884073245e+10 | J192: 2145655000 | K192: 41.40494742 | L192: 4.008780759e+11 | M192: 9189834000 | N192: 43.6219061 | O192: 43.7205997 | P192: 41.4857992 | Q192: 429131000 | R192: 459491700 | S192: =IF($A192>$L$30,NA(),N192-O192) -> -0.0986935957 | T192: =IF($A192>$I$30,NA(),K192/P192) -> 0.9980510974 | U192: 0.9339254659 | V192: -0.0919928272 | W192: -0.06350929248 | Y192: 2.73861895e+11 | Z192: 6372850000 | AA192: 42.97322156 | AB192: 5.093359392e+11 | AC192: 11711933000 | AD192: 43.48863157 | AE192: 0.9881483967 | AF192: 1.009016054 | AG192: 0.9764372539 | AH192: 41.96065445 | AI192: 44.53807082 | AJ192: -2.577416373 | AK192: 1.976214623 | AL192: -4.553630997 | BC192: 388028000
A193: 161 | B193: =IF(A193>$A$8,"",OFFSET(InputPriceData!B$15,$A193+$A$11,0,1,1)) -> 2023-10-27 | C193: =IF(A193>$A$8,"",OFFSET(InputPriceData!G$15,CalculationsAndCharts!$A193+$A$11,IF($C$5,8,0),1,1)) -> 416784000 | D193: =IF(A193>$A$8,"",OFFSET(InputPriceData!C$15,CalculationsAndCharts!$A193+$A$11,IF($C$5,8,0),1,1)) -> 41.130001 | E193: =IF(A193>$A$8,"",OFFSET(InputPriceData!D$15,CalculationsAndCharts!$A193+$A$11,IF($C$5,8,0),1,1)) -> 41.206001 | F193: =IF(A193>$A$8,"",OFFSET(InputPriceData!E$15,CalculationsAndCharts!$A193+$A$11,IF($C$5,8,0),1,1)) -> 40.014999 | G193: =IF(A193>$A$8,"",OFFSET(InputPriceData!F$15,CalculationsAndCharts!$A193+$A$11,IF($C$5,8,0),1,1)) -> 40.5 | H193: 16879752000 | I193: 9.343393813e+10 | J193: 2236157000 | K193: 41.78326393 | L193: 4.043104072e+11 | M193: 9235104000 | N193: 43.77973515 | O193: 43.9016498 | P193: 41.848599 | Q193: 447231400 | R193: 461755200 | S193: =IF($A193>$L$30,NA(),N193-O193) -> -0.1219146491 | T193: =IF($A193>$I$30,NA(),K193/P193) -> 0.9984387753 | U193: 0.9685465372 | V193: -0.1178956617 | W193: -0.05976405106 | Y193: 2.755893553e+11 | Z193: 6362959000 | AA193: 43.31150889 | AB193: 5.133053295e+11 | AC193: 11803141000 | AD193: 43.4888755 | AE193: 0.9959215636 | AF193: 1.012630619 | AG193: 0.9918597609 | AH193: 42.95894285 | AI193: 43.84579072 | AJ193: -0.8868478694 | AK193: 2.769830559 | AL193: -3.656678428 | BC193: 416784000
A194: 162 | B194: =IF(A194>$A$8,"",OFFSET(InputPriceData!B$15,$A194+$A$11,0,1,1)) -> 2023-10-26 | C194: =IF(A194>$A$8,"",OFFSET(InputPriceData!G$15,CalculationsAndCharts!$A194+$A$11,IF($C$5,8,0),1,1)) -> 541001000 | D194: =IF(A194>$A$8,"",OFFSET(InputPriceData!C$15,CalculationsAndCharts!$A194+$A$11,IF($C$5,8,0),1,1)) -> 41.853001 | E194: =IF(A194>$A$8,"",OFFSET(InputPriceData!D$15,CalculationsAndCharts!$A194+$A$11,IF($C$5,8,0),1,1)) -> 42.256001 | F194: =IF(A194>$A$8,"",OFFSET(InputPriceData!E$15,CalculationsAndCharts!$A194+$A$11,IF($C$5,8,0),1,1)) -> 39.880001 | G194: =IF(A194>$A$8,"",OFFSET(InputPriceData!F$15,CalculationsAndCharts!$A194+$A$11,IF($C$5,8,0),1,1)) -> 40.326 | H194: 21816406326 | I194: 9.630679455e+10 | J194: 2296639000 | K194: 41.93379741 | L194: 4.047358628e+11 | M194: 9216150000 | N194: 43.915937 | O194: 44.05159985 | P194: 42.0259992 | Q194: 459327800 | R194: 460807500 | S194: =IF($A194>$L$30,NA(),N194-O194) -> -0.1356628504 | T194: =IF($A194>$I$30,NA(),K194/P194) -> 0.9978060774 | U194: 0.9967888978 | V194: -0.134930545 | W194: -0.05386253414 | Y194: 2.755899217e+11 | Z194: 6314757000 | AA194: 43.64220535 | AB194: 5.149134151e+11 | AC194: 11837093000 | AD194: 43.49998898 | AE194: 1.003269343 | AF194: 1.015260158 | AG194: 1.006549374 | AH194: 43.92803447 | AI194: 43.21694505 | AJ194: 0.711089414 | AK194: 3.349448757 | AL194: -2.638359343 | BD194: 541001000
A195: 163 | B195: =IF(A195>$A$8,"",OFFSET(InputPriceData!B$15,$A195+$A$11,0,1,1)) -> 2023-10-25 | C195: =IF(A195>$A$8,"",OFFSET(InputPriceData!G$15,CalculationsAndCharts!$A195+$A$11,IF($C$5,8,0),1,1)) -> 398379000 | D195: =IF(A195>$A$8,"",OFFSET(InputPriceData!C$15,CalculationsAndCharts!$A195+$A$11,IF($C$5,8,0),1,1)) -> 43.397999 | E195: =IF(A195>$A$8,"",OFFSET(InputPriceData!D$15,CalculationsAndCharts!$A195+$A$11,IF($C$5,8,0),1,1)) -> 43.650002 | F195: =IF(A195>$A$8,"",OFFSET(InputPriceData!E$15,CalculationsAndCharts!$A195+$A$11,IF($C$5,8,0),1,1)) -> 41.555 | G195: =IF(A195>$A$8,"",OFFSET(InputPriceData!F$15,CalculationsAndCharts!$A195+$A$11,IF($C$5,8,0),1,1)) -> 41.778999 | H195: 1.664387584e+10 | I195: 9.559279976e+10 | J195: 2256871000 | K195: 42.35634192 | L195: 4.012177609e+11 | M195: 9099812000 | N195: 44.09077472 | O195: 44.1897499 | P195: 42.3809996 | Q195: 451374200 | R195: 454990600 | S195: =IF($A195>$L$30,NA(),N195-O195) -> -0.09897518016 | T195: =IF($A195>$I$30,NA(),K195/P195) -> 0.9994181903 | U195: 0.9920517039 | V195: -0.09813136911 | W195: -0.04460899771 | Y195: 2.723207313e+11 | Z195: 6183431000 | AA195: 44.04039299 | AB195: 5.086032828e+11 | AC195: 11663200000 | AD195: 43.60752477 | AE195: 1.009926457 | AF195: 1.016379292 | AG195: 1.019951449 | AH195: 44.91906264 | AI195: 42.75451034 | AJ195: 2.164552299 | AK195: 3.598009295 | AL195: -1.433456996 | BD195: 398379000
A196: 164 | B196: =IF(A196>$A$8,"",OFFSET(InputPriceData!B$15,$A196+$A$11,0,1,1)) -> 2023-10-24 | C196: =IF(A196>$A$8,"",OFFSET(InputPriceData!G$15,CalculationsAndCharts!$A196+$A$11,IF($C$5,8,0),1,1)) -> 401463000 | D196: =IF(A196>$A$8,"",OFFSET(InputPriceData!C$15,CalculationsAndCharts!$A196+$A$11,IF($C$5,8,0),1,1)) -> 43.077 | E196: =IF(A196>$A$8,"",OFFSET(InputPriceData!D$15,CalculationsAndCharts!$A196+$A$11,IF($C$5,8,0),1,1)) -> 43.696999 | F196: =IF(A196>$A$8,"",OFFSET(InputPriceData!E$15,CalculationsAndCharts!$A196+$A$11,IF($C$5,8,0),1,1)) -> 42.691002 | G196: =IF(A196>$A$8,"",OFFSET(InputPriceData!F$15,CalculationsAndCharts!$A196+$A$11,IF($C$5,8,0),1,1)) -> 43.662998 | H196: 1.752907817e+10 | I196: 1.054182209e+11 | J196: 2485786000 | K196: 42.4084056 | L196: 4.034693842e+11 | M196: 9146368000 | N196: 44.11252468 | O196: 44.2241999 | P196: 42.4643996 | Q196: 497157200 | R196: 457318400 | S196: =IF($A196>$L$30,NA(),N196-O196) -> -0.1116752151 | T196: =IF($A196>$I$30,NA(),K196/P196) -> 0.9986813895 | U196: 1.087113923 | V196: -0.121243597 | W196: -0.0304278147 | Y196: 2.755575161e+11 | Z196: 6219488000 | AA196: 44.30549848 | AB196: 5.081951523e+11 | AC196: 11637885000 | AD196: 43.66731174 | AE196: 1.014614748 | AF196: 1.016005168 | AG196: 1.029443086 | AH196: 45.60998907 | AI196: 42.41838363 | AJ196: 3.191605442 | AK196: 3.518626027 | AL196: -0.3270205848 | BC196: 401463000
A197: 165 | B197: =IF(A197>$A$8,"",OFFSET(InputPriceData!B$15,$A197+$A$11,0,1,1)) -> 2023-10-23 | C197: =IF(A197>$A$8,"",OFFSET(InputPriceData!G$15,CalculationsAndCharts!$A197+$A$11,IF($C$5,8,0),1,1)) -> 478530000 | D197: =IF(A197>$A$8,"",OFFSET(InputPriceData!C$15,CalculationsAndCharts!$A197+$A$11,IF($C$5,8,0),1,1)) -> 41.229 | E197: =IF(A197>$A$8,"",OFFSET(InputPriceData!D$15,CalculationsAndCharts!$A197+$A$11,IF($C$5,8,0),1,1)) -> 43.248001 | F197: =IF(A197>$A$8,"",OFFSET(InputPriceData!E$15,CalculationsAndCharts!$A197+$A$11,IF($C$5,8,0),1,1)) -> 40.945 | G197: =IF(A197>$A$8,"",OFFSET(InputPriceData!F$15,CalculationsAndCharts!$A197+$A$11,IF($C$5,8,0),1,1)) -> 42.974998 | H197: 2.056482579e+10 | I197: 1.235814301e+11 | J197: 2896656000 | K197: 42.66348165 | L197: 4.028003465e+11 | M197: 9147187000 | N197: 44.03543368 | O197: 44.13659995 | P197: 42.5194 | Q197: 579331200 | R197: 457359350 | S197: =IF($A197>$L$30,NA(),N197-O197) -> -0.1011662685 | T197: =IF($A197>$I$30,NA(),K197/P197) -> 1.00338861 | U197: 1.266687125 | V197: -0.1285802465 | W197: -0.01163086854 | Y197: 2.756124062e+11 | Z197: 6211508000 | AA197: 44.37125513 | AB197: 5.126609889e+11 | AC197: 11736693000 | AD197: 43.68019074 | AE197: 1.015821002 | AF197: 1.014102391 | AG197: 1.031892309 | AH197: 45.78635689 | AI197: 42.33018347 | AJ197: 3.456173422 | AK197: 3.102341762 | AL197: 0.3538316599 | BC197: 478530000
A198: 166 | B198: =IF(A198>$A$8,"",OFFSET(InputPriceData!B$15,$A198+$A$11,0,1,1)) -> 2023-10-20 | C198: =IF(A198>$A$8,"",OFFSET(InputPriceData!G$15,CalculationsAndCharts!$A198+$A$11,IF($C$5,8,0),1,1)) -> 477266000 | D198: =IF(A198>$A$8,"",OFFSET(InputPriceData!C$15,CalculationsAndCharts!$A198+$A$11,IF($C$5,8,0),1,1)) -> 41.889999 | E198: =IF(A198>$A$8,"",OFFSET(InputPriceData!D$15,CalculationsAndCharts!$A198+$A$11,IF($C$5,8,0),1,1)) -> 42.470001 | F198: =IF(A198>$A$8,"",OFFSET(InputPriceData!E$15,CalculationsAndCharts!$A198+$A$11,IF($C$5,8,0),1,1)) -> 41.077999 | G198: =IF(A198>$A$8,"",OFFSET(InputPriceData!F$15,CalculationsAndCharts!$A198+$A$11,IF($C$5,8,0),1,1)) -> 41.387001 | H198: 1.975260842e+10 | I198: 1.203067931e+11 | J198: 2793225000 | K198: 43.07092808 | L198: 3.999303809e+11 | M198: 9087748000 | N198: 44.00764424 | O198: 44.09895005 | P198: 43.1434006 | Q198: 558645000 | R198: 454387400 | S198: =IF($A198>$L$30,NA(),N198-O198) -> -0.09130581074 | T198: =IF($A198>$I$30,NA(),K198/P198) -> 0.9983201945 | U198: 1.229446503 | V198: -0.1120670421 | W198: 0.006970626371 | Y198: 2.709825391e+11 | Z198: 6094799000 | AA198: 44.46127577 | AB198: 5.14346045e+11 | AC198: 11764994000 | AD198: 43.71834317 | AE198: 1.016993613 | AF198: 1.010888425 | AG198: 1.034276009 | AH198: 45.98523086 | AI198: 42.26951296 | AJ198: 3.715717894 | AK198: 2.395915967 | AL198: 1.319801927 | BD198: 477266000
A199: 167 | B199: =IF(A199>$A$8,"",OFFSET(InputPriceData!B$15,$A199+$A$11,0,1,1)) -> 2023-10-19 | C199: =IF(A199>$A$8,"",OFFSET(InputPriceData!G$15,CalculationsAndCharts!$A199+$A$11,IF($C$5,8,0),1,1)) -> 501233000 | D199: =IF(A199>$A$8,"",OFFSET(InputPriceData!C$15,CalculationsAndCharts!$A199+$A$11,IF($C$5,8,0),1,1)) -> 42.811001 | E199: =IF(A199>$A$8,"",OFFSET(InputPriceData!D$15,CalculationsAndCharts!$A199+$A$11,IF($C$5,8,0),1,1)) -> 43.297001 | F199: =IF(A199>$A$8,"",OFFSET(InputPriceData!E$15,CalculationsAndCharts!$A199+$A$11,IF($C$5,8,0),1,1)) -> 41.882 | G199: =IF(A199>$A$8,"",OFFSET(InputPriceData!F$15,CalculationsAndCharts!$A199+$A$11,IF($C$5,8,0),1,1)) -> 42.101002 | H199: 2.110241154e+10 | I199: 1.221079262e+11 | J199: 2790074000 | K199: 43.765121 | L199: 4.001187829e+11 | M199: 9089718000 | N199: 44.01883347 | O199: 44.11010005 | P199: 43.9582002 | Q199: 558014800 | R199: 454485900 | S199: =IF($A199>$L$30,NA(),N199-O199) -> -0.09126657904 | T199: =IF($A199>$I$30,NA(),K199/P199) -> 0.9956076636 | U199: 1.227793425 | V199: -0.1115643158 | W199: 0.02377585954 | Y199: 2.717199092e+11 | Z199: 6088383000 | AA199: 44.62924051 | AB199: 5.114628283e+11 | AC199: 11657825000 | AD199: 43.87292041 | AE199: 1.017238882 | AF199: 1.006333447 | AG199: 1.034774943 | AH199: 46.1812198 | AI199: 42.39851448 | AJ199: 3.782705327 | AK199: 1.390638415 | AL199: 2.392066912 | BD199: 501233000
